Workbook

Sheet DGP
A1: SR8 DGP | B1: ObjectID | C1: Active? | D1: DGP (SR8) - Indicator | E1: Comment | F1: Period 1 Q2-15 | G1: Period 2 Q3-15 | H1: Period 3 Q4-15 | I1: Period 4 Q1-16 | J1: Period 5 Q2-16 | K1: Period 6 Q3-16 | L1: Period 7 Q4-16 | M1: Period 8 Q1-17 | N1: Period 9 Q2-17 | O1: Period 10 Q3-17 | P1: Period 11 Q4-17 | Q1: Period 12 Q1-18
A2: DGP | B2: Fi1 | C2: √ | D2: Budget PR => SR | F2: ='M&E'!$L$235 -> 504,075 | G2: ='M&E'!$P$235 -> 615,300 | H2: ='M&E'!$T$235 -> 0 | I2: ='M&E'!$X$235 -> 0
B3: Fi2 | C3: √ | D3: Disbursement PR => SR | F3: ='M&E'!$L$438 -> 600,000 | G3: ='M&E'!$P$438 -> 650,000 | H3: ='M&E'!$T$438 -> 0 | I3: ='M&E'!$X$438 -> 0
B4: Fi3 | C4: √ | D4: Expenditure | E4: =Comments!K24 -> 0 | F4: ='M&E'!$M$235 -> 494,925 | G4: ='M&E'!$Q$235 -> 617,200 | H4: ='M&E'!$U$235 -> 0 | I4: ='M&E'!$Y$235 -> 0
B5: Fi4 | C5: √ | D5: Financial reports planned | F5: ='M&E'!I460 -> 4 | G5: ='M&E'!J460 -> 4 | H5: ='M&E'!L460 -> 0 | I5: ='M&E'!M460 -> 0
B6: Fi5 | C6: √ | D6: Financial reports overdue | E6: =Comments!K25 -> 0 | F6: ='M&E'!I461 -> 1 | G6: ='M&E'!J461 -> 1 | H6: ='M&E'!L461 -> 0 | I6: ='M&E'!M461 -> 0
B7: Fi6 | C7: X | D7: Audit actions fulfilled
B8: Fi7 | C8: X | D8: Outstanding audit actions within performance period
B9: Fi8 | C9: X | D9: Outstanding audit actions past performance period
B10: Ma9 | C10: X | D10: Supervision visits planned
B11: Ma10 | C11: X | D11: Supervision visits not performed
B12: Ma11 | C12: √ | D12: Supervision actions recommended | F12: ='M&E'!I467 -> 7 | G12: ='M&E'!J467 -> 3 | H12: ='M&E'!L467 -> 0 | I12: ='M&E'!M467 -> 0
B13: Ma12 | C13: √ | D13: Supervision recommendations past due | E13: =Comments!K27 -> 0 | F13: ='M&E'!I468 -> 2 | G13: ='M&E'!J468 -> 2 | H13: ='M&E'!L468 -> 0 | I13: ='M&E'!M468 -> 0
B14: Ma13 | C14: √ | D14: Programmatic reports planned | F14: ='M&E'!I469 -> 4 | G14: ='M&E'!J469 -> 5 | H14: ='M&E'!L469 -> 0 | I14: ='M&E'!M469 -> 0
B15: Ma14 | C15: √ | D15: Programmatic reports past due | E15: =Comments!K26 -> 0 | F15: ='M&E'!I470 -> 2 | G15: ='M&E'!J470 -> 4 | H15: ='M&E'!L470 -> 0 | I15: ='M&E'!M470 -> 0
B16: Ma15 | C16: X | D16: Key positions planned
B17: Ma16 | C17: X | D17: Key positions open
B18: Ma17 | C18: X | D18: CPs fulfilled
B19: Ma18 | C19: X | D19: CPs not fulfilled but still within deadline
B20: Ma19 | C20: X | D20: CPs not fulfilled and past the deadline
B21: Ma20 | C21: X | D21: TBA + SC fulfilled
B22: Ma21 | C22: X | D22: TBA + SC not fulfilled but still wiithin deadline
B23: Ma22 | C23: X | D23: TBA + SC not fulfilled and past the deadline
B24: Ma23 | C24: X | D24: Number of OIG directives fulfilled
B25: Ma24 | C25: X | D25: OIG directives not fulfilled and still within deadline
B26: Ma25 | C26: X | D26: OIG directives not fulfilled and past deadline
B27: PS26 | C27: X | D27: # of health products ordered with a purchase order
B28: PS27 | C28: X | D28: # of health products ordered and delivered according to procurement plan
B29: PS28 | C29: X | D29: # of product quality control tests performed
B30: PS29 | C30: X | D30: # of product quality control tests failed
B31: PS30 | C31: X | D31: Value of emergency orders
B32: PS31 | C32: X | D32: # of treatment sites which placed orders
B33: PS32 | C33: X | D33: # of treatment sites which did not receive orders in full and on time
B34: PS33 | C34: X | D34: # of sites providing treatment services
B35: PS34 | C35: X | D35: # of sites providing treatment services that have stock-outs
B36: PS35 | C36: √ | D36: Actual stock level - PS39 - Product 1: Efavirenz, 600 mg, 30 tablets | F36: ='M&E'!I491 -> 11 | G36: ='M&E'!J491 -> 9 | H36: ='M&E'!L491 -> 0 | I36: ='M&E'!M491 -> 0
B37: PS36 | C37: √ | D37: Actual stock level - PS40 - Product 2: Efavirenz, 200 mg, 90 capsules | F37: ='M&E'!I492 -> 12 | G37: ='M&E'!J492 -> 8 | H37: ='M&E'!L492 -> 0 | I37: ='M&E'!M492 -> 0
B38: PS37 | C38: √ | D38: Actual stock level - PS41 - Product 3: TDF/3TC, 300/300 mg, 30 tablets | F38: ='M&E'!I493 -> 13 | G38: ='M&E'!J493 -> 7 | H38: ='M&E'!L493 -> 0 | I38: ='M&E'!M493 -> 0
B39: PS38 | C39: √ | D39: Actual stock level - PS42 - Product 4: 3TC, 10 mg/ml, oral solution 240 ml | F39: ='M&E'!I494 -> 14 | G39: ='M&E'!J494 -> 6 | H39: ='M&E'!L494 -> 0 | I39: ='M&E'!M494 -> 0
B40: PS39 | C40: X | D40: Actual stock level - PS43 - Product 5: 3TC/AZT/NVP, 150/300/200 mg, 60 tabletas
B41: PS40 | C41: X | D41: Actual stock level - PS44 - Product 6: ABC, 20 mg/ml, solución oral 240 ml
B42: PS41 | C42: X | D42: Actual stock level - PS45 - Product 7: 3TC/AZT, 150/300 mg, 60 tabletas
B43: PS42 | C43: X | D43: Actual stock level - PS46 - Product 8: 3TC/AZT/NVP, 30/60/50 mg, Disp. 60 tabletas
B44: PS43 | C44: X | D44: Actual stock level - PS47 - Product 9: AZT, 10 mg/ml, solución oral 240 ml
B45: PS44 | C45: X | D45: Actual stock level - PS48 - Product 10: LOP/RIT, 200/50 mg, 120 tabletas
B46: PS45 | C46: X | D46: Actual stock level - PS49 - Product 11: LOP/RIT, 80/20 mg/ml, solución oral 160 ml
B47: PS46 | C47: X | D47: Actual stock level - PS50 - Product 12: ATV/RTV, 300/100 mg, 30 cápsulas
B48: PS47 | C48: X | D48: Actual stock level - PS51 - Product 13: Raltegravir, 400 mg, 60 tabletas
B49: PS48 | C49: X | D49: Actual stock level - PS52 - Product 14: ABC, 300 mg, 60 tabletas
B50: PS49 | C50: X | D50: Actual stock level - PS53 - Product 15: Darunavir, 300 mg, 120 tabletas
B51: PS50 | C51: X | D51: Actual stock level - PS54 - Product 16: Nevirapine, 200 mg, 60 tabletas
B52: PS51 | C52: X | D52: Actual stock level - PS55 - Product 17: ABC/3TC, 600/300 mg, 30 tabletas
B53: PS52 | C53: X | D53: Actual stock level - PS56 - Product 18: DDI, 400 mg, 30 cápsulas
B54: PS53 | C54: X | D54: Actual stock level - PS57 - Product 19: HIV Rapid Test: Screening
B55: PS54 | C55: X | D55: Actual stock level - PS58 - Product 20: HIV Rapid Test: Confirmatory 1
B56: PS55 | C56: X | D56: # of sites expected to report on stocks
B57: PS56 | C57: X | D57: # of sites with stock reports past due
B58: PS57 | C58: X | D58: Pharma Budget
B59: PS58 | C59: X | D59: Pharma expenditures
B60: PS59 | C60: X | D60: Pharma commitment
B61: PS60 | C61: X | D61: Health Products + Equipment Budget
B62: PS61 | C62: X | D62: Health Products+ equipment expenditures
B63: PS62 | C63: X | D63: Health Products + equipment commitment
B64: PS63 | C64: X | D64: PSM Cost Budget
B65: PS64 | C65: X | D65: PSM Costs Expenditures
B66: PS65 | C66: X | D66: PSM Costs commitment
B67: Pr66 | C67: X | D67: 1.1: # empresas e instit. locales con iniciativas políticas discriminatorias relacionados con el VIH Target
B68: Pr67 | C68: X | D68: 1.1: # empresas e instit. locales con iniciativas políticas discriminatorias relacionados con el VIH Actual
B69: Pr68 | C69: √ | D69: # PLHIV that initiated ARV with CD4 count <200 Target | F69: ='M&E'!M26 -> 602 | G69: ='M&E'!Q26 -> 630 | H69: ='M&E'!U26 -> 0 | I69: ='M&E'!Y26 -> 0
B70: Pr69 | C70: √ | D70: # PLHIV that initiated ARV with CD4 count <200 Actual | E70: =Comments!K29 -> 0 | F70: ='M&E'!L26 -> 600 | G70: ='M&E'!P26 -> 600 | H70: ='M&E'!T26 -> 0 | I70: ='M&E'!X26 -> 0
B71: Pr70 | C71: X | D71: KP-3b: % personas trans sometido a pruebas de VIH y conocen los resultados Target
B72: Pr71 | C72: X | D72: KP-3b: % personas trans sometido a pruebas de VIH y conocen los resultados Actual
B73: Pr72 | C73: √ | D73: # new HIV+ enrolled in care services Target | F73: ='M&E'!L30 -> 124 | G73: ='M&E'!P30 -> 124 | H73: ='M&E'!T30 -> 0 | I73: ='M&E'!X30 -> 0
B74: Pr73 | C74: √ | D74: # new HIV+ enrolled in care services Actual | E74: =Comments!K30 -> 0 | F74: ='M&E'!M30 -> 110 | G74: ='M&E'!Q30 -> 124 | H74: ='M&E'!U30 -> 0 | I74: ='M&E'!Y30 -> 0
B75: Pr74 | C75: √ | D75: # aged 10-24 yrs reached by HIV life skills ed. in school Target | F75: ='M&E'!L32 -> 950 | G75: ='M&E'!P32 -> 800 | H75: ='M&E'!T32 -> 0 | I75: ='M&E'!X32 -> 0
B76: Pr75 | C76: √ | D76: # aged 10-24 yrs reached by HIV life skills ed. in school Actual | E76: =Comments!K31 -> 0 | F76: ='M&E'!M32 -> 920 | G76: ='M&E'!Q32 -> 800 | H76: ='M&E'!U32 -> 0 | I76: ='M&E'!Y32 -> 0
B77: Pr76 | C77: X | D77: KP-3e: % MVS residentes en bateyes que se han sometido a una prueba del VIH y conocen los resultados Target
B78: Pr77 | C78: X | D78: KP-3e: % MVS residentes en bateyes que se han sometido a una prueba del VIH y conocen los resultados Actual
B79: Pr78 | C79: X | D79: TCS-1: % adultos y niños que reciben TARV que viven con el VIH * Target
B80: Pr79 | C80: X | D80: TCS-1: % adultos y niños que reciben TARV que viven con el VIH * Actual
B81: Pr80 | C81: X | D81: TCS-2: % personas que viven con VIH que han iniciaron ARV con un recuento de CD4 de <200 células/mm3 Target
B82: Pr81 | C82: X | D82: TCS-2: % personas que viven con VIH que han iniciaron ARV con un recuento de CD4 de <200 células/mm3 Actual
B83: Pr82 | C83: X | D83: TCS-3: % adultos y niños que han iniciado TARV con una carga viral indetectable a 12 meses (<1000 copias/ml) Target
B84: Pr83 | C84: X | D84: TCS-3: % adultos y niños que han iniciado TARV con una carga viral indetectable a 12 meses (<1000 copias/ml) Actual
B85: Pr84 | C85: X | D85: TB/HIV-2: % pacientes seropositivos con TB registrados que han recibido TARV durante el tratamiento de la TB Target
B86: Pr85 | C86: X | D86: TB/HIV-2: % pacientes seropositivos con TB registrados que han recibido TARV durante el tratamiento de la TB Actual
B87: Pr86 | C87: X | D87: 2.5: # unidades notificantes (unidades notificadoras) informar oportunamente a través del SUME Target
B88: Pr87 | C88: X | D88: 2.5: # unidades notificantes (unidades notificadoras) informar oportunamente a través del SUME Actual
B89: Pr88 | C89: X | D89: 2.5: % unidades notificantes (unidades notificadoras) informar oportunamente a través del SUME Target
B90: Pr89 | C90: X | D90: 2.5: % unidades notificantes (unidades notificadoras) informar oportunamente a través del SUME Actual
B91: Pr90 | C91: X | D91: Target
B92: Pr91 | C92: X | D92: 0 Actual
B93: Pr92 | C93: X | D93: Target
B94: Pr93 | C94: X | D94: 0 Actual
B95: Pr94 | C95: X | D95: # HIV KPs reached with individual and/or smaller group package Target
B96: Pr95 | C96: X | D96: # HIV KPs reached with individual and/or smaller group package Actual
B97: Pr96 | C97: X | D97: # KPs tested who know their results Target
B98: Pr97 | C98: X | D98: # KPs tested who know their results Actual
B99: Pr98 | C99: X | D99: # of needles and syringes distributed per PWID per year Target
B100: Pr99 | C100: X | D100: # of needles and syringes distributed per PWID per year Actual
B101: Pr100 | C101: X | D101: # recv'g OST for at least 6 mths Target
B102: Pr101 | C102: X | D102: # recv'g OST for at least 6 mths Actual
B103: Pr102 | C103: X | D103: # aged 15+ yrs tested and with known HIV result Target
B104: Pr103 | C104: X | D104: # aged 15+ yrs tested and with known HIV result Actual
B105: Pr104 | C105: X | D105: # of targeted pop. reached through community outreach with std HIV prevention Target
B106: Pr105 | C106: X | D106: # of targeted pop. reached through community outreach with std HIV prevention Actual
B107: Pr106 | C107: X | D107: # new HIV+ enrolled in care services Target
B108: Pr107 | C108: X | D108: # new HIV+ enrolled in care services Actual
B109: Pr108 | C109: X | D109: # male circumcisions performed per national stds Target
B110: Pr109 | C110: X | D110: # male circumcisions performed per national stds Actual
B111: Pr110 | C111: X | D111: # aged 10-24 yrs reached by HIV life skills ed. in school Target
B112: Pr111 | C112: X | D112: # aged 10-24 yrs reached by HIV life skills ed. in school Actual
B113: Pr112 | C113: X | D113: # HMIS or other reporting units submitting timely reports as per national guidelines Target
B114: Pr113 | C114: X | D114: # HMIS or other reporting units submitting timely reports as per national guidelines Actual
B115: Pr114 | C115: X | D115: # OVCs 0-17 yrs whose HHs received free basic support Target
B116: Pr115 | C116: X | D116: # OVCs 0-17 yrs whose HHs received free basic support Actual
B117: Pr116 | C117: X | D117: # notified cases of bacteriologically confirmed TB Target
B118: Pr117 | C118: X | D118: # notified cases of bacteriologically confirmed TB Actual
B119: Pr118 | C119: X | D119: # notified cases of all forms of TB Target
B120: Pr119 | C120: X | D120: # notified cases of all forms of TB Actual
B121: Pr120 | C121: X | D121: Tx success rate for TB patients with all forms of TB Target
B122: Pr121 | C122: X | D122: Tx success rate for TB patients with all forms of TB Actual
B123: Pr122 | C123: X | D123: Tx success rate for TB patients with bacteriologically confirmed TB Target
B124: Pr123 | C124: X | D124: Tx success rate for TB patients with bacteriologically confirmed TB Actual
B125: Pr124 | C125: X | D125: # labs w/ smear micro showing adequate EQA Target
B126: Pr125 | C126: X | D126: # labs w/ smear micro showing adequate EQA Actual
B127: Pr126 | C127: X | D127: # units reporting no stock-outs of TB drugs on last day of quarter Target
B128: Pr127 | C128: X | D128: # units reporting no stock-outs of TB drugs on last day of quarter Actual
B129: Pr128 | C129: X | D129: # children < 5 yrs exposed to TB who started IPT Target
B130: Pr129 | C130: X | D130: # children < 5 yrs exposed to TB who started IPT Actual
B131: Pr130 | C131: X | D131: # TB cases (all forms) notified w/in KPs and high-risk groups Target
B132: Pr131 | C132: X | D132: # TB cases (all forms) notified w/in KPs and high-risk groups Actual
B133: Pr132 | C133: X | D133: # notified TB cases (all forms) contributed by non-NTP providers Target
B134: Pr133 | C134: X | D134: # notified TB cases (all forms) contributed by non-NTP providers Actual
B135: Pr134 | C135: X | D135: # previously treated TB patients receiving DST (bacteriologically+ only) Target
B136: Pr135 | C136: X | D136: # previously treated TB patients receiving DST (bacteriologically+ only) Actual
B137: Pr136 | C137: X | D137: # cases bacteriologically confirmed RR-TB and/or MDR-TB notified Target
B138: Pr137 | C138: X | D138: # cases bacteriologically confirmed RR-TB and/or MDR-TB notified Actual
B139: Pr138 | C139: X | D139: # cases bac confirmed RR-TB and/or MDR-TB that began 2d-line Tx Target
B140: Pr139 | C140: X | D140: # cases bac confirmed RR-TB and/or MDR-TB that began 2d-line Tx Actual
B141: Pr140 | C141: X | D141: # presumptive cases RR-TB and/or MDR-TB that began 2d-line Tx Target
B142: Pr141 | C142: X | D142: # presumptive cases RR-TB and/or MDR-TB that began 2d-line Tx Actual
B143: Pr142 | C143: X | D143: # cases w/ RR-TB and/or MDR-TB starting on MDR-TB Tx lost to follow-up at 6 mths Target
B144: Pr143 | C144: X | D144: # cases w/ RR-TB and/or MDR-TB starting on MDR-TB Tx lost to follow-up at 6 mths Actual
B145: Pr144 | C145: X | D145: # DST labs showing adequate performance on EQA Target
B146: Pr145 | C146: X | D146: # DST labs showing adequate performance on EQA Actual
B147: Pr146 | C147: X | D147: # TB patients w/ known HIV status Target
B148: Pr147 | C148: X | D148: # TB patients w/ known HIV status Actual
B149: Pr148 | C149: X | D149: # HIV+ TB patients given ART during TB Tx Target
B150: Pr149 | C150: X | D150: # HIV+ TB patients given ART during TB Tx Actual
B151: Pr150 | C151: X | D151: # HIV+ patients screened for TB in HIV care/Tx settings Target
B152: Pr151 | C152: X | D152: # HIV+ patients screened for TB in HIV care/Tx settings Actual
B153: Pr152 | C153: X | D153: # HIV+ patients newly enrolled in HIV care starting IPT Target
B154: Pr153 | C154: X | D154: # HIV+ patients newly enrolled in HIV care starting IPT Actual
B155: Pr154 | C155: X | D155: # HMIS units/other reporting units submitting timely reports per national guidelines Target
B156: Pr155 | C156: X | D156: # HMIS units/other reporting units submitting timely reports per national guidelines Actual
B157: Pr156 | C157: X | D157: Proportion targeted risk groups receiving ITNs (pregnant women) Target
B158: Pr157 | C158: X | D158: Proportion targeted risk groups receiving ITNs (pregnant women) Actual
B159: Pr158 | C159: X | D159: Proportion targeted risk groups receiving ITNs (children < 5 yrs) Target
B160: Pr159 | C160: X | D160: Proportion targeted risk groups receiving ITNs (children < 5 yrs) Actual
B161: Pr160 | C161: X | D161: Proportion targeted risk groups receiving ITNs (other risk group) Target
B162: Pr161 | C162: X | D162: Proportion targeted risk groups receiving ITNs (other risk group) Actual
B163: Pr162 | C163: X | D163: # population at risk potentially covered by LLINs distributed Target
B164: Pr163 | C164: X | D164: # population at risk potentially covered by LLINs distributed Actual
B165: Pr164 | C165: X | D165: # LLINs distributed through mass campaign and continuous distribution Target
B166: Pr165 | C166: X | D166: # LLINs distributed through mass campaign and continuous distribution Actual
B167: Pr166 | C167: X | D167: # HHs in targeted areas that received IRS in reporting period Target
B168: Pr167 | C168: X | D168: # HHs in targeted areas that received IRS in reporting period Actual
B169: Pr168 | C169: X | D169: Proportion of population protected by IRS in last 12 mths Target
B170: Pr169 | C170: X | D170: Proportion of population protected by IRS in last 12 mths Actual
B171: Pr170 | C171: X | D171: # suspected malaria cases recv'g parasitological test (by pub-sec health facilities) Target
B172: Pr171 | C172: X | D172: # suspected malaria cases recv'g parasitological test (by pub-sec health facilities) Actual
B173: Pr172 | C173: X | D173: # suspected malaria cases recv'g parasitological test (by private-sector sites) Target
B174: Pr173 | C174: X | D174: # suspected malaria cases recv'g parasitological test (by private-sector sites) Actual
B175: Pr174 | C175: X | D175: # suspected malaria cases recv'g parasitological test (in the community) Target
B176: Pr175 | C176: X | D176: # suspected malaria cases recv'g parasitological test (in the community) Actual
B177: Pr176 | C177: X | D177: # confirmed malaria cases recv'g 1st-line Tx per national policy (by pub-sec health facilities) Target
B178: Pr177 | C178: X | D178: # confirmed malaria cases recv'g 1st-line Tx per national policy (by pub-sec health facilities) Actual
B179: Pr178 | C179: X | D179: # confirmed malaria cases recv'g 1st-line Tx per national policy (by private-sector sites) Target
B180: Pr179 | C180: X | D180: # confirmed malaria cases recv'g 1st-line Tx per national policy (by private-sector sites) Actual
B181: Pr180 | C181: X | D181: # confirmed malaria cases recv'g 1st-line Tx per national policy (in the community) Target
B182: Pr181 | C182: X | D182: # confirmed malaria cases recv'g 1st-line Tx per national policy (in the community) Actual
B183: Pr182 | C183: X | D183: # estimated (presumed and confirmed) malaria cases that rec'd 1st-line Tx at pub-sec facility Target
B184: Pr183 | C184: X | D184: # estimated (presumed and confirmed) malaria cases that rec'd 1st-line Tx at pub-sec facility Actual
B185: Pr184 | C185: X | D185: # estimated (presumed and confirmed) malaria cases that rec'd 1st-line Tx at private-sector sites Target
B186: Pr185 | C186: X | D186: # estimated (presumed and confirmed) malaria cases that rec'd 1st-line Tx at private-sector sites Actual
B187: Pr186 | C187: X | D187: # estimated (presumed and confirmed) malaria cases that rec'd 1st-line Tx in the community Target
B188: Pr187 | C188: X | D188: # estimated (presumed and confirmed) malaria cases that rec'd 1st-line Tx in the community Actual
B189: Pr188 | C189: X | D189: # HF w/o stock-outs of key commodities Target
B190: Pr189 | C190: X | D190: # HF w/o stock-outs of key commodities Actual
B191: Pr190 | C191: X | D191: # CHW w/o stock-outs of key commodities Target
B192: Pr191 | C192: X | D192: # CHW w/o stock-outs of key commodities Actual
B193: Pr192 | C193: X | D193: # women attending ANC recv'g ≥ 3 doses malaria IPT Target
B194: Pr193 | C194: X | D194: # women attending ANC recv'g ≥ 3 doses malaria IPT Actual
B195: Pr194 | C195: X | D195: # confirmed cases fully investigated Target
B196: Pr195 | C196: X | D196: # confirmed cases fully investigated Actual
B197: Pr196 | C197: X | D197: # malaria foci fully investigated & registered Target
B198: Pr197 | C198: X | D198: # malaria foci fully investigated & registered Actual
B199: Pr198 | C199: X | D199: # HMIS units/other reporting units submitting timely reports per national guidelines Target
B200: Pr199 | C200: X | D200: # HMIS units/other reporting units submitting timely reports per national guidelines Actual
... 35 more rows

Sheet Menu
A2: Menu | B2: =Translations!A3 -> Hello
A3: =Translations!A5 -> SR Management Tool | F3: v1.0 24Apr17 | K3: =IF(Setup!H8="","",Setup!H8) -> Global Associates NGO
K4: =IF(Setup!H9="","",Setup!H9) -> For AIDS mitigation and support of affected populations
A5: =IF(Setup!H11="","",Setup!H11) -> Direct Gender Partnership (DGP) | K5: =IF(Setup!H10="","",Setup!H10) -> 

Sheet Setup (hidden)
A2: Setup
D3: =Translations!A9 -> Initial setup | U3: =Translations!A353 -> Changes on Indicator Type require execute "Link to the PR Dashboard" again | AL3: =Translations!A363 -> Changes on initial period require execute "Link to the PR Dashboard" again | AN3: PARA USO INTERNO DE LA APLICACIÓN | AZ3: Control de los Cambios Realizados desde la Ultima Vinculación | BM3: El % Logro Total se Calculará para las Lineas que no sean del Tipo Indicado más abajo
AG4: =Translations!A27 & " " & Translations!A214 -> 10. Assign months to quarters (current sheets per quarter) | AN4: Vinculado? | AO4: 1 | AZ4: Distribución de los Meses por Trimestres | BH4: =BB13+BD13+BF13+BH13 -> 0 | BJ4: En el Período de Inicio | BK4: =IF(BJ6<>AL7,1,0) -> 0
C5: =IF(ISBLANK(B8),0,1) -> 1 | D5: Total | E5: =SUM(E7:E15) -> 8 | J5: =COUNTA($K$8:$K$23) -> 2 | K5: Total | M5: =COUNTA(N8:N37) -> 1 | N5: Total | P5: =COUNTA(P8:P37) -> 1 | Q5: =COUNTA(Q8:Q37) -> 1 | R5: =COUNTA(R8:R22) -> 3 | S5: Total | U5: =COUNTA(U8:U22) -> 3 | V5: =COUNTA(V8:V22) -> 3 | W5: Total | X5: =COUNTA(X8:X9) -> 2 | Y5: =COUNTA(Y8:Y9) -> 2 | AA5: Total | AB5: =COUNTA(AB8:AB19) -> 12 | AD5: Total | AE5: =COUNTA(AE8:AE13) -> 3 | AG5: =6 - COUNTBLANK(AG7:AG12) -> 3 | AH5: =6 - COUNTBLANK(AH7:AH12) -> 3 | AI5: 3 | AJ5: 3 | AL5: =COUNTA(AL7:AL7) -> 1
B6: =Translations!A15 -> Next steps | D6: =Translations!A16 -> Status | G6: =Translations!A17 -> 1. Input general data | J6: =B8 -> 2. Objectives according to the performance framework | M6: =Translations!A20 -> 4. Define additional (non PRDB) programatic indicators | P6: =IF(Lists!V9=1,Translations!A39,Translations!A367) -> Associated to objective | Q6: =Translations!$A$349 -> Indicator type | R6: =Translations!A40 -> PR dashboard programatic indicators | U6: =IF(Lists!V9=1,Translations!A39,Translations!A367) -> Associated to objective | V6: =Translations!$A$349 -> Indicator type | W6: =Translations!A23 -> 7. Define thresholds | AA6: =Translations!A26 -> 9. Change name of buttons | AG6: =Translations!$A$48 -> 1st Quarter | AH6: =Translations!$A$49 -> 2nd Quarter | AI6: =Translations!$A$50 -> 3rd Quarter | AJ6: =Translations!$A$51 -> 4th Quarter | AL6: =Translations!A28 -> 11. Define the initial period in the PR Dashboard | AN6: =Translations!A81 -> PR Dashboard indicators | AT6: Tabla de Conversión | BA6: AG | BB6: Check | BC6: AH | BD6: Check | BE6: AI | BF6: Check | BG6: AJ | BH6: Check | BJ6: 01 - Period 1 | BM6: ="2" -> 2 | BP6: =Translations!A251 -> 13. Customize colors for indicators, activities and months
B7: =Translations!A17 -> 1. Input general data | E7: =IF(AND($H$7<>"",$H$8<>"",$H$11<>"",$H$13<>"",$H$14<>"",$H$15<>"",$H$16<>"",$H$17<>"",$H$19<>""),1,0) -> 1 | G7: =Translations!A30 -> Language | H7: English | J7: ID | K7: =IF(Lists!V9=1,Translations!A37,Translations!A366) -> Description of objectives | M7: ID | N7: =Translations!A38 -> Indicator name | R7: ID | S7: =Translations!A38 -> Indicator name | W7: =Translations!A41 -> Aspect | X7: =Translations!A42 -> Red (<) | Y7: =Translations!A43 -> Green (>=) | AA7: =Translations!A47 -> Button | AB7: =Translations!A46 -> Title | AD7: =Translations!A47 -> Button | AE7: =Translations!A46 -> Title | AG7: Month 1 | AH7: Month 4 | AI7: Month 7 | AJ7: Month 10 | AL7: 01 - Period 1 | AN7: ObjectID | AO7: Linea DB | AP7: Nombre del Indicador Activo | AQ7: =Translations!A38 -> Indicator name | AR7: Activo | AT7: Comentario | AU7: Q1 | AV7: Q2 | AW7: Q3 | AX7: Q4 | AZ7: 7 | BA7: Month 1 | BB7: =IF(BA7<>INDIRECT(BA$6&$AZ7),1,0) -> 0 | BC7: Month 4 | BD7: =IF(BC7<>INDIRECT(BC$6&$AZ7),1,0) -> 0 | BE7: Month 7 | BF7: =IF(BE7<>INDIRECT(BE$6&$AZ7),1,0) -> 0 | BG7: Month 10 | BH7: =IF(BG7<>INDIRECT(BG$6&$AZ7),1,0) -> 0 | BM7: 1. Indicador 2. Actividad | BP7: =Translations!A252 -> Indicators | BQ7: =Translations!A234 -> Activity: Contributing | BR7: =Translations!A253 -> Activity: Non-Contributing | BW7: Meses de Cierre por Q
B8: 2. Objectives according to the performance framework | E8: =IF(AND(C5=1,J5>0),1,0) -> 1 | G8: =Translations!A31 -> Principal recepient name | H8: Global Associates NGO | J8: 1 | K8: Increase the social acceptance and integration of PLHIV | M8: OI01 | N8: # of new orphans and vulnerable children (0 - 17 yrs) benefiting from services provided at OVC centers | O8: ="["&M8&"] " &N8 -> [OI01] # of new orphans and vulnerable children (0 - 17 yrs) benefiting from services provided at OVC centers | P8: 1 | Q8: 1. Standard | R8: Pr68 | S8: # PLHIV that initiated ARV with CD4 count <200 Target | T8: ="["&R8&"] " &S8 -> [Pr68] # PLHIV that initiated ARV with CD4 count <200 Target | U8: 1 | V8: 2. Inverse | W8: =Translations!A44 -> Programmatic | X8: 60 | Y8: 90 | AA8: =Translations!A196 -> Month 1 | AB8: January | AD8: =Translations!A208 -> Annex 1 | AE8: =Translations!A373 -> SSR advances liquidation | AG8: Month 2 | AH8: Month 5 | AI8: Month 8 | AJ8: Month 11 | AN8: =INDIRECT("'"&NHoja(1)&"'!B"&$AO8) -> Fi4 | AO8: 5 | AP8: =IF(AR8="X",0,AQ8) -> Financial reports planned | AQ8: =INDIRECT("'"&NHoja(1)&"'!D"&$AO8) -> Financial reports planned | AR8: =INDIRECT("'"&NHoja(1)&"'!C"&$AO8) -> √ | AU8: ='M&E'!I460 -> 4 | AV8: ='M&E'!J460 -> 4 | AW8: ='M&E'!L460 -> 0 | AX8: ='M&E'!M460 -> 0 | AZ8: 8 | BA8: Month 2 | BB8: =IF(BA8<>INDIRECT(BA$6&$AZ8),1,0) -> 0 | BC8: Month 5 | BD8: =IF(BC8<>INDIRECT(BC$6&$AZ8),1,0) -> 0 | BE8: Month 8 | BF8: =IF(BE8<>INDIRECT(BE$6&$AZ8),1,0) -> 0 | BG8: Month 11 | BH8: =IF(BG8<>INDIRECT(BG$6&$AZ8),1,0) -> 0 | BM8: NOTA: es importante tener en cuenta el formato. Deber ser colocado como ="2" o ="1" para que lo reconozca | BR8: =Translations!A84 -> Annual planning data | BS8: =Translations!A114 -> Months | BW8: Q1 | BX8: Q2 | BY8: Q3 | BZ8: Q4
B9: =Translations!A19 -> 3. Insert the SR data entry sheet | E9: =IF(UPPER(INDIRECT("'" & NHoja(1) & "'" &"!B1"))="OBJECTID",1,0) -> 1 | H9: For AIDS mitigation and support of affected populations | J9: 2 | K9: Strengthening of civil society organizations conducting HIV activities | M9: OI02 | O9: ="["&M9&"] " &N9 -> [OI02] | R9: Pr72 | S9: # new HIV+ enrolled in care services Target | T9: ="["&R9&"] " &S9 -> [Pr72] # new HIV+ enrolled in care services Target | U9: 1 | V9: 3. Non-Cumulative | W9: =Translations!A309 -> Expenditures | X9: 60 | Y9: 90 | AA9: =Translations!A197 -> Month 2 | AB9: February | AD9: =Translations!A209 -> Annex 2 | AE9: =Translations!A423 -> SR data consolidation template | AG9: Month 3 | AH9: Month 6 | AI9: Month 9 | AJ9: Month 12 | AN9: Fi5 | AO9: 6 | AP9: =IF(AR9="X",0,AQ9) -> Financial reports overdue | AQ9: Financial reports overdue | AR9: √ | AT9: =Comments!K25 -> 0 | AU9: ='M&E'!I461 -> 1 | AV9: ='M&E'!J461 -> 1 | AW9: ='M&E'!L461 -> 0 | AX9: ='M&E'!M461 -> 0 | AZ9: 9 | BA9: Month 3 | BB9: =IF(BA9<>INDIRECT(BA$6&$AZ9),1,0) -> 0 | BC9: Month 6 | BD9: 0 | BE9: Month 9 | BF9: 0 | BG9: Month 12 | BH9: 0 | BW9: =IFERROR(INDEX(AG7:AG12,MATCH(REPT("z",255),AG7:AG12)),"") -> Month 3 | BX9: =IFERROR(INDEX(AH7:AH12,MATCH(REPT("z",255),AH7:AH12)),"") -> Month 6 | BY9: Month 9 | BZ9: Month 12
B10: =Translations!A20 -> 4. Define additional (non PRDB) programatic indicators | E10: 1 | J10: 3 | M10: OI03 | O10: [OI03] | R10: Pr74 | S10: # aged 10-24 yrs reached by HIV life skills ed. in school Target | T10: [Pr74] # aged 10-24 yrs reached by HIV life skills ed. in school Target | U10: 2 | V10: 1. Standard | W10: =Translations!A45 -> K | X10: 0.0001 | AA10: =Translations!A198 -> Month 3 | AB10: March | AD10: =Translations!A210 -> Annex 3 | AE10: =Translations!A424 -> SR annual plan | AN10: Fi6 | AO10: 7 | AP10: 0 | AQ10: Audit actions fulfilled | AR10: X | AU10: ='M&E'!I462 -> 0 | AV10: ='M&E'!J462 -> 0 | AW10: ='M&E'!L462 -> 0 | AX10: ='M&E'!M462 -> 0 | AZ10: 10 | BB10: 0 | BD10: 0 | BF10: 0 | BH10: 0
B11: =IF(Lists!V9=1,Translations!A21,Translations!A365) -> 5. Associate indicators with objectives and indicator type | E11: =IF(E9=1,IF(AND(R5=U5,R5=V5,M5=P5,M5=Q5),1,0),IF(AND(M5=P5,M5=Q5),1,0)) -> 1 | G11: =Translations!A32 -> Subrecepient name | H11: Direct Gender Partnership (DGP) | J11: 4 | M11: OI04 | O11: [OI04] | T11: [] | AA11: =Translations!A199 -> Month 4 | AB11: April | AD11: =Translations!A211 -> Annex 4 | AN11: Fi7 | AO11: 8 | AP11: =IF(AR11="X",0,AQ11) -> 0 | AQ11: Outstanding audit actions within performance period | AR11: X | AU11: ='M&E'!I463 -> 0 | AV11: ='M&E'!J463 -> 0 | AW11: ='M&E'!L463 -> 0 | AX11: ='M&E'!M463 -> 0 | AZ11: 11 | BB11: 0 | BD11: 0 | BF11: 0 | BH11: 0
B12: =Translations!A22 -> 6. Enter annual planning data | E12: =IF(Planning!A3>0,1,0) -> 1 | J12: 5 | M12: OI05 | O12: [OI05] | T12: [] | AA12: =Translations!A200 -> Month 5 | AB12: May | AD12: =Translations!A212 -> Annex 5 | AN12: Fi8 | AO12: 9 | AP12: 0 | AQ12: Outstanding audit actions past performance period | AR12: X | AU12: ='M&E'!I464 -> 0 | AV12: ='M&E'!J464 -> 0 | AW12: ='M&E'!L464 -> 0 | AX12: ='M&E'!M464 -> 0 | AZ12: 12 | BB12: 0 | BD12: 0 | BF12: 0 | BH12: 0
B13: =Translations!A23 -> 7. Define thresholds | E13: =IF(X5+Y5<4,0,1) -> 1 | G13: =Translations!A33 -> Contract period | H13: January 2016 - December 2016 | J13: 6 | M13: OI06 | O13: [OI06] | T13: [] | AA13: =Translations!A201 -> Month 6 | AB13: June | AD13: =Translations!A213 -> Annex 6 | AG13: =Translations!A52 -> Months must be selected without leaving empty spaces, in ascending order. The application will take the last month of every quarter as the closure one. | AN13: =INDIRECT("'"&NHoja(1)&"'!B"&$AO13) -> Ma9 | AO13: 10 | AP13: 0 | AQ13: Supervision visits planned | AR13: X | AU13: ='M&E'!I465 -> 0 | AV13: ='M&E'!J465 -> 0 | AW13: ='M&E'!L465 -> 0 | AX13: ='M&E'!M465 -> 0 | AZ13: ZCheck | BB13: =SUM(BB7:BB12) -> 0 | BD13: =SUM(BD7:BD12) -> 0 | BF13: =SUM(BF7:BF12) -> 0 | BH13: =SUM(BH7:BH12) -> 0
B14: =Translations!A24 -> 8. Link to the PR Dashboard | E14: =IF(AND(AO4=1,E9=1,(BH4+BK4)=0),1,0) -> 1 | G14: =Translations!A34 -> Grant number | H14: DMR-202-G01-H-00 | J14: 7 | M14: OI07 | O14: [OI07] | T14: [] | AA14: =Translations!A202 -> Month 7 | AB14: July | AN14: =INDIRECT("'"&NHoja(1)&"'!B"&$AO14) -> Ma10 | AO14: 11 | AP14: 0 | AQ14: Supervision visits not performed | AR14: X | AU14: ='M&E'!I466 -> 0 | AV14: ='M&E'!J466 -> 0 | AW14: ='M&E'!L466 -> 0 | AX14: ='M&E'!M466 -> 0
G15: =Translations!A216 -> Component | H15: HIV / AIDS | J15: 8 | M15: OI08 | O15: [OI08] | T15: [] | AA15: =Translations!A203 -> Month 8 | AB15: August | AN15: Ma11 | AO15: 12 | AP15: Supervision actions recommended | AQ15: Supervision actions recommended | AR15: √ | AU15: ='M&E'!I467 -> 7 | AV15: ='M&E'!J467 -> 3 | AW15: ='M&E'!L467 -> 0 | AX15: ='M&E'!M467 -> 0
B16: =Translations!A25 -> Advanced setup | G16: =Translations!A222 -> Currency | H16: $ - USD | J16: 9 | M16: OI09 | O16: [OI09] | T16: [] | AA16: =Translations!A204 -> Month 9 | AB16: September | AG16: =Translations!A156 -> Set colors for "Month" buttons and tabs | AN16: Ma12 | AO16: 13 | AP16: Supervision recommendations past due | AQ16: Supervision recommendations past due | AR16: √ | AT16: =Comments!K27 -> 0 | AU16: ='M&E'!I468 -> 2 | AV16: ='M&E'!J468 -> 2 | AW16: ='M&E'!L468 -> 0 | AX16: ='M&E'!M468 -> 0
B17: =Translations!A26 -> 9. Change name of buttons | E17: =IF(AB5=12,1,0) -> 1 | G17: =Translations!A35 -> Key population | H17: Sex Workers - Migrants - Women | J17: 10 | M17: OI10 | O17: [OI10] | T17: [] | AA17: =Translations!A205 -> Month 10 | AB17: October | AG17: =Translations!$A$48 -> 1st Quarter | AH17: =Translations!$A$49 -> 2nd Quarter | AI17: =Translations!$A$50 -> 3rd Quarter | AJ17: =Translations!$A$51 -> 4th Quarter | AN17: Ma13 | AO17: 14 | AP17: Programmatic reports planned | AQ17: Programmatic reports planned | AR17: √ | AU17: ='M&E'!I469 -> 4 | AV17: ='M&E'!J469 -> 5 | AW17: ='M&E'!L469 -> 0 | AX17: ='M&E'!M469 -> 0
B18: =Translations!A27 -> 10. Assign months to quarters | E18: =IF(SUM(AG5:AJ5)>0,1,0) -> 1 | J18: 11 | M18: OI11 | O18: [OI11] | T18: [] | AA18: =Translations!A206 -> Month 11 | AB18: November | AN18: Ma14 | AO18: 15 | AP18: Programmatic reports past due | AQ18: Programmatic reports past due | AR18: √ | AT18: =Comments!K26 -> 0 | AU18: ='M&E'!I470 -> 2 | AV18: ='M&E'!J470 -> 4 | AW18: ='M&E'!L470 -> 0 | AX18: ='M&E'!M470 -> 0
B19: =Translations!A28 -> 11. Define the initial period in the PR Dashboard | E19: =AL5 -> 1 | G19: =Translations!A36 -> Details of programatic indicators | H19: # PLHIV that initiated ARV with CD4 count <200 # new HIV+ enrolled in care services # aged 10-24 yrs reached by HIV life skills ed. in school | J19: 12 | M19: OI12 | O19: [OI12] | T19: [] | AA19: =Translations!A207 -> Month 12 | AB19: December | AN19: Ma15 | AO19: 16 | AP19: 0 | AQ19: Key positions planned | AR19: X | AU19: ='M&E'!I471 -> 0 | AV19: ='M&E'!J471 -> 0 | AW19: ='M&E'!L471 -> 0 | AX19: ='M&E'!M471 -> 0
B20: =Translations!A242 -> 12. Change the setup password | E20: 1 | J20: 13 | M20: OI13 | O20: [OI13] | T20: [] | AN20: Ma16 | AO20: 17 | AP20: 0 | AQ20: Key positions open | AR20: X | AU20: ='M&E'!I472 -> 0 | AV20: ='M&E'!J472 -> 0 | AW20: ='M&E'!L472 -> 0 | AX20: ='M&E'!M472 -> 0
B21: =Translations!A251 -> 13. Customize colors for indicators, activities and months | E21: 1 | J21: 14 | M21: OI14 | O21: [OI14] | T21: [] | AN21: Ma17 | AO21: 18 | AP21: 0 | AQ21: CPs fulfilled | AR21: X | AU21: ='M&E'!I473 -> 0 | AV21: ='M&E'!J473 -> 0 | AW21: ='M&E'!L473 -> 0 | AX21: ='M&E'!M473 -> 0
J22: 15 | M22: OI15 | O22: [OI15] | T22: [] | AN22: Ma18 | AO22: 19 | AP22: 0 | AQ22: CPs not fulfilled but still within deadline | AR22: X | AU22: ='M&E'!I474 -> 0 | AV22: ='M&E'!J474 -> 0 | AW22: ='M&E'!L474 -> 0 | AX22: ='M&E'!M474 -> 0
B23: MENU | J23: 16 | M23: OI16 | O23: [OI16] | AN23: Ma19 | AO23: 20 | AP23: 0 | AQ23: CPs not fulfilled and past the deadline | AR23: X | AU23: ='M&E'!I475 -> 0 | AV23: ='M&E'!J475 -> 0 | AW23: ='M&E'!L475 -> 0 | AX23: ='M&E'!M475 -> 0
M24: OI17 | O24: [OI17] | AN24: Ma20 | AO24: 21 | AP24: 0 | AQ24: TBA + SC fulfilled | AR24: X | AU24: ='M&E'!I476 -> 0 | AV24: ='M&E'!J476 -> 0 | AW24: ='M&E'!L476 -> 0 | AX24: ='M&E'!M476 -> 0
M25: OI18 | O25: [OI18] | AN25: Ma21 | AO25: 22 | AP25: 0 | AQ25: TBA + SC not fulfilled but still wiithin deadline | AR25: X | AU25: ='M&E'!I477 -> 0 | AV25: ='M&E'!J477 -> 0 | AW25: ='M&E'!L477 -> 0 | AX25: ='M&E'!M477 -> 0
M26: OI19 | O26: [OI19] | AN26: Ma22 | AO26: 23 | AP26: 0 | AQ26: TBA + SC not fulfilled and past the deadline | AR26: X | AU26: ='M&E'!I478 -> 0 | AV26: ='M&E'!J478 -> 0 | AW26: ='M&E'!L478 -> 0 | AX26: ='M&E'!M478 -> 0
H27: =Translations!A255 -> Note: use "Alt" + "Enter" keys to divide parragraphs | M27: OI20 | O27: [OI20] | AN27: Ma23 | AO27: 24 | AP27: 0 | AQ27: Number of OIG directives fulfilled | AR27: X | AU27: ='M&E'!I479 -> 0 | AV27: ='M&E'!J479 -> 0 | AW27: ='M&E'!L479 -> 0 | AX27: ='M&E'!M479 -> 0
M28: OI21 | O28: [OI21] | AN28: Ma24 | AO28: 25 | AP28: 0 | AQ28: OIG directives not fulfilled and still within deadline | AR28: X | AU28: ='M&E'!I480 -> 0 | AV28: ='M&E'!J480 -> 0 | AW28: ='M&E'!L480 -> 0 | AX28: ='M&E'!M480 -> 0
M29: OI22 | O29: [OI22] | AN29: Ma25 | AO29: 26 | AP29: 0 | AQ29: OIG directives not fulfilled and past deadline | AR29: X | AU29: ='M&E'!I481 -> 0 | AV29: ='M&E'!J481 -> 0 | AW29: ='M&E'!L481 -> 0 | AX29: ='M&E'!M481 -> 0
M30: OI23 | O30: [OI23] | AN30: PS26 | AO30: 27 | AP30: 0 | AQ30: # of health products ordered with a purchase order | AR30: X | AU30: ='M&E'!I482 -> 0 | AV30: ='M&E'!J482 -> 0 | AW30: ='M&E'!L482 -> 0 | AX30: ='M&E'!M482 -> 0
M31: OI24 | O31: [OI24] | AN31: PS27 | AO31: 28 | AP31: 0 | AQ31: # of health products ordered and delivered according to procurement plan | AR31: X | AU31: ='M&E'!I483 -> 0 | AV31: ='M&E'!J483 -> 0 | AW31: ='M&E'!L483 -> 0 | AX31: ='M&E'!M483 -> 0
M32: OI25 | O32: [OI25] | AN32: PS28 | AO32: 29 | AP32: 0 | AQ32: # of product quality control tests performed | AR32: X | AU32: ='M&E'!I484 -> 0 | AV32: ='M&E'!J484 -> 0 | AW32: ='M&E'!L484 -> 0 | AX32: ='M&E'!M484 -> 0
M33: OI26 | O33: [OI26] | AN33: PS29 | AO33: 30 | AP33: 0 | AQ33: # of product quality control tests failed | AR33: X | AU33: ='M&E'!I485 -> 0 | AV33: ='M&E'!J485 -> 0 | AW33: ='M&E'!L485 -> 0 | AX33: ='M&E'!M485 -> 0
M34: OI27 | O34: [OI27] | AN34: PS30 | AO34: 31 | AP34: 0 | AQ34: Value of emergency orders | AR34: X | AU34: ='M&E'!I486 -> 0 | AV34: ='M&E'!J486 -> 0 | AW34: ='M&E'!L486 -> 0 | AX34: ='M&E'!M486 -> 0
M35: OI28 | O35: [OI28] | AN35: PS31 | AO35: 32 | AP35: 0 | AQ35: # of treatment sites which placed orders | AR35: X | AU35: ='M&E'!I487 -> 0 | AV35: ='M&E'!J487 -> 0 | AW35: ='M&E'!L487 -> 0 | AX35: ='M&E'!M487 -> 0
M36: OI29 | O36: [OI29] | AN36: PS32 | AO36: 33 | AP36: 0 | AQ36: # of treatment sites which did not receive orders in full and on time | AR36: X | AU36: ='M&E'!I488 -> 0 | AV36: ='M&E'!J488 -> 0 | AW36: ='M&E'!L488 -> 0 | AX36: ='M&E'!M488 -> 0
M37: OI30 | O37: [OI30] | AN37: PS33 | AO37: 34 | AP37: 0 | AQ37: # of sites providing treatment services | AR37: X | AU37: ='M&E'!I489 -> 0 | AV37: ='M&E'!J489 -> 0 | AW37: ='M&E'!L489 -> 0 | AX37: ='M&E'!M489 -> 0
AN38: PS34 | AO38: 35 | AP38: 0 | AQ38: # of sites providing treatment services that have stock-outs | AR38: X | AU38: ='M&E'!I490 -> 0 | AV38: ='M&E'!J490 -> 0 | AW38: ='M&E'!L490 -> 0 | AX38: ='M&E'!M490 -> 0
AN39: PS35 | AO39: 36 | AP39: Actual stock level - PS39 - Product 1: Efavirenz, 600 mg, 30 tablets | AQ39: Actual stock level - PS39 - Product 1: Efavirenz, 600 mg, 30 tablets | AR39: √ | AU39: ='M&E'!I491 -> 11 | AV39: ='M&E'!J491 -> 9 | AW39: ='M&E'!L491 -> 0 | AX39: ='M&E'!M491 -> 0
AN40: PS36 | AO40: 37 | AP40: Actual stock level - PS40 - Product 2: Efavirenz, 200 mg, 90 capsules | AQ40: Actual stock level - PS40 - Product 2: Efavirenz, 200 mg, 90 capsules | AR40: √ | AU40: ='M&E'!I492 -> 12 | AV40: ='M&E'!J492 -> 8 | AW40: ='M&E'!L492 -> 0 | AX40: ='M&E'!M492 -> 0
AN41: PS37 | AO41: 38 | AP41: Actual stock level - PS41 - Product 3: TDF/3TC, 300/300 mg, 30 tablets | AQ41: Actual stock level - PS41 - Product 3: TDF/3TC, 300/300 mg, 30 tablets | AR41: √ | AU41: ='M&E'!I493 -> 13 | AV41: ='M&E'!J493 -> 7 | AW41: ='M&E'!L493 -> 0 | AX41: ='M&E'!M493 -> 0
AN42: PS38 | AO42: 39 | AP42: Actual stock level - PS42 - Product 4: 3TC, 10 mg/ml, oral solution 240 ml | AQ42: Actual stock level - PS42 - Product 4: 3TC, 10 mg/ml, oral solution 240 ml | AR42: √ | AU42: ='M&E'!I494 -> 14 | AV42: ='M&E'!J494 -> 6 | AW42: ='M&E'!L494 -> 0 | AX42: ='M&E'!M494 -> 0
AN43: PS39 | AO43: 40 | AP43: 0 | AQ43: Actual stock level - PS43 - Product 5: 3TC/AZT/NVP, 150/300/200 mg, 60 tabletas | AR43: X | AU43: ='M&E'!I495 -> 0 | AV43: ='M&E'!J495 -> 0 | AW43: ='M&E'!L495 -> 0 | AX43: ='M&E'!M495 -> 0
AN44: PS40 | AO44: 41 | AP44: 0 | AQ44: Actual stock level - PS44 - Product 6: ABC, 20 mg/ml, solución oral 240 ml | AR44: X | AU44: ='M&E'!I496 -> 0 | AV44: ='M&E'!J496 -> 0 | AW44: ='M&E'!L496 -> 0 | AX44: ='M&E'!M496 -> 0
AN45: PS41 | AO45: 42 | AP45: 0 | AQ45: Actual stock level - PS45 - Product 7: 3TC/AZT, 150/300 mg, 60 tabletas | AR45: X | AU45: ='M&E'!I497 -> 0 | AV45: ='M&E'!J497 -> 0 | AW45: ='M&E'!L497 -> 0 | AX45: ='M&E'!M497 -> 0
AN46: PS42 | AO46: 43 | AP46: 0 | AQ46: Actual stock level - PS46 - Product 8: 3TC/AZT/NVP, 30/60/50 mg, Disp. 60 tabletas | AR46: X | AU46: ='M&E'!I498 -> 0 | AV46: ='M&E'!J498 -> 0 | AW46: ='M&E'!L498 -> 0 | AX46: ='M&E'!M498 -> 0
AN47: PS43 | AO47: 44 | AP47: 0 | AQ47: Actual stock level - PS47 - Product 9: AZT, 10 mg/ml, solución oral 240 ml | AR47: X | AU47: ='M&E'!I499 -> 0 | AV47: ='M&E'!J499 -> 0 | AW47: ='M&E'!L499 -> 0 | AX47: ='M&E'!M499 -> 0
AN48: PS44 | AO48: 45 | AP48: 0 | AQ48: Actual stock level - PS48 - Product 10: LOP/RIT, 200/50 mg, 120 tabletas | AR48: X | AU48: ='M&E'!I500 -> 0 | AV48: ='M&E'!J500 -> 0 | AW48: ='M&E'!L500 -> 0 | AX48: ='M&E'!M500 -> 0
AN49: PS45 | AO49: 46 | AP49: 0 | AQ49: Actual stock level - PS49 - Product 11: LOP/RIT, 80/20 mg/ml, solución oral 160 ml | AR49: X | AU49: ='M&E'!I501 -> 0 | AV49: ='M&E'!J501 -> 0 | AW49: ='M&E'!L501 -> 0 | AX49: ='M&E'!M501 -> 0
AN50: PS46 | AO50: 47 | AP50: 0 | AQ50: Actual stock level - PS50 - Product 12: ATV/RTV, 300/100 mg, 30 cápsulas | AR50: X | AU50: ='M&E'!I502 -> 0 | AV50: ='M&E'!J502 -> 0 | AW50: ='M&E'!L502 -> 0 | AX50: ='M&E'!M502 -> 0
AN51: PS47 | AO51: 48 | AP51: 0 | AQ51: Actual stock level - PS51 - Product 13: Raltegravir, 400 mg, 60 tabletas | AR51: X | AU51: ='M&E'!I503 -> 0 | AV51: ='M&E'!J503 -> 0 | AW51: ='M&E'!L503 -> 0 | AX51: ='M&E'!M503 -> 0
AN52: PS48 | AO52: 49 | AP52: 0 | AQ52: Actual stock level - PS52 - Product 14: ABC, 300 mg, 60 tabletas | AR52: =INDIRECT("'"&NHoja(1)&"'!C"&$AO52) -> X | AU52: ='M&E'!I504 -> 0 | AV52: ='M&E'!J504 -> 0 | AW52: ='M&E'!L504 -> 0 | AX52: ='M&E'!M504 -> 0
AN53: PS49 | AO53: 50 | AP53: 0 | AQ53: Actual stock level - PS53 - Product 15: Darunavir, 300 mg, 120 tabletas | AR53: X | AU53: ='M&E'!I505 -> 0 | AV53: ='M&E'!J505 -> 0 | AW53: ='M&E'!L505 -> 0 | AX53: ='M&E'!M505 -> 0
AN54: PS50 | AO54: 51 | AP54: 0 | AQ54: Actual stock level - PS54 - Product 16: Nevirapine, 200 mg, 60 tabletas | AR54: X | AU54: ='M&E'!I506 -> 0 | AV54: ='M&E'!J506 -> 0 | AW54: ='M&E'!L506 -> 0 | AX54: ='M&E'!M506 -> 0
AN55: PS51 | AO55: 52 | AP55: 0 | AQ55: Actual stock level - PS55 - Product 17: ABC/3TC, 600/300 mg, 30 tabletas | AR55: X | AU55: ='M&E'!I507 -> 0 | AV55: ='M&E'!J507 -> 0 | AW55: ='M&E'!L507 -> 0 | AX55: ='M&E'!M507 -> 0
AN56: PS52 | AO56: 53 | AP56: 0 | AQ56: Actual stock level - PS56 - Product 18: DDI, 400 mg, 30 cápsulas | AR56: X | AU56: ='M&E'!I508 -> 0 | AV56: ='M&E'!J508 -> 0 | AW56: ='M&E'!L508 -> 0 | AX56: ='M&E'!M508 -> 0
AN57: PS53 | AO57: 54 | AP57: 0 | AQ57: Actual stock level - PS57 - Product 19: HIV Rapid Test: Screening | AR57: X | AU57: ='M&E'!I509 -> 0 | AV57: ='M&E'!J509 -> 0 | AW57: ='M&E'!L509 -> 0 | AX57: ='M&E'!M509 -> 0
AN58: PS54 | AO58: 55 | AP58: 0 | AQ58: Actual stock level - PS58 - Product 20: HIV Rapid Test: Confirmatory 1 | AR58: X | AU58: ='M&E'!I510 -> 0 | AV58: ='M&E'!J510 -> 0 | AW58: ='M&E'!L510 -> 0 | AX58: ='M&E'!M510 -> 0
AN59: PS55 | AO59: 56 | AP59: 0 | AQ59: # of sites expected to report on stocks | AR59: X | AU59: ='M&E'!I511 -> 0 | AV59: ='M&E'!J511 -> 0 | AW59: ='M&E'!L511 -> 0 | AX59: ='M&E'!M511 -> 0
AN60: PS56 | AO60: 57 | AP60: 0 | AQ60: # of sites with stock reports past due | AR60: X | AT60: =Comments!K28 -> 0 | AU60: ='M&E'!I512 -> 0 | AV60: ='M&E'!J512 -> 0 | AW60: ='M&E'!L512 -> 0 | AX60: ='M&E'!M512 -> 0
AN61: PS57 | AO61: 58 | AP61: 0 | AQ61: Pharma Budget | AR61: X | AU61: ='M&E'!I513 -> 0 | AV61: ='M&E'!J513 -> 0 | AW61: ='M&E'!L513 -> 0 | AX61: ='M&E'!M513 -> 0
AN62: PS58 | AO62: 59 | AP62: 0 | AQ62: Pharma expenditures | AR62: X | AU62: ='M&E'!I514 -> 0 | AV62: ='M&E'!J514 -> 0 | AW62: ='M&E'!L514 -> 0 | AX62: ='M&E'!M514 -> 0
AN63: PS59 | AO63: 60 | AP63: 0 | AQ63: Pharma commitment | AR63: X | AU63: ='M&E'!I515 -> 0 | AV63: ='M&E'!J515 -> 0 | AW63: ='M&E'!L515 -> 0 | AX63: ='M&E'!M515 -> 0
AN64: PS60 | AO64: 61 | AP64: 0 | AQ64: Health Products + Equipment Budget | AR64: X | AU64: ='M&E'!I516 -> 0 | AV64: ='M&E'!J516 -> 0 | AW64: ='M&E'!L516 -> 0 | AX64: ='M&E'!M516 -> 0
AN65: PS61 | AO65: 62 | AP65: 0 | AQ65: Health Products+ equipment expenditures | AR65: X | AU65: ='M&E'!I517 -> 0 | AV65: ='M&E'!J517 -> 0 | AW65: ='M&E'!L517 -> 0 | AX65: ='M&E'!M517 -> 0
AN66: PS62 | AO66: 63 | AP66: 0 | AQ66: Health Products + equipment commitment | AR66: X | AU66: ='M&E'!I518 -> 0 | AV66: ='M&E'!J518 -> 0 | AW66: ='M&E'!L518 -> 0 | AX66: ='M&E'!M518 -> 0
AN67: PS63 | AO67: 64 | AP67: 0 | AQ67: PSM Cost Budget | AR67: X | AU67: ='M&E'!I519 -> 0 | AV67: ='M&E'!J519 -> 0 | AW67: ='M&E'!L519 -> 0 | AX67: ='M&E'!M519 -> 0
AN68: PS64 | AO68: 65 | AP68: 0 | AQ68: PSM Costs Expenditures | AR68: X | AU68: ='M&E'!I520 -> 0 | AV68: ='M&E'!J520 -> 0 | AW68: ='M&E'!L520 -> 0 | AX68: ='M&E'!M520 -> 0
AN69: PS65 | AO69: 66 | AP69: 0 | AQ69: PSM Costs commitment | AR69: X | AU69: ='M&E'!I521 -> 0 | AV69: ='M&E'!J521 -> 0 | AW69: ='M&E'!L521 -> 0 | AX69: ='M&E'!M521 -> 0
AN70: Fi1 | AO70: 2 | AP70: =IF(AR70="X",0,AQ70) -> Budget PR => SR | AQ70: Budget PR => SR | AR70: √ | AU70: ='M&E'!$L$235 -> 504,075.00 | AV70: ='M&E'!$P$235 -> 615,300.00 | AW70: ='M&E'!$T$235 -> 0.00 | AX70: ='M&E'!$X$235 -> 0.00
AN71: Fi2 | AO71: 3 | AP71: =IF(AR71="X",0,AQ71) -> Disbursement PR => SR | AQ71: Disbursement PR => SR | AR71: √ | AU71: ='M&E'!$L$438 -> 600,000.00 | AV71: ='M&E'!$P$438 -> 650,000.00 | AW71: ='M&E'!$T$438 -> 0.00 | AX71: ='M&E'!$X$438 -> 0.00
AN72: Fi3 | AO72: 4 | AP72: Expenditure | AQ72: Expenditure | AR72: √ | AT72: =Comments!K24 -> 0 | AU72: ='M&E'!$M$235 -> 494,925.00 | AV72: ='M&E'!$Q$235 -> 617,200.00 | AW72: ='M&E'!$U$235 -> 0.00 | AX72: ='M&E'!$Y$235 -> 0.00
AN73: =R8 -> Pr68 | AO73: =VALUE(REPLACE(AN73,1,2,""))+1 -> 69 | AP73: =IF(AR73="X",0,AQ73) -> # PLHIV that initiated ARV with CD4 count <200 Target | AQ73: =S8 -> # PLHIV that initiated ARV with CD4 count <200 Target | AR73: =IF(AQ73=0,"X","√") -> √ | AU73: ='M&E'!M26 -> 602.00 | AV73: ='M&E'!Q26 -> 630.00 | AW73: ='M&E'!U26 -> 0.00 | AX73: ='M&E'!Y26 -> 0.00
AN74: =LEFT(AN73,2)&VALUE(REPLACE(AN73,1,2,""))+1 -> Pr69 | AO74: =VALUE(REPLACE(AN74,1,2,""))+1 -> 70 | AP74: # PLHIV that initiated ARV wit: Actual | AQ74: =IF(AQ73=0,0,LEFT(AQ73,30) & ": " & Translations!$A$215) -> # PLHIV that initiated ARV wit: Actual | AR74: =IF(AQ74=0,"X","√") -> √ | AT74: =Comments!K29 -> 0 | AU74: ='M&E'!L26 -> 600.00 | AV74: ='M&E'!P26 -> 600.00 | AW74: ='M&E'!T26 -> 0.00 | AX74: ='M&E'!X26 -> 0.00
AN75: =R9 -> Pr72 | AO75: 73 | AP75: # new HIV+ enrolled in care services Target | AQ75: =S9 -> # new HIV+ enrolled in care services Target | AR75: √ | AU75: ='M&E'!L30 -> 124.00 | AV75: ='M&E'!P30 -> 124.00 | AW75: ='M&E'!T30 -> 0.00 | AX75: ='M&E'!X30 -> 0.00
AN76: =LEFT(AN75,2)&VALUE(REPLACE(AN75,1,2,""))+1 -> Pr73 | AO76: 74 | AP76: # new HIV+ enrolled in care se: Actual | AQ76: =IF(AQ75=0,0,LEFT(AQ75,30) & ": " & Translations!$A$215) -> # new HIV+ enrolled in care se: Actual | AR76: √ | AT76: =Comments!K30 -> 0 | AU76: ='M&E'!M30 -> 110.00 | AV76: ='M&E'!Q30 -> 124.00 | AW76: ='M&E'!U30 -> 0.00 | AX76: ='M&E'!Y30 -> 0.00
AN77: =R10 -> Pr74 | AO77: 75 | AP77: # aged 10-24 yrs reached by HIV life skills ed. in school Target | AQ77: =S10 -> # aged 10-24 yrs reached by HIV life skills ed. in school Target | AR77: √ | AU77: ='M&E'!L32 -> 950.00 | AV77: ='M&E'!P32 -> 800.00 | AW77: ='M&E'!T32 -> 0.00 | AX77: ='M&E'!X32 -> 0.00
AN78: =LEFT(AN77,2)&VALUE(REPLACE(AN77,1,2,""))+1 -> Pr75 | AO78: 76 | AP78: # aged 10-24 yrs reached by HI: Actual | AQ78: =IF(AQ77=0,0,LEFT(AQ77,30) & ": " & Translations!$A$215) -> # aged 10-24 yrs reached by HI: Actual | AR78: √ | AT78: =Comments!K31 -> 0 | AU78: ='M&E'!M32 -> 920.00 | AV78: ='M&E'!Q32 -> 800.00 | AW78: ='M&E'!U32 -> 0.00 | AX78: ='M&E'!Y32 -> 0.00
AN79: =R11 -> 0 | AP79: 0 | AQ79: =S11 -> 0 | AR79: X
AN80: =LEFT(AN79,2)&VALUE(REPLACE(AN79,1,2,""))+1 ->  | AP80: 0 | AQ80: =IF(AQ79=0,0,LEFT(AQ79,30) & ": " & Translations!$A$215) -> 0 | AR80: X | AT80: =Comments!K32 -> 0
AN81: =R12 -> 0 | AP81: 0 | AQ81: =S12 -> 0 | AR81: X
AN82: =LEFT(AN81,2)&VALUE(REPLACE(AN81,1,2,""))+1 ->  | AP82: 0 | AQ82: =IF(AQ81=0,0,LEFT(AQ81,30) & ": " & Translations!$A$215) -> 0 | AR82: X | AT82: =Comments!K33 -> 0
AN83: =R13 -> 0 | AP83: 0 | AQ83: =S13 -> 0 | AR83: X
AN84: =LEFT(AN83,2)&VALUE(REPLACE(AN83,1,2,""))+1 ->  | AP84: 0 | AQ84: =IF(AQ83=0,0,LEFT(AQ83,30) & ": " & Translations!$A$215) -> 0 | AR84: X | AT84: =Comments!K34 -> 0
AN85: =R14 -> 0 | AP85: 0 | AQ85: =S14 -> 0 | AR85: X
AN86: =LEFT(AN85,2)&VALUE(REPLACE(AN85,1,2,""))+1 ->  | AP86: 0 | AQ86: =IF(AQ85=0,0,LEFT(AQ85,30) & ": " & Translations!$A$215) -> 0 | AR86: X | AT86: =Comments!K35 -> 0
AN87: =R15 -> 0 | AP87: 0 | AQ87: =S15 -> 0 | AR87: X
AN88: =LEFT(AN87,2)&VALUE(REPLACE(AN87,1,2,""))+1 ->  | AP88: 0 | AQ88: =IF(AQ87=0,0,LEFT(AQ87,30) & ": " & Translations!$A$215) -> 0 | AR88: X | AT88: =Comments!K36 -> 0
AN89: =R16 -> 0 | AP89: 0 | AQ89: =S16 -> 0 | AR89: X
AN90: =LEFT(AN89,2)&VALUE(REPLACE(AN89,1,2,""))+1 ->  | AP90: 0 | AQ90: =IF(AQ89=0,0,LEFT(AQ89,30) & ": " & Translations!$A$215) -> 0 | AR90: X | AT90: =Comments!K37 -> 0
AN91: =R17 -> 0 | AP91: 0 | AQ91: =S17 -> 0 | AR91: X
AN92: =LEFT(AN91,2)&VALUE(REPLACE(AN91,1,2,""))+1 ->  | AP92: 0 | AQ92: =IF(AQ91=0,0,LEFT(AQ91,30) & ": " & Translations!$A$215) -> 0 | AR92: X | AT92: =Comments!K38 -> 0
AN93: =R18 -> 0 | AP93: 0 | AQ93: =S18 -> 0 | AR93: X
AN94: =LEFT(AN93,2)&VALUE(REPLACE(AN93,1,2,""))+1 ->  | AP94: 0 | AQ94: =IF(AQ93=0,0,LEFT(AQ93,30) & ": " & Translations!$A$215) -> 0 | AR94: X | AT94: =Comments!K39 -> 0
AN95: =R19 -> 0 | AP95: 0 | AQ95: =S19 -> 0 | AR95: X
AN96: =LEFT(AN95,2)&VALUE(REPLACE(AN95,1,2,""))+1 ->  | AP96: 0 | AQ96: =IF(AQ95=0,0,LEFT(AQ95,30) & ": " & Translations!$A$215) -> 0 | AR96: X | AT96: =Comments!K40 -> 0
AN97: =R20 -> 0 | AP97: 0 | AQ97: =S20 -> 0 | AR97: X
AN98: =LEFT(AN97,2)&VALUE(REPLACE(AN97,1,2,""))+1 ->  | AP98: 0 | AQ98: =IF(AQ97=0,0,LEFT(AQ97,30) & ": " & Translations!$A$215) -> 0 | AR98: X | AT98: =Comments!K41 -> 0
AN99: =R21 -> 0 | AP99: 0 | AQ99: =S21 -> 0 | AR99: X
AN100: =LEFT(AN99,2)&VALUE(REPLACE(AN99,1,2,""))+1 ->  | AP100: 0 | AQ100: =IF(AQ99=0,0,LEFT(AQ99,30) & ": " & Translations!$A$215) -> 0 | AR100: X | AT100: =Comments!K42 -> 0
AN101: =R22 -> 0 | AP101: 0 | AQ101: =S22 -> 0 | AR101: X
AN102: =LEFT(AN101,2)&VALUE(REPLACE(AN101,1,2,""))+1 ->  | AP102: 0 | AQ102: =IF(AQ101=0,0,LEFT(AQ101,30) & ": " & Translations!$A$215) -> 0 | AR102: X | AT102: =Comments!K43 -> 0

Sheet Planning (hidden)
A1: 1 | B1: 2 | C1: 0 | E1: 12 | F1: 12 | G1: 8 | H1: 2. NO | I1: RD$0.00 | J1: RD$0.00 | L1: RD$0.00 | M1: RD$0.00 | O1: RD$0.00 | P1: RD$0.00 | R1: RD$0.00 | S1: RD$0.00 | U1: RD$0.00 | V1: RD$0.00 | X1: RD$0.00 | Y1: RD$0.00 | AA1: RD$0.00 | AB1: RD$0.00 | AD1: RD$0.00 | AE1: RD$0.00 | AG1: RD$0.00 | AH1: RD$0.00 | AJ1: RD$0.00 | AK1: RD$0.00 | AM1: RD$0.00 | AN1: RD$0.00 | AP1: RD$0.00 | AQ1: RD$0.00
A2: Planning | E2: =Translations!A84 -> Annual planning data
A3: =LineasUtilizadas() -> 12 | B3: Total
A4: =Translations!A88 -> Item | B4: =Translations!A89 -> Item type | C4: =Translations!$A$90 -> Indicator code group | D4: =Translations!A91 -> Activity code | E4: =Translations!A92 -> Indicator / Activity | F4: =Translations!A399 -> Unit of measurement (target) | G4: =Translations!A79 -> TGF costs groups | H4: =Translations!A234 -> Activity: Contributing | I4: =Setup!AB8 -> January | L4: =Setup!AB9 -> February | O4: =Setup!AB10 -> March | R4: =Setup!AB11 -> April | U4: =Setup!AB12 -> May | X4: =Setup!AB13 -> June | AA4: =Setup!AB14 -> July | AD4: =Setup!AB15 -> August | AG4: =Setup!AB16 -> September | AJ4: =Setup!AB17 -> October | AM4: =Setup!AB18 -> November | AP4: =Setup!AB19 -> December | AS4: =Translations!A109 -> Totals | AW4: =Setup!$AB8 -> January | AZ4: =Setup!$AB9 -> February | BC4: =Setup!$AB10 -> March | BF4: =Setup!$AB11 -> April | BI4: =Setup!$AB12 -> May | BL4: =Setup!$AB13 -> June | BO4: =Setup!$AB14 -> July | BR4: =Setup!$AB15 -> August | BU4: =Setup!$AB16 -> September | BX4: =Setup!$AB17 -> October | CA4: =Setup!$AB18 -> November | CD4: =Setup!$AB19 -> December | CG4: Nombre del Indicador | CI4: Tipo Indicador | CK4: Conteos de datos para Validación | CN4: ValidaciónOK 1 - Correcto 0 - AlgoMal
I5: =Translations!$A$94 -> Target | J5: =Translations!$A$95 -> Budget | L5: =Translations!$A$94 -> Target | M5: =Translations!$A$95 -> Budget | O5: =Translations!$A$94 -> Target | P5: =Translations!$A$95 -> Budget | R5: =Translations!$A$94 -> Target | S5: =Translations!$A$95 -> Budget | U5: =Translations!$A$94 -> Target | V5: =Translations!$A$95 -> Budget | X5: =Translations!$A$94 -> Target | Y5: =Translations!$A$95 -> Budget | AA5: =Translations!$A$94 -> Target | AB5: =Translations!$A$95 -> Budget | AD5: =Translations!$A$94 -> Target | AE5: =Translations!$A$95 -> Budget | AG5: =Translations!$A$94 -> Target | AH5: =Translations!$A$95 -> Budget | AJ5: =Translations!$A$94 -> Target | AK5: =Translations!$A$95 -> Budget | AM5: =Translations!$A$94 -> Target | AN5: =Translations!$A$95 -> Budget | AP5: =Translations!$A$94 -> Target | AQ5: =Translations!$A$95 -> Budget | AS5: =Translations!$A$94 -> Target | AT5: =Translations!$A$95 -> Budget | AW5: =Translations!$A$94 -> Target | AX5: =Translations!$A$95 -> Budget | AZ5: =Translations!$A$94 -> Target | BA5: =Translations!$A$95 -> Budget | BC5: =Translations!$A$94 -> Target | BD5: =Translations!$A$95 -> Budget | BF5: =Translations!$A$94 -> Target | BG5: =Translations!$A$95 -> Budget | BI5: =Translations!$A$94 -> Target | BJ5: =Translations!$A$95 -> Budget | BL5: =Translations!$A$94 -> Target | BM5: =Translations!$A$95 -> Budget | BO5: =Translations!$A$94 -> Target | BP5: =Translations!$A$95 -> Budget | BR5: =Translations!$A$94 -> Target | BS5: =Translations!$A$95 -> Budget | BU5: =Translations!$A$94 -> Target | BV5: =Translations!$A$95 -> Budget | BX5: =Translations!$A$94 -> Target | BY5: =Translations!$A$95 -> Budget | CA5: =Translations!$A$94 -> Target | CB5: =Translations!$A$95 -> Budget | CD5: =Translations!$A$94 -> Target | CE5: =Translations!$A$95 -> Budget | CK5: Item Type | CL5: Indicator To Group | CM5: Indicator / Activity
A7: =Translations!A96 -> Financial total | I7: - | J7: =SUMIFS(J9:J208,$H$9:$H$208,"<>") -> 149,875.00 | L7: - | M7: =SUMIFS(M9:M208,$H$9:$H$208,"<>") -> 148,600.00 | O7: - | P7: =SUMIFS(P9:P208,$H$9:$H$208,"<>") -> 205,600.00 | R7: - | S7: =SUMIFS(S9:S208,$H$9:$H$208,"<>") -> 187,850.00 | U7: - | V7: =SUMIFS(V9:V208,$H$9:$H$208,"<>") -> 206,600.00 | X7: - | Y7: =SUMIFS(Y9:Y208,$H$9:$H$208,"<>") -> 220,850.00 | AA7: - | AB7: =SUMIFS(AB9:AB208,$H$9:$H$208,"<>") -> 0.00 | AD7: - | AE7: =SUMIFS(AE9:AE208,$H$9:$H$208,"<>") -> 0.00 | AG7: - | AH7: =SUMIFS(AH9:AH208,$H$9:$H$208,"<>") -> 0.00 | AJ7: - | AK7: =SUMIFS(AK9:AK208,$H$9:$H$208,"<>") -> 0.00 | AM7: - | AN7: =SUMIFS(AN9:AN208,$H$9:$H$208,"<>") -> 0.00 | AP7: - | AQ7: =SUMIFS(AQ9:AQ208,$H$9:$H$208,"<>") -> 0.00 | AS7: - | AT7: =J7+M7+P7+S7+V7+Y7+AB7+AE7+AH7+AK7+AN7+AQ7 -> 1,119,375.00 | AW7: Nota: Aqui tenemos los Acumulados de Indicadores. Condiciones para META: ENLACE ID sea igual al del Indicador Y TRIBUTA sea SI. Condiciones para PRESUPUESTO: ENLACE ID igual al del Indicador Y TRIBUTA sea diferente de "" ya que queremos solo las Actividades. Cuando es indicador se blanquea el balor de la celda TRIBUTA
A9: I001 | B9: 1. Indicator | C9: Pr68 | D9: 1 | E9: [Pr68] # PLHIV that initiated ARV with CD4 count <200 Target [2. Inverse] | I9: =AW9 -> 200 | J9: =AX9 -> 65,725.00 | L9: =AZ9 -> 200 | M9: =BA9 -> 49,200.00 | O9: =BC9 -> 200 | P9: =BD9 -> 54,700.00 | R9: =BF9 -> 200 | S9: =BG9 -> 45,700.00 | U9: =BI9 -> 200 | V9: =BJ9 -> 49,200.00 | X9: =BL9 -> 200 | Y9: =BM9 -> 45,700.00 | AA9: =BO9 -> 0 | AB9: =BP9 -> 0.00 | AD9: =BR9 -> 0 | AE9: =BS9 -> 0.00 | AG9: =BU9 -> 0 | AH9: =BV9 -> 0.00 | AJ9: =BX9 -> 0 | AK9: =BY9 -> 0.00 | AM9: =CA9 -> 0 | AN9: =CB9 -> 0.00 | AP9: =CD9 -> 0 | AQ9: =CE9 -> 0.00 | AS9: =I9+L9+O9+R9+U9+X9+AA9+AD9+AG9+AJ9+AM9+AP9 -> 1,200 | AT9: 310,225.00 | AW9: =SUMIFS(I$9:I$208,PlanningIDEnlaces,$C9,$H$9:$H$208,Lists!$A$16) -> 200 | AX9: =SUMIFS(J$9:J$208,PlanningIDEnlaces,$C9,$H$9:$H$208,"<>") -> 65725 | AZ9: =SUMIFS(L$9:L$208,PlanningIDEnlaces,$C9,$H$9:$H$208,Lists!$A$16) -> 200 | BA9: =SUMIFS(M$9:M$208,PlanningIDEnlaces,$C9,$H$9:$H$208,"<>") -> 49200 | BC9: =SUMIFS(O$9:O$208,PlanningIDEnlaces,$C9,$H$9:$H$208,Lists!$A$16) -> 200 | BD9: =SUMIFS(P$9:P$208,PlanningIDEnlaces,$C9,$H$9:$H$208,"<>") -> 54700 | BF9: =SUMIFS(R$9:R$208,PlanningIDEnlaces,$C9,$H$9:$H$208,Lists!$A$16) -> 200 | BG9: =SUMIFS(S$9:S$208,PlanningIDEnlaces,$C9,$H$9:$H$208,"<>") -> 45700 | BI9: =SUMIFS(U$9:U$208,PlanningIDEnlaces,$C9,$H$9:$H$208,Lists!$A$16) -> 200 | BJ9: =SUMIFS(V$9:V$208,PlanningIDEnlaces,$C9,$H$9:$H$208,"<>") -> 49200 | BL9: =SUMIFS(X$9:X$208,PlanningIDEnlaces,$C9,$H$9:$H$208,Lists!$A$16) -> 200 | BM9: =SUMIFS(Y$9:Y$208,PlanningIDEnlaces,$C9,$H$9:$H$208,"<>") -> 45700 | BO9: =SUMIFS(AA$9:AA$208,PlanningIDEnlaces,$C9,$H$9:$H$208,Lists!$A$16) -> 0 | BP9: =SUMIFS(AB$9:AB$208,PlanningIDEnlaces,$C9,$H$9:$H$208,"<>") -> 0 | BR9: =SUMIFS(AD$9:AD$208,PlanningIDEnlaces,$C9,$H$9:$H$208,Lists!$A$16) -> 0 | BS9: =SUMIFS(AE$9:AE$208,PlanningIDEnlaces,$C9,$H$9:$H$208,"<>") -> 0 | BU9: =SUMIFS(AG$9:AG$208,PlanningIDEnlaces,$C9,$H$9:$H$208,Lists!$A$16) -> 0 | BV9: =SUMIFS(AH$9:AH$208,PlanningIDEnlaces,$C9,$H$9:$H$208,"<>") -> 0 | BX9: =SUMIFS(AJ$9:AJ$208,PlanningIDEnlaces,$C9,$H$9:$H$208,Lists!$A$16) -> 0 | BY9: =SUMIFS(AK$9:AK$208,PlanningIDEnlaces,$C9,$H$9:$H$208,"<>") -> 0 | CA9: =SUMIFS(AM$9:AM$208,PlanningIDEnlaces,$C9,$H$9:$H$208,Lists!$A$16) -> 0 | CB9: =SUMIFS(AN$9:AN$208,PlanningIDEnlaces,$C9,$H$9:$H$208,"<>") -> 0 | CD9: =SUMIFS(AP$9:AP$208,PlanningIDEnlaces,$C9,$H$9:$H$208,Lists!$A$16) -> 0 | CE9: =SUMIFS(AQ$9:AQ$208,PlanningIDEnlaces,$C9,$H$9:$H$208,"<>") -> 0 | CG9: =IFERROR(INDEX(Lists!$F$5:$F$49,MATCH(Planning!C9,Lists!$G$5:$G$49,0),1),"") -> [Pr68] # PLHIV that initiated ARV with CD4 count <200 Target | CI9: =IF(C9=0,""," ["&INDEX(Lists!$H$5:$H$49,MATCH(C9,Lists!$G$5:$G$49,0),1)&"]") -> [2. Inverse] | CK9: =COUNTA(B9:B208) -> 12 | CL9: =COUNTA(C9:C208) -> 12 | CM9: =COUNTA(E9:E208) -> 12 | CN9: =IF(AND(CK9=CL9,CL9=CM9),1,0) -> 1
A10: I002 | B10: 2. Activity: Contributing | C10: Pr68 | D10: 1.2 | E10: PLHIV reimbursed for transportation costs to HIV testing and treatment centres | F10: PLHIV ($225/person) | G10: 12. Living support to client/ target population | H10: 1. YES | I10: 200 | J10: 45,000.00 | L10: 200 | M10: 35,000.00 | O10: 200 | P10: 45,000.00 | R10: 200 | S10: 45,000.00 | U10: 200 | V10: 35,000.00 | X10: 200 | Y10: 45,000.00 | AA10: 0 | AB10: 0.00 | AD10: 0 | AE10: 0.00 | AG10: 0 | AH10: 0.00 | AJ10: 0 | AK10: 0.00 | AM10: 0 | AN10: 0.00 | AP10: 0 | AQ10: 0.00 | AS10: 1,200 | AT10: 250,000.00 | AW10: =SUMIFS(I$9:I$208,PlanningIDEnlaces,$C10,$H$9:$H$208,Lists!$A$16) -> 200 | AX10: 65725 | AZ10: =SUMIFS(L$9:L$208,PlanningIDEnlaces,$C10,$H$9:$H$208,Lists!$A$16) -> 200 | BA10: 49200 | BC10: =SUMIFS(O$9:O$208,PlanningIDEnlaces,$C10,$H$9:$H$208,Lists!$A$16) -> 200 | BD10: 54700 | BF10: =SUMIFS(R$9:R$208,PlanningIDEnlaces,$C10,$H$9:$H$208,Lists!$A$16) -> 200 | BG10: 45700 | BI10: =SUMIFS(U$9:U$208,PlanningIDEnlaces,$C10,$H$9:$H$208,Lists!$A$16) -> 200 | BJ10: 49200 | BL10: =SUMIFS(X$9:X$208,PlanningIDEnlaces,$C10,$H$9:$H$208,Lists!$A$16) -> 200 | BM10: 45700 | BO10: =SUMIFS(AA$9:AA$208,PlanningIDEnlaces,$C10,$H$9:$H$208,Lists!$A$16) -> 0 | BP10: 0 | BR10: =SUMIFS(AD$9:AD$208,PlanningIDEnlaces,$C10,$H$9:$H$208,Lists!$A$16) -> 0 | BS10: 0 | BU10: =SUMIFS(AG$9:AG$208,PlanningIDEnlaces,$C10,$H$9:$H$208,Lists!$A$16) -> 0 | BV10: 0 | BX10: =SUMIFS(AJ$9:AJ$208,PlanningIDEnlaces,$C10,$H$9:$H$208,Lists!$A$16) -> 0 | BY10: 0 | CA10: =SUMIFS(AM$9:AM$208,PlanningIDEnlaces,$C10,$H$9:$H$208,Lists!$A$16) -> 0 | CB10: 0 | CD10: =SUMIFS(AP$9:AP$208,PlanningIDEnlaces,$C10,$H$9:$H$208,Lists!$A$16) -> 0 | CE10: 0 | CG10: =IFERROR(INDEX(Lists!$F$5:$F$49,MATCH(Planning!C10,Lists!$G$5:$G$49,0),1),"") -> [Pr68] # PLHIV that initiated ARV with CD4 count <200 Target | CI10: =IF(C10=0,""," ["&INDEX(Lists!$H$5:$H$49,MATCH(C10,Lists!$G$5:$G$49,0),1)&"]") -> [2. Inverse]
A11: I003 | B11: 3. Activity: Non-Contributing | C11: Pr68 | D11: 1.3 | E11: Communication materials produced to educate HIV+ patients about HIV treatment (Migrants and Sexual Workers). | F11: # of packets of materials ($20 per packet) | G11: 10. Communication material and publications | H11: 2. NO | I11: 25 | J11: 700.00 | L11: 25 | M11: 700.00 | O11: 25 | P11: 700.00 | R11: 25 | S11: 700.00 | U11: 25 | V11: 700.00 | X11: 25 | Y11: 700.00 | AA11: 0 | AB11: 0.00 | AD11: 0 | AE11: 0.00 | AG11: 0 | AH11: 0.00 | AJ11: 0 | AK11: 0.00 | AM11: 0 | AN11: 0.00 | AP11: 0 | AQ11: 0.00 | AS11: 150 | AT11: 4,200.00 | AW11: =SUMIFS(I$9:I$208,PlanningIDEnlaces,$C11,$H$9:$H$208,Lists!$A$16) -> 200 | AX11: 65725 | AZ11: =SUMIFS(L$9:L$208,PlanningIDEnlaces,$C11,$H$9:$H$208,Lists!$A$16) -> 200 | BA11: 49200 | BC11: =SUMIFS(O$9:O$208,PlanningIDEnlaces,$C11,$H$9:$H$208,Lists!$A$16) -> 200 | BD11: 54700 | BF11: =SUMIFS(R$9:R$208,PlanningIDEnlaces,$C11,$H$9:$H$208,Lists!$A$16) -> 200 | BG11: 45700 | BI11: =SUMIFS(U$9:U$208,PlanningIDEnlaces,$C11,$H$9:$H$208,Lists!$A$16) -> 200 | BJ11: 49200 | BL11: =SUMIFS(X$9:X$208,PlanningIDEnlaces,$C11,$H$9:$H$208,Lists!$A$16) -> 200 | BM11: 45700 | BO11: =SUMIFS(AA$9:AA$208,PlanningIDEnlaces,$C11,$H$9:$H$208,Lists!$A$16) -> 0 | BP11: 0 | BR11: =SUMIFS(AD$9:AD$208,PlanningIDEnlaces,$C11,$H$9:$H$208,Lists!$A$16) -> 0 | BS11: 0 | BU11: =SUMIFS(AG$9:AG$208,PlanningIDEnlaces,$C11,$H$9:$H$208,Lists!$A$16) -> 0 | BV11: 0 | BX11: =SUMIFS(AJ$9:AJ$208,PlanningIDEnlaces,$C11,$H$9:$H$208,Lists!$A$16) -> 0 | BY11: 0 | CA11: =SUMIFS(AM$9:AM$208,PlanningIDEnlaces,$C11,$H$9:$H$208,Lists!$A$16) -> 0 | CB11: 0 | CD11: =SUMIFS(AP$9:AP$208,PlanningIDEnlaces,$C11,$H$9:$H$208,Lists!$A$16) -> 0 | CE11: 0 | CG11: =IFERROR(INDEX(Lists!$F$5:$F$49,MATCH(Planning!C11,Lists!$G$5:$G$49,0),1),"") -> [Pr68] # PLHIV that initiated ARV with CD4 count <200 Target | CI11: =IF(C11=0,""," ["&INDEX(Lists!$H$5:$H$49,MATCH(C11,Lists!$G$5:$G$49,0),1)&"]") -> [2. Inverse]
A12: I004 | B12: 3. Activity: Non-Contributing | C12: Pr68 | D12: 1.4 | E12: Supervisory visits to verify the appropriate application of testing and treatment protocols at centers. | F12: Supervision visits ($225/visit) | G12: 11. Programme administration costs | H12: 2. NO | I12: 89 | J12: 20,025.00 | L12: 60 | M12: 13,500.00 | O12: 40 | P12: 9,000.00 | R12: 0 | S12: 0.00 | U12: 60 | V12: 13,500.00 | X12: 0 | Y12: 0.00 | AA12: 0 | AB12: 0.00 | AD12: 0 | AE12: 0.00 | AG12: 0 | AH12: 0.00 | AJ12: 0 | AK12: 0.00 | AM12: 0 | AN12: 0.00 | AP12: 0 | AQ12: 0.00 | AS12: 249 | AT12: 56,025.00 | AW12: =SUMIFS(I$9:I$208,PlanningIDEnlaces,$C12,$H$9:$H$208,Lists!$A$16) -> 200 | AX12: 65725 | AZ12: =SUMIFS(L$9:L$208,PlanningIDEnlaces,$C12,$H$9:$H$208,Lists!$A$16) -> 200 | BA12: 49200 | BC12: =SUMIFS(O$9:O$208,PlanningIDEnlaces,$C12,$H$9:$H$208,Lists!$A$16) -> 200 | BD12: 54700 | BF12: =SUMIFS(R$9:R$208,PlanningIDEnlaces,$C12,$H$9:$H$208,Lists!$A$16) -> 200 | BG12: 45700 | BI12: =SUMIFS(U$9:U$208,PlanningIDEnlaces,$C12,$H$9:$H$208,Lists!$A$16) -> 200 | BJ12: 49200 | BL12: =SUMIFS(X$9:X$208,PlanningIDEnlaces,$C12,$H$9:$H$208,Lists!$A$16) -> 200 | BM12: 45700 | BO12: =SUMIFS(AA$9:AA$208,PlanningIDEnlaces,$C12,$H$9:$H$208,Lists!$A$16) -> 0 | BP12: 0 | BR12: =SUMIFS(AD$9:AD$208,PlanningIDEnlaces,$C12,$H$9:$H$208,Lists!$A$16) -> 0 | BS12: 0 | BU12: =SUMIFS(AG$9:AG$208,PlanningIDEnlaces,$C12,$H$9:$H$208,Lists!$A$16) -> 0 | BV12: 0 | BX12: =SUMIFS(AJ$9:AJ$208,PlanningIDEnlaces,$C12,$H$9:$H$208,Lists!$A$16) -> 0 | BY12: 0 | CA12: =SUMIFS(AM$9:AM$208,PlanningIDEnlaces,$C12,$H$9:$H$208,Lists!$A$16) -> 0 | CB12: 0 | CD12: =SUMIFS(AP$9:AP$208,PlanningIDEnlaces,$C12,$H$9:$H$208,Lists!$A$16) -> 0 | CE12: 0 | CG12: =IFERROR(INDEX(Lists!$F$5:$F$49,MATCH(Planning!C12,Lists!$G$5:$G$49,0),1),"") -> [Pr68] # PLHIV that initiated ARV with CD4 count <200 Target | CI12: =IF(C12=0,""," ["&INDEX(Lists!$H$5:$H$49,MATCH(C12,Lists!$G$5:$G$49,0),1)&"]") -> [2. Inverse]
A13: I005 | B13: 1. Indicator | C13: Pr72 | D13: 2 | E13: [Pr72] # new HIV+ enrolled in care services Target [3. Non-Cumulative] | I13: =AW13 -> 124 | J13: =AX13 -> 27,900.00 | L13: =AZ13 -> 124 | M13: =BA13 -> 27,900.00 | O13: =BC13 -> 124 | P13: =BD13 -> 27,900.00 | R13: =BF13 -> 124 | S13: =BG13 -> 27,900.00 | U13: =BI13 -> 124 | V13: =BJ13 -> 27,900.00 | X13: =BL13 -> 124 | Y13: =BM13 -> 27,900.00 | AA13: =BO13 -> 0 | AB13: =BP13 -> 0.00 | AD13: =BR13 -> 0 | AE13: =BS13 -> 0.00 | AG13: =BU13 -> 0 | AH13: =BV13 -> 0.00 | AJ13: =BX13 -> 0 | AK13: =BY13 -> 0.00 | AM13: =CA13 -> 0 | AN13: =CB13 -> 0.00 | AP13: =CD13 -> 0 | AQ13: =CE13 -> 0.00 | AS13: 744 | AT13: 167,400.00 | AW13: =SUMIFS(I$9:I$208,PlanningIDEnlaces,$C13,$H$9:$H$208,Lists!$A$16) -> 124 | AX13: 27900 | AZ13: =SUMIFS(L$9:L$208,PlanningIDEnlaces,$C13,$H$9:$H$208,Lists!$A$16) -> 124 | BA13: 27900 | BC13: =SUMIFS(O$9:O$208,PlanningIDEnlaces,$C13,$H$9:$H$208,Lists!$A$16) -> 124 | BD13: 27900 | BF13: =SUMIFS(R$9:R$208,PlanningIDEnlaces,$C13,$H$9:$H$208,Lists!$A$16) -> 124 | BG13: 27900 | BI13: =SUMIFS(U$9:U$208,PlanningIDEnlaces,$C13,$H$9:$H$208,Lists!$A$16) -> 124 | BJ13: 27900 | BL13: =SUMIFS(X$9:X$208,PlanningIDEnlaces,$C13,$H$9:$H$208,Lists!$A$16) -> 124 | BM13: 27900 | BO13: =SUMIFS(AA$9:AA$208,PlanningIDEnlaces,$C13,$H$9:$H$208,Lists!$A$16) -> 0 | BP13: 0 | BR13: =SUMIFS(AD$9:AD$208,PlanningIDEnlaces,$C13,$H$9:$H$208,Lists!$A$16) -> 0 | BS13: 0 | BU13: =SUMIFS(AG$9:AG$208,PlanningIDEnlaces,$C13,$H$9:$H$208,Lists!$A$16) -> 0 | BV13: 0 | BX13: =SUMIFS(AJ$9:AJ$208,PlanningIDEnlaces,$C13,$H$9:$H$208,Lists!$A$16) -> 0 | BY13: 0 | CA13: =SUMIFS(AM$9:AM$208,PlanningIDEnlaces,$C13,$H$9:$H$208,Lists!$A$16) -> 0 | CB13: 0 | CD13: =SUMIFS(AP$9:AP$208,PlanningIDEnlaces,$C13,$H$9:$H$208,Lists!$A$16) -> 0 | CE13: 0 | CG13: =IFERROR(INDEX(Lists!$F$5:$F$49,MATCH(Planning!C13,Lists!$G$5:$G$49,0),1),"") -> [Pr72] # new HIV+ enrolled in care services Target | CI13: =IF(C13=0,""," ["&INDEX(Lists!$H$5:$H$49,MATCH(C13,Lists!$G$5:$G$49,0),1)&"]") -> [3. Non-Cumulative]
A14: I006 | B14: 2. Activity: Contributing | C14: Pr72 | D14: 2.1 | E14: Enrollment of newly diagnosed HIV+ patients for home visits to monitor use of ARV. | F14: New HIV+ benficiaries ($225/person) | G14: 12. Living support to client/ target population | H14: 1. YES | I14: 124 | J14: 27,900.00 | L14: 124 | M14: 27,900.00 | O14: 124 | P14: 27,900.00 | R14: 124 | S14: 27,900.00 | U14: 124 | V14: 27,900.00 | X14: 124 | Y14: 27,900.00 | AA14: 0 | AB14: 0.00 | AD14: 0 | AE14: 0.00 | AG14: 0 | AH14: 0.00 | AJ14: 0 | AK14: 0.00 | AM14: 0 | AN14: 0.00 | AP14: 0 | AQ14: 0.00 | AS14: 744 | AT14: 167,400.00 | AW14: =SUMIFS(I$9:I$208,PlanningIDEnlaces,$C14,$H$9:$H$208,Lists!$A$16) -> 124 | AX14: 27900 | AZ14: =SUMIFS(L$9:L$208,PlanningIDEnlaces,$C14,$H$9:$H$208,Lists!$A$16) -> 124 | BA14: 27900 | BC14: =SUMIFS(O$9:O$208,PlanningIDEnlaces,$C14,$H$9:$H$208,Lists!$A$16) -> 124 | BD14: 27900 | BF14: =SUMIFS(R$9:R$208,PlanningIDEnlaces,$C14,$H$9:$H$208,Lists!$A$16) -> 124 | BG14: 27900 | BI14: =SUMIFS(U$9:U$208,PlanningIDEnlaces,$C14,$H$9:$H$208,Lists!$A$16) -> 124 | BJ14: 27900 | BL14: =SUMIFS(X$9:X$208,PlanningIDEnlaces,$C14,$H$9:$H$208,Lists!$A$16) -> 124 | BM14: 27900 | BO14: =SUMIFS(AA$9:AA$208,PlanningIDEnlaces,$C14,$H$9:$H$208,Lists!$A$16) -> 0 | BP14: 0 | BR14: =SUMIFS(AD$9:AD$208,PlanningIDEnlaces,$C14,$H$9:$H$208,Lists!$A$16) -> 0 | BS14: 0 | BU14: =SUMIFS(AG$9:AG$208,PlanningIDEnlaces,$C14,$H$9:$H$208,Lists!$A$16) -> 0 | BV14: 0 | BX14: =SUMIFS(AJ$9:AJ$208,PlanningIDEnlaces,$C14,$H$9:$H$208,Lists!$A$16) -> 0 | BY14: 0 | CA14: =SUMIFS(AM$9:AM$208,PlanningIDEnlaces,$C14,$H$9:$H$208,Lists!$A$16) -> 0 | CB14: 0 | CD14: =SUMIFS(AP$9:AP$208,PlanningIDEnlaces,$C14,$H$9:$H$208,Lists!$A$16) -> 0 | CE14: 0 | CG14: =IFERROR(INDEX(Lists!$F$5:$F$49,MATCH(Planning!C14,Lists!$G$5:$G$49,0),1),"") -> [Pr72] # new HIV+ enrolled in care services Target | CI14: =IF(C14=0,""," ["&INDEX(Lists!$H$5:$H$49,MATCH(C14,Lists!$G$5:$G$49,0),1)&"]") -> [3. Non-Cumulative]
A15: I007 | B15: 1. Indicator | C15: Pr74 | D15: 3 | E15: [Pr74] # aged 10-24 yrs reached by HIV life skills ed. in school Target [1. Standard] | I15: =AW15 -> 250 | J15: =AX15 -> 56,250.00 | L15: =AZ15 -> 300 | M15: =BA15 -> 67,500.00 | O15: =BC15 -> 400 | P15: =BD15 -> 90,000.00 | R15: =BF15 -> 250 | S15: =BG15 -> 56,250.00 | U15: =BI15 -> 300 | V15: =BJ15 -> 67,500.00 | X15: =BL15 -> 250 | Y15: =BM15 -> 56,250.00 | AA15: =BO15 -> 0 | AB15: =BP15 -> 0.00 | AD15: =BR15 -> 0 | AE15: =BS15 -> 0.00 | AG15: =BU15 -> 0 | AH15: =BV15 -> 0.00 | AJ15: =BX15 -> 0 | AK15: =BY15 -> 0.00 | AM15: =CA15 -> 0 | AN15: =CB15 -> 0.00 | AP15: =CD15 -> 0 | AQ15: =CE15 -> 0.00 | AS15: 1,750 | AT15: 393,750.00 | AW15: =SUMIFS(I$9:I$208,PlanningIDEnlaces,$C15,$H$9:$H$208,Lists!$A$16) -> 250 | AX15: 56250 | AZ15: =SUMIFS(L$9:L$208,PlanningIDEnlaces,$C15,$H$9:$H$208,Lists!$A$16) -> 300 | BA15: 67500 | BC15: =SUMIFS(O$9:O$208,PlanningIDEnlaces,$C15,$H$9:$H$208,Lists!$A$16) -> 400 | BD15: 90000 | BF15: =SUMIFS(R$9:R$208,PlanningIDEnlaces,$C15,$H$9:$H$208,Lists!$A$16) -> 250 | BG15: 56250 | BI15: =SUMIFS(U$9:U$208,PlanningIDEnlaces,$C15,$H$9:$H$208,Lists!$A$16) -> 300 | BJ15: 67500 | BL15: =SUMIFS(X$9:X$208,PlanningIDEnlaces,$C15,$H$9:$H$208,Lists!$A$16) -> 250 | BM15: 56250 | BO15: =SUMIFS(AA$9:AA$208,PlanningIDEnlaces,$C15,$H$9:$H$208,Lists!$A$16) -> 0 | BP15: 0 | BR15: =SUMIFS(AD$9:AD$208,PlanningIDEnlaces,$C15,$H$9:$H$208,Lists!$A$16) -> 0 | BS15: 0 | BU15: =SUMIFS(AG$9:AG$208,PlanningIDEnlaces,$C15,$H$9:$H$208,Lists!$A$16) -> 0 | BV15: 0 | BX15: =SUMIFS(AJ$9:AJ$208,PlanningIDEnlaces,$C15,$H$9:$H$208,Lists!$A$16) -> 0 | BY15: 0 | CA15: =SUMIFS(AM$9:AM$208,PlanningIDEnlaces,$C15,$H$9:$H$208,Lists!$A$16) -> 0 | CB15: 0 | CD15: =SUMIFS(AP$9:AP$208,PlanningIDEnlaces,$C15,$H$9:$H$208,Lists!$A$16) -> 0 | CE15: 0 | CG15: =IFERROR(INDEX(Lists!$F$5:$F$49,MATCH(Planning!C15,Lists!$G$5:$G$49,0),1),"") -> [Pr74] # aged 10-24 yrs reached by HIV life skills ed. in school Target | CI15: =IF(C15=0,""," ["&INDEX(Lists!$H$5:$H$49,MATCH(C15,Lists!$G$5:$G$49,0),1)&"]") -> [1. Standard]
A16: I008 | B16: 2. Activity: Contributing | C16: Pr74 | D16: 3.1 | E16: Transportation of students to meetings and conferences for peer education activities | F16: Students ($225/person) | G16: 2. Travel related costs | H16: 1. YES | I16: 250 | J16: 56,250.00 | L16: 300 | M16: 67,500.00 | O16: 400 | P16: 90,000.00 | R16: 250 | S16: 56,250.00 | U16: 300 | V16: 67,500.00 | X16: 250 | Y16: 56,250.00 | AA16: 0 | AB16: 0.00 | AD16: 0 | AE16: 0.00 | AG16: 0 | AH16: 0.00 | AJ16: 0 | AK16: 0.00 | AM16: 0 | AN16: 0.00 | AP16: 0 | AQ16: 0.00 | AS16: 1,750 | AT16: 393,750.00 | AW16: =SUMIFS(I$9:I$208,PlanningIDEnlaces,$C16,$H$9:$H$208,Lists!$A$16) -> 250 | AX16: 56250 | AZ16: =SUMIFS(L$9:L$208,PlanningIDEnlaces,$C16,$H$9:$H$208,Lists!$A$16) -> 300 | BA16: 67500 | BC16: =SUMIFS(O$9:O$208,PlanningIDEnlaces,$C16,$H$9:$H$208,Lists!$A$16) -> 400 | BD16: 90000 | BF16: =SUMIFS(R$9:R$208,PlanningIDEnlaces,$C16,$H$9:$H$208,Lists!$A$16) -> 250 | BG16: 56250 | BI16: =SUMIFS(U$9:U$208,PlanningIDEnlaces,$C16,$H$9:$H$208,Lists!$A$16) -> 300 | BJ16: 67500 | BL16: =SUMIFS(X$9:X$208,PlanningIDEnlaces,$C16,$H$9:$H$208,Lists!$A$16) -> 250 | BM16: 56250 | BO16: =SUMIFS(AA$9:AA$208,PlanningIDEnlaces,$C16,$H$9:$H$208,Lists!$A$16) -> 0 | BP16: 0 | BR16: =SUMIFS(AD$9:AD$208,PlanningIDEnlaces,$C16,$H$9:$H$208,Lists!$A$16) -> 0 | BS16: 0 | BU16: =SUMIFS(AG$9:AG$208,PlanningIDEnlaces,$C16,$H$9:$H$208,Lists!$A$16) -> 0 | BV16: 0 | BX16: =SUMIFS(AJ$9:AJ$208,PlanningIDEnlaces,$C16,$H$9:$H$208,Lists!$A$16) -> 0 | BY16: 0 | CA16: =SUMIFS(AM$9:AM$208,PlanningIDEnlaces,$C16,$H$9:$H$208,Lists!$A$16) -> 0 | CB16: 0 | CD16: =SUMIFS(AP$9:AP$208,PlanningIDEnlaces,$C16,$H$9:$H$208,Lists!$A$16) -> 0 | CE16: 0 | CG16: =IFERROR(INDEX(Lists!$F$5:$F$49,MATCH(Planning!C16,Lists!$G$5:$G$49,0),1),"") -> [Pr74] # aged 10-24 yrs reached by HIV life skills ed. in school Target | CI16: =IF(C16=0,""," ["&INDEX(Lists!$H$5:$H$49,MATCH(C16,Lists!$G$5:$G$49,0),1)&"]") -> [1. Standard]
A17: I009 | B17: 1. Indicator | C17: OI01 | D17: 4 | E17: [OI01] # of new orphans and vulnerable children (0 - 17 yrs) benefiting from services provided at OVC centers [1. Standard] | I17: =AW17 -> 0 | J17: =AX17 -> 0.00 | L17: =AZ17 -> 0 | M17: =BA17 -> 4,000.00 | O17: =BC17 -> 250 | P17: =BD17 -> 33,000.00 | R17: =BF17 -> 500 | S17: =BG17 -> 58,000.00 | U17: =BI17 -> 500 | V17: =BJ17 -> 62,000.00 | X17: =BL17 -> 750 | Y17: =BM17 -> 91,000.00 | AA17: =BO17 -> 0 | AB17: =BP17 -> 0.00 | AD17: =BR17 -> 0 | AE17: =BS17 -> 0.00 | AG17: =BU17 -> 0 | AH17: =BV17 -> 0.00 | AJ17: =BX17 -> 0 | AK17: =BY17 -> 0.00 | AM17: =CA17 -> 0 | AN17: =CB17 -> 0.00 | AP17: =CD17 -> 0 | AQ17: =CE17 -> 0.00 | AS17: 2,000 | AT17: 248,000.00 | AW17: =SUMIFS(I$9:I$208,PlanningIDEnlaces,$C17,$H$9:$H$208,Lists!$A$16) -> 0 | AX17: 0 | AZ17: =SUMIFS(L$9:L$208,PlanningIDEnlaces,$C17,$H$9:$H$208,Lists!$A$16) -> 0 | BA17: 4000 | BC17: =SUMIFS(O$9:O$208,PlanningIDEnlaces,$C17,$H$9:$H$208,Lists!$A$16) -> 250 | BD17: 33000 | BF17: =SUMIFS(R$9:R$208,PlanningIDEnlaces,$C17,$H$9:$H$208,Lists!$A$16) -> 500 | BG17: 58000 | BI17: =SUMIFS(U$9:U$208,PlanningIDEnlaces,$C17,$H$9:$H$208,Lists!$A$16) -> 500 | BJ17: 62000 | BL17: =SUMIFS(X$9:X$208,PlanningIDEnlaces,$C17,$H$9:$H$208,Lists!$A$16) -> 750 | BM17: 91000 | BO17: =SUMIFS(AA$9:AA$208,PlanningIDEnlaces,$C17,$H$9:$H$208,Lists!$A$16) -> 0 | BP17: 0 | BR17: =SUMIFS(AD$9:AD$208,PlanningIDEnlaces,$C17,$H$9:$H$208,Lists!$A$16) -> 0 | BS17: 0 | BU17: =SUMIFS(AG$9:AG$208,PlanningIDEnlaces,$C17,$H$9:$H$208,Lists!$A$16) -> 0 | BV17: 0 | BX17: =SUMIFS(AJ$9:AJ$208,PlanningIDEnlaces,$C17,$H$9:$H$208,Lists!$A$16) -> 0 | BY17: 0 | CA17: =SUMIFS(AM$9:AM$208,PlanningIDEnlaces,$C17,$H$9:$H$208,Lists!$A$16) -> 0 | CB17: 0 | CD17: =SUMIFS(AP$9:AP$208,PlanningIDEnlaces,$C17,$H$9:$H$208,Lists!$A$16) -> 0 | CE17: 0 | CG17: =IFERROR(INDEX(Lists!$F$5:$F$49,MATCH(Planning!C17,Lists!$G$5:$G$49,0),1),"") -> [OI01] # of new orphans and vulnerable children (0 - 17 yrs) benefiting from services provided at OVC centers | CI17: =IF(C17=0,""," ["&INDEX(Lists!$H$5:$H$49,MATCH(C17,Lists!$G$5:$G$49,0),1)&"]") -> [1. Standard]
A18: I010 | B18: 3. Activity: Non-Contributing | C18: OI01 | D18: 4.1 | E18: # of OVC centers established and fully equipped | F18: # of centers ($4000/center) | G18: 8. Infrastructure | H18: 2. NO | I18: 0 | J18: 0.00 | L18: 1 | M18: 4,000.00 | O18: 1 | P18: 4,000.00 | S18: 0.00 | U18: 1 | V18: 4,000.00 | X18: 1 | Y18: 4,000.00 | AA18: 0 | AB18: 0.00 | AD18: 0 | AE18: 0.00 | AG18: 0 | AH18: 0.00 | AJ18: 0 | AK18: 0.00 | AM18: 0 | AN18: 0.00 | AP18: 0 | AQ18: 0.00 | AS18: 4 | AT18: 16,000.00 | AW18: =SUMIFS(I$9:I$208,PlanningIDEnlaces,$C18,$H$9:$H$208,Lists!$A$16) -> 0 | AX18: 0 | AZ18: =SUMIFS(L$9:L$208,PlanningIDEnlaces,$C18,$H$9:$H$208,Lists!$A$16) -> 0 | BA18: 4000 | BC18: =SUMIFS(O$9:O$208,PlanningIDEnlaces,$C18,$H$9:$H$208,Lists!$A$16) -> 250 | BD18: 33000 | BF18: =SUMIFS(R$9:R$208,PlanningIDEnlaces,$C18,$H$9:$H$208,Lists!$A$16) -> 500 | BG18: 58000 | BI18: =SUMIFS(U$9:U$208,PlanningIDEnlaces,$C18,$H$9:$H$208,Lists!$A$16) -> 500 | BJ18: 62000 | BL18: =SUMIFS(X$9:X$208,PlanningIDEnlaces,$C18,$H$9:$H$208,Lists!$A$16) -> 750 | BM18: 91000 | BO18: =SUMIFS(AA$9:AA$208,PlanningIDEnlaces,$C18,$H$9:$H$208,Lists!$A$16) -> 0 | BP18: 0 | BR18: =SUMIFS(AD$9:AD$208,PlanningIDEnlaces,$C18,$H$9:$H$208,Lists!$A$16) -> 0 | BS18: 0 | BU18: =SUMIFS(AG$9:AG$208,PlanningIDEnlaces,$C18,$H$9:$H$208,Lists!$A$16) -> 0 | BV18: 0 | BX18: =SUMIFS(AJ$9:AJ$208,PlanningIDEnlaces,$C18,$H$9:$H$208,Lists!$A$16) -> 0 | BY18: 0 | CA18: =SUMIFS(AM$9:AM$208,PlanningIDEnlaces,$C18,$H$9:$H$208,Lists!$A$16) -> 0 | CB18: 0 | CD18: =SUMIFS(AP$9:AP$208,PlanningIDEnlaces,$C18,$H$9:$H$208,Lists!$A$16) -> 0 | CE18: 0 | CG18: =IFERROR(INDEX(Lists!$F$5:$F$49,MATCH(Planning!C18,Lists!$G$5:$G$49,0),1),"") -> [OI01] # of new orphans and vulnerable children (0 - 17 yrs) benefiting from services provided at OVC centers | CI18: =IF(C18=0,""," ["&INDEX(Lists!$H$5:$H$49,MATCH(C18,Lists!$G$5:$G$49,0),1)&"]") -> [1. Standard]
A19: I011 | B19: 2. Activity: Contributing | C19: OI01 | D19: 4.2 | E19: # of OVC registered at centres | F19: # of children ($100/child/month) | G19: 12. Living support to client/ target population | H19: 1. YES | I19: 0 | J19: 0.00 | L19: 0 | M19: 0.00 | O19: 250 | P19: 25,000.00 | R19: 500 | S19: 50,000.00 | U19: 500 | V19: 50,000.00 | X19: 750 | Y19: 75,000.00 | AA19: 0 | AB19: 0.00 | AD19: 0 | AE19: 0.00 | AG19: 0 | AH19: 0.00 | AJ19: 0 | AK19: 0.00 | AM19: 0 | AN19: 0.00 | AP19: 0 | AQ19: 0.00 | AS19: 2,000 | AT19: 200,000.00 | AW19: =SUMIFS(I$9:I$208,PlanningIDEnlaces,$C19,$H$9:$H$208,Lists!$A$16) -> 0 | AX19: 0 | AZ19: =SUMIFS(L$9:L$208,PlanningIDEnlaces,$C19,$H$9:$H$208,Lists!$A$16) -> 0 | BA19: 4000 | BC19: =SUMIFS(O$9:O$208,PlanningIDEnlaces,$C19,$H$9:$H$208,Lists!$A$16) -> 250 | BD19: 33000 | BF19: =SUMIFS(R$9:R$208,PlanningIDEnlaces,$C19,$H$9:$H$208,Lists!$A$16) -> 500 | BG19: 58000 | BI19: =SUMIFS(U$9:U$208,PlanningIDEnlaces,$C19,$H$9:$H$208,Lists!$A$16) -> 500 | BJ19: 62000 | BL19: =SUMIFS(X$9:X$208,PlanningIDEnlaces,$C19,$H$9:$H$208,Lists!$A$16) -> 750 | BM19: 91000 | BO19: =SUMIFS(AA$9:AA$208,PlanningIDEnlaces,$C19,$H$9:$H$208,Lists!$A$16) -> 0 | BP19: 0 | BR19: =SUMIFS(AD$9:AD$208,PlanningIDEnlaces,$C19,$H$9:$H$208,Lists!$A$16) -> 0 | BS19: 0 | BU19: =SUMIFS(AG$9:AG$208,PlanningIDEnlaces,$C19,$H$9:$H$208,Lists!$A$16) -> 0 | BV19: 0 | BX19: =SUMIFS(AJ$9:AJ$208,PlanningIDEnlaces,$C19,$H$9:$H$208,Lists!$A$16) -> 0 | BY19: 0 | CA19: =SUMIFS(AM$9:AM$208,PlanningIDEnlaces,$C19,$H$9:$H$208,Lists!$A$16) -> 0 | CB19: 0 | CD19: =SUMIFS(AP$9:AP$208,PlanningIDEnlaces,$C19,$H$9:$H$208,Lists!$A$16) -> 0 | CE19: 0 | CG19: =IFERROR(INDEX(Lists!$F$5:$F$49,MATCH(Planning!C19,Lists!$G$5:$G$49,0),1),"") -> [OI01] # of new orphans and vulnerable children (0 - 17 yrs) benefiting from services provided at OVC centers | CI19: =IF(C19=0,""," ["&INDEX(Lists!$H$5:$H$49,MATCH(C19,Lists!$G$5:$G$49,0),1)&"]") -> [1. Standard]
A20: I012 | B20: 3. Activity: Non-Contributing | C20: OI01 | D20: 4.3 | E20: # of meals provided at the OVC centers | F20: # of meals ($4/meal) | G20: 12. Living support to client/ target population | H20: 2. NO | I20: 0 | J20: 0.00 | L20: 0 | M20: 0.00 | O20: 1,000 | P20: 4,000.00 | R20: 2,000 | S20: 8,000.00 | U20: 2,000 | V20: 8,000.00 | X20: 3,000 | Y20: 12,000.00 | AA20: 0 | AB20: 0.00 | AD20: 0 | AE20: 0.00 | AG20: 0 | AH20: 0.00 | AJ20: 0 | AK20: 0.00 | AM20: 0 | AN20: 0.00 | AP20: 0 | AQ20: 0.00 | AS20: 8,000 | AT20: 32,000.00 | AW20: =SUMIFS(I$9:I$208,PlanningIDEnlaces,$C20,$H$9:$H$208,Lists!$A$16) -> 0 | AX20: 0 | AZ20: =SUMIFS(L$9:L$208,PlanningIDEnlaces,$C20,$H$9:$H$208,Lists!$A$16) -> 0 | BA20: 4000 | BC20: =SUMIFS(O$9:O$208,PlanningIDEnlaces,$C20,$H$9:$H$208,Lists!$A$16) -> 250 | BD20: 33000 | BF20: =SUMIFS(R$9:R$208,PlanningIDEnlaces,$C20,$H$9:$H$208,Lists!$A$16) -> 500 | BG20: 58000 | BI20: =SUMIFS(U$9:U$208,PlanningIDEnlaces,$C20,$H$9:$H$208,Lists!$A$16) -> 500 | BJ20: 62000 | BL20: =SUMIFS(X$9:X$208,PlanningIDEnlaces,$C20,$H$9:$H$208,Lists!$A$16) -> 750 | BM20: 91000 | BO20: =SUMIFS(AA$9:AA$208,PlanningIDEnlaces,$C20,$H$9:$H$208,Lists!$A$16) -> 0 | BP20: 0 | BR20: =SUMIFS(AD$9:AD$208,PlanningIDEnlaces,$C20,$H$9:$H$208,Lists!$A$16) -> 0 | BS20: 0 | BU20: =SUMIFS(AG$9:AG$208,PlanningIDEnlaces,$C20,$H$9:$H$208,Lists!$A$16) -> 0 | BV20: 0 | BX20: =SUMIFS(AJ$9:AJ$208,PlanningIDEnlaces,$C20,$H$9:$H$208,Lists!$A$16) -> 0 | BY20: 0 | CA20: =SUMIFS(AM$9:AM$208,PlanningIDEnlaces,$C20,$H$9:$H$208,Lists!$A$16) -> 0 | CB20: 0 | CD20: =SUMIFS(AP$9:AP$208,PlanningIDEnlaces,$C20,$H$9:$H$208,Lists!$A$16) -> 0 | CE20: 0 | CG20: =IFERROR(INDEX(Lists!$F$5:$F$49,MATCH(Planning!C20,Lists!$G$5:$G$49,0),1),"") -> [OI01] # of new orphans and vulnerable children (0 - 17 yrs) benefiting from services provided at OVC centers | CI20: =IF(C20=0,""," ["&INDEX(Lists!$H$5:$H$49,MATCH(C20,Lists!$G$5:$G$49,0),1)&"]") -> [1. Standard]
A21: I013 | AS21: 0 | AT21: 0.00 | AW21: =SUMIFS(I$9:I$208,PlanningIDEnlaces,$C21,$H$9:$H$208,Lists!$A$16) -> 0 | AX21: 0 | AZ21: =SUMIFS(L$9:L$208,PlanningIDEnlaces,$C21,$H$9:$H$208,Lists!$A$16) -> 0 | BA21: 0 | BC21: =SUMIFS(O$9:O$208,PlanningIDEnlaces,$C21,$H$9:$H$208,Lists!$A$16) -> 0 | BD21: 0 | BF21: =SUMIFS(R$9:R$208,PlanningIDEnlaces,$C21,$H$9:$H$208,Lists!$A$16) -> 0 | BG21: 0 | BI21: =SUMIFS(U$9:U$208,PlanningIDEnlaces,$C21,$H$9:$H$208,Lists!$A$16) -> 0 | BJ21: 0 | BL21: =SUMIFS(X$9:X$208,PlanningIDEnlaces,$C21,$H$9:$H$208,Lists!$A$16) -> 0 | BM21: 0 | BO21: =SUMIFS(AA$9:AA$208,PlanningIDEnlaces,$C21,$H$9:$H$208,Lists!$A$16) -> 0 | BP21: 0 | BR21: =SUMIFS(AD$9:AD$208,PlanningIDEnlaces,$C21,$H$9:$H$208,Lists!$A$16) -> 0 | BS21: 0 | BU21: =SUMIFS(AG$9:AG$208,PlanningIDEnlaces,$C21,$H$9:$H$208,Lists!$A$16) -> 0 | BV21: 0 | BX21: =SUMIFS(AJ$9:AJ$208,PlanningIDEnlaces,$C21,$H$9:$H$208,Lists!$A$16) -> 0 | BY21: 0 | CA21: =SUMIFS(AM$9:AM$208,PlanningIDEnlaces,$C21,$H$9:$H$208,Lists!$A$16) -> 0 | CB21: 0 | CD21: =SUMIFS(AP$9:AP$208,PlanningIDEnlaces,$C21,$H$9:$H$208,Lists!$A$16) -> 0 | CE21: 0 | CG21: =IFERROR(INDEX(Lists!$F$5:$F$49,MATCH(Planning!C21,Lists!$G$5:$G$49,0),1),"") ->  | CI21: =IF(C21=0,""," ["&INDEX(Lists!$H$5:$H$49,MATCH(C21,Lists!$G$5:$G$49,0),1)&"]") -> 
A22: I014 | AS22: 0 | AT22: 0.00 | AW22: =SUMIFS(I$9:I$208,PlanningIDEnlaces,$C22,$H$9:$H$208,Lists!$A$16) -> 0 | AX22: 0 | AZ22: =SUMIFS(L$9:L$208,PlanningIDEnlaces,$C22,$H$9:$H$208,Lists!$A$16) -> 0 | BA22: 0 | BC22: =SUMIFS(O$9:O$208,PlanningIDEnlaces,$C22,$H$9:$H$208,Lists!$A$16) -> 0 | BD22: 0 | BF22: =SUMIFS(R$9:R$208,PlanningIDEnlaces,$C22,$H$9:$H$208,Lists!$A$16) -> 0 | BG22: 0 | BI22: =SUMIFS(U$9:U$208,PlanningIDEnlaces,$C22,$H$9:$H$208,Lists!$A$16) -> 0 | BJ22: 0 | BL22: =SUMIFS(X$9:X$208,PlanningIDEnlaces,$C22,$H$9:$H$208,Lists!$A$16) -> 0 | BM22: 0 | BO22: =SUMIFS(AA$9:AA$208,PlanningIDEnlaces,$C22,$H$9:$H$208,Lists!$A$16) -> 0 | BP22: 0 | BR22: =SUMIFS(AD$9:AD$208,PlanningIDEnlaces,$C22,$H$9:$H$208,Lists!$A$16) -> 0 | BS22: 0 | BU22: =SUMIFS(AG$9:AG$208,PlanningIDEnlaces,$C22,$H$9:$H$208,Lists!$A$16) -> 0 | BV22: 0 | BX22: =SUMIFS(AJ$9:AJ$208,PlanningIDEnlaces,$C22,$H$9:$H$208,Lists!$A$16) -> 0 | BY22: 0 | CA22: =SUMIFS(AM$9:AM$208,PlanningIDEnlaces,$C22,$H$9:$H$208,Lists!$A$16) -> 0 | CB22: 0 | CD22: =SUMIFS(AP$9:AP$208,PlanningIDEnlaces,$C22,$H$9:$H$208,Lists!$A$16) -> 0 | CE22: 0 | CG22: =IFERROR(INDEX(Lists!$F$5:$F$49,MATCH(Planning!C22,Lists!$G$5:$G$49,0),1),"") ->  | CI22: =IF(C22=0,""," ["&INDEX(Lists!$H$5:$H$49,MATCH(C22,Lists!$G$5:$G$49,0),1)&"]") -> 
A23: I015 | AS23: 0 | AT23: 0.00 | AW23: =SUMIFS(I$9:I$208,PlanningIDEnlaces,$C23,$H$9:$H$208,Lists!$A$16) -> 0 | AX23: 0 | AZ23: =SUMIFS(L$9:L$208,PlanningIDEnlaces,$C23,$H$9:$H$208,Lists!$A$16) -> 0 | BA23: 0 | BC23: =SUMIFS(O$9:O$208,PlanningIDEnlaces,$C23,$H$9:$H$208,Lists!$A$16) -> 0 | BD23: 0 | BF23: =SUMIFS(R$9:R$208,PlanningIDEnlaces,$C23,$H$9:$H$208,Lists!$A$16) -> 0 | BG23: 0 | BI23: =SUMIFS(U$9:U$208,PlanningIDEnlaces,$C23,$H$9:$H$208,Lists!$A$16) -> 0 | BJ23: 0 | BL23: =SUMIFS(X$9:X$208,PlanningIDEnlaces,$C23,$H$9:$H$208,Lists!$A$16) -> 0 | BM23: 0 | BO23: =SUMIFS(AA$9:AA$208,PlanningIDEnlaces,$C23,$H$9:$H$208,Lists!$A$16) -> 0 | BP23: 0 | BR23: =SUMIFS(AD$9:AD$208,PlanningIDEnlaces,$C23,$H$9:$H$208,Lists!$A$16) -> 0 | BS23: 0 | BU23: =SUMIFS(AG$9:AG$208,PlanningIDEnlaces,$C23,$H$9:$H$208,Lists!$A$16) -> 0 | BV23: 0 | BX23: =SUMIFS(AJ$9:AJ$208,PlanningIDEnlaces,$C23,$H$9:$H$208,Lists!$A$16) -> 0 | BY23: 0 | CA23: =SUMIFS(AM$9:AM$208,PlanningIDEnlaces,$C23,$H$9:$H$208,Lists!$A$16) -> 0 | CB23: 0 | CD23: =SUMIFS(AP$9:AP$208,PlanningIDEnlaces,$C23,$H$9:$H$208,Lists!$A$16) -> 0 | CE23: 0 | CG23: =IFERROR(INDEX(Lists!$F$5:$F$49,MATCH(Planning!C23,Lists!$G$5:$G$49,0),1),"") ->  | CI23: =IF(C23=0,""," ["&INDEX(Lists!$H$5:$H$49,MATCH(C23,Lists!$G$5:$G$49,0),1)&"]") -> 
A24: I016 | AS24: 0 | AT24: 0.00 | AW24: =SUMIFS(I$9:I$208,PlanningIDEnlaces,$C24,$H$9:$H$208,Lists!$A$16) -> 0 | AX24: 0 | AZ24: =SUMIFS(L$9:L$208,PlanningIDEnlaces,$C24,$H$9:$H$208,Lists!$A$16) -> 0 | BA24: 0 | BC24: =SUMIFS(O$9:O$208,PlanningIDEnlaces,$C24,$H$9:$H$208,Lists!$A$16) -> 0 | BD24: 0 | BF24: =SUMIFS(R$9:R$208,PlanningIDEnlaces,$C24,$H$9:$H$208,Lists!$A$16) -> 0 | BG24: 0 | BI24: =SUMIFS(U$9:U$208,PlanningIDEnlaces,$C24,$H$9:$H$208,Lists!$A$16) -> 0 | BJ24: 0 | BL24: =SUMIFS(X$9:X$208,PlanningIDEnlaces,$C24,$H$9:$H$208,Lists!$A$16) -> 0 | BM24: 0 | BO24: =SUMIFS(AA$9:AA$208,PlanningIDEnlaces,$C24,$H$9:$H$208,Lists!$A$16) -> 0 | BP24: 0 | BR24: =SUMIFS(AD$9:AD$208,PlanningIDEnlaces,$C24,$H$9:$H$208,Lists!$A$16) -> 0 | BS24: 0 | BU24: =SUMIFS(AG$9:AG$208,PlanningIDEnlaces,$C24,$H$9:$H$208,Lists!$A$16) -> 0 | BV24: 0 | BX24: =SUMIFS(AJ$9:AJ$208,PlanningIDEnlaces,$C24,$H$9:$H$208,Lists!$A$16) -> 0 | BY24: 0 | CA24: =SUMIFS(AM$9:AM$208,PlanningIDEnlaces,$C24,$H$9:$H$208,Lists!$A$16) -> 0 | CB24: 0 | CD24: =SUMIFS(AP$9:AP$208,PlanningIDEnlaces,$C24,$H$9:$H$208,Lists!$A$16) -> 0 | CE24: 0 | CG24: =IFERROR(INDEX(Lists!$F$5:$F$49,MATCH(Planning!C24,Lists!$G$5:$G$49,0),1),"") ->  | CI24: =IF(C24=0,""," ["&INDEX(Lists!$H$5:$H$49,MATCH(C24,Lists!$G$5:$G$49,0),1)&"]") -> 
A25: I017 | AS25: 0 | AT25: 0.00 | AW25: =SUMIFS(I$9:I$208,PlanningIDEnlaces,$C25,$H$9:$H$208,Lists!$A$16) -> 0 | AX25: 0 | AZ25: =SUMIFS(L$9:L$208,PlanningIDEnlaces,$C25,$H$9:$H$208,Lists!$A$16) -> 0 | BA25: 0 | BC25: =SUMIFS(O$9:O$208,PlanningIDEnlaces,$C25,$H$9:$H$208,Lists!$A$16) -> 0 | BD25: 0 | BF25: =SUMIFS(R$9:R$208,PlanningIDEnlaces,$C25,$H$9:$H$208,Lists!$A$16) -> 0 | BG25: 0 | BI25: =SUMIFS(U$9:U$208,PlanningIDEnlaces,$C25,$H$9:$H$208,Lists!$A$16) -> 0 | BJ25: 0 | BL25: =SUMIFS(X$9:X$208,PlanningIDEnlaces,$C25,$H$9:$H$208,Lists!$A$16) -> 0 | BM25: 0 | BO25: =SUMIFS(AA$9:AA$208,PlanningIDEnlaces,$C25,$H$9:$H$208,Lists!$A$16) -> 0 | BP25: 0 | BR25: =SUMIFS(AD$9:AD$208,PlanningIDEnlaces,$C25,$H$9:$H$208,Lists!$A$16) -> 0 | BS25: 0 | BU25: =SUMIFS(AG$9:AG$208,PlanningIDEnlaces,$C25,$H$9:$H$208,Lists!$A$16) -> 0 | BV25: 0 | BX25: =SUMIFS(AJ$9:AJ$208,PlanningIDEnlaces,$C25,$H$9:$H$208,Lists!$A$16) -> 0 | BY25: 0 | CA25: =SUMIFS(AM$9:AM$208,PlanningIDEnlaces,$C25,$H$9:$H$208,Lists!$A$16) -> 0 | CB25: 0 | CD25: =SUMIFS(AP$9:AP$208,PlanningIDEnlaces,$C25,$H$9:$H$208,Lists!$A$16) -> 0 | CE25: 0 | CG25: =IFERROR(INDEX(Lists!$F$5:$F$49,MATCH(Planning!C25,Lists!$G$5:$G$49,0),1),"") ->  | CI25: =IF(C25=0,""," ["&INDEX(Lists!$H$5:$H$49,MATCH(C25,Lists!$G$5:$G$49,0),1)&"]") -> 
A26: I018 | AS26: 0 | AT26: 0.00 | AW26: =SUMIFS(I$9:I$208,PlanningIDEnlaces,$C26,$H$9:$H$208,Lists!$A$16) -> 0 | AX26: 0 | AZ26: =SUMIFS(L$9:L$208,PlanningIDEnlaces,$C26,$H$9:$H$208,Lists!$A$16) -> 0 | BA26: 0 | BC26: =SUMIFS(O$9:O$208,PlanningIDEnlaces,$C26,$H$9:$H$208,Lists!$A$16) -> 0 | BD26: 0 | BF26: =SUMIFS(R$9:R$208,PlanningIDEnlaces,$C26,$H$9:$H$208,Lists!$A$16) -> 0 | BG26: 0 | BI26: =SUMIFS(U$9:U$208,PlanningIDEnlaces,$C26,$H$9:$H$208,Lists!$A$16) -> 0 | BJ26: 0 | BL26: =SUMIFS(X$9:X$208,PlanningIDEnlaces,$C26,$H$9:$H$208,Lists!$A$16) -> 0 | BM26: 0 | BO26: =SUMIFS(AA$9:AA$208,PlanningIDEnlaces,$C26,$H$9:$H$208,Lists!$A$16) -> 0 | BP26: 0 | BR26: =SUMIFS(AD$9:AD$208,PlanningIDEnlaces,$C26,$H$9:$H$208,Lists!$A$16) -> 0 | BS26: 0 | BU26: =SUMIFS(AG$9:AG$208,PlanningIDEnlaces,$C26,$H$9:$H$208,Lists!$A$16) -> 0 | BV26: 0 | BX26: =SUMIFS(AJ$9:AJ$208,PlanningIDEnlaces,$C26,$H$9:$H$208,Lists!$A$16) -> 0 | BY26: 0 | CA26: =SUMIFS(AM$9:AM$208,PlanningIDEnlaces,$C26,$H$9:$H$208,Lists!$A$16) -> 0 | CB26: 0 | CD26: =SUMIFS(AP$9:AP$208,PlanningIDEnlaces,$C26,$H$9:$H$208,Lists!$A$16) -> 0 | CE26: 0 | CG26: =IFERROR(INDEX(Lists!$F$5:$F$49,MATCH(Planning!C26,Lists!$G$5:$G$49,0),1),"") ->  | CI26: =IF(C26=0,""," ["&INDEX(Lists!$H$5:$H$49,MATCH(C26,Lists!$G$5:$G$49,0),1)&"]") -> 
A27: I019 | AS27: 0 | AT27: 0.00 | AW27: =SUMIFS(I$9:I$208,PlanningIDEnlaces,$C27,$H$9:$H$208,Lists!$A$16) -> 0 | AX27: 0 | AZ27: =SUMIFS(L$9:L$208,PlanningIDEnlaces,$C27,$H$9:$H$208,Lists!$A$16) -> 0 | BA27: 0 | BC27: =SUMIFS(O$9:O$208,PlanningIDEnlaces,$C27,$H$9:$H$208,Lists!$A$16) -> 0 | BD27: 0 | BF27: =SUMIFS(R$9:R$208,PlanningIDEnlaces,$C27,$H$9:$H$208,Lists!$A$16) -> 0 | BG27: 0 | BI27: =SUMIFS(U$9:U$208,PlanningIDEnlaces,$C27,$H$9:$H$208,Lists!$A$16) -> 0 | BJ27: 0 | BL27: =SUMIFS(X$9:X$208,PlanningIDEnlaces,$C27,$H$9:$H$208,Lists!$A$16) -> 0 | BM27: 0 | BO27: =SUMIFS(AA$9:AA$208,PlanningIDEnlaces,$C27,$H$9:$H$208,Lists!$A$16) -> 0 | BP27: 0 | BR27: =SUMIFS(AD$9:AD$208,PlanningIDEnlaces,$C27,$H$9:$H$208,Lists!$A$16) -> 0 | BS27: 0 | BU27: =SUMIFS(AG$9:AG$208,PlanningIDEnlaces,$C27,$H$9:$H$208,Lists!$A$16) -> 0 | BV27: 0 | BX27: =SUMIFS(AJ$9:AJ$208,PlanningIDEnlaces,$C27,$H$9:$H$208,Lists!$A$16) -> 0 | BY27: 0 | CA27: =SUMIFS(AM$9:AM$208,PlanningIDEnlaces,$C27,$H$9:$H$208,Lists!$A$16) -> 0 | CB27: 0 | CD27: =SUMIFS(AP$9:AP$208,PlanningIDEnlaces,$C27,$H$9:$H$208,Lists!$A$16) -> 0 | CE27: 0 | CG27: =IFERROR(INDEX(Lists!$F$5:$F$49,MATCH(Planning!C27,Lists!$G$5:$G$49,0),1),"") ->  | CI27: =IF(C27=0,""," ["&INDEX(Lists!$H$5:$H$49,MATCH(C27,Lists!$G$5:$G$49,0),1)&"]") -> 
A28: I020 | AS28: 0 | AT28: 0.00 | AW28: =SUMIFS(I$9:I$208,PlanningIDEnlaces,$C28,$H$9:$H$208,Lists!$A$16) -> 0 | AX28: 0 | AZ28: =SUMIFS(L$9:L$208,PlanningIDEnlaces,$C28,$H$9:$H$208,Lists!$A$16) -> 0 | BA28: 0 | BC28: =SUMIFS(O$9:O$208,PlanningIDEnlaces,$C28,$H$9:$H$208,Lists!$A$16) -> 0 | BD28: 0 | BF28: =SUMIFS(R$9:R$208,PlanningIDEnlaces,$C28,$H$9:$H$208,Lists!$A$16) -> 0 | BG28: 0 | BI28: =SUMIFS(U$9:U$208,PlanningIDEnlaces,$C28,$H$9:$H$208,Lists!$A$16) -> 0 | BJ28: 0 | BL28: =SUMIFS(X$9:X$208,PlanningIDEnlaces,$C28,$H$9:$H$208,Lists!$A$16) -> 0 | BM28: 0 | BO28: =SUMIFS(AA$9:AA$208,PlanningIDEnlaces,$C28,$H$9:$H$208,Lists!$A$16) -> 0 | BP28: 0 | BR28: =SUMIFS(AD$9:AD$208,PlanningIDEnlaces,$C28,$H$9:$H$208,Lists!$A$16) -> 0 | BS28: 0 | BU28: =SUMIFS(AG$9:AG$208,PlanningIDEnlaces,$C28,$H$9:$H$208,Lists!$A$16) -> 0 | BV28: 0 | BX28: =SUMIFS(AJ$9:AJ$208,PlanningIDEnlaces,$C28,$H$9:$H$208,Lists!$A$16) -> 0 | BY28: 0 | CA28: =SUMIFS(AM$9:AM$208,PlanningIDEnlaces,$C28,$H$9:$H$208,Lists!$A$16) -> 0 | CB28: 0 | CD28: =SUMIFS(AP$9:AP$208,PlanningIDEnlaces,$C28,$H$9:$H$208,Lists!$A$16) -> 0 | CE28: 0 | CG28: =IFERROR(INDEX(Lists!$F$5:$F$49,MATCH(Planning!C28,Lists!$G$5:$G$49,0),1),"") ->  | CI28: =IF(C28=0,""," ["&INDEX(Lists!$H$5:$H$49,MATCH(C28,Lists!$G$5:$G$49,0),1)&"]") -> 
A29: I021 | AS29: 0 | AT29: 0.00 | AW29: =SUMIFS(I$9:I$208,PlanningIDEnlaces,$C29,$H$9:$H$208,Lists!$A$16) -> 0 | AX29: 0 | AZ29: =SUMIFS(L$9:L$208,PlanningIDEnlaces,$C29,$H$9:$H$208,Lists!$A$16) -> 0 | BA29: 0 | BC29: =SUMIFS(O$9:O$208,PlanningIDEnlaces,$C29,$H$9:$H$208,Lists!$A$16) -> 0 | BD29: 0 | BF29: =SUMIFS(R$9:R$208,PlanningIDEnlaces,$C29,$H$9:$H$208,Lists!$A$16) -> 0 | BG29: 0 | BI29: =SUMIFS(U$9:U$208,PlanningIDEnlaces,$C29,$H$9:$H$208,Lists!$A$16) -> 0 | BJ29: 0 | BL29: =SUMIFS(X$9:X$208,PlanningIDEnlaces,$C29,$H$9:$H$208,Lists!$A$16) -> 0 | BM29: 0 | BO29: =SUMIFS(AA$9:AA$208,PlanningIDEnlaces,$C29,$H$9:$H$208,Lists!$A$16) -> 0 | BP29: 0 | BR29: =SUMIFS(AD$9:AD$208,PlanningIDEnlaces,$C29,$H$9:$H$208,Lists!$A$16) -> 0 | BS29: 0 | BU29: =SUMIFS(AG$9:AG$208,PlanningIDEnlaces,$C29,$H$9:$H$208,Lists!$A$16) -> 0 | BV29: 0 | BX29: =SUMIFS(AJ$9:AJ$208,PlanningIDEnlaces,$C29,$H$9:$H$208,Lists!$A$16) -> 0 | BY29: 0 | CA29: =SUMIFS(AM$9:AM$208,PlanningIDEnlaces,$C29,$H$9:$H$208,Lists!$A$16) -> 0 | CB29: 0 | CD29: =SUMIFS(AP$9:AP$208,PlanningIDEnlaces,$C29,$H$9:$H$208,Lists!$A$16) -> 0 | CE29: 0 | CG29: =IFERROR(INDEX(Lists!$F$5:$F$49,MATCH(Planning!C29,Lists!$G$5:$G$49,0),1),"") ->  | CI29: =IF(C29=0,""," ["&INDEX(Lists!$H$5:$H$49,MATCH(C29,Lists!$G$5:$G$49,0),1)&"]") -> 
A30: I022 | AS30: 0 | AT30: 0.00 | AW30: =SUMIFS(I$9:I$208,PlanningIDEnlaces,$C30,$H$9:$H$208,Lists!$A$16) -> 0 | AX30: 0 | AZ30: =SUMIFS(L$9:L$208,PlanningIDEnlaces,$C30,$H$9:$H$208,Lists!$A$16) -> 0 | BA30: 0 | BC30: =SUMIFS(O$9:O$208,PlanningIDEnlaces,$C30,$H$9:$H$208,Lists!$A$16) -> 0 | BD30: 0 | BF30: =SUMIFS(R$9:R$208,PlanningIDEnlaces,$C30,$H$9:$H$208,Lists!$A$16) -> 0 | BG30: 0 | BI30: =SUMIFS(U$9:U$208,PlanningIDEnlaces,$C30,$H$9:$H$208,Lists!$A$16) -> 0 | BJ30: 0 | BL30: =SUMIFS(X$9:X$208,PlanningIDEnlaces,$C30,$H$9:$H$208,Lists!$A$16) -> 0 | BM30: 0 | BO30: =SUMIFS(AA$9:AA$208,PlanningIDEnlaces,$C30,$H$9:$H$208,Lists!$A$16) -> 0 | BP30: 0 | BR30: =SUMIFS(AD$9:AD$208,PlanningIDEnlaces,$C30,$H$9:$H$208,Lists!$A$16) -> 0 | BS30: 0 | BU30: =SUMIFS(AG$9:AG$208,PlanningIDEnlaces,$C30,$H$9:$H$208,Lists!$A$16) -> 0 | BV30: 0 | BX30: =SUMIFS(AJ$9:AJ$208,PlanningIDEnlaces,$C30,$H$9:$H$208,Lists!$A$16) -> 0 | BY30: 0 | CA30: =SUMIFS(AM$9:AM$208,PlanningIDEnlaces,$C30,$H$9:$H$208,Lists!$A$16) -> 0 | CB30: 0 | CD30: =SUMIFS(AP$9:AP$208,PlanningIDEnlaces,$C30,$H$9:$H$208,Lists!$A$16) -> 0 | CE30: 0 | CG30: =IFERROR(INDEX(Lists!$F$5:$F$49,MATCH(Planning!C30,Lists!$G$5:$G$49,0),1),"") ->  | CI30: =IF(C30=0,""," ["&INDEX(Lists!$H$5:$H$49,MATCH(C30,Lists!$G$5:$G$49,0),1)&"]") -> 
A31: I023 | AS31: 0 | AT31: 0.00 | AW31: =SUMIFS(I$9:I$208,PlanningIDEnlaces,$C31,$H$9:$H$208,Lists!$A$16) -> 0 | AX31: 0 | AZ31: =SUMIFS(L$9:L$208,PlanningIDEnlaces,$C31,$H$9:$H$208,Lists!$A$16) -> 0 | BA31: 0 | BC31: =SUMIFS(O$9:O$208,PlanningIDEnlaces,$C31,$H$9:$H$208,Lists!$A$16) -> 0 | BD31: 0 | BF31: =SUMIFS(R$9:R$208,PlanningIDEnlaces,$C31,$H$9:$H$208,Lists!$A$16) -> 0 | BG31: 0 | BI31: =SUMIFS(U$9:U$208,PlanningIDEnlaces,$C31,$H$9:$H$208,Lists!$A$16) -> 0 | BJ31: 0 | BL31: =SUMIFS(X$9:X$208,PlanningIDEnlaces,$C31,$H$9:$H$208,Lists!$A$16) -> 0 | BM31: 0 | BO31: =SUMIFS(AA$9:AA$208,PlanningIDEnlaces,$C31,$H$9:$H$208,Lists!$A$16) -> 0 | BP31: 0 | BR31: =SUMIFS(AD$9:AD$208,PlanningIDEnlaces,$C31,$H$9:$H$208,Lists!$A$16) -> 0 | BS31: 0 | BU31: =SUMIFS(AG$9:AG$208,PlanningIDEnlaces,$C31,$H$9:$H$208,Lists!$A$16) -> 0 | BV31: 0 | BX31: =SUMIFS(AJ$9:AJ$208,PlanningIDEnlaces,$C31,$H$9:$H$208,Lists!$A$16) -> 0 | BY31: 0 | CA31: =SUMIFS(AM$9:AM$208,PlanningIDEnlaces,$C31,$H$9:$H$208,Lists!$A$16) -> 0 | CB31: 0 | CD31: =SUMIFS(AP$9:AP$208,PlanningIDEnlaces,$C31,$H$9:$H$208,Lists!$A$16) -> 0 | CE31: 0 | CG31: =IFERROR(INDEX(Lists!$F$5:$F$49,MATCH(Planning!C31,Lists!$G$5:$G$49,0),1),"") ->  | CI31: =IF(C31=0,""," ["&INDEX(Lists!$H$5:$H$49,MATCH(C31,Lists!$G$5:$G$49,0),1)&"]") -> 
A32: I024 | AS32: 0 | AT32: 0.00 | AW32: =SUMIFS(I$9:I$208,PlanningIDEnlaces,$C32,$H$9:$H$208,Lists!$A$16) -> 0 | AX32: 0 | AZ32: =SUMIFS(L$9:L$208,PlanningIDEnlaces,$C32,$H$9:$H$208,Lists!$A$16) -> 0 | BA32: 0 | BC32: =SUMIFS(O$9:O$208,PlanningIDEnlaces,$C32,$H$9:$H$208,Lists!$A$16) -> 0 | BD32: 0 | BF32: =SUMIFS(R$9:R$208,PlanningIDEnlaces,$C32,$H$9:$H$208,Lists!$A$16) -> 0 | BG32: 0 | BI32: =SUMIFS(U$9:U$208,PlanningIDEnlaces,$C32,$H$9:$H$208,Lists!$A$16) -> 0 | BJ32: 0 | BL32: =SUMIFS(X$9:X$208,PlanningIDEnlaces,$C32,$H$9:$H$208,Lists!$A$16) -> 0 | BM32: 0 | BO32: =SUMIFS(AA$9:AA$208,PlanningIDEnlaces,$C32,$H$9:$H$208,Lists!$A$16) -> 0 | BP32: 0 | BR32: =SUMIFS(AD$9:AD$208,PlanningIDEnlaces,$C32,$H$9:$H$208,Lists!$A$16) -> 0 | BS32: 0 | BU32: =SUMIFS(AG$9:AG$208,PlanningIDEnlaces,$C32,$H$9:$H$208,Lists!$A$16) -> 0 | BV32: 0 | BX32: =SUMIFS(AJ$9:AJ$208,PlanningIDEnlaces,$C32,$H$9:$H$208,Lists!$A$16) -> 0 | BY32: 0 | CA32: =SUMIFS(AM$9:AM$208,PlanningIDEnlaces,$C32,$H$9:$H$208,Lists!$A$16) -> 0 | CB32: 0 | CD32: =SUMIFS(AP$9:AP$208,PlanningIDEnlaces,$C32,$H$9:$H$208,Lists!$A$16) -> 0 | CE32: 0 | CG32: =IFERROR(INDEX(Lists!$F$5:$F$49,MATCH(Planning!C32,Lists!$G$5:$G$49,0),1),"") ->  | CI32: =IF(C32=0,""," ["&INDEX(Lists!$H$5:$H$49,MATCH(C32,Lists!$G$5:$G$49,0),1)&"]") -> 
A33: I025 | AS33: 0 | AT33: 0.00 | AW33: =SUMIFS(I$9:I$208,PlanningIDEnlaces,$C33,$H$9:$H$208,Lists!$A$16) -> 0 | AX33: 0 | AZ33: =SUMIFS(L$9:L$208,PlanningIDEnlaces,$C33,$H$9:$H$208,Lists!$A$16) -> 0 | BA33: 0 | BC33: =SUMIFS(O$9:O$208,PlanningIDEnlaces,$C33,$H$9:$H$208,Lists!$A$16) -> 0 | BD33: 0 | BF33: =SUMIFS(R$9:R$208,PlanningIDEnlaces,$C33,$H$9:$H$208,Lists!$A$16) -> 0 | BG33: 0 | BI33: =SUMIFS(U$9:U$208,PlanningIDEnlaces,$C33,$H$9:$H$208,Lists!$A$16) -> 0 | BJ33: 0 | BL33: =SUMIFS(X$9:X$208,PlanningIDEnlaces,$C33,$H$9:$H$208,Lists!$A$16) -> 0 | BM33: 0 | BO33: =SUMIFS(AA$9:AA$208,PlanningIDEnlaces,$C33,$H$9:$H$208,Lists!$A$16) -> 0 | BP33: 0 | BR33: =SUMIFS(AD$9:AD$208,PlanningIDEnlaces,$C33,$H$9:$H$208,Lists!$A$16) -> 0 | BS33: 0 | BU33: =SUMIFS(AG$9:AG$208,PlanningIDEnlaces,$C33,$H$9:$H$208,Lists!$A$16) -> 0 | BV33: 0 | BX33: =SUMIFS(AJ$9:AJ$208,PlanningIDEnlaces,$C33,$H$9:$H$208,Lists!$A$16) -> 0 | BY33: 0 | CA33: =SUMIFS(AM$9:AM$208,PlanningIDEnlaces,$C33,$H$9:$H$208,Lists!$A$16) -> 0 | CB33: 0 | CD33: =SUMIFS(AP$9:AP$208,PlanningIDEnlaces,$C33,$H$9:$H$208,Lists!$A$16) -> 0 | CE33: 0 | CG33: =IFERROR(INDEX(Lists!$F$5:$F$49,MATCH(Planning!C33,Lists!$G$5:$G$49,0),1),"") ->  | CI33: =IF(C33=0,""," ["&INDEX(Lists!$H$5:$H$49,MATCH(C33,Lists!$G$5:$G$49,0),1)&"]") -> 
A34: I026 | AS34: 0 | AT34: 0.00 | AW34: =SUMIFS(I$9:I$208,PlanningIDEnlaces,$C34,$H$9:$H$208,Lists!$A$16) -> 0 | AX34: 0 | AZ34: =SUMIFS(L$9:L$208,PlanningIDEnlaces,$C34,$H$9:$H$208,Lists!$A$16) -> 0 | BA34: 0 | BC34: =SUMIFS(O$9:O$208,PlanningIDEnlaces,$C34,$H$9:$H$208,Lists!$A$16) -> 0 | BD34: 0 | BF34: =SUMIFS(R$9:R$208,PlanningIDEnlaces,$C34,$H$9:$H$208,Lists!$A$16) -> 0 | BG34: 0 | BI34: =SUMIFS(U$9:U$208,PlanningIDEnlaces,$C34,$H$9:$H$208,Lists!$A$16) -> 0 | BJ34: 0 | BL34: =SUMIFS(X$9:X$208,PlanningIDEnlaces,$C34,$H$9:$H$208,Lists!$A$16) -> 0 | BM34: 0 | BO34: =SUMIFS(AA$9:AA$208,PlanningIDEnlaces,$C34,$H$9:$H$208,Lists!$A$16) -> 0 | BP34: 0 | BR34: =SUMIFS(AD$9:AD$208,PlanningIDEnlaces,$C34,$H$9:$H$208,Lists!$A$16) -> 0 | BS34: 0 | BU34: =SUMIFS(AG$9:AG$208,PlanningIDEnlaces,$C34,$H$9:$H$208,Lists!$A$16) -> 0 | BV34: 0 | BX34: =SUMIFS(AJ$9:AJ$208,PlanningIDEnlaces,$C34,$H$9:$H$208,Lists!$A$16) -> 0 | BY34: 0 | CA34: =SUMIFS(AM$9:AM$208,PlanningIDEnlaces,$C34,$H$9:$H$208,Lists!$A$16) -> 0 | CB34: 0 | CD34: =SUMIFS(AP$9:AP$208,PlanningIDEnlaces,$C34,$H$9:$H$208,Lists!$A$16) -> 0 | CE34: 0 | CG34: =IFERROR(INDEX(Lists!$F$5:$F$49,MATCH(Planning!C34,Lists!$G$5:$G$49,0),1),"") ->  | CI34: =IF(C34=0,""," ["&INDEX(Lists!$H$5:$H$49,MATCH(C34,Lists!$G$5:$G$49,0),1)&"]") -> 
A35: I027 | AS35: 0 | AT35: 0.00 | AW35: =SUMIFS(I$9:I$208,PlanningIDEnlaces,$C35,$H$9:$H$208,Lists!$A$16) -> 0 | AX35: 0 | AZ35: =SUMIFS(L$9:L$208,PlanningIDEnlaces,$C35,$H$9:$H$208,Lists!$A$16) -> 0 | BA35: 0 | BC35: =SUMIFS(O$9:O$208,PlanningIDEnlaces,$C35,$H$9:$H$208,Lists!$A$16) -> 0 | BD35: 0 | BF35: =SUMIFS(R$9:R$208,PlanningIDEnlaces,$C35,$H$9:$H$208,Lists!$A$16) -> 0 | BG35: 0 | BI35: =SUMIFS(U$9:U$208,PlanningIDEnlaces,$C35,$H$9:$H$208,Lists!$A$16) -> 0 | BJ35: 0 | BL35: =SUMIFS(X$9:X$208,PlanningIDEnlaces,$C35,$H$9:$H$208,Lists!$A$16) -> 0 | BM35: 0 | BO35: =SUMIFS(AA$9:AA$208,PlanningIDEnlaces,$C35,$H$9:$H$208,Lists!$A$16) -> 0 | BP35: 0 | BR35: =SUMIFS(AD$9:AD$208,PlanningIDEnlaces,$C35,$H$9:$H$208,Lists!$A$16) -> 0 | BS35: 0 | BU35: =SUMIFS(AG$9:AG$208,PlanningIDEnlaces,$C35,$H$9:$H$208,Lists!$A$16) -> 0 | BV35: 0 | BX35: =SUMIFS(AJ$9:AJ$208,PlanningIDEnlaces,$C35,$H$9:$H$208,Lists!$A$16) -> 0 | BY35: 0 | CA35: =SUMIFS(AM$9:AM$208,PlanningIDEnlaces,$C35,$H$9:$H$208,Lists!$A$16) -> 0 | CB35: 0 | CD35: =SUMIFS(AP$9:AP$208,PlanningIDEnlaces,$C35,$H$9:$H$208,Lists!$A$16) -> 0 | CE35: 0 | CG35: =IFERROR(INDEX(Lists!$F$5:$F$49,MATCH(Planning!C35,Lists!$G$5:$G$49,0),1),"") ->  | CI35: =IF(C35=0,""," ["&INDEX(Lists!$H$5:$H$49,MATCH(C35,Lists!$G$5:$G$49,0),1)&"]") -> 
A36: I028 | AS36: 0 | AT36: 0.00 | AW36: =SUMIFS(I$9:I$208,PlanningIDEnlaces,$C36,$H$9:$H$208,Lists!$A$16) -> 0 | AX36: 0 | AZ36: =SUMIFS(L$9:L$208,PlanningIDEnlaces,$C36,$H$9:$H$208,Lists!$A$16) -> 0 | BA36: 0 | BC36: =SUMIFS(O$9:O$208,PlanningIDEnlaces,$C36,$H$9:$H$208,Lists!$A$16) -> 0 | BD36: 0 | BF36: =SUMIFS(R$9:R$208,PlanningIDEnlaces,$C36,$H$9:$H$208,Lists!$A$16) -> 0 | BG36: 0 | BI36: =SUMIFS(U$9:U$208,PlanningIDEnlaces,$C36,$H$9:$H$208,Lists!$A$16) -> 0 | BJ36: 0 | BL36: =SUMIFS(X$9:X$208,PlanningIDEnlaces,$C36,$H$9:$H$208,Lists!$A$16) -> 0 | BM36: 0 | BO36: =SUMIFS(AA$9:AA$208,PlanningIDEnlaces,$C36,$H$9:$H$208,Lists!$A$16) -> 0 | BP36: 0 | BR36: =SUMIFS(AD$9:AD$208,PlanningIDEnlaces,$C36,$H$9:$H$208,Lists!$A$16) -> 0 | BS36: 0 | BU36: =SUMIFS(AG$9:AG$208,PlanningIDEnlaces,$C36,$H$9:$H$208,Lists!$A$16) -> 0 | BV36: 0 | BX36: =SUMIFS(AJ$9:AJ$208,PlanningIDEnlaces,$C36,$H$9:$H$208,Lists!$A$16) -> 0 | BY36: 0 | CA36: =SUMIFS(AM$9:AM$208,PlanningIDEnlaces,$C36,$H$9:$H$208,Lists!$A$16) -> 0 | CB36: 0 | CD36: =SUMIFS(AP$9:AP$208,PlanningIDEnlaces,$C36,$H$9:$H$208,Lists!$A$16) -> 0 | CE36: 0 | CG36: =IFERROR(INDEX(Lists!$F$5:$F$49,MATCH(Planning!C36,Lists!$G$5:$G$49,0),1),"") ->  | CI36: =IF(C36=0,""," ["&INDEX(Lists!$H$5:$H$49,MATCH(C36,Lists!$G$5:$G$49,0),1)&"]") -> 
A37: I029 | AS37: 0 | AT37: 0.00 | AW37: =SUMIFS(I$9:I$208,PlanningIDEnlaces,$C37,$H$9:$H$208,Lists!$A$16) -> 0 | AX37: 0 | AZ37: =SUMIFS(L$9:L$208,PlanningIDEnlaces,$C37,$H$9:$H$208,Lists!$A$16) -> 0 | BA37: 0 | BC37: =SUMIFS(O$9:O$208,PlanningIDEnlaces,$C37,$H$9:$H$208,Lists!$A$16) -> 0 | BD37: 0 | BF37: =SUMIFS(R$9:R$208,PlanningIDEnlaces,$C37,$H$9:$H$208,Lists!$A$16) -> 0 | BG37: 0 | BI37: =SUMIFS(U$9:U$208,PlanningIDEnlaces,$C37,$H$9:$H$208,Lists!$A$16) -> 0 | BJ37: 0 | BL37: =SUMIFS(X$9:X$208,PlanningIDEnlaces,$C37,$H$9:$H$208,Lists!$A$16) -> 0 | BM37: 0 | BO37: =SUMIFS(AA$9:AA$208,PlanningIDEnlaces,$C37,$H$9:$H$208,Lists!$A$16) -> 0 | BP37: 0 | BR37: =SUMIFS(AD$9:AD$208,PlanningIDEnlaces,$C37,$H$9:$H$208,Lists!$A$16) -> 0 | BS37: 0 | BU37: =SUMIFS(AG$9:AG$208,PlanningIDEnlaces,$C37,$H$9:$H$208,Lists!$A$16) -> 0 | BV37: 0 | BX37: =SUMIFS(AJ$9:AJ$208,PlanningIDEnlaces,$C37,$H$9:$H$208,Lists!$A$16) -> 0 | BY37: 0 | CA37: =SUMIFS(AM$9:AM$208,PlanningIDEnlaces,$C37,$H$9:$H$208,Lists!$A$16) -> 0 | CB37: 0 | CD37: =SUMIFS(AP$9:AP$208,PlanningIDEnlaces,$C37,$H$9:$H$208,Lists!$A$16) -> 0 | CE37: 0 | CG37: =IFERROR(INDEX(Lists!$F$5:$F$49,MATCH(Planning!C37,Lists!$G$5:$G$49,0),1),"") ->  | CI37: =IF(C37=0,""," ["&INDEX(Lists!$H$5:$H$49,MATCH(C37,Lists!$G$5:$G$49,0),1)&"]") -> 
A38: I030 | AS38: 0 | AT38: 0.00 | AW38: =SUMIFS(I$9:I$208,PlanningIDEnlaces,$C38,$H$9:$H$208,Lists!$A$16) -> 0 | AX38: 0 | AZ38: =SUMIFS(L$9:L$208,PlanningIDEnlaces,$C38,$H$9:$H$208,Lists!$A$16) -> 0 | BA38: 0 | BC38: =SUMIFS(O$9:O$208,PlanningIDEnlaces,$C38,$H$9:$H$208,Lists!$A$16) -> 0 | BD38: 0 | BF38: =SUMIFS(R$9:R$208,PlanningIDEnlaces,$C38,$H$9:$H$208,Lists!$A$16) -> 0 | BG38: 0 | BI38: =SUMIFS(U$9:U$208,PlanningIDEnlaces,$C38,$H$9:$H$208,Lists!$A$16) -> 0 | BJ38: 0 | BL38: =SUMIFS(X$9:X$208,PlanningIDEnlaces,$C38,$H$9:$H$208,Lists!$A$16) -> 0 | BM38: 0 | BO38: =SUMIFS(AA$9:AA$208,PlanningIDEnlaces,$C38,$H$9:$H$208,Lists!$A$16) -> 0 | BP38: 0 | BR38: =SUMIFS(AD$9:AD$208,PlanningIDEnlaces,$C38,$H$9:$H$208,Lists!$A$16) -> 0 | BS38: 0 | BU38: =SUMIFS(AG$9:AG$208,PlanningIDEnlaces,$C38,$H$9:$H$208,Lists!$A$16) -> 0 | BV38: 0 | BX38: =SUMIFS(AJ$9:AJ$208,PlanningIDEnlaces,$C38,$H$9:$H$208,Lists!$A$16) -> 0 | BY38: 0 | CA38: =SUMIFS(AM$9:AM$208,PlanningIDEnlaces,$C38,$H$9:$H$208,Lists!$A$16) -> 0 | CB38: 0 | CD38: =SUMIFS(AP$9:AP$208,PlanningIDEnlaces,$C38,$H$9:$H$208,Lists!$A$16) -> 0 | CE38: 0 | CG38: =IFERROR(INDEX(Lists!$F$5:$F$49,MATCH(Planning!C38,Lists!$G$5:$G$49,0),1),"") ->  | CI38: =IF(C38=0,""," ["&INDEX(Lists!$H$5:$H$49,MATCH(C38,Lists!$G$5:$G$49,0),1)&"]") -> 
A39: I031 | AS39: 0 | AT39: 0.00 | AW39: =SUMIFS(I$9:I$208,PlanningIDEnlaces,$C39,$H$9:$H$208,Lists!$A$16) -> 0 | AX39: 0 | AZ39: =SUMIFS(L$9:L$208,PlanningIDEnlaces,$C39,$H$9:$H$208,Lists!$A$16) -> 0 | BA39: 0 | BC39: =SUMIFS(O$9:O$208,PlanningIDEnlaces,$C39,$H$9:$H$208,Lists!$A$16) -> 0 | BD39: 0 | BF39: =SUMIFS(R$9:R$208,PlanningIDEnlaces,$C39,$H$9:$H$208,Lists!$A$16) -> 0 | BG39: 0 | BI39: =SUMIFS(U$9:U$208,PlanningIDEnlaces,$C39,$H$9:$H$208,Lists!$A$16) -> 0 | BJ39: 0 | BL39: =SUMIFS(X$9:X$208,PlanningIDEnlaces,$C39,$H$9:$H$208,Lists!$A$16) -> 0 | BM39: 0 | BO39: =SUMIFS(AA$9:AA$208,PlanningIDEnlaces,$C39,$H$9:$H$208,Lists!$A$16) -> 0 | BP39: 0 | BR39: =SUMIFS(AD$9:AD$208,PlanningIDEnlaces,$C39,$H$9:$H$208,Lists!$A$16) -> 0 | BS39: 0 | BU39: =SUMIFS(AG$9:AG$208,PlanningIDEnlaces,$C39,$H$9:$H$208,Lists!$A$16) -> 0 | BV39: 0 | BX39: =SUMIFS(AJ$9:AJ$208,PlanningIDEnlaces,$C39,$H$9:$H$208,Lists!$A$16) -> 0 | BY39: 0 | CA39: =SUMIFS(AM$9:AM$208,PlanningIDEnlaces,$C39,$H$9:$H$208,Lists!$A$16) -> 0 | CB39: 0 | CD39: =SUMIFS(AP$9:AP$208,PlanningIDEnlaces,$C39,$H$9:$H$208,Lists!$A$16) -> 0 | CE39: 0 | CG39: =IFERROR(INDEX(Lists!$F$5:$F$49,MATCH(Planning!C39,Lists!$G$5:$G$49,0),1),"") ->  | CI39: =IF(C39=0,""," ["&INDEX(Lists!$H$5:$H$49,MATCH(C39,Lists!$G$5:$G$49,0),1)&"]") -> 
A40: I032 | AS40: 0 | AT40: 0.00 | AW40: =SUMIFS(I$9:I$208,PlanningIDEnlaces,$C40,$H$9:$H$208,Lists!$A$16) -> 0 | AX40: 0 | AZ40: =SUMIFS(L$9:L$208,PlanningIDEnlaces,$C40,$H$9:$H$208,Lists!$A$16) -> 0 | BA40: 0 | BC40: =SUMIFS(O$9:O$208,PlanningIDEnlaces,$C40,$H$9:$H$208,Lists!$A$16) -> 0 | BD40: 0 | BF40: =SUMIFS(R$9:R$208,PlanningIDEnlaces,$C40,$H$9:$H$208,Lists!$A$16) -> 0 | BG40: 0 | BI40: =SUMIFS(U$9:U$208,PlanningIDEnlaces,$C40,$H$9:$H$208,Lists!$A$16) -> 0 | BJ40: 0 | BL40: =SUMIFS(X$9:X$208,PlanningIDEnlaces,$C40,$H$9:$H$208,Lists!$A$16) -> 0 | BM40: 0 | BO40: =SUMIFS(AA$9:AA$208,PlanningIDEnlaces,$C40,$H$9:$H$208,Lists!$A$16) -> 0 | BP40: 0 | BR40: =SUMIFS(AD$9:AD$208,PlanningIDEnlaces,$C40,$H$9:$H$208,Lists!$A$16) -> 0 | BS40: 0 | BU40: =SUMIFS(AG$9:AG$208,PlanningIDEnlaces,$C40,$H$9:$H$208,Lists!$A$16) -> 0 | BV40: 0 | BX40: =SUMIFS(AJ$9:AJ$208,PlanningIDEnlaces,$C40,$H$9:$H$208,Lists!$A$16) -> 0 | BY40: 0 | CA40: =SUMIFS(AM$9:AM$208,PlanningIDEnlaces,$C40,$H$9:$H$208,Lists!$A$16) -> 0 | CB40: 0 | CD40: =SUMIFS(AP$9:AP$208,PlanningIDEnlaces,$C40,$H$9:$H$208,Lists!$A$16) -> 0 | CE40: 0 | CG40: =IFERROR(INDEX(Lists!$F$5:$F$49,MATCH(Planning!C40,Lists!$G$5:$G$49,0),1),"") ->  | CI40: =IF(C40=0,""," ["&INDEX(Lists!$H$5:$H$49,MATCH(C40,Lists!$G$5:$G$49,0),1)&"]") -> 
A41: I033 | AS41: =I41+L41+O41+R41+U41+X41+AA41+AD41+AG41+AJ41+AM41+AP41 -> 0 | AT41: =J41+M41+P41+S41+V41+Y41+AB41+AE41+AH41+AK41+AN41+AQ41 -> 0.00 | AW41: =SUMIFS(I$9:I$208,PlanningIDEnlaces,$C41,$H$9:$H$208,Lists!$A$16) -> 0 | AX41: =SUMIFS(J$9:J$208,PlanningIDEnlaces,$C41,$H$9:$H$208,"<>") -> 0 | AZ41: =SUMIFS(L$9:L$208,PlanningIDEnlaces,$C41,$H$9:$H$208,Lists!$A$16) -> 0 | BA41: =SUMIFS(M$9:M$208,PlanningIDEnlaces,$C41,$H$9:$H$208,"<>") -> 0 | BC41: =SUMIFS(O$9:O$208,PlanningIDEnlaces,$C41,$H$9:$H$208,Lists!$A$16) -> 0 | BD41: =SUMIFS(P$9:P$208,PlanningIDEnlaces,$C41,$H$9:$H$208,"<>") -> 0 | BF41: =SUMIFS(R$9:R$208,PlanningIDEnlaces,$C41,$H$9:$H$208,Lists!$A$16) -> 0 | BG41: =SUMIFS(S$9:S$208,PlanningIDEnlaces,$C41,$H$9:$H$208,"<>") -> 0 | BI41: =SUMIFS(U$9:U$208,PlanningIDEnlaces,$C41,$H$9:$H$208,Lists!$A$16) -> 0 | BJ41: =SUMIFS(V$9:V$208,PlanningIDEnlaces,$C41,$H$9:$H$208,"<>") -> 0 | BL41: =SUMIFS(X$9:X$208,PlanningIDEnlaces,$C41,$H$9:$H$208,Lists!$A$16) -> 0 | BM41: =SUMIFS(Y$9:Y$208,PlanningIDEnlaces,$C41,$H$9:$H$208,"<>") -> 0 | BO41: =SUMIFS(AA$9:AA$208,PlanningIDEnlaces,$C41,$H$9:$H$208,Lists!$A$16) -> 0 | BP41: =SUMIFS(AB$9:AB$208,PlanningIDEnlaces,$C41,$H$9:$H$208,"<>") -> 0 | BR41: =SUMIFS(AD$9:AD$208,PlanningIDEnlaces,$C41,$H$9:$H$208,Lists!$A$16) -> 0 | BS41: =SUMIFS(AE$9:AE$208,PlanningIDEnlaces,$C41,$H$9:$H$208,"<>") -> 0 | BU41: =SUMIFS(AG$9:AG$208,PlanningIDEnlaces,$C41,$H$9:$H$208,Lists!$A$16) -> 0 | BV41: =SUMIFS(AH$9:AH$208,PlanningIDEnlaces,$C41,$H$9:$H$208,"<>") -> 0 | BX41: =SUMIFS(AJ$9:AJ$208,PlanningIDEnlaces,$C41,$H$9:$H$208,Lists!$A$16) -> 0 | BY41: =SUMIFS(AK$9:AK$208,PlanningIDEnlaces,$C41,$H$9:$H$208,"<>") -> 0 | CA41: =SUMIFS(AM$9:AM$208,PlanningIDEnlaces,$C41,$H$9:$H$208,Lists!$A$16) -> 0 | CB41: =SUMIFS(AN$9:AN$208,PlanningIDEnlaces,$C41,$H$9:$H$208,"<>") -> 0 | CD41: =SUMIFS(AP$9:AP$208,PlanningIDEnlaces,$C41,$H$9:$H$208,Lists!$A$16) -> 0 | CE41: =SUMIFS(AQ$9:AQ$208,PlanningIDEnlaces,$C41,$H$9:$H$208,"<>") -> 0 | CG41: =IFERROR(INDEX(Lists!$F$5:$F$49,MATCH(Planning!C41,Lists!$G$5:$G$49,0),1),"") ->  | CI41: =IF(C41=0,""," ["&INDEX(Lists!$H$5:$H$49,MATCH(C41,Lists!$G$5:$G$49,0),1)&"]") -> 
A42: I034 | AS42: 0 | AT42: 0.00 | AW42: =SUMIFS(I$9:I$208,PlanningIDEnlaces,$C42,$H$9:$H$208,Lists!$A$16) -> 0 | AX42: 0 | AZ42: =SUMIFS(L$9:L$208,PlanningIDEnlaces,$C42,$H$9:$H$208,Lists!$A$16) -> 0 | BA42: 0 | BC42: =SUMIFS(O$9:O$208,PlanningIDEnlaces,$C42,$H$9:$H$208,Lists!$A$16) -> 0 | BD42: 0 | BF42: =SUMIFS(R$9:R$208,PlanningIDEnlaces,$C42,$H$9:$H$208,Lists!$A$16) -> 0 | BG42: 0 | BI42: =SUMIFS(U$9:U$208,PlanningIDEnlaces,$C42,$H$9:$H$208,Lists!$A$16) -> 0 | BJ42: 0 | BL42: =SUMIFS(X$9:X$208,PlanningIDEnlaces,$C42,$H$9:$H$208,Lists!$A$16) -> 0 | BM42: 0 | BO42: =SUMIFS(AA$9:AA$208,PlanningIDEnlaces,$C42,$H$9:$H$208,Lists!$A$16) -> 0 | BP42: 0 | BR42: =SUMIFS(AD$9:AD$208,PlanningIDEnlaces,$C42,$H$9:$H$208,Lists!$A$16) -> 0 | BS42: 0 | BU42: =SUMIFS(AG$9:AG$208,PlanningIDEnlaces,$C42,$H$9:$H$208,Lists!$A$16) -> 0 | BV42: 0 | BX42: =SUMIFS(AJ$9:AJ$208,PlanningIDEnlaces,$C42,$H$9:$H$208,Lists!$A$16) -> 0 | BY42: 0 | CA42: =SUMIFS(AM$9:AM$208,PlanningIDEnlaces,$C42,$H$9:$H$208,Lists!$A$16) -> 0 | CB42: 0 | CD42: =SUMIFS(AP$9:AP$208,PlanningIDEnlaces,$C42,$H$9:$H$208,Lists!$A$16) -> 0 | CE42: 0 | CG42: =IFERROR(INDEX(Lists!$F$5:$F$49,MATCH(Planning!C42,Lists!$G$5:$G$49,0),1),"") ->  | CI42: =IF(C42=0,""," ["&INDEX(Lists!$H$5:$H$49,MATCH(C42,Lists!$G$5:$G$49,0),1)&"]") -> 
A43: I035 | AS43: 0 | AT43: 0.00 | AW43: =SUMIFS(I$9:I$208,PlanningIDEnlaces,$C43,$H$9:$H$208,Lists!$A$16) -> 0 | AX43: 0 | AZ43: =SUMIFS(L$9:L$208,PlanningIDEnlaces,$C43,$H$9:$H$208,Lists!$A$16) -> 0 | BA43: 0 | BC43: =SUMIFS(O$9:O$208,PlanningIDEnlaces,$C43,$H$9:$H$208,Lists!$A$16) -> 0 | BD43: 0 | BF43: =SUMIFS(R$9:R$208,PlanningIDEnlaces,$C43,$H$9:$H$208,Lists!$A$16) -> 0 | BG43: 0 | BI43: =SUMIFS(U$9:U$208,PlanningIDEnlaces,$C43,$H$9:$H$208,Lists!$A$16) -> 0 | BJ43: 0 | BL43: =SUMIFS(X$9:X$208,PlanningIDEnlaces,$C43,$H$9:$H$208,Lists!$A$16) -> 0 | BM43: 0 | BO43: =SUMIFS(AA$9:AA$208,PlanningIDEnlaces,$C43,$H$9:$H$208,Lists!$A$16) -> 0 | BP43: 0 | BR43: =SUMIFS(AD$9:AD$208,PlanningIDEnlaces,$C43,$H$9:$H$208,Lists!$A$16) -> 0 | BS43: 0 | BU43: =SUMIFS(AG$9:AG$208,PlanningIDEnlaces,$C43,$H$9:$H$208,Lists!$A$16) -> 0 | BV43: 0 | BX43: =SUMIFS(AJ$9:AJ$208,PlanningIDEnlaces,$C43,$H$9:$H$208,Lists!$A$16) -> 0 | BY43: 0 | CA43: =SUMIFS(AM$9:AM$208,PlanningIDEnlaces,$C43,$H$9:$H$208,Lists!$A$16) -> 0 | CB43: 0 | CD43: =SUMIFS(AP$9:AP$208,PlanningIDEnlaces,$C43,$H$9:$H$208,Lists!$A$16) -> 0 | CE43: 0 | CG43: =IFERROR(INDEX(Lists!$F$5:$F$49,MATCH(Planning!C43,Lists!$G$5:$G$49,0),1),"") ->  | CI43: =IF(C43=0,""," ["&INDEX(Lists!$H$5:$H$49,MATCH(C43,Lists!$G$5:$G$49,0),1)&"]") -> 
A44: I036 | AS44: 0 | AT44: 0.00 | AW44: =SUMIFS(I$9:I$208,PlanningIDEnlaces,$C44,$H$9:$H$208,Lists!$A$16) -> 0 | AX44: 0 | AZ44: =SUMIFS(L$9:L$208,PlanningIDEnlaces,$C44,$H$9:$H$208,Lists!$A$16) -> 0 | BA44: 0 | BC44: =SUMIFS(O$9:O$208,PlanningIDEnlaces,$C44,$H$9:$H$208,Lists!$A$16) -> 0 | BD44: 0 | BF44: =SUMIFS(R$9:R$208,PlanningIDEnlaces,$C44,$H$9:$H$208,Lists!$A$16) -> 0 | BG44: 0 | BI44: =SUMIFS(U$9:U$208,PlanningIDEnlaces,$C44,$H$9:$H$208,Lists!$A$16) -> 0 | BJ44: 0 | BL44: =SUMIFS(X$9:X$208,PlanningIDEnlaces,$C44,$H$9:$H$208,Lists!$A$16) -> 0 | BM44: 0 | BO44: =SUMIFS(AA$9:AA$208,PlanningIDEnlaces,$C44,$H$9:$H$208,Lists!$A$16) -> 0 | BP44: 0 | BR44: =SUMIFS(AD$9:AD$208,PlanningIDEnlaces,$C44,$H$9:$H$208,Lists!$A$16) -> 0 | BS44: 0 | BU44: =SUMIFS(AG$9:AG$208,PlanningIDEnlaces,$C44,$H$9:$H$208,Lists!$A$16) -> 0 | BV44: 0 | BX44: =SUMIFS(AJ$9:AJ$208,PlanningIDEnlaces,$C44,$H$9:$H$208,Lists!$A$16) -> 0 | BY44: 0 | CA44: =SUMIFS(AM$9:AM$208,PlanningIDEnlaces,$C44,$H$9:$H$208,Lists!$A$16) -> 0 | CB44: 0 | CD44: =SUMIFS(AP$9:AP$208,PlanningIDEnlaces,$C44,$H$9:$H$208,Lists!$A$16) -> 0 | CE44: 0 | CG44: =IFERROR(INDEX(Lists!$F$5:$F$49,MATCH(Planning!C44,Lists!$G$5:$G$49,0),1),"") ->  | CI44: =IF(C44=0,""," ["&INDEX(Lists!$H$5:$H$49,MATCH(C44,Lists!$G$5:$G$49,0),1)&"]") -> 
A45: I037 | AS45: 0 | AT45: 0.00 | AW45: =SUMIFS(I$9:I$208,PlanningIDEnlaces,$C45,$H$9:$H$208,Lists!$A$16) -> 0 | AX45: 0 | AZ45: =SUMIFS(L$9:L$208,PlanningIDEnlaces,$C45,$H$9:$H$208,Lists!$A$16) -> 0 | BA45: 0 | BC45: =SUMIFS(O$9:O$208,PlanningIDEnlaces,$C45,$H$9:$H$208,Lists!$A$16) -> 0 | BD45: 0 | BF45: =SUMIFS(R$9:R$208,PlanningIDEnlaces,$C45,$H$9:$H$208,Lists!$A$16) -> 0 | BG45: 0 | BI45: =SUMIFS(U$9:U$208,PlanningIDEnlaces,$C45,$H$9:$H$208,Lists!$A$16) -> 0 | BJ45: 0 | BL45: =SUMIFS(X$9:X$208,PlanningIDEnlaces,$C45,$H$9:$H$208,Lists!$A$16) -> 0 | BM45: 0 | BO45: =SUMIFS(AA$9:AA$208,PlanningIDEnlaces,$C45,$H$9:$H$208,Lists!$A$16) -> 0 | BP45: 0 | BR45: =SUMIFS(AD$9:AD$208,PlanningIDEnlaces,$C45,$H$9:$H$208,Lists!$A$16) -> 0 | BS45: 0 | BU45: =SUMIFS(AG$9:AG$208,PlanningIDEnlaces,$C45,$H$9:$H$208,Lists!$A$16) -> 0 | BV45: 0 | BX45: =SUMIFS(AJ$9:AJ$208,PlanningIDEnlaces,$C45,$H$9:$H$208,Lists!$A$16) -> 0 | BY45: 0 | CA45: =SUMIFS(AM$9:AM$208,PlanningIDEnlaces,$C45,$H$9:$H$208,Lists!$A$16) -> 0 | CB45: 0 | CD45: =SUMIFS(AP$9:AP$208,PlanningIDEnlaces,$C45,$H$9:$H$208,Lists!$A$16) -> 0 | CE45: 0 | CG45: =IFERROR(INDEX(Lists!$F$5:$F$49,MATCH(Planning!C45,Lists!$G$5:$G$49,0),1),"") ->  | CI45: =IF(C45=0,""," ["&INDEX(Lists!$H$5:$H$49,MATCH(C45,Lists!$G$5:$G$49,0),1)&"]") -> 
A46: I038 | AS46: 0 | AT46: 0.00 | AW46: =SUMIFS(I$9:I$208,PlanningIDEnlaces,$C46,$H$9:$H$208,Lists!$A$16) -> 0 | AX46: 0 | AZ46: =SUMIFS(L$9:L$208,PlanningIDEnlaces,$C46,$H$9:$H$208,Lists!$A$16) -> 0 | BA46: 0 | BC46: =SUMIFS(O$9:O$208,PlanningIDEnlaces,$C46,$H$9:$H$208,Lists!$A$16) -> 0 | BD46: 0 | BF46: =SUMIFS(R$9:R$208,PlanningIDEnlaces,$C46,$H$9:$H$208,Lists!$A$16) -> 0 | BG46: 0 | BI46: =SUMIFS(U$9:U$208,PlanningIDEnlaces,$C46,$H$9:$H$208,Lists!$A$16) -> 0 | BJ46: 0 | BL46: =SUMIFS(X$9:X$208,PlanningIDEnlaces,$C46,$H$9:$H$208,Lists!$A$16) -> 0 | BM46: 0 | BO46: =SUMIFS(AA$9:AA$208,PlanningIDEnlaces,$C46,$H$9:$H$208,Lists!$A$16) -> 0 | BP46: 0 | BR46: =SUMIFS(AD$9:AD$208,PlanningIDEnlaces,$C46,$H$9:$H$208,Lists!$A$16) -> 0 | BS46: 0 | BU46: =SUMIFS(AG$9:AG$208,PlanningIDEnlaces,$C46,$H$9:$H$208,Lists!$A$16) -> 0 | BV46: 0 | BX46: =SUMIFS(AJ$9:AJ$208,PlanningIDEnlaces,$C46,$H$9:$H$208,Lists!$A$16) -> 0 | BY46: 0 | CA46: =SUMIFS(AM$9:AM$208,PlanningIDEnlaces,$C46,$H$9:$H$208,Lists!$A$16) -> 0 | CB46: 0 | CD46: =SUMIFS(AP$9:AP$208,PlanningIDEnlaces,$C46,$H$9:$H$208,Lists!$A$16) -> 0 | CE46: 0 | CG46: =IFERROR(INDEX(Lists!$F$5:$F$49,MATCH(Planning!C46,Lists!$G$5:$G$49,0),1),"") ->  | CI46: =IF(C46=0,""," ["&INDEX(Lists!$H$5:$H$49,MATCH(C46,Lists!$G$5:$G$49,0),1)&"]") -> 
A47: I039 | AS47: 0 | AT47: 0.00 | AW47: =SUMIFS(I$9:I$208,PlanningIDEnlaces,$C47,$H$9:$H$208,Lists!$A$16) -> 0 | AX47: 0 | AZ47: =SUMIFS(L$9:L$208,PlanningIDEnlaces,$C47,$H$9:$H$208,Lists!$A$16) -> 0 | BA47: 0 | BC47: =SUMIFS(O$9:O$208,PlanningIDEnlaces,$C47,$H$9:$H$208,Lists!$A$16) -> 0 | BD47: 0 | BF47: =SUMIFS(R$9:R$208,PlanningIDEnlaces,$C47,$H$9:$H$208,Lists!$A$16) -> 0 | BG47: 0 | BI47: =SUMIFS(U$9:U$208,PlanningIDEnlaces,$C47,$H$9:$H$208,Lists!$A$16) -> 0 | BJ47: 0 | BL47: =SUMIFS(X$9:X$208,PlanningIDEnlaces,$C47,$H$9:$H$208,Lists!$A$16) -> 0 | BM47: 0 | BO47: =SUMIFS(AA$9:AA$208,PlanningIDEnlaces,$C47,$H$9:$H$208,Lists!$A$16) -> 0 | BP47: 0 | BR47: =SUMIFS(AD$9:AD$208,PlanningIDEnlaces,$C47,$H$9:$H$208,Lists!$A$16) -> 0 | BS47: 0 | BU47: =SUMIFS(AG$9:AG$208,PlanningIDEnlaces,$C47,$H$9:$H$208,Lists!$A$16) -> 0 | BV47: 0 | BX47: =SUMIFS(AJ$9:AJ$208,PlanningIDEnlaces,$C47,$H$9:$H$208,Lists!$A$16) -> 0 | BY47: 0 | CA47: =SUMIFS(AM$9:AM$208,PlanningIDEnlaces,$C47,$H$9:$H$208,Lists!$A$16) -> 0 | CB47: 0 | CD47: =SUMIFS(AP$9:AP$208,PlanningIDEnlaces,$C47,$H$9:$H$208,Lists!$A$16) -> 0 | CE47: 0 | CG47: =IFERROR(INDEX(Lists!$F$5:$F$49,MATCH(Planning!C47,Lists!$G$5:$G$49,0),1),"") ->  | CI47: =IF(C47=0,""," ["&INDEX(Lists!$H$5:$H$49,MATCH(C47,Lists!$G$5:$G$49,0),1)&"]") -> 
A48: I040 | AS48: 0 | AT48: 0.00 | AW48: =SUMIFS(I$9:I$208,PlanningIDEnlaces,$C48,$H$9:$H$208,Lists!$A$16) -> 0 | AX48: 0 | AZ48: =SUMIFS(L$9:L$208,PlanningIDEnlaces,$C48,$H$9:$H$208,Lists!$A$16) -> 0 | BA48: 0 | BC48: =SUMIFS(O$9:O$208,PlanningIDEnlaces,$C48,$H$9:$H$208,Lists!$A$16) -> 0 | BD48: 0 | BF48: =SUMIFS(R$9:R$208,PlanningIDEnlaces,$C48,$H$9:$H$208,Lists!$A$16) -> 0 | BG48: 0 | BI48: =SUMIFS(U$9:U$208,PlanningIDEnlaces,$C48,$H$9:$H$208,Lists!$A$16) -> 0 | BJ48: 0 | BL48: =SUMIFS(X$9:X$208,PlanningIDEnlaces,$C48,$H$9:$H$208,Lists!$A$16) -> 0 | BM48: 0 | BO48: =SUMIFS(AA$9:AA$208,PlanningIDEnlaces,$C48,$H$9:$H$208,Lists!$A$16) -> 0 | BP48: 0 | BR48: =SUMIFS(AD$9:AD$208,PlanningIDEnlaces,$C48,$H$9:$H$208,Lists!$A$16) -> 0 | BS48: 0 | BU48: =SUMIFS(AG$9:AG$208,PlanningIDEnlaces,$C48,$H$9:$H$208,Lists!$A$16) -> 0 | BV48: 0 | BX48: =SUMIFS(AJ$9:AJ$208,PlanningIDEnlaces,$C48,$H$9:$H$208,Lists!$A$16) -> 0 | BY48: 0 | CA48: =SUMIFS(AM$9:AM$208,PlanningIDEnlaces,$C48,$H$9:$H$208,Lists!$A$16) -> 0 | CB48: 0 | CD48: =SUMIFS(AP$9:AP$208,PlanningIDEnlaces,$C48,$H$9:$H$208,Lists!$A$16) -> 0 | CE48: 0 | CG48: =IFERROR(INDEX(Lists!$F$5:$F$49,MATCH(Planning!C48,Lists!$G$5:$G$49,0),1),"") ->  | CI48: =IF(C48=0,""," ["&INDEX(Lists!$H$5:$H$49,MATCH(C48,Lists!$G$5:$G$49,0),1)&"]") -> 
A49: I041 | AS49: 0 | AT49: 0.00 | AW49: =SUMIFS(I$9:I$208,PlanningIDEnlaces,$C49,$H$9:$H$208,Lists!$A$16) -> 0 | AX49: 0 | AZ49: =SUMIFS(L$9:L$208,PlanningIDEnlaces,$C49,$H$9:$H$208,Lists!$A$16) -> 0 | BA49: 0 | BC49: =SUMIFS(O$9:O$208,PlanningIDEnlaces,$C49,$H$9:$H$208,Lists!$A$16) -> 0 | BD49: 0 | BF49: =SUMIFS(R$9:R$208,PlanningIDEnlaces,$C49,$H$9:$H$208,Lists!$A$16) -> 0 | BG49: 0 | BI49: =SUMIFS(U$9:U$208,PlanningIDEnlaces,$C49,$H$9:$H$208,Lists!$A$16) -> 0 | BJ49: 0 | BL49: =SUMIFS(X$9:X$208,PlanningIDEnlaces,$C49,$H$9:$H$208,Lists!$A$16) -> 0 | BM49: 0 | BO49: =SUMIFS(AA$9:AA$208,PlanningIDEnlaces,$C49,$H$9:$H$208,Lists!$A$16) -> 0 | BP49: 0 | BR49: =SUMIFS(AD$9:AD$208,PlanningIDEnlaces,$C49,$H$9:$H$208,Lists!$A$16) -> 0 | BS49: 0 | BU49: =SUMIFS(AG$9:AG$208,PlanningIDEnlaces,$C49,$H$9:$H$208,Lists!$A$16) -> 0 | BV49: 0 | BX49: =SUMIFS(AJ$9:AJ$208,PlanningIDEnlaces,$C49,$H$9:$H$208,Lists!$A$16) -> 0 | BY49: 0 | CA49: =SUMIFS(AM$9:AM$208,PlanningIDEnlaces,$C49,$H$9:$H$208,Lists!$A$16) -> 0 | CB49: 0 | CD49: =SUMIFS(AP$9:AP$208,PlanningIDEnlaces,$C49,$H$9:$H$208,Lists!$A$16) -> 0 | CE49: 0 | CG49: =IFERROR(INDEX(Lists!$F$5:$F$49,MATCH(Planning!C49,Lists!$G$5:$G$49,0),1),"") ->  | CI49: =IF(C49=0,""," ["&INDEX(Lists!$H$5:$H$49,MATCH(C49,Lists!$G$5:$G$49,0),1)&"]") -> 
A50: I042 | AS50: 0 | AT50: 0.00 | AW50: =SUMIFS(I$9:I$208,PlanningIDEnlaces,$C50,$H$9:$H$208,Lists!$A$16) -> 0 | AX50: 0 | AZ50: =SUMIFS(L$9:L$208,PlanningIDEnlaces,$C50,$H$9:$H$208,Lists!$A$16) -> 0 | BA50: 0 | BC50: =SUMIFS(O$9:O$208,PlanningIDEnlaces,$C50,$H$9:$H$208,Lists!$A$16) -> 0 | BD50: 0 | BF50: =SUMIFS(R$9:R$208,PlanningIDEnlaces,$C50,$H$9:$H$208,Lists!$A$16) -> 0 | BG50: 0 | BI50: =SUMIFS(U$9:U$208,PlanningIDEnlaces,$C50,$H$9:$H$208,Lists!$A$16) -> 0 | BJ50: 0 | BL50: =SUMIFS(X$9:X$208,PlanningIDEnlaces,$C50,$H$9:$H$208,Lists!$A$16) -> 0 | BM50: 0 | BO50: =SUMIFS(AA$9:AA$208,PlanningIDEnlaces,$C50,$H$9:$H$208,Lists!$A$16) -> 0 | BP50: 0 | BR50: =SUMIFS(AD$9:AD$208,PlanningIDEnlaces,$C50,$H$9:$H$208,Lists!$A$16) -> 0 | BS50: 0 | BU50: =SUMIFS(AG$9:AG$208,PlanningIDEnlaces,$C50,$H$9:$H$208,Lists!$A$16) -> 0 | BV50: 0 | BX50: =SUMIFS(AJ$9:AJ$208,PlanningIDEnlaces,$C50,$H$9:$H$208,Lists!$A$16) -> 0 | BY50: 0 | CA50: =SUMIFS(AM$9:AM$208,PlanningIDEnlaces,$C50,$H$9:$H$208,Lists!$A$16) -> 0 | CB50: 0 | CD50: =SUMIFS(AP$9:AP$208,PlanningIDEnlaces,$C50,$H$9:$H$208,Lists!$A$16) -> 0 | CE50: 0 | CG50: =IFERROR(INDEX(Lists!$F$5:$F$49,MATCH(Planning!C50,Lists!$G$5:$G$49,0),1),"") ->  | CI50: =IF(C50=0,""," ["&INDEX(Lists!$H$5:$H$49,MATCH(C50,Lists!$G$5:$G$49,0),1)&"]") -> 
A51: I043 | AS51: 0 | AT51: 0.00 | AW51: =SUMIFS(I$9:I$208,PlanningIDEnlaces,$C51,$H$9:$H$208,Lists!$A$16) -> 0 | AX51: 0 | AZ51: =SUMIFS(L$9:L$208,PlanningIDEnlaces,$C51,$H$9:$H$208,Lists!$A$16) -> 0 | BA51: 0 | BC51: =SUMIFS(O$9:O$208,PlanningIDEnlaces,$C51,$H$9:$H$208,Lists!$A$16) -> 0 | BD51: 0 | BF51: =SUMIFS(R$9:R$208,PlanningIDEnlaces,$C51,$H$9:$H$208,Lists!$A$16) -> 0 | BG51: 0 | BI51: =SUMIFS(U$9:U$208,PlanningIDEnlaces,$C51,$H$9:$H$208,Lists!$A$16) -> 0 | BJ51: 0 | BL51: =SUMIFS(X$9:X$208,PlanningIDEnlaces,$C51,$H$9:$H$208,Lists!$A$16) -> 0 | BM51: 0 | BO51: =SUMIFS(AA$9:AA$208,PlanningIDEnlaces,$C51,$H$9:$H$208,Lists!$A$16) -> 0 | BP51: 0 | BR51: =SUMIFS(AD$9:AD$208,PlanningIDEnlaces,$C51,$H$9:$H$208,Lists!$A$16) -> 0 | BS51: 0 | BU51: =SUMIFS(AG$9:AG$208,PlanningIDEnlaces,$C51,$H$9:$H$208,Lists!$A$16) -> 0 | BV51: 0 | BX51: =SUMIFS(AJ$9:AJ$208,PlanningIDEnlaces,$C51,$H$9:$H$208,Lists!$A$16) -> 0 | BY51: 0 | CA51: =SUMIFS(AM$9:AM$208,PlanningIDEnlaces,$C51,$H$9:$H$208,Lists!$A$16) -> 0 | CB51: 0 | CD51: =SUMIFS(AP$9:AP$208,PlanningIDEnlaces,$C51,$H$9:$H$208,Lists!$A$16) -> 0 | CE51: 0 | CG51: =IFERROR(INDEX(Lists!$F$5:$F$49,MATCH(Planning!C51,Lists!$G$5:$G$49,0),1),"") ->  | CI51: =IF(C51=0,""," ["&INDEX(Lists!$H$5:$H$49,MATCH(C51,Lists!$G$5:$G$49,0),1)&"]") -> 
A52: I044 | AS52: 0 | AT52: 0.00 | AW52: =SUMIFS(I$9:I$208,PlanningIDEnlaces,$C52,$H$9:$H$208,Lists!$A$16) -> 0 | AX52: 0 | AZ52: =SUMIFS(L$9:L$208,PlanningIDEnlaces,$C52,$H$9:$H$208,Lists!$A$16) -> 0 | BA52: 0 | BC52: =SUMIFS(O$9:O$208,PlanningIDEnlaces,$C52,$H$9:$H$208,Lists!$A$16) -> 0 | BD52: 0 | BF52: =SUMIFS(R$9:R$208,PlanningIDEnlaces,$C52,$H$9:$H$208,Lists!$A$16) -> 0 | BG52: 0 | BI52: =SUMIFS(U$9:U$208,PlanningIDEnlaces,$C52,$H$9:$H$208,Lists!$A$16) -> 0 | BJ52: 0 | BL52: =SUMIFS(X$9:X$208,PlanningIDEnlaces,$C52,$H$9:$H$208,Lists!$A$16) -> 0 | BM52: 0 | BO52: =SUMIFS(AA$9:AA$208,PlanningIDEnlaces,$C52,$H$9:$H$208,Lists!$A$16) -> 0 | BP52: 0 | BR52: =SUMIFS(AD$9:AD$208,PlanningIDEnlaces,$C52,$H$9:$H$208,Lists!$A$16) -> 0 | BS52: 0 | BU52: =SUMIFS(AG$9:AG$208,PlanningIDEnlaces,$C52,$H$9:$H$208,Lists!$A$16) -> 0 | BV52: 0 | BX52: =SUMIFS(AJ$9:AJ$208,PlanningIDEnlaces,$C52,$H$9:$H$208,Lists!$A$16) -> 0 | BY52: 0 | CA52: =SUMIFS(AM$9:AM$208,PlanningIDEnlaces,$C52,$H$9:$H$208,Lists!$A$16) -> 0 | CB52: 0 | CD52: =SUMIFS(AP$9:AP$208,PlanningIDEnlaces,$C52,$H$9:$H$208,Lists!$A$16) -> 0 | CE52: 0 | CG52: =IFERROR(INDEX(Lists!$F$5:$F$49,MATCH(Planning!C52,Lists!$G$5:$G$49,0),1),"") ->  | CI52: =IF(C52=0,""," ["&INDEX(Lists!$H$5:$H$49,MATCH(C52,Lists!$G$5:$G$49,0),1)&"]") -> 
A53: I045 | AS53: 0 | AT53: 0.00 | AW53: =SUMIFS(I$9:I$208,PlanningIDEnlaces,$C53,$H$9:$H$208,Lists!$A$16) -> 0 | AX53: 0 | AZ53: =SUMIFS(L$9:L$208,PlanningIDEnlaces,$C53,$H$9:$H$208,Lists!$A$16) -> 0 | BA53: 0 | BC53: =SUMIFS(O$9:O$208,PlanningIDEnlaces,$C53,$H$9:$H$208,Lists!$A$16) -> 0 | BD53: 0 | BF53: =SUMIFS(R$9:R$208,PlanningIDEnlaces,$C53,$H$9:$H$208,Lists!$A$16) -> 0 | BG53: 0 | BI53: =SUMIFS(U$9:U$208,PlanningIDEnlaces,$C53,$H$9:$H$208,Lists!$A$16) -> 0 | BJ53: 0 | BL53: =SUMIFS(X$9:X$208,PlanningIDEnlaces,$C53,$H$9:$H$208,Lists!$A$16) -> 0 | BM53: 0 | BO53: =SUMIFS(AA$9:AA$208,PlanningIDEnlaces,$C53,$H$9:$H$208,Lists!$A$16) -> 0 | BP53: 0 | BR53: =SUMIFS(AD$9:AD$208,PlanningIDEnlaces,$C53,$H$9:$H$208,Lists!$A$16) -> 0 | BS53: 0 | BU53: =SUMIFS(AG$9:AG$208,PlanningIDEnlaces,$C53,$H$9:$H$208,Lists!$A$16) -> 0 | BV53: 0 | BX53: =SUMIFS(AJ$9:AJ$208,PlanningIDEnlaces,$C53,$H$9:$H$208,Lists!$A$16) -> 0 | BY53: 0 | CA53: =SUMIFS(AM$9:AM$208,PlanningIDEnlaces,$C53,$H$9:$H$208,Lists!$A$16) -> 0 | CB53: 0 | CD53: =SUMIFS(AP$9:AP$208,PlanningIDEnlaces,$C53,$H$9:$H$208,Lists!$A$16) -> 0 | CE53: 0 | CG53: =IFERROR(INDEX(Lists!$F$5:$F$49,MATCH(Planning!C53,Lists!$G$5:$G$49,0),1),"") ->  | CI53: =IF(C53=0,""," ["&INDEX(Lists!$H$5:$H$49,MATCH(C53,Lists!$G$5:$G$49,0),1)&"]") -> 
A54: I046 | AS54: 0 | AT54: 0.00 | AW54: =SUMIFS(I$9:I$208,PlanningIDEnlaces,$C54,$H$9:$H$208,Lists!$A$16) -> 0 | AX54: 0 | AZ54: =SUMIFS(L$9:L$208,PlanningIDEnlaces,$C54,$H$9:$H$208,Lists!$A$16) -> 0 | BA54: 0 | BC54: =SUMIFS(O$9:O$208,PlanningIDEnlaces,$C54,$H$9:$H$208,Lists!$A$16) -> 0 | BD54: 0 | BF54: =SUMIFS(R$9:R$208,PlanningIDEnlaces,$C54,$H$9:$H$208,Lists!$A$16) -> 0 | BG54: 0 | BI54: =SUMIFS(U$9:U$208,PlanningIDEnlaces,$C54,$H$9:$H$208,Lists!$A$16) -> 0 | BJ54: 0 | BL54: =SUMIFS(X$9:X$208,PlanningIDEnlaces,$C54,$H$9:$H$208,Lists!$A$16) -> 0 | BM54: 0 | BO54: =SUMIFS(AA$9:AA$208,PlanningIDEnlaces,$C54,$H$9:$H$208,Lists!$A$16) -> 0 | BP54: 0 | BR54: =SUMIFS(AD$9:AD$208,PlanningIDEnlaces,$C54,$H$9:$H$208,Lists!$A$16) -> 0 | BS54: 0 | BU54: =SUMIFS(AG$9:AG$208,PlanningIDEnlaces,$C54,$H$9:$H$208,Lists!$A$16) -> 0 | BV54: 0 | BX54: =SUMIFS(AJ$9:AJ$208,PlanningIDEnlaces,$C54,$H$9:$H$208,Lists!$A$16) -> 0 | BY54: 0 | CA54: =SUMIFS(AM$9:AM$208,PlanningIDEnlaces,$C54,$H$9:$H$208,Lists!$A$16) -> 0 | CB54: 0 | CD54: =SUMIFS(AP$9:AP$208,PlanningIDEnlaces,$C54,$H$9:$H$208,Lists!$A$16) -> 0 | CE54: 0 | CG54: =IFERROR(INDEX(Lists!$F$5:$F$49,MATCH(Planning!C54,Lists!$G$5:$G$49,0),1),"") ->  | CI54: =IF(C54=0,""," ["&INDEX(Lists!$H$5:$H$49,MATCH(C54,Lists!$G$5:$G$49,0),1)&"]") -> 
A55: I047 | AS55: 0 | AT55: 0.00 | AW55: =SUMIFS(I$9:I$208,PlanningIDEnlaces,$C55,$H$9:$H$208,Lists!$A$16) -> 0 | AX55: 0 | AZ55: =SUMIFS(L$9:L$208,PlanningIDEnlaces,$C55,$H$9:$H$208,Lists!$A$16) -> 0 | BA55: 0 | BC55: =SUMIFS(O$9:O$208,PlanningIDEnlaces,$C55,$H$9:$H$208,Lists!$A$16) -> 0 | BD55: 0 | BF55: =SUMIFS(R$9:R$208,PlanningIDEnlaces,$C55,$H$9:$H$208,Lists!$A$16) -> 0 | BG55: 0 | BI55: =SUMIFS(U$9:U$208,PlanningIDEnlaces,$C55,$H$9:$H$208,Lists!$A$16) -> 0 | BJ55: 0 | BL55: =SUMIFS(X$9:X$208,PlanningIDEnlaces,$C55,$H$9:$H$208,Lists!$A$16) -> 0 | BM55: 0 | BO55: =SUMIFS(AA$9:AA$208,PlanningIDEnlaces,$C55,$H$9:$H$208,Lists!$A$16) -> 0 | BP55: 0 | BR55: =SUMIFS(AD$9:AD$208,PlanningIDEnlaces,$C55,$H$9:$H$208,Lists!$A$16) -> 0 | BS55: 0 | BU55: =SUMIFS(AG$9:AG$208,PlanningIDEnlaces,$C55,$H$9:$H$208,Lists!$A$16) -> 0 | BV55: 0 | BX55: =SUMIFS(AJ$9:AJ$208,PlanningIDEnlaces,$C55,$H$9:$H$208,Lists!$A$16) -> 0 | BY55: 0 | CA55: =SUMIFS(AM$9:AM$208,PlanningIDEnlaces,$C55,$H$9:$H$208,Lists!$A$16) -> 0 | CB55: 0 | CD55: =SUMIFS(AP$9:AP$208,PlanningIDEnlaces,$C55,$H$9:$H$208,Lists!$A$16) -> 0 | CE55: 0 | CG55: =IFERROR(INDEX(Lists!$F$5:$F$49,MATCH(Planning!C55,Lists!$G$5:$G$49,0),1),"") ->  | CI55: =IF(C55=0,""," ["&INDEX(Lists!$H$5:$H$49,MATCH(C55,Lists!$G$5:$G$49,0),1)&"]") -> 
A56: I048 | AS56: 0 | AT56: 0.00 | AW56: =SUMIFS(I$9:I$208,PlanningIDEnlaces,$C56,$H$9:$H$208,Lists!$A$16) -> 0 | AX56: 0 | AZ56: =SUMIFS(L$9:L$208,PlanningIDEnlaces,$C56,$H$9:$H$208,Lists!$A$16) -> 0 | BA56: 0 | BC56: =SUMIFS(O$9:O$208,PlanningIDEnlaces,$C56,$H$9:$H$208,Lists!$A$16) -> 0 | BD56: 0 | BF56: =SUMIFS(R$9:R$208,PlanningIDEnlaces,$C56,$H$9:$H$208,Lists!$A$16) -> 0 | BG56: 0 | BI56: =SUMIFS(U$9:U$208,PlanningIDEnlaces,$C56,$H$9:$H$208,Lists!$A$16) -> 0 | BJ56: 0 | BL56: =SUMIFS(X$9:X$208,PlanningIDEnlaces,$C56,$H$9:$H$208,Lists!$A$16) -> 0 | BM56: 0 | BO56: =SUMIFS(AA$9:AA$208,PlanningIDEnlaces,$C56,$H$9:$H$208,Lists!$A$16) -> 0 | BP56: 0 | BR56: =SUMIFS(AD$9:AD$208,PlanningIDEnlaces,$C56,$H$9:$H$208,Lists!$A$16) -> 0 | BS56: 0 | BU56: =SUMIFS(AG$9:AG$208,PlanningIDEnlaces,$C56,$H$9:$H$208,Lists!$A$16) -> 0 | BV56: 0 | BX56: =SUMIFS(AJ$9:AJ$208,PlanningIDEnlaces,$C56,$H$9:$H$208,Lists!$A$16) -> 0 | BY56: 0 | CA56: =SUMIFS(AM$9:AM$208,PlanningIDEnlaces,$C56,$H$9:$H$208,Lists!$A$16) -> 0 | CB56: 0 | CD56: =SUMIFS(AP$9:AP$208,PlanningIDEnlaces,$C56,$H$9:$H$208,Lists!$A$16) -> 0 | CE56: 0 | CG56: =IFERROR(INDEX(Lists!$F$5:$F$49,MATCH(Planning!C56,Lists!$G$5:$G$49,0),1),"") ->  | CI56: =IF(C56=0,""," ["&INDEX(Lists!$H$5:$H$49,MATCH(C56,Lists!$G$5:$G$49,0),1)&"]") -> 
A57: I049 | AS57: 0 | AT57: 0.00 | AW57: =SUMIFS(I$9:I$208,PlanningIDEnlaces,$C57,$H$9:$H$208,Lists!$A$16) -> 0 | AX57: 0 | AZ57: =SUMIFS(L$9:L$208,PlanningIDEnlaces,$C57,$H$9:$H$208,Lists!$A$16) -> 0 | BA57: 0 | BC57: =SUMIFS(O$9:O$208,PlanningIDEnlaces,$C57,$H$9:$H$208,Lists!$A$16) -> 0 | BD57: 0 | BF57: =SUMIFS(R$9:R$208,PlanningIDEnlaces,$C57,$H$9:$H$208,Lists!$A$16) -> 0 | BG57: 0 | BI57: =SUMIFS(U$9:U$208,PlanningIDEnlaces,$C57,$H$9:$H$208,Lists!$A$16) -> 0 | BJ57: 0 | BL57: =SUMIFS(X$9:X$208,PlanningIDEnlaces,$C57,$H$9:$H$208,Lists!$A$16) -> 0 | BM57: 0 | BO57: =SUMIFS(AA$9:AA$208,PlanningIDEnlaces,$C57,$H$9:$H$208,Lists!$A$16) -> 0 | BP57: 0 | BR57: =SUMIFS(AD$9:AD$208,PlanningIDEnlaces,$C57,$H$9:$H$208,Lists!$A$16) -> 0 | BS57: 0 | BU57: =SUMIFS(AG$9:AG$208,PlanningIDEnlaces,$C57,$H$9:$H$208,Lists!$A$16) -> 0 | BV57: 0 | BX57: =SUMIFS(AJ$9:AJ$208,PlanningIDEnlaces,$C57,$H$9:$H$208,Lists!$A$16) -> 0 | BY57: 0 | CA57: =SUMIFS(AM$9:AM$208,PlanningIDEnlaces,$C57,$H$9:$H$208,Lists!$A$16) -> 0 | CB57: 0 | CD57: =SUMIFS(AP$9:AP$208,PlanningIDEnlaces,$C57,$H$9:$H$208,Lists!$A$16) -> 0 | CE57: 0 | CG57: =IFERROR(INDEX(Lists!$F$5:$F$49,MATCH(Planning!C57,Lists!$G$5:$G$49,0),1),"") ->  | CI57: =IF(C57=0,""," ["&INDEX(Lists!$H$5:$H$49,MATCH(C57,Lists!$G$5:$G$49,0),1)&"]") -> 
A58: I050 | AS58: 0 | AT58: 0.00 | AW58: =SUMIFS(I$9:I$208,PlanningIDEnlaces,$C58,$H$9:$H$208,Lists!$A$16) -> 0 | AX58: 0 | AZ58: =SUMIFS(L$9:L$208,PlanningIDEnlaces,$C58,$H$9:$H$208,Lists!$A$16) -> 0 | BA58: 0 | BC58: =SUMIFS(O$9:O$208,PlanningIDEnlaces,$C58,$H$9:$H$208,Lists!$A$16) -> 0 | BD58: 0 | BF58: =SUMIFS(R$9:R$208,PlanningIDEnlaces,$C58,$H$9:$H$208,Lists!$A$16) -> 0 | BG58: 0 | BI58: =SUMIFS(U$9:U$208,PlanningIDEnlaces,$C58,$H$9:$H$208,Lists!$A$16) -> 0 | BJ58: 0 | BL58: =SUMIFS(X$9:X$208,PlanningIDEnlaces,$C58,$H$9:$H$208,Lists!$A$16) -> 0 | BM58: 0 | BO58: =SUMIFS(AA$9:AA$208,PlanningIDEnlaces,$C58,$H$9:$H$208,Lists!$A$16) -> 0 | BP58: 0 | BR58: =SUMIFS(AD$9:AD$208,PlanningIDEnlaces,$C58,$H$9:$H$208,Lists!$A$16) -> 0 | BS58: 0 | BU58: =SUMIFS(AG$9:AG$208,PlanningIDEnlaces,$C58,$H$9:$H$208,Lists!$A$16) -> 0 | BV58: 0 | BX58: =SUMIFS(AJ$9:AJ$208,PlanningIDEnlaces,$C58,$H$9:$H$208,Lists!$A$16) -> 0 | BY58: 0 | CA58: =SUMIFS(AM$9:AM$208,PlanningIDEnlaces,$C58,$H$9:$H$208,Lists!$A$16) -> 0 | CB58: 0 | CD58: =SUMIFS(AP$9:AP$208,PlanningIDEnlaces,$C58,$H$9:$H$208,Lists!$A$16) -> 0 | CE58: 0 | CG58: =IFERROR(INDEX(Lists!$F$5:$F$49,MATCH(Planning!C58,Lists!$G$5:$G$49,0),1),"") ->  | CI58: =IF(C58=0,""," ["&INDEX(Lists!$H$5:$H$49,MATCH(C58,Lists!$G$5:$G$49,0),1)&"]") -> 
A59: I051 | AS59: 0 | AT59: 0.00 | AW59: =SUMIFS(I$9:I$208,PlanningIDEnlaces,$C59,$H$9:$H$208,Lists!$A$16) -> 0 | AX59: 0 | AZ59: =SUMIFS(L$9:L$208,PlanningIDEnlaces,$C59,$H$9:$H$208,Lists!$A$16) -> 0 | BA59: 0 | BC59: =SUMIFS(O$9:O$208,PlanningIDEnlaces,$C59,$H$9:$H$208,Lists!$A$16) -> 0 | BD59: 0 | BF59: =SUMIFS(R$9:R$208,PlanningIDEnlaces,$C59,$H$9:$H$208,Lists!$A$16) -> 0 | BG59: 0 | BI59: =SUMIFS(U$9:U$208,PlanningIDEnlaces,$C59,$H$9:$H$208,Lists!$A$16) -> 0 | BJ59: 0 | BL59: =SUMIFS(X$9:X$208,PlanningIDEnlaces,$C59,$H$9:$H$208,Lists!$A$16) -> 0 | BM59: 0 | BO59: =SUMIFS(AA$9:AA$208,PlanningIDEnlaces,$C59,$H$9:$H$208,Lists!$A$16) -> 0 | BP59: 0 | BR59: =SUMIFS(AD$9:AD$208,PlanningIDEnlaces,$C59,$H$9:$H$208,Lists!$A$16) -> 0 | BS59: 0 | BU59: =SUMIFS(AG$9:AG$208,PlanningIDEnlaces,$C59,$H$9:$H$208,Lists!$A$16) -> 0 | BV59: 0 | BX59: =SUMIFS(AJ$9:AJ$208,PlanningIDEnlaces,$C59,$H$9:$H$208,Lists!$A$16) -> 0 | BY59: 0 | CA59: =SUMIFS(AM$9:AM$208,PlanningIDEnlaces,$C59,$H$9:$H$208,Lists!$A$16) -> 0 | CB59: 0 | CD59: =SUMIFS(AP$9:AP$208,PlanningIDEnlaces,$C59,$H$9:$H$208,Lists!$A$16) -> 0 | CE59: 0 | CG59: =IFERROR(INDEX(Lists!$F$5:$F$49,MATCH(Planning!C59,Lists!$G$5:$G$49,0),1),"") ->  | CI59: =IF(C59=0,""," ["&INDEX(Lists!$H$5:$H$49,MATCH(C59,Lists!$G$5:$G$49,0),1)&"]") -> 
A60: I052 | AS60: 0 | AT60: 0.00 | AW60: =SUMIFS(I$9:I$208,PlanningIDEnlaces,$C60,$H$9:$H$208,Lists!$A$16) -> 0 | AX60: 0 | AZ60: =SUMIFS(L$9:L$208,PlanningIDEnlaces,$C60,$H$9:$H$208,Lists!$A$16) -> 0 | BA60: 0 | BC60: =SUMIFS(O$9:O$208,PlanningIDEnlaces,$C60,$H$9:$H$208,Lists!$A$16) -> 0 | BD60: 0 | BF60: =SUMIFS(R$9:R$208,PlanningIDEnlaces,$C60,$H$9:$H$208,Lists!$A$16) -> 0 | BG60: 0 | BI60: =SUMIFS(U$9:U$208,PlanningIDEnlaces,$C60,$H$9:$H$208,Lists!$A$16) -> 0 | BJ60: 0 | BL60: =SUMIFS(X$9:X$208,PlanningIDEnlaces,$C60,$H$9:$H$208,Lists!$A$16) -> 0 | BM60: 0 | BO60: =SUMIFS(AA$9:AA$208,PlanningIDEnlaces,$C60,$H$9:$H$208,Lists!$A$16) -> 0 | BP60: 0 | BR60: =SUMIFS(AD$9:AD$208,PlanningIDEnlaces,$C60,$H$9:$H$208,Lists!$A$16) -> 0 | BS60: 0 | BU60: =SUMIFS(AG$9:AG$208,PlanningIDEnlaces,$C60,$H$9:$H$208,Lists!$A$16) -> 0 | BV60: 0 | BX60: =SUMIFS(AJ$9:AJ$208,PlanningIDEnlaces,$C60,$H$9:$H$208,Lists!$A$16) -> 0 | BY60: 0 | CA60: =SUMIFS(AM$9:AM$208,PlanningIDEnlaces,$C60,$H$9:$H$208,Lists!$A$16) -> 0 | CB60: 0 | CD60: =SUMIFS(AP$9:AP$208,PlanningIDEnlaces,$C60,$H$9:$H$208,Lists!$A$16) -> 0 | CE60: 0 | CG60: =IFERROR(INDEX(Lists!$F$5:$F$49,MATCH(Planning!C60,Lists!$G$5:$G$49,0),1),"") ->  | CI60: =IF(C60=0,""," ["&INDEX(Lists!$H$5:$H$49,MATCH(C60,Lists!$G$5:$G$49,0),1)&"]") -> 
A61: I053 | AS61: 0 | AT61: 0.00 | AW61: =SUMIFS(I$9:I$208,PlanningIDEnlaces,$C61,$H$9:$H$208,Lists!$A$16) -> 0 | AX61: 0 | AZ61: =SUMIFS(L$9:L$208,PlanningIDEnlaces,$C61,$H$9:$H$208,Lists!$A$16) -> 0 | BA61: 0 | BC61: =SUMIFS(O$9:O$208,PlanningIDEnlaces,$C61,$H$9:$H$208,Lists!$A$16) -> 0 | BD61: 0 | BF61: =SUMIFS(R$9:R$208,PlanningIDEnlaces,$C61,$H$9:$H$208,Lists!$A$16) -> 0 | BG61: 0 | BI61: =SUMIFS(U$9:U$208,PlanningIDEnlaces,$C61,$H$9:$H$208,Lists!$A$16) -> 0 | BJ61: 0 | BL61: =SUMIFS(X$9:X$208,PlanningIDEnlaces,$C61,$H$9:$H$208,Lists!$A$16) -> 0 | BM61: 0 | BO61: =SUMIFS(AA$9:AA$208,PlanningIDEnlaces,$C61,$H$9:$H$208,Lists!$A$16) -> 0 | BP61: 0 | BR61: =SUMIFS(AD$9:AD$208,PlanningIDEnlaces,$C61,$H$9:$H$208,Lists!$A$16) -> 0 | BS61: 0 | BU61: =SUMIFS(AG$9:AG$208,PlanningIDEnlaces,$C61,$H$9:$H$208,Lists!$A$16) -> 0 | BV61: 0 | BX61: =SUMIFS(AJ$9:AJ$208,PlanningIDEnlaces,$C61,$H$9:$H$208,Lists!$A$16) -> 0 | BY61: 0 | CA61: =SUMIFS(AM$9:AM$208,PlanningIDEnlaces,$C61,$H$9:$H$208,Lists!$A$16) -> 0 | CB61: 0 | CD61: =SUMIFS(AP$9:AP$208,PlanningIDEnlaces,$C61,$H$9:$H$208,Lists!$A$16) -> 0 | CE61: 0 | CG61: =IFERROR(INDEX(Lists!$F$5:$F$49,MATCH(Planning!C61,Lists!$G$5:$G$49,0),1),"") ->  | CI61: =IF(C61=0,""," ["&INDEX(Lists!$H$5:$H$49,MATCH(C61,Lists!$G$5:$G$49,0),1)&"]") -> 
A62: I054 | AS62: 0 | AT62: 0.00 | AW62: =SUMIFS(I$9:I$208,PlanningIDEnlaces,$C62,$H$9:$H$208,Lists!$A$16) -> 0 | AX62: 0 | AZ62: =SUMIFS(L$9:L$208,PlanningIDEnlaces,$C62,$H$9:$H$208,Lists!$A$16) -> 0 | BA62: 0 | BC62: =SUMIFS(O$9:O$208,PlanningIDEnlaces,$C62,$H$9:$H$208,Lists!$A$16) -> 0 | BD62: 0 | BF62: =SUMIFS(R$9:R$208,PlanningIDEnlaces,$C62,$H$9:$H$208,Lists!$A$16) -> 0 | BG62: 0 | BI62: =SUMIFS(U$9:U$208,PlanningIDEnlaces,$C62,$H$9:$H$208,Lists!$A$16) -> 0 | BJ62: 0 | BL62: =SUMIFS(X$9:X$208,PlanningIDEnlaces,$C62,$H$9:$H$208,Lists!$A$16) -> 0 | BM62: 0 | BO62: =SUMIFS(AA$9:AA$208,PlanningIDEnlaces,$C62,$H$9:$H$208,Lists!$A$16) -> 0 | BP62: 0 | BR62: =SUMIFS(AD$9:AD$208,PlanningIDEnlaces,$C62,$H$9:$H$208,Lists!$A$16) -> 0 | BS62: 0 | BU62: =SUMIFS(AG$9:AG$208,PlanningIDEnlaces,$C62,$H$9:$H$208,Lists!$A$16) -> 0 | BV62: 0 | BX62: =SUMIFS(AJ$9:AJ$208,PlanningIDEnlaces,$C62,$H$9:$H$208,Lists!$A$16) -> 0 | BY62: 0 | CA62: =SUMIFS(AM$9:AM$208,PlanningIDEnlaces,$C62,$H$9:$H$208,Lists!$A$16) -> 0 | CB62: 0 | CD62: =SUMIFS(AP$9:AP$208,PlanningIDEnlaces,$C62,$H$9:$H$208,Lists!$A$16) -> 0 | CE62: 0 | CG62: =IFERROR(INDEX(Lists!$F$5:$F$49,MATCH(Planning!C62,Lists!$G$5:$G$49,0),1),"") ->  | CI62: =IF(C62=0,""," ["&INDEX(Lists!$H$5:$H$49,MATCH(C62,Lists!$G$5:$G$49,0),1)&"]") -> 
A63: I055 | AS63: 0 | AT63: 0.00 | AW63: =SUMIFS(I$9:I$208,PlanningIDEnlaces,$C63,$H$9:$H$208,Lists!$A$16) -> 0 | AX63: 0 | AZ63: =SUMIFS(L$9:L$208,PlanningIDEnlaces,$C63,$H$9:$H$208,Lists!$A$16) -> 0 | BA63: 0 | BC63: =SUMIFS(O$9:O$208,PlanningIDEnlaces,$C63,$H$9:$H$208,Lists!$A$16) -> 0 | BD63: 0 | BF63: =SUMIFS(R$9:R$208,PlanningIDEnlaces,$C63,$H$9:$H$208,Lists!$A$16) -> 0 | BG63: 0 | BI63: =SUMIFS(U$9:U$208,PlanningIDEnlaces,$C63,$H$9:$H$208,Lists!$A$16) -> 0 | BJ63: 0 | BL63: =SUMIFS(X$9:X$208,PlanningIDEnlaces,$C63,$H$9:$H$208,Lists!$A$16) -> 0 | BM63: 0 | BO63: =SUMIFS(AA$9:AA$208,PlanningIDEnlaces,$C63,$H$9:$H$208,Lists!$A$16) -> 0 | BP63: 0 | BR63: =SUMIFS(AD$9:AD$208,PlanningIDEnlaces,$C63,$H$9:$H$208,Lists!$A$16) -> 0 | BS63: 0 | BU63: =SUMIFS(AG$9:AG$208,PlanningIDEnlaces,$C63,$H$9:$H$208,Lists!$A$16) -> 0 | BV63: 0 | BX63: =SUMIFS(AJ$9:AJ$208,PlanningIDEnlaces,$C63,$H$9:$H$208,Lists!$A$16) -> 0 | BY63: 0 | CA63: =SUMIFS(AM$9:AM$208,PlanningIDEnlaces,$C63,$H$9:$H$208,Lists!$A$16) -> 0 | CB63: 0 | CD63: =SUMIFS(AP$9:AP$208,PlanningIDEnlaces,$C63,$H$9:$H$208,Lists!$A$16) -> 0 | CE63: 0 | CG63: =IFERROR(INDEX(Lists!$F$5:$F$49,MATCH(Planning!C63,Lists!$G$5:$G$49,0),1),"") ->  | CI63: =IF(C63=0,""," ["&INDEX(Lists!$H$5:$H$49,MATCH(C63,Lists!$G$5:$G$49,0),1)&"]") -> 
A64: I056 | AS64: 0 | AT64: 0.00 | AW64: =SUMIFS(I$9:I$208,PlanningIDEnlaces,$C64,$H$9:$H$208,Lists!$A$16) -> 0 | AX64: 0 | AZ64: =SUMIFS(L$9:L$208,PlanningIDEnlaces,$C64,$H$9:$H$208,Lists!$A$16) -> 0 | BA64: 0 | BC64: =SUMIFS(O$9:O$208,PlanningIDEnlaces,$C64,$H$9:$H$208,Lists!$A$16) -> 0 | BD64: 0 | BF64: =SUMIFS(R$9:R$208,PlanningIDEnlaces,$C64,$H$9:$H$208,Lists!$A$16) -> 0 | BG64: 0 | BI64: =SUMIFS(U$9:U$208,PlanningIDEnlaces,$C64,$H$9:$H$208,Lists!$A$16) -> 0 | BJ64: 0 | BL64: =SUMIFS(X$9:X$208,PlanningIDEnlaces,$C64,$H$9:$H$208,Lists!$A$16) -> 0 | BM64: 0 | BO64: =SUMIFS(AA$9:AA$208,PlanningIDEnlaces,$C64,$H$9:$H$208,Lists!$A$16) -> 0 | BP64: 0 | BR64: =SUMIFS(AD$9:AD$208,PlanningIDEnlaces,$C64,$H$9:$H$208,Lists!$A$16) -> 0 | BS64: 0 | BU64: =SUMIFS(AG$9:AG$208,PlanningIDEnlaces,$C64,$H$9:$H$208,Lists!$A$16) -> 0 | BV64: 0 | BX64: =SUMIFS(AJ$9:AJ$208,PlanningIDEnlaces,$C64,$H$9:$H$208,Lists!$A$16) -> 0 | BY64: 0 | CA64: =SUMIFS(AM$9:AM$208,PlanningIDEnlaces,$C64,$H$9:$H$208,Lists!$A$16) -> 0 | CB64: 0 | CD64: =SUMIFS(AP$9:AP$208,PlanningIDEnlaces,$C64,$H$9:$H$208,Lists!$A$16) -> 0 | CE64: 0 | CG64: =IFERROR(INDEX(Lists!$F$5:$F$49,MATCH(Planning!C64,Lists!$G$5:$G$49,0),1),"") ->  | CI64: =IF(C64=0,""," ["&INDEX(Lists!$H$5:$H$49,MATCH(C64,Lists!$G$5:$G$49,0),1)&"]") -> 
A65: I057 | AS65: 0 | AT65: 0.00 | AW65: =SUMIFS(I$9:I$208,PlanningIDEnlaces,$C65,$H$9:$H$208,Lists!$A$16) -> 0 | AX65: 0 | AZ65: =SUMIFS(L$9:L$208,PlanningIDEnlaces,$C65,$H$9:$H$208,Lists!$A$16) -> 0 | BA65: 0 | BC65: =SUMIFS(O$9:O$208,PlanningIDEnlaces,$C65,$H$9:$H$208,Lists!$A$16) -> 0 | BD65: 0 | BF65: =SUMIFS(R$9:R$208,PlanningIDEnlaces,$C65,$H$9:$H$208,Lists!$A$16) -> 0 | BG65: 0 | BI65: =SUMIFS(U$9:U$208,PlanningIDEnlaces,$C65,$H$9:$H$208,Lists!$A$16) -> 0 | BJ65: 0 | BL65: =SUMIFS(X$9:X$208,PlanningIDEnlaces,$C65,$H$9:$H$208,Lists!$A$16) -> 0 | BM65: 0 | BO65: =SUMIFS(AA$9:AA$208,PlanningIDEnlaces,$C65,$H$9:$H$208,Lists!$A$16) -> 0 | BP65: 0 | BR65: =SUMIFS(AD$9:AD$208,PlanningIDEnlaces,$C65,$H$9:$H$208,Lists!$A$16) -> 0 | BS65: 0 | BU65: =SUMIFS(AG$9:AG$208,PlanningIDEnlaces,$C65,$H$9:$H$208,Lists!$A$16) -> 0 | BV65: 0 | BX65: =SUMIFS(AJ$9:AJ$208,PlanningIDEnlaces,$C65,$H$9:$H$208,Lists!$A$16) -> 0 | BY65: 0 | CA65: =SUMIFS(AM$9:AM$208,PlanningIDEnlaces,$C65,$H$9:$H$208,Lists!$A$16) -> 0 | CB65: 0 | CD65: =SUMIFS(AP$9:AP$208,PlanningIDEnlaces,$C65,$H$9:$H$208,Lists!$A$16) -> 0 | CE65: 0 | CG65: =IFERROR(INDEX(Lists!$F$5:$F$49,MATCH(Planning!C65,Lists!$G$5:$G$49,0),1),"") ->  | CI65: =IF(C65=0,""," ["&INDEX(Lists!$H$5:$H$49,MATCH(C65,Lists!$G$5:$G$49,0),1)&"]") -> 
A66: I058 | AS66: 0 | AT66: 0.00 | AW66: =SUMIFS(I$9:I$208,PlanningIDEnlaces,$C66,$H$9:$H$208,Lists!$A$16) -> 0 | AX66: 0 | AZ66: =SUMIFS(L$9:L$208,PlanningIDEnlaces,$C66,$H$9:$H$208,Lists!$A$16) -> 0 | BA66: 0 | BC66: =SUMIFS(O$9:O$208,PlanningIDEnlaces,$C66,$H$9:$H$208,Lists!$A$16) -> 0 | BD66: 0 | BF66: =SUMIFS(R$9:R$208,PlanningIDEnlaces,$C66,$H$9:$H$208,Lists!$A$16) -> 0 | BG66: 0 | BI66: =SUMIFS(U$9:U$208,PlanningIDEnlaces,$C66,$H$9:$H$208,Lists!$A$16) -> 0 | BJ66: 0 | BL66: =SUMIFS(X$9:X$208,PlanningIDEnlaces,$C66,$H$9:$H$208,Lists!$A$16) -> 0 | BM66: 0 | BO66: =SUMIFS(AA$9:AA$208,PlanningIDEnlaces,$C66,$H$9:$H$208,Lists!$A$16) -> 0 | BP66: 0 | BR66: =SUMIFS(AD$9:AD$208,PlanningIDEnlaces,$C66,$H$9:$H$208,Lists!$A$16) -> 0 | BS66: 0 | BU66: =SUMIFS(AG$9:AG$208,PlanningIDEnlaces,$C66,$H$9:$H$208,Lists!$A$16) -> 0 | BV66: 0 | BX66: =SUMIFS(AJ$9:AJ$208,PlanningIDEnlaces,$C66,$H$9:$H$208,Lists!$A$16) -> 0 | BY66: 0 | CA66: =SUMIFS(AM$9:AM$208,PlanningIDEnlaces,$C66,$H$9:$H$208,Lists!$A$16) -> 0 | CB66: 0 | CD66: =SUMIFS(AP$9:AP$208,PlanningIDEnlaces,$C66,$H$9:$H$208,Lists!$A$16) -> 0 | CE66: 0 | CG66: =IFERROR(INDEX(Lists!$F$5:$F$49,MATCH(Planning!C66,Lists!$G$5:$G$49,0),1),"") ->  | CI66: =IF(C66=0,""," ["&INDEX(Lists!$H$5:$H$49,MATCH(C66,Lists!$G$5:$G$49,0),1)&"]") -> 
A67: I059 | AS67: 0 | AT67: 0.00 | AW67: =SUMIFS(I$9:I$208,PlanningIDEnlaces,$C67,$H$9:$H$208,Lists!$A$16) -> 0 | AX67: 0 | AZ67: =SUMIFS(L$9:L$208,PlanningIDEnlaces,$C67,$H$9:$H$208,Lists!$A$16) -> 0 | BA67: 0 | BC67: =SUMIFS(O$9:O$208,PlanningIDEnlaces,$C67,$H$9:$H$208,Lists!$A$16) -> 0 | BD67: 0 | BF67: =SUMIFS(R$9:R$208,PlanningIDEnlaces,$C67,$H$9:$H$208,Lists!$A$16) -> 0 | BG67: 0 | BI67: =SUMIFS(U$9:U$208,PlanningIDEnlaces,$C67,$H$9:$H$208,Lists!$A$16) -> 0 | BJ67: 0 | BL67: =SUMIFS(X$9:X$208,PlanningIDEnlaces,$C67,$H$9:$H$208,Lists!$A$16) -> 0 | BM67: 0 | BO67: =SUMIFS(AA$9:AA$208,PlanningIDEnlaces,$C67,$H$9:$H$208,Lists!$A$16) -> 0 | BP67: 0 | BR67: =SUMIFS(AD$9:AD$208,PlanningIDEnlaces,$C67,$H$9:$H$208,Lists!$A$16) -> 0 | BS67: 0 | BU67: =SUMIFS(AG$9:AG$208,PlanningIDEnlaces,$C67,$H$9:$H$208,Lists!$A$16) -> 0 | BV67: 0 | BX67: =SUMIFS(AJ$9:AJ$208,PlanningIDEnlaces,$C67,$H$9:$H$208,Lists!$A$16) -> 0 | BY67: 0 | CA67: =SUMIFS(AM$9:AM$208,PlanningIDEnlaces,$C67,$H$9:$H$208,Lists!$A$16) -> 0 | CB67: 0 | CD67: =SUMIFS(AP$9:AP$208,PlanningIDEnlaces,$C67,$H$9:$H$208,Lists!$A$16) -> 0 | CE67: 0 | CG67: =IFERROR(INDEX(Lists!$F$5:$F$49,MATCH(Planning!C67,Lists!$G$5:$G$49,0),1),"") ->  | CI67: =IF(C67=0,""," ["&INDEX(Lists!$H$5:$H$49,MATCH(C67,Lists!$G$5:$G$49,0),1)&"]") -> 
A68: I060 | AS68: 0 | AT68: 0.00 | AW68: =SUMIFS(I$9:I$208,PlanningIDEnlaces,$C68,$H$9:$H$208,Lists!$A$16) -> 0 | AX68: 0 | AZ68: =SUMIFS(L$9:L$208,PlanningIDEnlaces,$C68,$H$9:$H$208,Lists!$A$16) -> 0 | BA68: 0 | BC68: =SUMIFS(O$9:O$208,PlanningIDEnlaces,$C68,$H$9:$H$208,Lists!$A$16) -> 0 | BD68: 0 | BF68: =SUMIFS(R$9:R$208,PlanningIDEnlaces,$C68,$H$9:$H$208,Lists!$A$16) -> 0 | BG68: 0 | BI68: =SUMIFS(U$9:U$208,PlanningIDEnlaces,$C68,$H$9:$H$208,Lists!$A$16) -> 0 | BJ68: 0 | BL68: =SUMIFS(X$9:X$208,PlanningIDEnlaces,$C68,$H$9:$H$208,Lists!$A$16) -> 0 | BM68: 0 | BO68: =SUMIFS(AA$9:AA$208,PlanningIDEnlaces,$C68,$H$9:$H$208,Lists!$A$16) -> 0 | BP68: 0 | BR68: =SUMIFS(AD$9:AD$208,PlanningIDEnlaces,$C68,$H$9:$H$208,Lists!$A$16) -> 0 | BS68: 0 | BU68: =SUMIFS(AG$9:AG$208,PlanningIDEnlaces,$C68,$H$9:$H$208,Lists!$A$16) -> 0 | BV68: 0 | BX68: =SUMIFS(AJ$9:AJ$208,PlanningIDEnlaces,$C68,$H$9:$H$208,Lists!$A$16) -> 0 | BY68: 0 | CA68: =SUMIFS(AM$9:AM$208,PlanningIDEnlaces,$C68,$H$9:$H$208,Lists!$A$16) -> 0 | CB68: 0 | CD68: =SUMIFS(AP$9:AP$208,PlanningIDEnlaces,$C68,$H$9:$H$208,Lists!$A$16) -> 0 | CE68: 0 | CG68: =IFERROR(INDEX(Lists!$F$5:$F$49,MATCH(Planning!C68,Lists!$G$5:$G$49,0),1),"") ->  | CI68: =IF(C68=0,""," ["&INDEX(Lists!$H$5:$H$49,MATCH(C68,Lists!$G$5:$G$49,0),1)&"]") -> 
A69: I061 | AS69: 0 | AT69: 0.00 | AW69: =SUMIFS(I$9:I$208,PlanningIDEnlaces,$C69,$H$9:$H$208,Lists!$A$16) -> 0 | AX69: 0 | AZ69: =SUMIFS(L$9:L$208,PlanningIDEnlaces,$C69,$H$9:$H$208,Lists!$A$16) -> 0 | BA69: 0 | BC69: =SUMIFS(O$9:O$208,PlanningIDEnlaces,$C69,$H$9:$H$208,Lists!$A$16) -> 0 | BD69: 0 | BF69: =SUMIFS(R$9:R$208,PlanningIDEnlaces,$C69,$H$9:$H$208,Lists!$A$16) -> 0 | BG69: 0 | BI69: =SUMIFS(U$9:U$208,PlanningIDEnlaces,$C69,$H$9:$H$208,Lists!$A$16) -> 0 | BJ69: 0 | BL69: =SUMIFS(X$9:X$208,PlanningIDEnlaces,$C69,$H$9:$H$208,Lists!$A$16) -> 0 | BM69: 0 | BO69: =SUMIFS(AA$9:AA$208,PlanningIDEnlaces,$C69,$H$9:$H$208,Lists!$A$16) -> 0 | BP69: 0 | BR69: =SUMIFS(AD$9:AD$208,PlanningIDEnlaces,$C69,$H$9:$H$208,Lists!$A$16) -> 0 | BS69: 0 | BU69: =SUMIFS(AG$9:AG$208,PlanningIDEnlaces,$C69,$H$9:$H$208,Lists!$A$16) -> 0 | BV69: 0 | BX69: =SUMIFS(AJ$9:AJ$208,PlanningIDEnlaces,$C69,$H$9:$H$208,Lists!$A$16) -> 0 | BY69: 0 | CA69: =SUMIFS(AM$9:AM$208,PlanningIDEnlaces,$C69,$H$9:$H$208,Lists!$A$16) -> 0 | CB69: 0 | CD69: =SUMIFS(AP$9:AP$208,PlanningIDEnlaces,$C69,$H$9:$H$208,Lists!$A$16) -> 0 | CE69: 0 | CG69: =IFERROR(INDEX(Lists!$F$5:$F$49,MATCH(Planning!C69,Lists!$G$5:$G$49,0),1),"") ->  | CI69: =IF(C69=0,""," ["&INDEX(Lists!$H$5:$H$49,MATCH(C69,Lists!$G$5:$G$49,0),1)&"]") -> 
A70: I062 | AS70: 0 | AT70: 0.00 | AW70: =SUMIFS(I$9:I$208,PlanningIDEnlaces,$C70,$H$9:$H$208,Lists!$A$16) -> 0 | AX70: 0 | AZ70: =SUMIFS(L$9:L$208,PlanningIDEnlaces,$C70,$H$9:$H$208,Lists!$A$16) -> 0 | BA70: 0 | BC70: =SUMIFS(O$9:O$208,PlanningIDEnlaces,$C70,$H$9:$H$208,Lists!$A$16) -> 0 | BD70: 0 | BF70: =SUMIFS(R$9:R$208,PlanningIDEnlaces,$C70,$H$9:$H$208,Lists!$A$16) -> 0 | BG70: 0 | BI70: =SUMIFS(U$9:U$208,PlanningIDEnlaces,$C70,$H$9:$H$208,Lists!$A$16) -> 0 | BJ70: 0 | BL70: =SUMIFS(X$9:X$208,PlanningIDEnlaces,$C70,$H$9:$H$208,Lists!$A$16) -> 0 | BM70: 0 | BO70: =SUMIFS(AA$9:AA$208,PlanningIDEnlaces,$C70,$H$9:$H$208,Lists!$A$16) -> 0 | BP70: 0 | BR70: =SUMIFS(AD$9:AD$208,PlanningIDEnlaces,$C70,$H$9:$H$208,Lists!$A$16) -> 0 | BS70: 0 | BU70: =SUMIFS(AG$9:AG$208,PlanningIDEnlaces,$C70,$H$9:$H$208,Lists!$A$16) -> 0 | BV70: 0 | BX70: =SUMIFS(AJ$9:AJ$208,PlanningIDEnlaces,$C70,$H$9:$H$208,Lists!$A$16) -> 0 | BY70: 0 | CA70: =SUMIFS(AM$9:AM$208,PlanningIDEnlaces,$C70,$H$9:$H$208,Lists!$A$16) -> 0 | CB70: 0 | CD70: =SUMIFS(AP$9:AP$208,PlanningIDEnlaces,$C70,$H$9:$H$208,Lists!$A$16) -> 0 | CE70: 0 | CG70: =IFERROR(INDEX(Lists!$F$5:$F$49,MATCH(Planning!C70,Lists!$G$5:$G$49,0),1),"") ->  | CI70: =IF(C70=0,""," ["&INDEX(Lists!$H$5:$H$49,MATCH(C70,Lists!$G$5:$G$49,0),1)&"]") -> 
A71: I063 | AS71: 0 | AT71: 0.00 | AW71: =SUMIFS(I$9:I$208,PlanningIDEnlaces,$C71,$H$9:$H$208,Lists!$A$16) -> 0 | AX71: 0 | AZ71: =SUMIFS(L$9:L$208,PlanningIDEnlaces,$C71,$H$9:$H$208,Lists!$A$16) -> 0 | BA71: 0 | BC71: =SUMIFS(O$9:O$208,PlanningIDEnlaces,$C71,$H$9:$H$208,Lists!$A$16) -> 0 | BD71: 0 | BF71: =SUMIFS(R$9:R$208,PlanningIDEnlaces,$C71,$H$9:$H$208,Lists!$A$16) -> 0 | BG71: 0 | BI71: =SUMIFS(U$9:U$208,PlanningIDEnlaces,$C71,$H$9:$H$208,Lists!$A$16) -> 0 | BJ71: 0 | BL71: =SUMIFS(X$9:X$208,PlanningIDEnlaces,$C71,$H$9:$H$208,Lists!$A$16) -> 0 | BM71: 0 | BO71: =SUMIFS(AA$9:AA$208,PlanningIDEnlaces,$C71,$H$9:$H$208,Lists!$A$16) -> 0 | BP71: 0 | BR71: =SUMIFS(AD$9:AD$208,PlanningIDEnlaces,$C71,$H$9:$H$208,Lists!$A$16) -> 0 | BS71: 0 | BU71: =SUMIFS(AG$9:AG$208,PlanningIDEnlaces,$C71,$H$9:$H$208,Lists!$A$16) -> 0 | BV71: 0 | BX71: =SUMIFS(AJ$9:AJ$208,PlanningIDEnlaces,$C71,$H$9:$H$208,Lists!$A$16) -> 0 | BY71: 0 | CA71: =SUMIFS(AM$9:AM$208,PlanningIDEnlaces,$C71,$H$9:$H$208,Lists!$A$16) -> 0 | CB71: 0 | CD71: =SUMIFS(AP$9:AP$208,PlanningIDEnlaces,$C71,$H$9:$H$208,Lists!$A$16) -> 0 | CE71: 0 | CG71: =IFERROR(INDEX(Lists!$F$5:$F$49,MATCH(Planning!C71,Lists!$G$5:$G$49,0),1),"") ->  | CI71: =IF(C71=0,""," ["&INDEX(Lists!$H$5:$H$49,MATCH(C71,Lists!$G$5:$G$49,0),1)&"]") -> 
A72: I064 | AS72: 0 | AT72: 0.00 | AW72: =SUMIFS(I$9:I$208,PlanningIDEnlaces,$C72,$H$9:$H$208,Lists!$A$16) -> 0 | AX72: 0 | AZ72: =SUMIFS(L$9:L$208,PlanningIDEnlaces,$C72,$H$9:$H$208,Lists!$A$16) -> 0 | BA72: 0 | BC72: =SUMIFS(O$9:O$208,PlanningIDEnlaces,$C72,$H$9:$H$208,Lists!$A$16) -> 0 | BD72: 0 | BF72: =SUMIFS(R$9:R$208,PlanningIDEnlaces,$C72,$H$9:$H$208,Lists!$A$16) -> 0 | BG72: 0 | BI72: =SUMIFS(U$9:U$208,PlanningIDEnlaces,$C72,$H$9:$H$208,Lists!$A$16) -> 0 | BJ72: 0 | BL72: =SUMIFS(X$9:X$208,PlanningIDEnlaces,$C72,$H$9:$H$208,Lists!$A$16) -> 0 | BM72: 0 | BO72: =SUMIFS(AA$9:AA$208,PlanningIDEnlaces,$C72,$H$9:$H$208,Lists!$A$16) -> 0 | BP72: 0 | BR72: =SUMIFS(AD$9:AD$208,PlanningIDEnlaces,$C72,$H$9:$H$208,Lists!$A$16) -> 0 | BS72: 0 | BU72: =SUMIFS(AG$9:AG$208,PlanningIDEnlaces,$C72,$H$9:$H$208,Lists!$A$16) -> 0 | BV72: 0 | BX72: =SUMIFS(AJ$9:AJ$208,PlanningIDEnlaces,$C72,$H$9:$H$208,Lists!$A$16) -> 0 | BY72: 0 | CA72: =SUMIFS(AM$9:AM$208,PlanningIDEnlaces,$C72,$H$9:$H$208,Lists!$A$16) -> 0 | CB72: 0 | CD72: =SUMIFS(AP$9:AP$208,PlanningIDEnlaces,$C72,$H$9:$H$208,Lists!$A$16) -> 0 | CE72: 0 | CG72: =IFERROR(INDEX(Lists!$F$5:$F$49,MATCH(Planning!C72,Lists!$G$5:$G$49,0),1),"") ->  | CI72: =IF(C72=0,""," ["&INDEX(Lists!$H$5:$H$49,MATCH(C72,Lists!$G$5:$G$49,0),1)&"]") -> 
A73: I065 | AS73: =I73+L73+O73+R73+U73+X73+AA73+AD73+AG73+AJ73+AM73+AP73 -> 0 | AT73: =J73+M73+P73+S73+V73+Y73+AB73+AE73+AH73+AK73+AN73+AQ73 -> 0.00 | AW73: =SUMIFS(I$9:I$208,PlanningIDEnlaces,$C73,$H$9:$H$208,Lists!$A$16) -> 0 | AX73: =SUMIFS(J$9:J$208,PlanningIDEnlaces,$C73,$H$9:$H$208,"<>") -> 0 | AZ73: =SUMIFS(L$9:L$208,PlanningIDEnlaces,$C73,$H$9:$H$208,Lists!$A$16) -> 0 | BA73: =SUMIFS(M$9:M$208,PlanningIDEnlaces,$C73,$H$9:$H$208,"<>") -> 0 | BC73: =SUMIFS(O$9:O$208,PlanningIDEnlaces,$C73,$H$9:$H$208,Lists!$A$16) -> 0 | BD73: =SUMIFS(P$9:P$208,PlanningIDEnlaces,$C73,$H$9:$H$208,"<>") -> 0 | BF73: =SUMIFS(R$9:R$208,PlanningIDEnlaces,$C73,$H$9:$H$208,Lists!$A$16) -> 0 | BG73: =SUMIFS(S$9:S$208,PlanningIDEnlaces,$C73,$H$9:$H$208,"<>") -> 0 | BI73: =SUMIFS(U$9:U$208,PlanningIDEnlaces,$C73,$H$9:$H$208,Lists!$A$16) -> 0 | BJ73: =SUMIFS(V$9:V$208,PlanningIDEnlaces,$C73,$H$9:$H$208,"<>") -> 0 | BL73: =SUMIFS(X$9:X$208,PlanningIDEnlaces,$C73,$H$9:$H$208,Lists!$A$16) -> 0 | BM73: =SUMIFS(Y$9:Y$208,PlanningIDEnlaces,$C73,$H$9:$H$208,"<>") -> 0 | BO73: =SUMIFS(AA$9:AA$208,PlanningIDEnlaces,$C73,$H$9:$H$208,Lists!$A$16) -> 0 | BP73: =SUMIFS(AB$9:AB$208,PlanningIDEnlaces,$C73,$H$9:$H$208,"<>") -> 0 | BR73: =SUMIFS(AD$9:AD$208,PlanningIDEnlaces,$C73,$H$9:$H$208,Lists!$A$16) -> 0 | BS73: =SUMIFS(AE$9:AE$208,PlanningIDEnlaces,$C73,$H$9:$H$208,"<>") -> 0 | BU73: =SUMIFS(AG$9:AG$208,PlanningIDEnlaces,$C73,$H$9:$H$208,Lists!$A$16) -> 0 | BV73: =SUMIFS(AH$9:AH$208,PlanningIDEnlaces,$C73,$H$9:$H$208,"<>") -> 0 | BX73: =SUMIFS(AJ$9:AJ$208,PlanningIDEnlaces,$C73,$H$9:$H$208,Lists!$A$16) -> 0 | BY73: =SUMIFS(AK$9:AK$208,PlanningIDEnlaces,$C73,$H$9:$H$208,"<>") -> 0 | CA73: =SUMIFS(AM$9:AM$208,PlanningIDEnlaces,$C73,$H$9:$H$208,Lists!$A$16) -> 0 | CB73: =SUMIFS(AN$9:AN$208,PlanningIDEnlaces,$C73,$H$9:$H$208,"<>") -> 0 | CD73: =SUMIFS(AP$9:AP$208,PlanningIDEnlaces,$C73,$H$9:$H$208,Lists!$A$16) -> 0 | CE73: =SUMIFS(AQ$9:AQ$208,PlanningIDEnlaces,$C73,$H$9:$H$208,"<>") -> 0 | CG73: =IFERROR(INDEX(Lists!$F$5:$F$49,MATCH(Planning!C73,Lists!$G$5:$G$49,0),1),"") ->  | CI73: =IF(C73=0,""," ["&INDEX(Lists!$H$5:$H$49,MATCH(C73,Lists!$G$5:$G$49,0),1)&"]") -> 
A74: I066 | AS74: 0 | AT74: 0.00 | AW74: =SUMIFS(I$9:I$208,PlanningIDEnlaces,$C74,$H$9:$H$208,Lists!$A$16) -> 0 | AX74: 0 | AZ74: =SUMIFS(L$9:L$208,PlanningIDEnlaces,$C74,$H$9:$H$208,Lists!$A$16) -> 0 | BA74: 0 | BC74: =SUMIFS(O$9:O$208,PlanningIDEnlaces,$C74,$H$9:$H$208,Lists!$A$16) -> 0 | BD74: 0 | BF74: =SUMIFS(R$9:R$208,PlanningIDEnlaces,$C74,$H$9:$H$208,Lists!$A$16) -> 0 | BG74: 0 | BI74: =SUMIFS(U$9:U$208,PlanningIDEnlaces,$C74,$H$9:$H$208,Lists!$A$16) -> 0 | BJ74: 0 | BL74: =SUMIFS(X$9:X$208,PlanningIDEnlaces,$C74,$H$9:$H$208,Lists!$A$16) -> 0 | BM74: 0 | BO74: =SUMIFS(AA$9:AA$208,PlanningIDEnlaces,$C74,$H$9:$H$208,Lists!$A$16) -> 0 | BP74: 0 | BR74: =SUMIFS(AD$9:AD$208,PlanningIDEnlaces,$C74,$H$9:$H$208,Lists!$A$16) -> 0 | BS74: 0 | BU74: =SUMIFS(AG$9:AG$208,PlanningIDEnlaces,$C74,$H$9:$H$208,Lists!$A$16) -> 0 | BV74: 0 | BX74: =SUMIFS(AJ$9:AJ$208,PlanningIDEnlaces,$C74,$H$9:$H$208,Lists!$A$16) -> 0 | BY74: 0 | CA74: =SUMIFS(AM$9:AM$208,PlanningIDEnlaces,$C74,$H$9:$H$208,Lists!$A$16) -> 0 | CB74: 0 | CD74: =SUMIFS(AP$9:AP$208,PlanningIDEnlaces,$C74,$H$9:$H$208,Lists!$A$16) -> 0 | CE74: 0 | CG74: =IFERROR(INDEX(Lists!$F$5:$F$49,MATCH(Planning!C74,Lists!$G$5:$G$49,0),1),"") ->  | CI74: =IF(C74=0,""," ["&INDEX(Lists!$H$5:$H$49,MATCH(C74,Lists!$G$5:$G$49,0),1)&"]") -> 
A75: I067 | AS75: 0 | AT75: 0.00 | AW75: =SUMIFS(I$9:I$208,PlanningIDEnlaces,$C75,$H$9:$H$208,Lists!$A$16) -> 0 | AX75: 0 | AZ75: =SUMIFS(L$9:L$208,PlanningIDEnlaces,$C75,$H$9:$H$208,Lists!$A$16) -> 0 | BA75: 0 | BC75: =SUMIFS(O$9:O$208,PlanningIDEnlaces,$C75,$H$9:$H$208,Lists!$A$16) -> 0 | BD75: 0 | BF75: =SUMIFS(R$9:R$208,PlanningIDEnlaces,$C75,$H$9:$H$208,Lists!$A$16) -> 0 | BG75: 0 | BI75: =SUMIFS(U$9:U$208,PlanningIDEnlaces,$C75,$H$9:$H$208,Lists!$A$16) -> 0 | BJ75: 0 | BL75: =SUMIFS(X$9:X$208,PlanningIDEnlaces,$C75,$H$9:$H$208,Lists!$A$16) -> 0 | BM75: 0 | BO75: =SUMIFS(AA$9:AA$208,PlanningIDEnlaces,$C75,$H$9:$H$208,Lists!$A$16) -> 0 | BP75: 0 | BR75: =SUMIFS(AD$9:AD$208,PlanningIDEnlaces,$C75,$H$9:$H$208,Lists!$A$16) -> 0 | BS75: 0 | BU75: =SUMIFS(AG$9:AG$208,PlanningIDEnlaces,$C75,$H$9:$H$208,Lists!$A$16) -> 0 | BV75: 0 | BX75: =SUMIFS(AJ$9:AJ$208,PlanningIDEnlaces,$C75,$H$9:$H$208,Lists!$A$16) -> 0 | BY75: 0 | CA75: =SUMIFS(AM$9:AM$208,PlanningIDEnlaces,$C75,$H$9:$H$208,Lists!$A$16) -> 0 | CB75: 0 | CD75: =SUMIFS(AP$9:AP$208,PlanningIDEnlaces,$C75,$H$9:$H$208,Lists!$A$16) -> 0 | CE75: 0 | CG75: =IFERROR(INDEX(Lists!$F$5:$F$49,MATCH(Planning!C75,Lists!$G$5:$G$49,0),1),"") ->  | CI75: =IF(C75=0,""," ["&INDEX(Lists!$H$5:$H$49,MATCH(C75,Lists!$G$5:$G$49,0),1)&"]") -> 
A76: I068 | AS76: 0 | AT76: 0.00 | AW76: =SUMIFS(I$9:I$208,PlanningIDEnlaces,$C76,$H$9:$H$208,Lists!$A$16) -> 0 | AX76: 0 | AZ76: =SUMIFS(L$9:L$208,PlanningIDEnlaces,$C76,$H$9:$H$208,Lists!$A$16) -> 0 | BA76: 0 | BC76: =SUMIFS(O$9:O$208,PlanningIDEnlaces,$C76,$H$9:$H$208,Lists!$A$16) -> 0 | BD76: 0 | BF76: =SUMIFS(R$9:R$208,PlanningIDEnlaces,$C76,$H$9:$H$208,Lists!$A$16) -> 0 | BG76: 0 | BI76: =SUMIFS(U$9:U$208,PlanningIDEnlaces,$C76,$H$9:$H$208,Lists!$A$16) -> 0 | BJ76: 0 | BL76: =SUMIFS(X$9:X$208,PlanningIDEnlaces,$C76,$H$9:$H$208,Lists!$A$16) -> 0 | BM76: 0 | BO76: =SUMIFS(AA$9:AA$208,PlanningIDEnlaces,$C76,$H$9:$H$208,Lists!$A$16) -> 0 | BP76: 0 | BR76: =SUMIFS(AD$9:AD$208,PlanningIDEnlaces,$C76,$H$9:$H$208,Lists!$A$16) -> 0 | BS76: 0 | BU76: =SUMIFS(AG$9:AG$208,PlanningIDEnlaces,$C76,$H$9:$H$208,Lists!$A$16) -> 0 | BV76: 0 | BX76: =SUMIFS(AJ$9:AJ$208,PlanningIDEnlaces,$C76,$H$9:$H$208,Lists!$A$16) -> 0 | BY76: 0 | CA76: =SUMIFS(AM$9:AM$208,PlanningIDEnlaces,$C76,$H$9:$H$208,Lists!$A$16) -> 0 | CB76: 0 | CD76: =SUMIFS(AP$9:AP$208,PlanningIDEnlaces,$C76,$H$9:$H$208,Lists!$A$16) -> 0 | CE76: 0 | CG76: =IFERROR(INDEX(Lists!$F$5:$F$49,MATCH(Planning!C76,Lists!$G$5:$G$49,0),1),"") ->  | CI76: =IF(C76=0,""," ["&INDEX(Lists!$H$5:$H$49,MATCH(C76,Lists!$G$5:$G$49,0),1)&"]") -> 
A77: I069 | AS77: 0 | AT77: 0.00 | AW77: =SUMIFS(I$9:I$208,PlanningIDEnlaces,$C77,$H$9:$H$208,Lists!$A$16) -> 0 | AX77: 0 | AZ77: =SUMIFS(L$9:L$208,PlanningIDEnlaces,$C77,$H$9:$H$208,Lists!$A$16) -> 0 | BA77: 0 | BC77: =SUMIFS(O$9:O$208,PlanningIDEnlaces,$C77,$H$9:$H$208,Lists!$A$16) -> 0 | BD77: 0 | BF77: =SUMIFS(R$9:R$208,PlanningIDEnlaces,$C77,$H$9:$H$208,Lists!$A$16) -> 0 | BG77: 0 | BI77: =SUMIFS(U$9:U$208,PlanningIDEnlaces,$C77,$H$9:$H$208,Lists!$A$16) -> 0 | BJ77: 0 | BL77: =SUMIFS(X$9:X$208,PlanningIDEnlaces,$C77,$H$9:$H$208,Lists!$A$16) -> 0 | BM77: 0 | BO77: =SUMIFS(AA$9:AA$208,PlanningIDEnlaces,$C77,$H$9:$H$208,Lists!$A$16) -> 0 | BP77: 0 | BR77: =SUMIFS(AD$9:AD$208,PlanningIDEnlaces,$C77,$H$9:$H$208,Lists!$A$16) -> 0 | BS77: 0 | BU77: =SUMIFS(AG$9:AG$208,PlanningIDEnlaces,$C77,$H$9:$H$208,Lists!$A$16) -> 0 | BV77: 0 | BX77: =SUMIFS(AJ$9:AJ$208,PlanningIDEnlaces,$C77,$H$9:$H$208,Lists!$A$16) -> 0 | BY77: 0 | CA77: =SUMIFS(AM$9:AM$208,PlanningIDEnlaces,$C77,$H$9:$H$208,Lists!$A$16) -> 0 | CB77: 0 | CD77: =SUMIFS(AP$9:AP$208,PlanningIDEnlaces,$C77,$H$9:$H$208,Lists!$A$16) -> 0 | CE77: 0 | CG77: =IFERROR(INDEX(Lists!$F$5:$F$49,MATCH(Planning!C77,Lists!$G$5:$G$49,0),1),"") ->  | CI77: =IF(C77=0,""," ["&INDEX(Lists!$H$5:$H$49,MATCH(C77,Lists!$G$5:$G$49,0),1)&"]") -> 
A78: I070 | AS78: 0 | AT78: 0.00 | AW78: =SUMIFS(I$9:I$208,PlanningIDEnlaces,$C78,$H$9:$H$208,Lists!$A$16) -> 0 | AX78: 0 | AZ78: =SUMIFS(L$9:L$208,PlanningIDEnlaces,$C78,$H$9:$H$208,Lists!$A$16) -> 0 | BA78: 0 | BC78: =SUMIFS(O$9:O$208,PlanningIDEnlaces,$C78,$H$9:$H$208,Lists!$A$16) -> 0 | BD78: 0 | BF78: =SUMIFS(R$9:R$208,PlanningIDEnlaces,$C78,$H$9:$H$208,Lists!$A$16) -> 0 | BG78: 0 | BI78: =SUMIFS(U$9:U$208,PlanningIDEnlaces,$C78,$H$9:$H$208,Lists!$A$16) -> 0 | BJ78: 0 | BL78: =SUMIFS(X$9:X$208,PlanningIDEnlaces,$C78,$H$9:$H$208,Lists!$A$16) -> 0 | BM78: 0 | BO78: =SUMIFS(AA$9:AA$208,PlanningIDEnlaces,$C78,$H$9:$H$208,Lists!$A$16) -> 0 | BP78: 0 | BR78: =SUMIFS(AD$9:AD$208,PlanningIDEnlaces,$C78,$H$9:$H$208,Lists!$A$16) -> 0 | BS78: 0 | BU78: =SUMIFS(AG$9:AG$208,PlanningIDEnlaces,$C78,$H$9:$H$208,Lists!$A$16) -> 0 | BV78: 0 | BX78: =SUMIFS(AJ$9:AJ$208,PlanningIDEnlaces,$C78,$H$9:$H$208,Lists!$A$16) -> 0 | BY78: 0 | CA78: =SUMIFS(AM$9:AM$208,PlanningIDEnlaces,$C78,$H$9:$H$208,Lists!$A$16) -> 0 | CB78: 0 | CD78: =SUMIFS(AP$9:AP$208,PlanningIDEnlaces,$C78,$H$9:$H$208,Lists!$A$16) -> 0 | CE78: 0 | CG78: =IFERROR(INDEX(Lists!$F$5:$F$49,MATCH(Planning!C78,Lists!$G$5:$G$49,0),1),"") ->  | CI78: =IF(C78=0,""," ["&INDEX(Lists!$H$5:$H$49,MATCH(C78,Lists!$G$5:$G$49,0),1)&"]") -> 
A79: I071 | AS79: 0 | AT79: 0.00 | AW79: =SUMIFS(I$9:I$208,PlanningIDEnlaces,$C79,$H$9:$H$208,Lists!$A$16) -> 0 | AX79: 0 | AZ79: =SUMIFS(L$9:L$208,PlanningIDEnlaces,$C79,$H$9:$H$208,Lists!$A$16) -> 0 | BA79: 0 | BC79: =SUMIFS(O$9:O$208,PlanningIDEnlaces,$C79,$H$9:$H$208,Lists!$A$16) -> 0 | BD79: 0 | BF79: =SUMIFS(R$9:R$208,PlanningIDEnlaces,$C79,$H$9:$H$208,Lists!$A$16) -> 0 | BG79: 0 | BI79: =SUMIFS(U$9:U$208,PlanningIDEnlaces,$C79,$H$9:$H$208,Lists!$A$16) -> 0 | BJ79: 0 | BL79: =SUMIFS(X$9:X$208,PlanningIDEnlaces,$C79,$H$9:$H$208,Lists!$A$16) -> 0 | BM79: 0 | BO79: =SUMIFS(AA$9:AA$208,PlanningIDEnlaces,$C79,$H$9:$H$208,Lists!$A$16) -> 0 | BP79: 0 | BR79: =SUMIFS(AD$9:AD$208,PlanningIDEnlaces,$C79,$H$9:$H$208,Lists!$A$16) -> 0 | BS79: 0 | BU79: =SUMIFS(AG$9:AG$208,PlanningIDEnlaces,$C79,$H$9:$H$208,Lists!$A$16) -> 0 | BV79: 0 | BX79: =SUMIFS(AJ$9:AJ$208,PlanningIDEnlaces,$C79,$H$9:$H$208,Lists!$A$16) -> 0 | BY79: 0 | CA79: =SUMIFS(AM$9:AM$208,PlanningIDEnlaces,$C79,$H$9:$H$208,Lists!$A$16) -> 0 | CB79: 0 | CD79: =SUMIFS(AP$9:AP$208,PlanningIDEnlaces,$C79,$H$9:$H$208,Lists!$A$16) -> 0 | CE79: 0 | CG79: =IFERROR(INDEX(Lists!$F$5:$F$49,MATCH(Planning!C79,Lists!$G$5:$G$49,0),1),"") ->  | CI79: =IF(C79=0,""," ["&INDEX(Lists!$H$5:$H$49,MATCH(C79,Lists!$G$5:$G$49,0),1)&"]") -> 
A80: I072 | AS80: 0 | AT80: 0.00 | AW80: =SUMIFS(I$9:I$208,PlanningIDEnlaces,$C80,$H$9:$H$208,Lists!$A$16) -> 0 | AX80: 0 | AZ80: =SUMIFS(L$9:L$208,PlanningIDEnlaces,$C80,$H$9:$H$208,Lists!$A$16) -> 0 | BA80: 0 | BC80: =SUMIFS(O$9:O$208,PlanningIDEnlaces,$C80,$H$9:$H$208,Lists!$A$16) -> 0 | BD80: 0 | BF80: =SUMIFS(R$9:R$208,PlanningIDEnlaces,$C80,$H$9:$H$208,Lists!$A$16) -> 0 | BG80: 0 | BI80: =SUMIFS(U$9:U$208,PlanningIDEnlaces,$C80,$H$9:$H$208,Lists!$A$16) -> 0 | BJ80: 0 | BL80: =SUMIFS(X$9:X$208,PlanningIDEnlaces,$C80,$H$9:$H$208,Lists!$A$16) -> 0 | BM80: 0 | BO80: =SUMIFS(AA$9:AA$208,PlanningIDEnlaces,$C80,$H$9:$H$208,Lists!$A$16) -> 0 | BP80: 0 | BR80: =SUMIFS(AD$9:AD$208,PlanningIDEnlaces,$C80,$H$9:$H$208,Lists!$A$16) -> 0 | BS80: 0 | BU80: =SUMIFS(AG$9:AG$208,PlanningIDEnlaces,$C80,$H$9:$H$208,Lists!$A$16) -> 0 | BV80: 0 | BX80: =SUMIFS(AJ$9:AJ$208,PlanningIDEnlaces,$C80,$H$9:$H$208,Lists!$A$16) -> 0 | BY80: 0 | CA80: =SUMIFS(AM$9:AM$208,PlanningIDEnlaces,$C80,$H$9:$H$208,Lists!$A$16) -> 0 | CB80: 0 | CD80: =SUMIFS(AP$9:AP$208,PlanningIDEnlaces,$C80,$H$9:$H$208,Lists!$A$16) -> 0 | CE80: 0 | CG80: =IFERROR(INDEX(Lists!$F$5:$F$49,MATCH(Planning!C80,Lists!$G$5:$G$49,0),1),"") ->  | CI80: =IF(C80=0,""," ["&INDEX(Lists!$H$5:$H$49,MATCH(C80,Lists!$G$5:$G$49,0),1)&"]") -> 
A81: I073 | AS81: 0 | AT81: 0.00 | AW81: =SUMIFS(I$9:I$208,PlanningIDEnlaces,$C81,$H$9:$H$208,Lists!$A$16) -> 0 | AX81: 0 | AZ81: =SUMIFS(L$9:L$208,PlanningIDEnlaces,$C81,$H$9:$H$208,Lists!$A$16) -> 0 | BA81: 0 | BC81: =SUMIFS(O$9:O$208,PlanningIDEnlaces,$C81,$H$9:$H$208,Lists!$A$16) -> 0 | BD81: 0 | BF81: =SUMIFS(R$9:R$208,PlanningIDEnlaces,$C81,$H$9:$H$208,Lists!$A$16) -> 0 | BG81: 0 | BI81: =SUMIFS(U$9:U$208,PlanningIDEnlaces,$C81,$H$9:$H$208,Lists!$A$16) -> 0 | BJ81: 0 | BL81: =SUMIFS(X$9:X$208,PlanningIDEnlaces,$C81,$H$9:$H$208,Lists!$A$16) -> 0 | BM81: 0 | BO81: =SUMIFS(AA$9:AA$208,PlanningIDEnlaces,$C81,$H$9:$H$208,Lists!$A$16) -> 0 | BP81: 0 | BR81: =SUMIFS(AD$9:AD$208,PlanningIDEnlaces,$C81,$H$9:$H$208,Lists!$A$16) -> 0 | BS81: 0 | BU81: =SUMIFS(AG$9:AG$208,PlanningIDEnlaces,$C81,$H$9:$H$208,Lists!$A$16) -> 0 | BV81: 0 | BX81: =SUMIFS(AJ$9:AJ$208,PlanningIDEnlaces,$C81,$H$9:$H$208,Lists!$A$16) -> 0 | BY81: 0 | CA81: =SUMIFS(AM$9:AM$208,PlanningIDEnlaces,$C81,$H$9:$H$208,Lists!$A$16) -> 0 | CB81: 0 | CD81: =SUMIFS(AP$9:AP$208,PlanningIDEnlaces,$C81,$H$9:$H$208,Lists!$A$16) -> 0 | CE81: 0 | CG81: =IFERROR(INDEX(Lists!$F$5:$F$49,MATCH(Planning!C81,Lists!$G$5:$G$49,0),1),"") ->  | CI81: =IF(C81=0,""," ["&INDEX(Lists!$H$5:$H$49,MATCH(C81,Lists!$G$5:$G$49,0),1)&"]") -> 
A82: I074 | AS82: 0 | AT82: 0.00 | AW82: =SUMIFS(I$9:I$208,PlanningIDEnlaces,$C82,$H$9:$H$208,Lists!$A$16) -> 0 | AX82: 0 | AZ82: =SUMIFS(L$9:L$208,PlanningIDEnlaces,$C82,$H$9:$H$208,Lists!$A$16) -> 0 | BA82: 0 | BC82: =SUMIFS(O$9:O$208,PlanningIDEnlaces,$C82,$H$9:$H$208,Lists!$A$16) -> 0 | BD82: 0 | BF82: =SUMIFS(R$9:R$208,PlanningIDEnlaces,$C82,$H$9:$H$208,Lists!$A$16) -> 0 | BG82: 0 | BI82: =SUMIFS(U$9:U$208,PlanningIDEnlaces,$C82,$H$9:$H$208,Lists!$A$16) -> 0 | BJ82: 0 | BL82: =SUMIFS(X$9:X$208,PlanningIDEnlaces,$C82,$H$9:$H$208,Lists!$A$16) -> 0 | BM82: 0 | BO82: =SUMIFS(AA$9:AA$208,PlanningIDEnlaces,$C82,$H$9:$H$208,Lists!$A$16) -> 0 | BP82: 0 | BR82: =SUMIFS(AD$9:AD$208,PlanningIDEnlaces,$C82,$H$9:$H$208,Lists!$A$16) -> 0 | BS82: 0 | BU82: =SUMIFS(AG$9:AG$208,PlanningIDEnlaces,$C82,$H$9:$H$208,Lists!$A$16) -> 0 | BV82: 0 | BX82: =SUMIFS(AJ$9:AJ$208,PlanningIDEnlaces,$C82,$H$9:$H$208,Lists!$A$16) -> 0 | BY82: 0 | CA82: =SUMIFS(AM$9:AM$208,PlanningIDEnlaces,$C82,$H$9:$H$208,Lists!$A$16) -> 0 | CB82: 0 | CD82: =SUMIFS(AP$9:AP$208,PlanningIDEnlaces,$C82,$H$9:$H$208,Lists!$A$16) -> 0 | CE82: 0 | CG82: =IFERROR(INDEX(Lists!$F$5:$F$49,MATCH(Planning!C82,Lists!$G$5:$G$49,0),1),"") ->  | CI82: =IF(C82=0,""," ["&INDEX(Lists!$H$5:$H$49,MATCH(C82,Lists!$G$5:$G$49,0),1)&"]") -> 
A83: I075 | AS83: 0 | AT83: 0.00 | AW83: =SUMIFS(I$9:I$208,PlanningIDEnlaces,$C83,$H$9:$H$208,Lists!$A$16) -> 0 | AX83: 0 | AZ83: =SUMIFS(L$9:L$208,PlanningIDEnlaces,$C83,$H$9:$H$208,Lists!$A$16) -> 0 | BA83: 0 | BC83: =SUMIFS(O$9:O$208,PlanningIDEnlaces,$C83,$H$9:$H$208,Lists!$A$16) -> 0 | BD83: 0 | BF83: =SUMIFS(R$9:R$208,PlanningIDEnlaces,$C83,$H$9:$H$208,Lists!$A$16) -> 0 | BG83: 0 | BI83: =SUMIFS(U$9:U$208,PlanningIDEnlaces,$C83,$H$9:$H$208,Lists!$A$16) -> 0 | BJ83: 0 | BL83: =SUMIFS(X$9:X$208,PlanningIDEnlaces,$C83,$H$9:$H$208,Lists!$A$16) -> 0 | BM83: 0 | BO83: =SUMIFS(AA$9:AA$208,PlanningIDEnlaces,$C83,$H$9:$H$208,Lists!$A$16) -> 0 | BP83: 0 | BR83: =SUMIFS(AD$9:AD$208,PlanningIDEnlaces,$C83,$H$9:$H$208,Lists!$A$16) -> 0 | BS83: 0 | BU83: =SUMIFS(AG$9:AG$208,PlanningIDEnlaces,$C83,$H$9:$H$208,Lists!$A$16) -> 0 | BV83: 0 | BX83: =SUMIFS(AJ$9:AJ$208,PlanningIDEnlaces,$C83,$H$9:$H$208,Lists!$A$16) -> 0 | BY83: 0 | CA83: =SUMIFS(AM$9:AM$208,PlanningIDEnlaces,$C83,$H$9:$H$208,Lists!$A$16) -> 0 | CB83: 0 | CD83: =SUMIFS(AP$9:AP$208,PlanningIDEnlaces,$C83,$H$9:$H$208,Lists!$A$16) -> 0 | CE83: 0 | CG83: =IFERROR(INDEX(Lists!$F$5:$F$49,MATCH(Planning!C83,Lists!$G$5:$G$49,0),1),"") ->  | CI83: =IF(C83=0,""," ["&INDEX(Lists!$H$5:$H$49,MATCH(C83,Lists!$G$5:$G$49,0),1)&"]") -> 
A84: I076 | AS84: 0 | AT84: 0.00 | AW84: =SUMIFS(I$9:I$208,PlanningIDEnlaces,$C84,$H$9:$H$208,Lists!$A$16) -> 0 | AX84: 0 | AZ84: =SUMIFS(L$9:L$208,PlanningIDEnlaces,$C84,$H$9:$H$208,Lists!$A$16) -> 0 | BA84: 0 | BC84: =SUMIFS(O$9:O$208,PlanningIDEnlaces,$C84,$H$9:$H$208,Lists!$A$16) -> 0 | BD84: 0 | BF84: =SUMIFS(R$9:R$208,PlanningIDEnlaces,$C84,$H$9:$H$208,Lists!$A$16) -> 0 | BG84: 0 | BI84: =SUMIFS(U$9:U$208,PlanningIDEnlaces,$C84,$H$9:$H$208,Lists!$A$16) -> 0 | BJ84: 0 | BL84: =SUMIFS(X$9:X$208,PlanningIDEnlaces,$C84,$H$9:$H$208,Lists!$A$16) -> 0 | BM84: 0 | BO84: =SUMIFS(AA$9:AA$208,PlanningIDEnlaces,$C84,$H$9:$H$208,Lists!$A$16) -> 0 | BP84: 0 | BR84: =SUMIFS(AD$9:AD$208,PlanningIDEnlaces,$C84,$H$9:$H$208,Lists!$A$16) -> 0 | BS84: 0 | BU84: =SUMIFS(AG$9:AG$208,PlanningIDEnlaces,$C84,$H$9:$H$208,Lists!$A$16) -> 0 | BV84: 0 | BX84: =SUMIFS(AJ$9:AJ$208,PlanningIDEnlaces,$C84,$H$9:$H$208,Lists!$A$16) -> 0 | BY84: 0 | CA84: =SUMIFS(AM$9:AM$208,PlanningIDEnlaces,$C84,$H$9:$H$208,Lists!$A$16) -> 0 | CB84: 0 | CD84: =SUMIFS(AP$9:AP$208,PlanningIDEnlaces,$C84,$H$9:$H$208,Lists!$A$16) -> 0 | CE84: 0 | CG84: =IFERROR(INDEX(Lists!$F$5:$F$49,MATCH(Planning!C84,Lists!$G$5:$G$49,0),1),"") ->  | CI84: =IF(C84=0,""," ["&INDEX(Lists!$H$5:$H$49,MATCH(C84,Lists!$G$5:$G$49,0),1)&"]") -> 
A85: I077 | AS85: 0 | AT85: 0.00 | AW85: =SUMIFS(I$9:I$208,PlanningIDEnlaces,$C85,$H$9:$H$208,Lists!$A$16) -> 0 | AX85: 0 | AZ85: =SUMIFS(L$9:L$208,PlanningIDEnlaces,$C85,$H$9:$H$208,Lists!$A$16) -> 0 | BA85: 0 | BC85: =SUMIFS(O$9:O$208,PlanningIDEnlaces,$C85,$H$9:$H$208,Lists!$A$16) -> 0 | BD85: 0 | BF85: =SUMIFS(R$9:R$208,PlanningIDEnlaces,$C85,$H$9:$H$208,Lists!$A$16) -> 0 | BG85: 0 | BI85: =SUMIFS(U$9:U$208,PlanningIDEnlaces,$C85,$H$9:$H$208,Lists!$A$16) -> 0 | BJ85: 0 | BL85: =SUMIFS(X$9:X$208,PlanningIDEnlaces,$C85,$H$9:$H$208,Lists!$A$16) -> 0 | BM85: 0 | BO85: =SUMIFS(AA$9:AA$208,PlanningIDEnlaces,$C85,$H$9:$H$208,Lists!$A$16) -> 0 | BP85: 0 | BR85: =SUMIFS(AD$9:AD$208,PlanningIDEnlaces,$C85,$H$9:$H$208,Lists!$A$16) -> 0 | BS85: 0 | BU85: =SUMIFS(AG$9:AG$208,PlanningIDEnlaces,$C85,$H$9:$H$208,Lists!$A$16) -> 0 | BV85: 0 | BX85: =SUMIFS(AJ$9:AJ$208,PlanningIDEnlaces,$C85,$H$9:$H$208,Lists!$A$16) -> 0 | BY85: 0 | CA85: =SUMIFS(AM$9:AM$208,PlanningIDEnlaces,$C85,$H$9:$H$208,Lists!$A$16) -> 0 | CB85: 0 | CD85: =SUMIFS(AP$9:AP$208,PlanningIDEnlaces,$C85,$H$9:$H$208,Lists!$A$16) -> 0 | CE85: 0 | CG85: =IFERROR(INDEX(Lists!$F$5:$F$49,MATCH(Planning!C85,Lists!$G$5:$G$49,0),1),"") ->  | CI85: =IF(C85=0,""," ["&INDEX(Lists!$H$5:$H$49,MATCH(C85,Lists!$G$5:$G$49,0),1)&"]") -> 
A86: I078 | AS86: 0 | AT86: 0.00 | AW86: =SUMIFS(I$9:I$208,PlanningIDEnlaces,$C86,$H$9:$H$208,Lists!$A$16) -> 0 | AX86: 0 | AZ86: =SUMIFS(L$9:L$208,PlanningIDEnlaces,$C86,$H$9:$H$208,Lists!$A$16) -> 0 | BA86: 0 | BC86: =SUMIFS(O$9:O$208,PlanningIDEnlaces,$C86,$H$9:$H$208,Lists!$A$16) -> 0 | BD86: 0 | BF86: =SUMIFS(R$9:R$208,PlanningIDEnlaces,$C86,$H$9:$H$208,Lists!$A$16) -> 0 | BG86: 0 | BI86: =SUMIFS(U$9:U$208,PlanningIDEnlaces,$C86,$H$9:$H$208,Lists!$A$16) -> 0 | BJ86: 0 | BL86: =SUMIFS(X$9:X$208,PlanningIDEnlaces,$C86,$H$9:$H$208,Lists!$A$16) -> 0 | BM86: 0 | BO86: =SUMIFS(AA$9:AA$208,PlanningIDEnlaces,$C86,$H$9:$H$208,Lists!$A$16) -> 0 | BP86: 0 | BR86: =SUMIFS(AD$9:AD$208,PlanningIDEnlaces,$C86,$H$9:$H$208,Lists!$A$16) -> 0 | BS86: 0 | BU86: =SUMIFS(AG$9:AG$208,PlanningIDEnlaces,$C86,$H$9:$H$208,Lists!$A$16) -> 0 | BV86: 0 | BX86: =SUMIFS(AJ$9:AJ$208,PlanningIDEnlaces,$C86,$H$9:$H$208,Lists!$A$16) -> 0 | BY86: 0 | CA86: =SUMIFS(AM$9:AM$208,PlanningIDEnlaces,$C86,$H$9:$H$208,Lists!$A$16) -> 0 | CB86: 0 | CD86: =SUMIFS(AP$9:AP$208,PlanningIDEnlaces,$C86,$H$9:$H$208,Lists!$A$16) -> 0 | CE86: 0 | CG86: =IFERROR(INDEX(Lists!$F$5:$F$49,MATCH(Planning!C86,Lists!$G$5:$G$49,0),1),"") ->  | CI86: =IF(C86=0,""," ["&INDEX(Lists!$H$5:$H$49,MATCH(C86,Lists!$G$5:$G$49,0),1)&"]") -> 
A87: I079 | AS87: 0 | AT87: 0.00 | AW87: =SUMIFS(I$9:I$208,PlanningIDEnlaces,$C87,$H$9:$H$208,Lists!$A$16) -> 0 | AX87: 0 | AZ87: =SUMIFS(L$9:L$208,PlanningIDEnlaces,$C87,$H$9:$H$208,Lists!$A$16) -> 0 | BA87: 0 | BC87: =SUMIFS(O$9:O$208,PlanningIDEnlaces,$C87,$H$9:$H$208,Lists!$A$16) -> 0 | BD87: 0 | BF87: =SUMIFS(R$9:R$208,PlanningIDEnlaces,$C87,$H$9:$H$208,Lists!$A$16) -> 0 | BG87: 0 | BI87: =SUMIFS(U$9:U$208,PlanningIDEnlaces,$C87,$H$9:$H$208,Lists!$A$16) -> 0 | BJ87: 0 | BL87: =SUMIFS(X$9:X$208,PlanningIDEnlaces,$C87,$H$9:$H$208,Lists!$A$16) -> 0 | BM87: 0 | BO87: =SUMIFS(AA$9:AA$208,PlanningIDEnlaces,$C87,$H$9:$H$208,Lists!$A$16) -> 0 | BP87: 0 | BR87: =SUMIFS(AD$9:AD$208,PlanningIDEnlaces,$C87,$H$9:$H$208,Lists!$A$16) -> 0 | BS87: 0 | BU87: =SUMIFS(AG$9:AG$208,PlanningIDEnlaces,$C87,$H$9:$H$208,Lists!$A$16) -> 0 | BV87: 0 | BX87: =SUMIFS(AJ$9:AJ$208,PlanningIDEnlaces,$C87,$H$9:$H$208,Lists!$A$16) -> 0 | BY87: 0 | CA87: =SUMIFS(AM$9:AM$208,PlanningIDEnlaces,$C87,$H$9:$H$208,Lists!$A$16) -> 0 | CB87: 0 | CD87: =SUMIFS(AP$9:AP$208,PlanningIDEnlaces,$C87,$H$9:$H$208,Lists!$A$16) -> 0 | CE87: 0 | CG87: =IFERROR(INDEX(Lists!$F$5:$F$49,MATCH(Planning!C87,Lists!$G$5:$G$49,0),1),"") ->  | CI87: =IF(C87=0,""," ["&INDEX(Lists!$H$5:$H$49,MATCH(C87,Lists!$G$5:$G$49,0),1)&"]") -> 
A88: I080 | AS88: 0 | AT88: 0.00 | AW88: =SUMIFS(I$9:I$208,PlanningIDEnlaces,$C88,$H$9:$H$208,Lists!$A$16) -> 0 | AX88: 0 | AZ88: =SUMIFS(L$9:L$208,PlanningIDEnlaces,$C88,$H$9:$H$208,Lists!$A$16) -> 0 | BA88: 0 | BC88: =SUMIFS(O$9:O$208,PlanningIDEnlaces,$C88,$H$9:$H$208,Lists!$A$16) -> 0 | BD88: 0 | BF88: =SUMIFS(R$9:R$208,PlanningIDEnlaces,$C88,$H$9:$H$208,Lists!$A$16) -> 0 | BG88: 0 | BI88: =SUMIFS(U$9:U$208,PlanningIDEnlaces,$C88,$H$9:$H$208,Lists!$A$16) -> 0 | BJ88: 0 | BL88: =SUMIFS(X$9:X$208,PlanningIDEnlaces,$C88,$H$9:$H$208,Lists!$A$16) -> 0 | BM88: 0 | BO88: =SUMIFS(AA$9:AA$208,PlanningIDEnlaces,$C88,$H$9:$H$208,Lists!$A$16) -> 0 | BP88: 0 | BR88: =SUMIFS(AD$9:AD$208,PlanningIDEnlaces,$C88,$H$9:$H$208,Lists!$A$16) -> 0 | BS88: 0 | BU88: =SUMIFS(AG$9:AG$208,PlanningIDEnlaces,$C88,$H$9:$H$208,Lists!$A$16) -> 0 | BV88: 0 | BX88: =SUMIFS(AJ$9:AJ$208,PlanningIDEnlaces,$C88,$H$9:$H$208,Lists!$A$16) -> 0 | BY88: 0 | CA88: =SUMIFS(AM$9:AM$208,PlanningIDEnlaces,$C88,$H$9:$H$208,Lists!$A$16) -> 0 | CB88: 0 | CD88: =SUMIFS(AP$9:AP$208,PlanningIDEnlaces,$C88,$H$9:$H$208,Lists!$A$16) -> 0 | CE88: 0 | CG88: =IFERROR(INDEX(Lists!$F$5:$F$49,MATCH(Planning!C88,Lists!$G$5:$G$49,0),1),"") ->  | CI88: =IF(C88=0,""," ["&INDEX(Lists!$H$5:$H$49,MATCH(C88,Lists!$G$5:$G$49,0),1)&"]") -> 
A89: I081 | AS89: 0 | AT89: 0.00 | AW89: =SUMIFS(I$9:I$208,PlanningIDEnlaces,$C89,$H$9:$H$208,Lists!$A$16) -> 0 | AX89: 0 | AZ89: =SUMIFS(L$9:L$208,PlanningIDEnlaces,$C89,$H$9:$H$208,Lists!$A$16) -> 0 | BA89: 0 | BC89: =SUMIFS(O$9:O$208,PlanningIDEnlaces,$C89,$H$9:$H$208,Lists!$A$16) -> 0 | BD89: 0 | BF89: =SUMIFS(R$9:R$208,PlanningIDEnlaces,$C89,$H$9:$H$208,Lists!$A$16) -> 0 | BG89: 0 | BI89: =SUMIFS(U$9:U$208,PlanningIDEnlaces,$C89,$H$9:$H$208,Lists!$A$16) -> 0 | BJ89: 0 | BL89: =SUMIFS(X$9:X$208,PlanningIDEnlaces,$C89,$H$9:$H$208,Lists!$A$16) -> 0 | BM89: 0 | BO89: =SUMIFS(AA$9:AA$208,PlanningIDEnlaces,$C89,$H$9:$H$208,Lists!$A$16) -> 0 | BP89: 0 | BR89: =SUMIFS(AD$9:AD$208,PlanningIDEnlaces,$C89,$H$9:$H$208,Lists!$A$16) -> 0 | BS89: 0 | BU89: =SUMIFS(AG$9:AG$208,PlanningIDEnlaces,$C89,$H$9:$H$208,Lists!$A$16) -> 0 | BV89: 0 | BX89: =SUMIFS(AJ$9:AJ$208,PlanningIDEnlaces,$C89,$H$9:$H$208,Lists!$A$16) -> 0 | BY89: 0 | CA89: =SUMIFS(AM$9:AM$208,PlanningIDEnlaces,$C89,$H$9:$H$208,Lists!$A$16) -> 0 | CB89: 0 | CD89: =SUMIFS(AP$9:AP$208,PlanningIDEnlaces,$C89,$H$9:$H$208,Lists!$A$16) -> 0 | CE89: 0 | CG89: =IFERROR(INDEX(Lists!$F$5:$F$49,MATCH(Planning!C89,Lists!$G$5:$G$49,0),1),"") ->  | CI89: =IF(C89=0,""," ["&INDEX(Lists!$H$5:$H$49,MATCH(C89,Lists!$G$5:$G$49,0),1)&"]") -> 
A90: I082 | AS90: 0 | AT90: 0.00 | AW90: =SUMIFS(I$9:I$208,PlanningIDEnlaces,$C90,$H$9:$H$208,Lists!$A$16) -> 0 | AX90: 0 | AZ90: =SUMIFS(L$9:L$208,PlanningIDEnlaces,$C90,$H$9:$H$208,Lists!$A$16) -> 0 | BA90: 0 | BC90: =SUMIFS(O$9:O$208,PlanningIDEnlaces,$C90,$H$9:$H$208,Lists!$A$16) -> 0 | BD90: 0 | BF90: =SUMIFS(R$9:R$208,PlanningIDEnlaces,$C90,$H$9:$H$208,Lists!$A$16) -> 0 | BG90: 0 | BI90: =SUMIFS(U$9:U$208,PlanningIDEnlaces,$C90,$H$9:$H$208,Lists!$A$16) -> 0 | BJ90: 0 | BL90: =SUMIFS(X$9:X$208,PlanningIDEnlaces,$C90,$H$9:$H$208,Lists!$A$16) -> 0 | BM90: 0 | BO90: =SUMIFS(AA$9:AA$208,PlanningIDEnlaces,$C90,$H$9:$H$208,Lists!$A$16) -> 0 | BP90: 0 | BR90: =SUMIFS(AD$9:AD$208,PlanningIDEnlaces,$C90,$H$9:$H$208,Lists!$A$16) -> 0 | BS90: 0 | BU90: =SUMIFS(AG$9:AG$208,PlanningIDEnlaces,$C90,$H$9:$H$208,Lists!$A$16) -> 0 | BV90: 0 | BX90: =SUMIFS(AJ$9:AJ$208,PlanningIDEnlaces,$C90,$H$9:$H$208,Lists!$A$16) -> 0 | BY90: 0 | CA90: =SUMIFS(AM$9:AM$208,PlanningIDEnlaces,$C90,$H$9:$H$208,Lists!$A$16) -> 0 | CB90: 0 | CD90: =SUMIFS(AP$9:AP$208,PlanningIDEnlaces,$C90,$H$9:$H$208,Lists!$A$16) -> 0 | CE90: 0 | CG90: =IFERROR(INDEX(Lists!$F$5:$F$49,MATCH(Planning!C90,Lists!$G$5:$G$49,0),1),"") ->  | CI90: =IF(C90=0,""," ["&INDEX(Lists!$H$5:$H$49,MATCH(C90,Lists!$G$5:$G$49,0),1)&"]") -> 
A91: I083 | AS91: 0 | AT91: 0.00 | AW91: =SUMIFS(I$9:I$208,PlanningIDEnlaces,$C91,$H$9:$H$208,Lists!$A$16) -> 0 | AX91: 0 | AZ91: =SUMIFS(L$9:L$208,PlanningIDEnlaces,$C91,$H$9:$H$208,Lists!$A$16) -> 0 | BA91: 0 | BC91: =SUMIFS(O$9:O$208,PlanningIDEnlaces,$C91,$H$9:$H$208,Lists!$A$16) -> 0 | BD91: 0 | BF91: =SUMIFS(R$9:R$208,PlanningIDEnlaces,$C91,$H$9:$H$208,Lists!$A$16) -> 0 | BG91: 0 | BI91: =SUMIFS(U$9:U$208,PlanningIDEnlaces,$C91,$H$9:$H$208,Lists!$A$16) -> 0 | BJ91: 0 | BL91: =SUMIFS(X$9:X$208,PlanningIDEnlaces,$C91,$H$9:$H$208,Lists!$A$16) -> 0 | BM91: 0 | BO91: =SUMIFS(AA$9:AA$208,PlanningIDEnlaces,$C91,$H$9:$H$208,Lists!$A$16) -> 0 | BP91: 0 | BR91: =SUMIFS(AD$9:AD$208,PlanningIDEnlaces,$C91,$H$9:$H$208,Lists!$A$16) -> 0 | BS91: 0 | BU91: =SUMIFS(AG$9:AG$208,PlanningIDEnlaces,$C91,$H$9:$H$208,Lists!$A$16) -> 0 | BV91: 0 | BX91: =SUMIFS(AJ$9:AJ$208,PlanningIDEnlaces,$C91,$H$9:$H$208,Lists!$A$16) -> 0 | BY91: 0 | CA91: =SUMIFS(AM$9:AM$208,PlanningIDEnlaces,$C91,$H$9:$H$208,Lists!$A$16) -> 0 | CB91: 0 | CD91: =SUMIFS(AP$9:AP$208,PlanningIDEnlaces,$C91,$H$9:$H$208,Lists!$A$16) -> 0 | CE91: 0 | CG91: =IFERROR(INDEX(Lists!$F$5:$F$49,MATCH(Planning!C91,Lists!$G$5:$G$49,0),1),"") ->  | CI91: =IF(C91=0,""," ["&INDEX(Lists!$H$5:$H$49,MATCH(C91,Lists!$G$5:$G$49,0),1)&"]") -> 
A92: I084 | AS92: 0 | AT92: 0.00 | AW92: =SUMIFS(I$9:I$208,PlanningIDEnlaces,$C92,$H$9:$H$208,Lists!$A$16) -> 0 | AX92: 0 | AZ92: =SUMIFS(L$9:L$208,PlanningIDEnlaces,$C92,$H$9:$H$208,Lists!$A$16) -> 0 | BA92: 0 | BC92: =SUMIFS(O$9:O$208,PlanningIDEnlaces,$C92,$H$9:$H$208,Lists!$A$16) -> 0 | BD92: 0 | BF92: =SUMIFS(R$9:R$208,PlanningIDEnlaces,$C92,$H$9:$H$208,Lists!$A$16) -> 0 | BG92: 0 | BI92: =SUMIFS(U$9:U$208,PlanningIDEnlaces,$C92,$H$9:$H$208,Lists!$A$16) -> 0 | BJ92: 0 | BL92: =SUMIFS(X$9:X$208,PlanningIDEnlaces,$C92,$H$9:$H$208,Lists!$A$16) -> 0 | BM92: 0 | BO92: =SUMIFS(AA$9:AA$208,PlanningIDEnlaces,$C92,$H$9:$H$208,Lists!$A$16) -> 0 | BP92: 0 | BR92: =SUMIFS(AD$9:AD$208,PlanningIDEnlaces,$C92,$H$9:$H$208,Lists!$A$16) -> 0 | BS92: 0 | BU92: =SUMIFS(AG$9:AG$208,PlanningIDEnlaces,$C92,$H$9:$H$208,Lists!$A$16) -> 0 | BV92: 0 | BX92: =SUMIFS(AJ$9:AJ$208,PlanningIDEnlaces,$C92,$H$9:$H$208,Lists!$A$16) -> 0 | BY92: 0 | CA92: =SUMIFS(AM$9:AM$208,PlanningIDEnlaces,$C92,$H$9:$H$208,Lists!$A$16) -> 0 | CB92: 0 | CD92: =SUMIFS(AP$9:AP$208,PlanningIDEnlaces,$C92,$H$9:$H$208,Lists!$A$16) -> 0 | CE92: 0 | CG92: =IFERROR(INDEX(Lists!$F$5:$F$49,MATCH(Planning!C92,Lists!$G$5:$G$49,0),1),"") ->  | CI92: =IF(C92=0,""," ["&INDEX(Lists!$H$5:$H$49,MATCH(C92,Lists!$G$5:$G$49,0),1)&"]") -> 
A93: I085 | AS93: 0 | AT93: 0.00 | AW93: =SUMIFS(I$9:I$208,PlanningIDEnlaces,$C93,$H$9:$H$208,Lists!$A$16) -> 0 | AX93: 0 | AZ93: =SUMIFS(L$9:L$208,PlanningIDEnlaces,$C93,$H$9:$H$208,Lists!$A$16) -> 0 | BA93: 0 | BC93: =SUMIFS(O$9:O$208,PlanningIDEnlaces,$C93,$H$9:$H$208,Lists!$A$16) -> 0 | BD93: 0 | BF93: =SUMIFS(R$9:R$208,PlanningIDEnlaces,$C93,$H$9:$H$208,Lists!$A$16) -> 0 | BG93: 0 | BI93: =SUMIFS(U$9:U$208,PlanningIDEnlaces,$C93,$H$9:$H$208,Lists!$A$16) -> 0 | BJ93: 0 | BL93: =SUMIFS(X$9:X$208,PlanningIDEnlaces,$C93,$H$9:$H$208,Lists!$A$16) -> 0 | BM93: 0 | BO93: =SUMIFS(AA$9:AA$208,PlanningIDEnlaces,$C93,$H$9:$H$208,Lists!$A$16) -> 0 | BP93: 0 | BR93: =SUMIFS(AD$9:AD$208,PlanningIDEnlaces,$C93,$H$9:$H$208,Lists!$A$16) -> 0 | BS93: 0 | BU93: =SUMIFS(AG$9:AG$208,PlanningIDEnlaces,$C93,$H$9:$H$208,Lists!$A$16) -> 0 | BV93: 0 | BX93: =SUMIFS(AJ$9:AJ$208,PlanningIDEnlaces,$C93,$H$9:$H$208,Lists!$A$16) -> 0 | BY93: 0 | CA93: =SUMIFS(AM$9:AM$208,PlanningIDEnlaces,$C93,$H$9:$H$208,Lists!$A$16) -> 0 | CB93: 0 | CD93: =SUMIFS(AP$9:AP$208,PlanningIDEnlaces,$C93,$H$9:$H$208,Lists!$A$16) -> 0 | CE93: 0 | CG93: =IFERROR(INDEX(Lists!$F$5:$F$49,MATCH(Planning!C93,Lists!$G$5:$G$49,0),1),"") ->  | CI93: =IF(C93=0,""," ["&INDEX(Lists!$H$5:$H$49,MATCH(C93,Lists!$G$5:$G$49,0),1)&"]") -> 
A94: I086 | AS94: 0 | AT94: 0.00 | AW94: =SUMIFS(I$9:I$208,PlanningIDEnlaces,$C94,$H$9:$H$208,Lists!$A$16) -> 0 | AX94: 0 | AZ94: =SUMIFS(L$9:L$208,PlanningIDEnlaces,$C94,$H$9:$H$208,Lists!$A$16) -> 0 | BA94: 0 | BC94: =SUMIFS(O$9:O$208,PlanningIDEnlaces,$C94,$H$9:$H$208,Lists!$A$16) -> 0 | BD94: 0 | BF94: =SUMIFS(R$9:R$208,PlanningIDEnlaces,$C94,$H$9:$H$208,Lists!$A$16) -> 0 | BG94: 0 | BI94: =SUMIFS(U$9:U$208,PlanningIDEnlaces,$C94,$H$9:$H$208,Lists!$A$16) -> 0 | BJ94: 0 | BL94: =SUMIFS(X$9:X$208,PlanningIDEnlaces,$C94,$H$9:$H$208,Lists!$A$16) -> 0 | BM94: 0 | BO94: =SUMIFS(AA$9:AA$208,PlanningIDEnlaces,$C94,$H$9:$H$208,Lists!$A$16) -> 0 | BP94: 0 | BR94: =SUMIFS(AD$9:AD$208,PlanningIDEnlaces,$C94,$H$9:$H$208,Lists!$A$16) -> 0 | BS94: 0 | BU94: =SUMIFS(AG$9:AG$208,PlanningIDEnlaces,$C94,$H$9:$H$208,Lists!$A$16) -> 0 | BV94: 0 | BX94: =SUMIFS(AJ$9:AJ$208,PlanningIDEnlaces,$C94,$H$9:$H$208,Lists!$A$16) -> 0 | BY94: 0 | CA94: =SUMIFS(AM$9:AM$208,PlanningIDEnlaces,$C94,$H$9:$H$208,Lists!$A$16) -> 0 | CB94: 0 | CD94: =SUMIFS(AP$9:AP$208,PlanningIDEnlaces,$C94,$H$9:$H$208,Lists!$A$16) -> 0 | CE94: 0 | CG94: =IFERROR(INDEX(Lists!$F$5:$F$49,MATCH(Planning!C94,Lists!$G$5:$G$49,0),1),"") ->  | CI94: =IF(C94=0,""," ["&INDEX(Lists!$H$5:$H$49,MATCH(C94,Lists!$G$5:$G$49,0),1)&"]") -> 
A95: I087 | AS95: 0 | AT95: 0.00 | AW95: =SUMIFS(I$9:I$208,PlanningIDEnlaces,$C95,$H$9:$H$208,Lists!$A$16) -> 0 | AX95: 0 | AZ95: =SUMIFS(L$9:L$208,PlanningIDEnlaces,$C95,$H$9:$H$208,Lists!$A$16) -> 0 | BA95: 0 | BC95: =SUMIFS(O$9:O$208,PlanningIDEnlaces,$C95,$H$9:$H$208,Lists!$A$16) -> 0 | BD95: 0 | BF95: =SUMIFS(R$9:R$208,PlanningIDEnlaces,$C95,$H$9:$H$208,Lists!$A$16) -> 0 | BG95: 0 | BI95: =SUMIFS(U$9:U$208,PlanningIDEnlaces,$C95,$H$9:$H$208,Lists!$A$16) -> 0 | BJ95: 0 | BL95: =SUMIFS(X$9:X$208,PlanningIDEnlaces,$C95,$H$9:$H$208,Lists!$A$16) -> 0 | BM95: 0 | BO95: =SUMIFS(AA$9:AA$208,PlanningIDEnlaces,$C95,$H$9:$H$208,Lists!$A$16) -> 0 | BP95: 0 | BR95: =SUMIFS(AD$9:AD$208,PlanningIDEnlaces,$C95,$H$9:$H$208,Lists!$A$16) -> 0 | BS95: 0 | BU95: =SUMIFS(AG$9:AG$208,PlanningIDEnlaces,$C95,$H$9:$H$208,Lists!$A$16) -> 0 | BV95: 0 | BX95: =SUMIFS(AJ$9:AJ$208,PlanningIDEnlaces,$C95,$H$9:$H$208,Lists!$A$16) -> 0 | BY95: 0 | CA95: =SUMIFS(AM$9:AM$208,PlanningIDEnlaces,$C95,$H$9:$H$208,Lists!$A$16) -> 0 | CB95: 0 | CD95: =SUMIFS(AP$9:AP$208,PlanningIDEnlaces,$C95,$H$9:$H$208,Lists!$A$16) -> 0 | CE95: 0 | CG95: =IFERROR(INDEX(Lists!$F$5:$F$49,MATCH(Planning!C95,Lists!$G$5:$G$49,0),1),"") ->  | CI95: =IF(C95=0,""," ["&INDEX(Lists!$H$5:$H$49,MATCH(C95,Lists!$G$5:$G$49,0),1)&"]") -> 
A96: I088 | AS96: 0 | AT96: 0.00 | AW96: =SUMIFS(I$9:I$208,PlanningIDEnlaces,$C96,$H$9:$H$208,Lists!$A$16) -> 0 | AX96: 0 | AZ96: =SUMIFS(L$9:L$208,PlanningIDEnlaces,$C96,$H$9:$H$208,Lists!$A$16) -> 0 | BA96: 0 | BC96: =SUMIFS(O$9:O$208,PlanningIDEnlaces,$C96,$H$9:$H$208,Lists!$A$16) -> 0 | BD96: 0 | BF96: =SUMIFS(R$9:R$208,PlanningIDEnlaces,$C96,$H$9:$H$208,Lists!$A$16) -> 0 | BG96: 0 | BI96: =SUMIFS(U$9:U$208,PlanningIDEnlaces,$C96,$H$9:$H$208,Lists!$A$16) -> 0 | BJ96: 0 | BL96: =SUMIFS(X$9:X$208,PlanningIDEnlaces,$C96,$H$9:$H$208,Lists!$A$16) -> 0 | BM96: 0 | BO96: =SUMIFS(AA$9:AA$208,PlanningIDEnlaces,$C96,$H$9:$H$208,Lists!$A$16) -> 0 | BP96: 0 | BR96: =SUMIFS(AD$9:AD$208,PlanningIDEnlaces,$C96,$H$9:$H$208,Lists!$A$16) -> 0 | BS96: 0 | BU96: =SUMIFS(AG$9:AG$208,PlanningIDEnlaces,$C96,$H$9:$H$208,Lists!$A$16) -> 0 | BV96: 0 | BX96: =SUMIFS(AJ$9:AJ$208,PlanningIDEnlaces,$C96,$H$9:$H$208,Lists!$A$16) -> 0 | BY96: 0 | CA96: =SUMIFS(AM$9:AM$208,PlanningIDEnlaces,$C96,$H$9:$H$208,Lists!$A$16) -> 0 | CB96: 0 | CD96: =SUMIFS(AP$9:AP$208,PlanningIDEnlaces,$C96,$H$9:$H$208,Lists!$A$16) -> 0 | CE96: 0 | CG96: =IFERROR(INDEX(Lists!$F$5:$F$49,MATCH(Planning!C96,Lists!$G$5:$G$49,0),1),"") ->  | CI96: =IF(C96=0,""," ["&INDEX(Lists!$H$5:$H$49,MATCH(C96,Lists!$G$5:$G$49,0),1)&"]") -> 
A97: I089 | AS97: 0 | AT97: 0.00 | AW97: =SUMIFS(I$9:I$208,PlanningIDEnlaces,$C97,$H$9:$H$208,Lists!$A$16) -> 0 | AX97: 0 | AZ97: =SUMIFS(L$9:L$208,PlanningIDEnlaces,$C97,$H$9:$H$208,Lists!$A$16) -> 0 | BA97: 0 | BC97: =SUMIFS(O$9:O$208,PlanningIDEnlaces,$C97,$H$9:$H$208,Lists!$A$16) -> 0 | BD97: 0 | BF97: =SUMIFS(R$9:R$208,PlanningIDEnlaces,$C97,$H$9:$H$208,Lists!$A$16) -> 0 | BG97: 0 | BI97: =SUMIFS(U$9:U$208,PlanningIDEnlaces,$C97,$H$9:$H$208,Lists!$A$16) -> 0 | BJ97: 0 | BL97: =SUMIFS(X$9:X$208,PlanningIDEnlaces,$C97,$H$9:$H$208,Lists!$A$16) -> 0 | BM97: 0 | BO97: =SUMIFS(AA$9:AA$208,PlanningIDEnlaces,$C97,$H$9:$H$208,Lists!$A$16) -> 0 | BP97: 0 | BR97: =SUMIFS(AD$9:AD$208,PlanningIDEnlaces,$C97,$H$9:$H$208,Lists!$A$16) -> 0 | BS97: 0 | BU97: =SUMIFS(AG$9:AG$208,PlanningIDEnlaces,$C97,$H$9:$H$208,Lists!$A$16) -> 0 | BV97: 0 | BX97: =SUMIFS(AJ$9:AJ$208,PlanningIDEnlaces,$C97,$H$9:$H$208,Lists!$A$16) -> 0 | BY97: 0 | CA97: =SUMIFS(AM$9:AM$208,PlanningIDEnlaces,$C97,$H$9:$H$208,Lists!$A$16) -> 0 | CB97: 0 | CD97: =SUMIFS(AP$9:AP$208,PlanningIDEnlaces,$C97,$H$9:$H$208,Lists!$A$16) -> 0 | CE97: 0 | CG97: =IFERROR(INDEX(Lists!$F$5:$F$49,MATCH(Planning!C97,Lists!$G$5:$G$49,0),1),"") ->  | CI97: =IF(C97=0,""," ["&INDEX(Lists!$H$5:$H$49,MATCH(C97,Lists!$G$5:$G$49,0),1)&"]") -> 
A98: I090 | AS98: 0 | AT98: 0.00 | AW98: =SUMIFS(I$9:I$208,PlanningIDEnlaces,$C98,$H$9:$H$208,Lists!$A$16) -> 0 | AX98: 0 | AZ98: =SUMIFS(L$9:L$208,PlanningIDEnlaces,$C98,$H$9:$H$208,Lists!$A$16) -> 0 | BA98: 0 | BC98: =SUMIFS(O$9:O$208,PlanningIDEnlaces,$C98,$H$9:$H$208,Lists!$A$16) -> 0 | BD98: 0 | BF98: =SUMIFS(R$9:R$208,PlanningIDEnlaces,$C98,$H$9:$H$208,Lists!$A$16) -> 0 | BG98: 0 | BI98: =SUMIFS(U$9:U$208,PlanningIDEnlaces,$C98,$H$9:$H$208,Lists!$A$16) -> 0 | BJ98: 0 | BL98: =SUMIFS(X$9:X$208,PlanningIDEnlaces,$C98,$H$9:$H$208,Lists!$A$16) -> 0 | BM98: 0 | BO98: =SUMIFS(AA$9:AA$208,PlanningIDEnlaces,$C98,$H$9:$H$208,Lists!$A$16) -> 0 | BP98: 0 | BR98: =SUMIFS(AD$9:AD$208,PlanningIDEnlaces,$C98,$H$9:$H$208,Lists!$A$16) -> 0 | BS98: 0 | BU98: =SUMIFS(AG$9:AG$208,PlanningIDEnlaces,$C98,$H$9:$H$208,Lists!$A$16) -> 0 | BV98: 0 | BX98: =SUMIFS(AJ$9:AJ$208,PlanningIDEnlaces,$C98,$H$9:$H$208,Lists!$A$16) -> 0 | BY98: 0 | CA98: =SUMIFS(AM$9:AM$208,PlanningIDEnlaces,$C98,$H$9:$H$208,Lists!$A$16) -> 0 | CB98: 0 | CD98: =SUMIFS(AP$9:AP$208,PlanningIDEnlaces,$C98,$H$9:$H$208,Lists!$A$16) -> 0 | CE98: 0 | CG98: =IFERROR(INDEX(Lists!$F$5:$F$49,MATCH(Planning!C98,Lists!$G$5:$G$49,0),1),"") ->  | CI98: =IF(C98=0,""," ["&INDEX(Lists!$H$5:$H$49,MATCH(C98,Lists!$G$5:$G$49,0),1)&"]") -> 
A99: I091 | AS99: 0 | AT99: 0.00 | AW99: =SUMIFS(I$9:I$208,PlanningIDEnlaces,$C99,$H$9:$H$208,Lists!$A$16) -> 0 | AX99: 0 | AZ99: =SUMIFS(L$9:L$208,PlanningIDEnlaces,$C99,$H$9:$H$208,Lists!$A$16) -> 0 | BA99: 0 | BC99: =SUMIFS(O$9:O$208,PlanningIDEnlaces,$C99,$H$9:$H$208,Lists!$A$16) -> 0 | BD99: 0 | BF99: =SUMIFS(R$9:R$208,PlanningIDEnlaces,$C99,$H$9:$H$208,Lists!$A$16) -> 0 | BG99: 0 | BI99: =SUMIFS(U$9:U$208,PlanningIDEnlaces,$C99,$H$9:$H$208,Lists!$A$16) -> 0 | BJ99: 0 | BL99: =SUMIFS(X$9:X$208,PlanningIDEnlaces,$C99,$H$9:$H$208,Lists!$A$16) -> 0 | BM99: 0 | BO99: =SUMIFS(AA$9:AA$208,PlanningIDEnlaces,$C99,$H$9:$H$208,Lists!$A$16) -> 0 | BP99: 0 | BR99: =SUMIFS(AD$9:AD$208,PlanningIDEnlaces,$C99,$H$9:$H$208,Lists!$A$16) -> 0 | BS99: 0 | BU99: =SUMIFS(AG$9:AG$208,PlanningIDEnlaces,$C99,$H$9:$H$208,Lists!$A$16) -> 0 | BV99: 0 | BX99: =SUMIFS(AJ$9:AJ$208,PlanningIDEnlaces,$C99,$H$9:$H$208,Lists!$A$16) -> 0 | BY99: 0 | CA99: =SUMIFS(AM$9:AM$208,PlanningIDEnlaces,$C99,$H$9:$H$208,Lists!$A$16) -> 0 | CB99: 0 | CD99: =SUMIFS(AP$9:AP$208,PlanningIDEnlaces,$C99,$H$9:$H$208,Lists!$A$16) -> 0 | CE99: 0 | CG99: =IFERROR(INDEX(Lists!$F$5:$F$49,MATCH(Planning!C99,Lists!$G$5:$G$49,0),1),"") ->  | CI99: =IF(C99=0,""," ["&INDEX(Lists!$H$5:$H$49,MATCH(C99,Lists!$G$5:$G$49,0),1)&"]") -> 
A100: I092 | AS100: 0 | AT100: 0.00 | AW100: =SUMIFS(I$9:I$208,PlanningIDEnlaces,$C100,$H$9:$H$208,Lists!$A$16) -> 0 | AX100: 0 | AZ100: =SUMIFS(L$9:L$208,PlanningIDEnlaces,$C100,$H$9:$H$208,Lists!$A$16) -> 0 | BA100: 0 | BC100: =SUMIFS(O$9:O$208,PlanningIDEnlaces,$C100,$H$9:$H$208,Lists!$A$16) -> 0 | BD100: 0 | BF100: =SUMIFS(R$9:R$208,PlanningIDEnlaces,$C100,$H$9:$H$208,Lists!$A$16) -> 0 | BG100: 0 | BI100: =SUMIFS(U$9:U$208,PlanningIDEnlaces,$C100,$H$9:$H$208,Lists!$A$16) -> 0 | BJ100: 0 | BL100: =SUMIFS(X$9:X$208,PlanningIDEnlaces,$C100,$H$9:$H$208,Lists!$A$16) -> 0 | BM100: 0 | BO100: =SUMIFS(AA$9:AA$208,PlanningIDEnlaces,$C100,$H$9:$H$208,Lists!$A$16) -> 0 | BP100: 0 | BR100: =SUMIFS(AD$9:AD$208,PlanningIDEnlaces,$C100,$H$9:$H$208,Lists!$A$16) -> 0 | BS100: 0 | BU100: =SUMIFS(AG$9:AG$208,PlanningIDEnlaces,$C100,$H$9:$H$208,Lists!$A$16) -> 0 | BV100: 0 | BX100: =SUMIFS(AJ$9:AJ$208,PlanningIDEnlaces,$C100,$H$9:$H$208,Lists!$A$16) -> 0 | BY100: 0 | CA100: =SUMIFS(AM$9:AM$208,PlanningIDEnlaces,$C100,$H$9:$H$208,Lists!$A$16) -> 0 | CB100: 0 | CD100: =SUMIFS(AP$9:AP$208,PlanningIDEnlaces,$C100,$H$9:$H$208,Lists!$A$16) -> 0 | CE100: 0 | CG100: =IFERROR(INDEX(Lists!$F$5:$F$49,MATCH(Planning!C100,Lists!$G$5:$G$49,0),1),"") ->  | CI100: =IF(C100=0,""," ["&INDEX(Lists!$H$5:$H$49,MATCH(C100,Lists!$G$5:$G$49,0),1)&"]") -> 
A101: I093 | AS101: 0 | AT101: 0.00 | AW101: =SUMIFS(I$9:I$208,PlanningIDEnlaces,$C101,$H$9:$H$208,Lists!$A$16) -> 0 | AX101: 0 | AZ101: =SUMIFS(L$9:L$208,PlanningIDEnlaces,$C101,$H$9:$H$208,Lists!$A$16) -> 0 | BA101: 0 | BC101: =SUMIFS(O$9:O$208,PlanningIDEnlaces,$C101,$H$9:$H$208,Lists!$A$16) -> 0 | BD101: 0 | BF101: =SUMIFS(R$9:R$208,PlanningIDEnlaces,$C101,$H$9:$H$208,Lists!$A$16) -> 0 | BG101: 0 | BI101: =SUMIFS(U$9:U$208,PlanningIDEnlaces,$C101,$H$9:$H$208,Lists!$A$16) -> 0 | BJ101: 0 | BL101: =SUMIFS(X$9:X$208,PlanningIDEnlaces,$C101,$H$9:$H$208,Lists!$A$16) -> 0 | BM101: 0 | BO101: =SUMIFS(AA$9:AA$208,PlanningIDEnlaces,$C101,$H$9:$H$208,Lists!$A$16) -> 0 | BP101: 0 | BR101: =SUMIFS(AD$9:AD$208,PlanningIDEnlaces,$C101,$H$9:$H$208,Lists!$A$16) -> 0 | BS101: 0 | BU101: =SUMIFS(AG$9:AG$208,PlanningIDEnlaces,$C101,$H$9:$H$208,Lists!$A$16) -> 0 | BV101: 0 | BX101: =SUMIFS(AJ$9:AJ$208,PlanningIDEnlaces,$C101,$H$9:$H$208,Lists!$A$16) -> 0 | BY101: 0 | CA101: =SUMIFS(AM$9:AM$208,PlanningIDEnlaces,$C101,$H$9:$H$208,Lists!$A$16) -> 0 | CB101: 0 | CD101: =SUMIFS(AP$9:AP$208,PlanningIDEnlaces,$C101,$H$9:$H$208,Lists!$A$16) -> 0 | CE101: 0 | CG101: =IFERROR(INDEX(Lists!$F$5:$F$49,MATCH(Planning!C101,Lists!$G$5:$G$49,0),1),"") ->  | CI101: =IF(C101=0,""," ["&INDEX(Lists!$H$5:$H$49,MATCH(C101,Lists!$G$5:$G$49,0),1)&"]") -> 
A102: I094 | AS102: 0 | AT102: 0.00 | AW102: =SUMIFS(I$9:I$208,PlanningIDEnlaces,$C102,$H$9:$H$208,Lists!$A$16) -> 0 | AX102: 0 | AZ102: =SUMIFS(L$9:L$208,PlanningIDEnlaces,$C102,$H$9:$H$208,Lists!$A$16) -> 0 | BA102: 0 | BC102: =SUMIFS(O$9:O$208,PlanningIDEnlaces,$C102,$H$9:$H$208,Lists!$A$16) -> 0 | BD102: 0 | BF102: =SUMIFS(R$9:R$208,PlanningIDEnlaces,$C102,$H$9:$H$208,Lists!$A$16) -> 0 | BG102: 0 | BI102: =SUMIFS(U$9:U$208,PlanningIDEnlaces,$C102,$H$9:$H$208,Lists!$A$16) -> 0 | BJ102: 0 | BL102: =SUMIFS(X$9:X$208,PlanningIDEnlaces,$C102,$H$9:$H$208,Lists!$A$16) -> 0 | BM102: 0 | BO102: =SUMIFS(AA$9:AA$208,PlanningIDEnlaces,$C102,$H$9:$H$208,Lists!$A$16) -> 0 | BP102: 0 | BR102: =SUMIFS(AD$9:AD$208,PlanningIDEnlaces,$C102,$H$9:$H$208,Lists!$A$16) -> 0 | BS102: 0 | BU102: =SUMIFS(AG$9:AG$208,PlanningIDEnlaces,$C102,$H$9:$H$208,Lists!$A$16) -> 0 | BV102: 0 | BX102: =SUMIFS(AJ$9:AJ$208,PlanningIDEnlaces,$C102,$H$9:$H$208,Lists!$A$16) -> 0 | BY102: 0 | CA102: =SUMIFS(AM$9:AM$208,PlanningIDEnlaces,$C102,$H$9:$H$208,Lists!$A$16) -> 0 | CB102: 0 | CD102: =SUMIFS(AP$9:AP$208,PlanningIDEnlaces,$C102,$H$9:$H$208,Lists!$A$16) -> 0 | CE102: 0 | CG102: =IFERROR(INDEX(Lists!$F$5:$F$49,MATCH(Planning!C102,Lists!$G$5:$G$49,0),1),"") ->  | CI102: =IF(C102=0,""," ["&INDEX(Lists!$H$5:$H$49,MATCH(C102,Lists!$G$5:$G$49,0),1)&"]") -> 
A103: I095 | AS103: 0 | AT103: 0.00 | AW103: =SUMIFS(I$9:I$208,PlanningIDEnlaces,$C103,$H$9:$H$208,Lists!$A$16) -> 0 | AX103: 0 | AZ103: =SUMIFS(L$9:L$208,PlanningIDEnlaces,$C103,$H$9:$H$208,Lists!$A$16) -> 0 | BA103: 0 | BC103: =SUMIFS(O$9:O$208,PlanningIDEnlaces,$C103,$H$9:$H$208,Lists!$A$16) -> 0 | BD103: 0 | BF103: =SUMIFS(R$9:R$208,PlanningIDEnlaces,$C103,$H$9:$H$208,Lists!$A$16) -> 0 | BG103: 0 | BI103: =SUMIFS(U$9:U$208,PlanningIDEnlaces,$C103,$H$9:$H$208,Lists!$A$16) -> 0 | BJ103: 0 | BL103: =SUMIFS(X$9:X$208,PlanningIDEnlaces,$C103,$H$9:$H$208,Lists!$A$16) -> 0 | BM103: 0 | BO103: =SUMIFS(AA$9:AA$208,PlanningIDEnlaces,$C103,$H$9:$H$208,Lists!$A$16) -> 0 | BP103: 0 | BR103: =SUMIFS(AD$9:AD$208,PlanningIDEnlaces,$C103,$H$9:$H$208,Lists!$A$16) -> 0 | BS103: 0 | BU103: =SUMIFS(AG$9:AG$208,PlanningIDEnlaces,$C103,$H$9:$H$208,Lists!$A$16) -> 0 | BV103: 0 | BX103: =SUMIFS(AJ$9:AJ$208,PlanningIDEnlaces,$C103,$H$9:$H$208,Lists!$A$16) -> 0 | BY103: 0 | CA103: =SUMIFS(AM$9:AM$208,PlanningIDEnlaces,$C103,$H$9:$H$208,Lists!$A$16) -> 0 | CB103: 0 | CD103: =SUMIFS(AP$9:AP$208,PlanningIDEnlaces,$C103,$H$9:$H$208,Lists!$A$16) -> 0 | CE103: 0 | CG103: =IFERROR(INDEX(Lists!$F$5:$F$49,MATCH(Planning!C103,Lists!$G$5:$G$49,0),1),"") ->  | CI103: =IF(C103=0,""," ["&INDEX(Lists!$H$5:$H$49,MATCH(C103,Lists!$G$5:$G$49,0),1)&"]") -> 
A104: I096 | AS104: 0 | AT104: 0.00 | AW104: =SUMIFS(I$9:I$208,PlanningIDEnlaces,$C104,$H$9:$H$208,Lists!$A$16) -> 0 | AX104: 0 | AZ104: =SUMIFS(L$9:L$208,PlanningIDEnlaces,$C104,$H$9:$H$208,Lists!$A$16) -> 0 | BA104: 0 | BC104: =SUMIFS(O$9:O$208,PlanningIDEnlaces,$C104,$H$9:$H$208,Lists!$A$16) -> 0 | BD104: 0 | BF104: =SUMIFS(R$9:R$208,PlanningIDEnlaces,$C104,$H$9:$H$208,Lists!$A$16) -> 0 | BG104: 0 | BI104: =SUMIFS(U$9:U$208,PlanningIDEnlaces,$C104,$H$9:$H$208,Lists!$A$16) -> 0 | BJ104: 0 | BL104: =SUMIFS(X$9:X$208,PlanningIDEnlaces,$C104,$H$9:$H$208,Lists!$A$16) -> 0 | BM104: 0 | BO104: =SUMIFS(AA$9:AA$208,PlanningIDEnlaces,$C104,$H$9:$H$208,Lists!$A$16) -> 0 | BP104: 0 | BR104: =SUMIFS(AD$9:AD$208,PlanningIDEnlaces,$C104,$H$9:$H$208,Lists!$A$16) -> 0 | BS104: 0 | BU104: =SUMIFS(AG$9:AG$208,PlanningIDEnlaces,$C104,$H$9:$H$208,Lists!$A$16) -> 0 | BV104: 0 | BX104: =SUMIFS(AJ$9:AJ$208,PlanningIDEnlaces,$C104,$H$9:$H$208,Lists!$A$16) -> 0 | BY104: 0 | CA104: =SUMIFS(AM$9:AM$208,PlanningIDEnlaces,$C104,$H$9:$H$208,Lists!$A$16) -> 0 | CB104: 0 | CD104: =SUMIFS(AP$9:AP$208,PlanningIDEnlaces,$C104,$H$9:$H$208,Lists!$A$16) -> 0 | CE104: 0 | CG104: =IFERROR(INDEX(Lists!$F$5:$F$49,MATCH(Planning!C104,Lists!$G$5:$G$49,0),1),"") ->  | CI104: =IF(C104=0,""," ["&INDEX(Lists!$H$5:$H$49,MATCH(C104,Lists!$G$5:$G$49,0),1)&"]") -> 
A105: I097 | AS105: =I105+L105+O105+R105+U105+X105+AA105+AD105+AG105+AJ105+AM105+AP105 -> 0 | AT105: =J105+M105+P105+S105+V105+Y105+AB105+AE105+AH105+AK105+AN105+AQ105 -> 0.00 | AW105: =SUMIFS(I$9:I$208,PlanningIDEnlaces,$C105,$H$9:$H$208,Lists!$A$16) -> 0 | AX105: =SUMIFS(J$9:J$208,PlanningIDEnlaces,$C105,$H$9:$H$208,"<>") -> 0 | AZ105: =SUMIFS(L$9:L$208,PlanningIDEnlaces,$C105,$H$9:$H$208,Lists!$A$16) -> 0 | BA105: =SUMIFS(M$9:M$208,PlanningIDEnlaces,$C105,$H$9:$H$208,"<>") -> 0 | BC105: =SUMIFS(O$9:O$208,PlanningIDEnlaces,$C105,$H$9:$H$208,Lists!$A$16) -> 0 | BD105: =SUMIFS(P$9:P$208,PlanningIDEnlaces,$C105,$H$9:$H$208,"<>") -> 0 | BF105: =SUMIFS(R$9:R$208,PlanningIDEnlaces,$C105,$H$9:$H$208,Lists!$A$16) -> 0 | BG105: =SUMIFS(S$9:S$208,PlanningIDEnlaces,$C105,$H$9:$H$208,"<>") -> 0 | BI105: =SUMIFS(U$9:U$208,PlanningIDEnlaces,$C105,$H$9:$H$208,Lists!$A$16) -> 0 | BJ105: =SUMIFS(V$9:V$208,PlanningIDEnlaces,$C105,$H$9:$H$208,"<>") -> 0 | BL105: =SUMIFS(X$9:X$208,PlanningIDEnlaces,$C105,$H$9:$H$208,Lists!$A$16) -> 0 | BM105: =SUMIFS(Y$9:Y$208,PlanningIDEnlaces,$C105,$H$9:$H$208,"<>") -> 0 | BO105: =SUMIFS(AA$9:AA$208,PlanningIDEnlaces,$C105,$H$9:$H$208,Lists!$A$16) -> 0 | BP105: =SUMIFS(AB$9:AB$208,PlanningIDEnlaces,$C105,$H$9:$H$208,"<>") -> 0 | BR105: =SUMIFS(AD$9:AD$208,PlanningIDEnlaces,$C105,$H$9:$H$208,Lists!$A$16) -> 0 | BS105: =SUMIFS(AE$9:AE$208,PlanningIDEnlaces,$C105,$H$9:$H$208,"<>") -> 0 | BU105: =SUMIFS(AG$9:AG$208,PlanningIDEnlaces,$C105,$H$9:$H$208,Lists!$A$16) -> 0 | BV105: =SUMIFS(AH$9:AH$208,PlanningIDEnlaces,$C105,$H$9:$H$208,"<>") -> 0 | BX105: =SUMIFS(AJ$9:AJ$208,PlanningIDEnlaces,$C105,$H$9:$H$208,Lists!$A$16) -> 0 | BY105: =SUMIFS(AK$9:AK$208,PlanningIDEnlaces,$C105,$H$9:$H$208,"<>") -> 0 | CA105: =SUMIFS(AM$9:AM$208,PlanningIDEnlaces,$C105,$H$9:$H$208,Lists!$A$16) -> 0 | CB105: =SUMIFS(AN$9:AN$208,PlanningIDEnlaces,$C105,$H$9:$H$208,"<>") -> 0 | CD105: =SUMIFS(AP$9:AP$208,PlanningIDEnlaces,$C105,$H$9:$H$208,Lists!$A$16) -> 0 | CE105: =SUMIFS(AQ$9:AQ$208,PlanningIDEnlaces,$C105,$H$9:$H$208,"<>") -> 0 | CG105: =IFERROR(INDEX(Lists!$F$5:$F$49,MATCH(Planning!C105,Lists!$G$5:$G$49,0),1),"") ->  | CI105: =IF(C105=0,""," ["&INDEX(Lists!$H$5:$H$49,MATCH(C105,Lists!$G$5:$G$49,0),1)&"]") -> 
A106: I098 | AS106: 0 | AT106: 0.00 | AW106: =SUMIFS(I$9:I$208,PlanningIDEnlaces,$C106,$H$9:$H$208,Lists!$A$16) -> 0 | AX106: 0 | AZ106: =SUMIFS(L$9:L$208,PlanningIDEnlaces,$C106,$H$9:$H$208,Lists!$A$16) -> 0 | BA106: 0 | BC106: =SUMIFS(O$9:O$208,PlanningIDEnlaces,$C106,$H$9:$H$208,Lists!$A$16) -> 0 | BD106: 0 | BF106: =SUMIFS(R$9:R$208,PlanningIDEnlaces,$C106,$H$9:$H$208,Lists!$A$16) -> 0 | BG106: 0 | BI106: =SUMIFS(U$9:U$208,PlanningIDEnlaces,$C106,$H$9:$H$208,Lists!$A$16) -> 0 | BJ106: 0 | BL106: =SUMIFS(X$9:X$208,PlanningIDEnlaces,$C106,$H$9:$H$208,Lists!$A$16) -> 0 | BM106: 0 | BO106: =SUMIFS(AA$9:AA$208,PlanningIDEnlaces,$C106,$H$9:$H$208,Lists!$A$16) -> 0 | BP106: 0 | BR106: =SUMIFS(AD$9:AD$208,PlanningIDEnlaces,$C106,$H$9:$H$208,Lists!$A$16) -> 0 | BS106: 0 | BU106: =SUMIFS(AG$9:AG$208,PlanningIDEnlaces,$C106,$H$9:$H$208,Lists!$A$16) -> 0 | BV106: 0 | BX106: =SUMIFS(AJ$9:AJ$208,PlanningIDEnlaces,$C106,$H$9:$H$208,Lists!$A$16) -> 0 | BY106: 0 | CA106: =SUMIFS(AM$9:AM$208,PlanningIDEnlaces,$C106,$H$9:$H$208,Lists!$A$16) -> 0 | CB106: 0 | CD106: =SUMIFS(AP$9:AP$208,PlanningIDEnlaces,$C106,$H$9:$H$208,Lists!$A$16) -> 0 | CE106: 0 | CG106: =IFERROR(INDEX(Lists!$F$5:$F$49,MATCH(Planning!C106,Lists!$G$5:$G$49,0),1),"") ->  | CI106: =IF(C106=0,""," ["&INDEX(Lists!$H$5:$H$49,MATCH(C106,Lists!$G$5:$G$49,0),1)&"]") -> 
A107: I099 | AS107: 0 | AT107: 0.00 | AW107: =SUMIFS(I$9:I$208,PlanningIDEnlaces,$C107,$H$9:$H$208,Lists!$A$16) -> 0 | AX107: 0 | AZ107: =SUMIFS(L$9:L$208,PlanningIDEnlaces,$C107,$H$9:$H$208,Lists!$A$16) -> 0 | BA107: 0 | BC107: =SUMIFS(O$9:O$208,PlanningIDEnlaces,$C107,$H$9:$H$208,Lists!$A$16) -> 0 | BD107: 0 | BF107: =SUMIFS(R$9:R$208,PlanningIDEnlaces,$C107,$H$9:$H$208,Lists!$A$16) -> 0 | BG107: 0 | BI107: =SUMIFS(U$9:U$208,PlanningIDEnlaces,$C107,$H$9:$H$208,Lists!$A$16) -> 0 | BJ107: 0 | BL107: =SUMIFS(X$9:X$208,PlanningIDEnlaces,$C107,$H$9:$H$208,Lists!$A$16) -> 0 | BM107: 0 | BO107: =SUMIFS(AA$9:AA$208,PlanningIDEnlaces,$C107,$H$9:$H$208,Lists!$A$16) -> 0 | BP107: 0 | BR107: =SUMIFS(AD$9:AD$208,PlanningIDEnlaces,$C107,$H$9:$H$208,Lists!$A$16) -> 0 | BS107: 0 | BU107: =SUMIFS(AG$9:AG$208,PlanningIDEnlaces,$C107,$H$9:$H$208,Lists!$A$16) -> 0 | BV107: 0 | BX107: =SUMIFS(AJ$9:AJ$208,PlanningIDEnlaces,$C107,$H$9:$H$208,Lists!$A$16) -> 0 | BY107: 0 | CA107: =SUMIFS(AM$9:AM$208,PlanningIDEnlaces,$C107,$H$9:$H$208,Lists!$A$16) -> 0 | CB107: 0 | CD107: =SUMIFS(AP$9:AP$208,PlanningIDEnlaces,$C107,$H$9:$H$208,Lists!$A$16) -> 0 | CE107: 0 | CG107: =IFERROR(INDEX(Lists!$F$5:$F$49,MATCH(Planning!C107,Lists!$G$5:$G$49,0),1),"") ->  | CI107: =IF(C107=0,""," ["&INDEX(Lists!$H$5:$H$49,MATCH(C107,Lists!$G$5:$G$49,0),1)&"]") -> 
A108: I100 | AS108: 0 | AT108: 0.00 | AW108: =SUMIFS(I$9:I$208,PlanningIDEnlaces,$C108,$H$9:$H$208,Lists!$A$16) -> 0 | AX108: 0 | AZ108: =SUMIFS(L$9:L$208,PlanningIDEnlaces,$C108,$H$9:$H$208,Lists!$A$16) -> 0 | BA108: 0 | BC108: =SUMIFS(O$9:O$208,PlanningIDEnlaces,$C108,$H$9:$H$208,Lists!$A$16) -> 0 | BD108: 0 | BF108: =SUMIFS(R$9:R$208,PlanningIDEnlaces,$C108,$H$9:$H$208,Lists!$A$16) -> 0 | BG108: 0 | BI108: =SUMIFS(U$9:U$208,PlanningIDEnlaces,$C108,$H$9:$H$208,Lists!$A$16) -> 0 | BJ108: 0 | BL108: =SUMIFS(X$9:X$208,PlanningIDEnlaces,$C108,$H$9:$H$208,Lists!$A$16) -> 0 | BM108: 0 | BO108: =SUMIFS(AA$9:AA$208,PlanningIDEnlaces,$C108,$H$9:$H$208,Lists!$A$16) -> 0 | BP108: 0 | BR108: =SUMIFS(AD$9:AD$208,PlanningIDEnlaces,$C108,$H$9:$H$208,Lists!$A$16) -> 0 | BS108: 0 | BU108: =SUMIFS(AG$9:AG$208,PlanningIDEnlaces,$C108,$H$9:$H$208,Lists!$A$16) -> 0 | BV108: 0 | BX108: =SUMIFS(AJ$9:AJ$208,PlanningIDEnlaces,$C108,$H$9:$H$208,Lists!$A$16) -> 0 | BY108: 0 | CA108: =SUMIFS(AM$9:AM$208,PlanningIDEnlaces,$C108,$H$9:$H$208,Lists!$A$16) -> 0 | CB108: 0 | CD108: =SUMIFS(AP$9:AP$208,PlanningIDEnlaces,$C108,$H$9:$H$208,Lists!$A$16) -> 0 | CE108: 0 | CG108: =IFERROR(INDEX(Lists!$F$5:$F$49,MATCH(Planning!C108,Lists!$G$5:$G$49,0),1),"") ->  | CI108: =IF(C108=0,""," ["&INDEX(Lists!$H$5:$H$49,MATCH(C108,Lists!$G$5:$G$49,0),1)&"]") -> 
A109: I101 | AS109: 0 | AT109: 0.00 | AW109: =SUMIFS(I$9:I$208,PlanningIDEnlaces,$C109,$H$9:$H$208,Lists!$A$16) -> 0 | AX109: 0 | AZ109: =SUMIFS(L$9:L$208,PlanningIDEnlaces,$C109,$H$9:$H$208,Lists!$A$16) -> 0 | BA109: 0 | BC109: =SUMIFS(O$9:O$208,PlanningIDEnlaces,$C109,$H$9:$H$208,Lists!$A$16) -> 0 | BD109: 0 | BF109: =SUMIFS(R$9:R$208,PlanningIDEnlaces,$C109,$H$9:$H$208,Lists!$A$16) -> 0 | BG109: 0 | BI109: =SUMIFS(U$9:U$208,PlanningIDEnlaces,$C109,$H$9:$H$208,Lists!$A$16) -> 0 | BJ109: 0 | BL109: =SUMIFS(X$9:X$208,PlanningIDEnlaces,$C109,$H$9:$H$208,Lists!$A$16) -> 0 | BM109: 0 | BO109: =SUMIFS(AA$9:AA$208,PlanningIDEnlaces,$C109,$H$9:$H$208,Lists!$A$16) -> 0 | BP109: 0 | BR109: =SUMIFS(AD$9:AD$208,PlanningIDEnlaces,$C109,$H$9:$H$208,Lists!$A$16) -> 0 | BS109: 0 | BU109: =SUMIFS(AG$9:AG$208,PlanningIDEnlaces,$C109,$H$9:$H$208,Lists!$A$16) -> 0 | BV109: 0 | BX109: =SUMIFS(AJ$9:AJ$208,PlanningIDEnlaces,$C109,$H$9:$H$208,Lists!$A$16) -> 0 | BY109: 0 | CA109: =SUMIFS(AM$9:AM$208,PlanningIDEnlaces,$C109,$H$9:$H$208,Lists!$A$16) -> 0 | CB109: 0 | CD109: =SUMIFS(AP$9:AP$208,PlanningIDEnlaces,$C109,$H$9:$H$208,Lists!$A$16) -> 0 | CE109: 0 | CG109: =IFERROR(INDEX(Lists!$F$5:$F$49,MATCH(Planning!C109,Lists!$G$5:$G$49,0),1),"") ->  | CI109: =IF(C109=0,""," ["&INDEX(Lists!$H$5:$H$49,MATCH(C109,Lists!$G$5:$G$49,0),1)&"]") -> 
A110: I102 | AS110: 0 | AT110: 0.00 | AW110: =SUMIFS(I$9:I$208,PlanningIDEnlaces,$C110,$H$9:$H$208,Lists!$A$16) -> 0 | AX110: 0 | AZ110: =SUMIFS(L$9:L$208,PlanningIDEnlaces,$C110,$H$9:$H$208,Lists!$A$16) -> 0 | BA110: 0 | BC110: =SUMIFS(O$9:O$208,PlanningIDEnlaces,$C110,$H$9:$H$208,Lists!$A$16) -> 0 | BD110: 0 | BF110: =SUMIFS(R$9:R$208,PlanningIDEnlaces,$C110,$H$9:$H$208,Lists!$A$16) -> 0 | BG110: 0 | BI110: =SUMIFS(U$9:U$208,PlanningIDEnlaces,$C110,$H$9:$H$208,Lists!$A$16) -> 0 | BJ110: 0 | BL110: =SUMIFS(X$9:X$208,PlanningIDEnlaces,$C110,$H$9:$H$208,Lists!$A$16) -> 0 | BM110: 0 | BO110: =SUMIFS(AA$9:AA$208,PlanningIDEnlaces,$C110,$H$9:$H$208,Lists!$A$16) -> 0 | BP110: 0 | BR110: =SUMIFS(AD$9:AD$208,PlanningIDEnlaces,$C110,$H$9:$H$208,Lists!$A$16) -> 0 | BS110: 0 | BU110: =SUMIFS(AG$9:AG$208,PlanningIDEnlaces,$C110,$H$9:$H$208,Lists!$A$16) -> 0 | BV110: 0 | BX110: =SUMIFS(AJ$9:AJ$208,PlanningIDEnlaces,$C110,$H$9:$H$208,Lists!$A$16) -> 0 | BY110: 0 | CA110: =SUMIFS(AM$9:AM$208,PlanningIDEnlaces,$C110,$H$9:$H$208,Lists!$A$16) -> 0 | CB110: 0 | CD110: =SUMIFS(AP$9:AP$208,PlanningIDEnlaces,$C110,$H$9:$H$208,Lists!$A$16) -> 0 | CE110: 0 | CG110: =IFERROR(INDEX(Lists!$F$5:$F$49,MATCH(Planning!C110,Lists!$G$5:$G$49,0),1),"") ->  | CI110: =IF(C110=0,""," ["&INDEX(Lists!$H$5:$H$49,MATCH(C110,Lists!$G$5:$G$49,0),1)&"]") -> 
A111: I103 | AS111: 0 | AT111: 0.00 | AW111: =SUMIFS(I$9:I$208,PlanningIDEnlaces,$C111,$H$9:$H$208,Lists!$A$16) -> 0 | AX111: 0 | AZ111: =SUMIFS(L$9:L$208,PlanningIDEnlaces,$C111,$H$9:$H$208,Lists!$A$16) -> 0 | BA111: 0 | BC111: =SUMIFS(O$9:O$208,PlanningIDEnlaces,$C111,$H$9:$H$208,Lists!$A$16) -> 0 | BD111: 0 | BF111: =SUMIFS(R$9:R$208,PlanningIDEnlaces,$C111,$H$9:$H$208,Lists!$A$16) -> 0 | BG111: 0 | BI111: =SUMIFS(U$9:U$208,PlanningIDEnlaces,$C111,$H$9:$H$208,Lists!$A$16) -> 0 | BJ111: 0 | BL111: =SUMIFS(X$9:X$208,PlanningIDEnlaces,$C111,$H$9:$H$208,Lists!$A$16) -> 0 | BM111: 0 | BO111: =SUMIFS(AA$9:AA$208,PlanningIDEnlaces,$C111,$H$9:$H$208,Lists!$A$16) -> 0 | BP111: 0 | BR111: =SUMIFS(AD$9:AD$208,PlanningIDEnlaces,$C111,$H$9:$H$208,Lists!$A$16) -> 0 | BS111: 0 | BU111: =SUMIFS(AG$9:AG$208,PlanningIDEnlaces,$C111,$H$9:$H$208,Lists!$A$16) -> 0 | BV111: 0 | BX111: =SUMIFS(AJ$9:AJ$208,PlanningIDEnlaces,$C111,$H$9:$H$208,Lists!$A$16) -> 0 | BY111: 0 | CA111: =SUMIFS(AM$9:AM$208,PlanningIDEnlaces,$C111,$H$9:$H$208,Lists!$A$16) -> 0 | CB111: 0 | CD111: =SUMIFS(AP$9:AP$208,PlanningIDEnlaces,$C111,$H$9:$H$208,Lists!$A$16) -> 0 | CE111: 0 | CG111: =IFERROR(INDEX(Lists!$F$5:$F$49,MATCH(Planning!C111,Lists!$G$5:$G$49,0),1),"") ->  | CI111: =IF(C111=0,""," ["&INDEX(Lists!$H$5:$H$49,MATCH(C111,Lists!$G$5:$G$49,0),1)&"]") -> 
A112: I104 | AS112: 0 | AT112: 0.00 | AW112: =SUMIFS(I$9:I$208,PlanningIDEnlaces,$C112,$H$9:$H$208,Lists!$A$16) -> 0 | AX112: 0 | AZ112: =SUMIFS(L$9:L$208,PlanningIDEnlaces,$C112,$H$9:$H$208,Lists!$A$16) -> 0 | BA112: 0 | BC112: =SUMIFS(O$9:O$208,PlanningIDEnlaces,$C112,$H$9:$H$208,Lists!$A$16) -> 0 | BD112: 0 | BF112: =SUMIFS(R$9:R$208,PlanningIDEnlaces,$C112,$H$9:$H$208,Lists!$A$16) -> 0 | BG112: 0 | BI112: =SUMIFS(U$9:U$208,PlanningIDEnlaces,$C112,$H$9:$H$208,Lists!$A$16) -> 0 | BJ112: 0 | BL112: =SUMIFS(X$9:X$208,PlanningIDEnlaces,$C112,$H$9:$H$208,Lists!$A$16) -> 0 | BM112: 0 | BO112: =SUMIFS(AA$9:AA$208,PlanningIDEnlaces,$C112,$H$9:$H$208,Lists!$A$16) -> 0 | BP112: 0 | BR112: =SUMIFS(AD$9:AD$208,PlanningIDEnlaces,$C112,$H$9:$H$208,Lists!$A$16) -> 0 | BS112: 0 | BU112: =SUMIFS(AG$9:AG$208,PlanningIDEnlaces,$C112,$H$9:$H$208,Lists!$A$16) -> 0 | BV112: 0 | BX112: =SUMIFS(AJ$9:AJ$208,PlanningIDEnlaces,$C112,$H$9:$H$208,Lists!$A$16) -> 0 | BY112: 0 | CA112: =SUMIFS(AM$9:AM$208,PlanningIDEnlaces,$C112,$H$9:$H$208,Lists!$A$16) -> 0 | CB112: 0 | CD112: =SUMIFS(AP$9:AP$208,PlanningIDEnlaces,$C112,$H$9:$H$208,Lists!$A$16) -> 0 | CE112: 0 | CG112: =IFERROR(INDEX(Lists!$F$5:$F$49,MATCH(Planning!C112,Lists!$G$5:$G$49,0),1),"") ->  | CI112: =IF(C112=0,""," ["&INDEX(Lists!$H$5:$H$49,MATCH(C112,Lists!$G$5:$G$49,0),1)&"]") -> 
A113: I105 | AS113: 0 | AT113: 0.00 | AW113: =SUMIFS(I$9:I$208,PlanningIDEnlaces,$C113,$H$9:$H$208,Lists!$A$16) -> 0 | AX113: 0 | AZ113: =SUMIFS(L$9:L$208,PlanningIDEnlaces,$C113,$H$9:$H$208,Lists!$A$16) -> 0 | BA113: 0 | BC113: =SUMIFS(O$9:O$208,PlanningIDEnlaces,$C113,$H$9:$H$208,Lists!$A$16) -> 0 | BD113: 0 | BF113: =SUMIFS(R$9:R$208,PlanningIDEnlaces,$C113,$H$9:$H$208,Lists!$A$16) -> 0 | BG113: 0 | BI113: =SUMIFS(U$9:U$208,PlanningIDEnlaces,$C113,$H$9:$H$208,Lists!$A$16) -> 0 | BJ113: 0 | BL113: =SUMIFS(X$9:X$208,PlanningIDEnlaces,$C113,$H$9:$H$208,Lists!$A$16) -> 0 | BM113: 0 | BO113: =SUMIFS(AA$9:AA$208,PlanningIDEnlaces,$C113,$H$9:$H$208,Lists!$A$16) -> 0 | BP113: 0 | BR113: =SUMIFS(AD$9:AD$208,PlanningIDEnlaces,$C113,$H$9:$H$208,Lists!$A$16) -> 0 | BS113: 0 | BU113: =SUMIFS(AG$9:AG$208,PlanningIDEnlaces,$C113,$H$9:$H$208,Lists!$A$16) -> 0 | BV113: 0 | BX113: =SUMIFS(AJ$9:AJ$208,PlanningIDEnlaces,$C113,$H$9:$H$208,Lists!$A$16) -> 0 | BY113: 0 | CA113: =SUMIFS(AM$9:AM$208,PlanningIDEnlaces,$C113,$H$9:$H$208,Lists!$A$16) -> 0 | CB113: 0 | CD113: =SUMIFS(AP$9:AP$208,PlanningIDEnlaces,$C113,$H$9:$H$208,Lists!$A$16) -> 0 | CE113: 0 | CG113: =IFERROR(INDEX(Lists!$F$5:$F$49,MATCH(Planning!C113,Lists!$G$5:$G$49,0),1),"") ->  | CI113: =IF(C113=0,""," ["&INDEX(Lists!$H$5:$H$49,MATCH(C113,Lists!$G$5:$G$49,0),1)&"]") -> 
A114: I106 | AS114: 0 | AT114: 0.00 | AW114: =SUMIFS(I$9:I$208,PlanningIDEnlaces,$C114,$H$9:$H$208,Lists!$A$16) -> 0 | AX114: 0 | AZ114: =SUMIFS(L$9:L$208,PlanningIDEnlaces,$C114,$H$9:$H$208,Lists!$A$16) -> 0 | BA114: 0 | BC114: =SUMIFS(O$9:O$208,PlanningIDEnlaces,$C114,$H$9:$H$208,Lists!$A$16) -> 0 | BD114: 0 | BF114: =SUMIFS(R$9:R$208,PlanningIDEnlaces,$C114,$H$9:$H$208,Lists!$A$16) -> 0 | BG114: 0 | BI114: =SUMIFS(U$9:U$208,PlanningIDEnlaces,$C114,$H$9:$H$208,Lists!$A$16) -> 0 | BJ114: 0 | BL114: =SUMIFS(X$9:X$208,PlanningIDEnlaces,$C114,$H$9:$H$208,Lists!$A$16) -> 0 | BM114: 0 | BO114: =SUMIFS(AA$9:AA$208,PlanningIDEnlaces,$C114,$H$9:$H$208,Lists!$A$16) -> 0 | BP114: 0 | BR114: =SUMIFS(AD$9:AD$208,PlanningIDEnlaces,$C114,$H$9:$H$208,Lists!$A$16) -> 0 | BS114: 0 | BU114: =SUMIFS(AG$9:AG$208,PlanningIDEnlaces,$C114,$H$9:$H$208,Lists!$A$16) -> 0 | BV114: 0 | BX114: =SUMIFS(AJ$9:AJ$208,PlanningIDEnlaces,$C114,$H$9:$H$208,Lists!$A$16) -> 0 | BY114: 0 | CA114: =SUMIFS(AM$9:AM$208,PlanningIDEnlaces,$C114,$H$9:$H$208,Lists!$A$16) -> 0 | CB114: 0 | CD114: =SUMIFS(AP$9:AP$208,PlanningIDEnlaces,$C114,$H$9:$H$208,Lists!$A$16) -> 0 | CE114: 0 | CG114: =IFERROR(INDEX(Lists!$F$5:$F$49,MATCH(Planning!C114,Lists!$G$5:$G$49,0),1),"") ->  | CI114: =IF(C114=0,""," ["&INDEX(Lists!$H$5:$H$49,MATCH(C114,Lists!$G$5:$G$49,0),1)&"]") -> 
A115: I107 | AS115: 0 | AT115: 0.00 | AW115: =SUMIFS(I$9:I$208,PlanningIDEnlaces,$C115,$H$9:$H$208,Lists!$A$16) -> 0 | AX115: 0 | AZ115: =SUMIFS(L$9:L$208,PlanningIDEnlaces,$C115,$H$9:$H$208,Lists!$A$16) -> 0 | BA115: 0 | BC115: =SUMIFS(O$9:O$208,PlanningIDEnlaces,$C115,$H$9:$H$208,Lists!$A$16) -> 0 | BD115: 0 | BF115: =SUMIFS(R$9:R$208,PlanningIDEnlaces,$C115,$H$9:$H$208,Lists!$A$16) -> 0 | BG115: 0 | BI115: =SUMIFS(U$9:U$208,PlanningIDEnlaces,$C115,$H$9:$H$208,Lists!$A$16) -> 0 | BJ115: 0 | BL115: =SUMIFS(X$9:X$208,PlanningIDEnlaces,$C115,$H$9:$H$208,Lists!$A$16) -> 0 | BM115: 0 | BO115: =SUMIFS(AA$9:AA$208,PlanningIDEnlaces,$C115,$H$9:$H$208,Lists!$A$16) -> 0 | BP115: 0 | BR115: =SUMIFS(AD$9:AD$208,PlanningIDEnlaces,$C115,$H$9:$H$208,Lists!$A$16) -> 0 | BS115: 0 | BU115: =SUMIFS(AG$9:AG$208,PlanningIDEnlaces,$C115,$H$9:$H$208,Lists!$A$16) -> 0 | BV115: 0 | BX115: =SUMIFS(AJ$9:AJ$208,PlanningIDEnlaces,$C115,$H$9:$H$208,Lists!$A$16) -> 0 | BY115: 0 | CA115: =SUMIFS(AM$9:AM$208,PlanningIDEnlaces,$C115,$H$9:$H$208,Lists!$A$16) -> 0 | CB115: 0 | CD115: =SUMIFS(AP$9:AP$208,PlanningIDEnlaces,$C115,$H$9:$H$208,Lists!$A$16) -> 0 | CE115: 0 | CG115: =IFERROR(INDEX(Lists!$F$5:$F$49,MATCH(Planning!C115,Lists!$G$5:$G$49,0),1),"") ->  | CI115: =IF(C115=0,""," ["&INDEX(Lists!$H$5:$H$49,MATCH(C115,Lists!$G$5:$G$49,0),1)&"]") -> 
A116: I108 | AS116: 0 | AT116: 0.00 | AW116: =SUMIFS(I$9:I$208,PlanningIDEnlaces,$C116,$H$9:$H$208,Lists!$A$16) -> 0 | AX116: 0 | AZ116: =SUMIFS(L$9:L$208,PlanningIDEnlaces,$C116,$H$9:$H$208,Lists!$A$16) -> 0 | BA116: 0 | BC116: =SUMIFS(O$9:O$208,PlanningIDEnlaces,$C116,$H$9:$H$208,Lists!$A$16) -> 0 | BD116: 0 | BF116: =SUMIFS(R$9:R$208,PlanningIDEnlaces,$C116,$H$9:$H$208,Lists!$A$16) -> 0 | BG116: 0 | BI116: =SUMIFS(U$9:U$208,PlanningIDEnlaces,$C116,$H$9:$H$208,Lists!$A$16) -> 0 | BJ116: 0 | BL116: =SUMIFS(X$9:X$208,PlanningIDEnlaces,$C116,$H$9:$H$208,Lists!$A$16) -> 0 | BM116: 0 | BO116: =SUMIFS(AA$9:AA$208,PlanningIDEnlaces,$C116,$H$9:$H$208,Lists!$A$16) -> 0 | BP116: 0 | BR116: =SUMIFS(AD$9:AD$208,PlanningIDEnlaces,$C116,$H$9:$H$208,Lists!$A$16) -> 0 | BS116: 0 | BU116: =SUMIFS(AG$9:AG$208,PlanningIDEnlaces,$C116,$H$9:$H$208,Lists!$A$16) -> 0 | BV116: 0 | BX116: =SUMIFS(AJ$9:AJ$208,PlanningIDEnlaces,$C116,$H$9:$H$208,Lists!$A$16) -> 0 | BY116: 0 | CA116: =SUMIFS(AM$9:AM$208,PlanningIDEnlaces,$C116,$H$9:$H$208,Lists!$A$16) -> 0 | CB116: 0 | CD116: =SUMIFS(AP$9:AP$208,PlanningIDEnlaces,$C116,$H$9:$H$208,Lists!$A$16) -> 0 | CE116: 0 | CG116: =IFERROR(INDEX(Lists!$F$5:$F$49,MATCH(Planning!C116,Lists!$G$5:$G$49,0),1),"") ->  | CI116: =IF(C116=0,""," ["&INDEX(Lists!$H$5:$H$49,MATCH(C116,Lists!$G$5:$G$49,0),1)&"]") -> 
A117: I109 | AS117: 0 | AT117: 0.00 | AW117: =SUMIFS(I$9:I$208,PlanningIDEnlaces,$C117,$H$9:$H$208,Lists!$A$16) -> 0 | AX117: 0 | AZ117: =SUMIFS(L$9:L$208,PlanningIDEnlaces,$C117,$H$9:$H$208,Lists!$A$16) -> 0 | BA117: 0 | BC117: =SUMIFS(O$9:O$208,PlanningIDEnlaces,$C117,$H$9:$H$208,Lists!$A$16) -> 0 | BD117: 0 | BF117: =SUMIFS(R$9:R$208,PlanningIDEnlaces,$C117,$H$9:$H$208,Lists!$A$16) -> 0 | BG117: 0 | BI117: =SUMIFS(U$9:U$208,PlanningIDEnlaces,$C117,$H$9:$H$208,Lists!$A$16) -> 0 | BJ117: 0 | BL117: =SUMIFS(X$9:X$208,PlanningIDEnlaces,$C117,$H$9:$H$208,Lists!$A$16) -> 0 | BM117: 0 | BO117: =SUMIFS(AA$9:AA$208,PlanningIDEnlaces,$C117,$H$9:$H$208,Lists!$A$16) -> 0 | BP117: 0 | BR117: =SUMIFS(AD$9:AD$208,PlanningIDEnlaces,$C117,$H$9:$H$208,Lists!$A$16) -> 0 | BS117: 0 | BU117: =SUMIFS(AG$9:AG$208,PlanningIDEnlaces,$C117,$H$9:$H$208,Lists!$A$16) -> 0 | BV117: 0 | BX117: =SUMIFS(AJ$9:AJ$208,PlanningIDEnlaces,$C117,$H$9:$H$208,Lists!$A$16) -> 0 | BY117: 0 | CA117: =SUMIFS(AM$9:AM$208,PlanningIDEnlaces,$C117,$H$9:$H$208,Lists!$A$16) -> 0 | CB117: 0 | CD117: =SUMIFS(AP$9:AP$208,PlanningIDEnlaces,$C117,$H$9:$H$208,Lists!$A$16) -> 0 | CE117: 0 | CG117: =IFERROR(INDEX(Lists!$F$5:$F$49,MATCH(Planning!C117,Lists!$G$5:$G$49,0),1),"") ->  | CI117: =IF(C117=0,""," ["&INDEX(Lists!$H$5:$H$49,MATCH(C117,Lists!$G$5:$G$49,0),1)&"]") -> 
A118: I110 | AS118: 0 | AT118: 0.00 | AW118: =SUMIFS(I$9:I$208,PlanningIDEnlaces,$C118,$H$9:$H$208,Lists!$A$16) -> 0 | AX118: 0 | AZ118: =SUMIFS(L$9:L$208,PlanningIDEnlaces,$C118,$H$9:$H$208,Lists!$A$16) -> 0 | BA118: 0 | BC118: =SUMIFS(O$9:O$208,PlanningIDEnlaces,$C118,$H$9:$H$208,Lists!$A$16) -> 0 | BD118: 0 | BF118: =SUMIFS(R$9:R$208,PlanningIDEnlaces,$C118,$H$9:$H$208,Lists!$A$16) -> 0 | BG118: 0 | BI118: =SUMIFS(U$9:U$208,PlanningIDEnlaces,$C118,$H$9:$H$208,Lists!$A$16) -> 0 | BJ118: 0 | BL118: =SUMIFS(X$9:X$208,PlanningIDEnlaces,$C118,$H$9:$H$208,Lists!$A$16) -> 0 | BM118: 0 | BO118: =SUMIFS(AA$9:AA$208,PlanningIDEnlaces,$C118,$H$9:$H$208,Lists!$A$16) -> 0 | BP118: 0 | BR118: =SUMIFS(AD$9:AD$208,PlanningIDEnlaces,$C118,$H$9:$H$208,Lists!$A$16) -> 0 | BS118: 0 | BU118: =SUMIFS(AG$9:AG$208,PlanningIDEnlaces,$C118,$H$9:$H$208,Lists!$A$16) -> 0 | BV118: 0 | BX118: =SUMIFS(AJ$9:AJ$208,PlanningIDEnlaces,$C118,$H$9:$H$208,Lists!$A$16) -> 0 | BY118: 0 | CA118: =SUMIFS(AM$9:AM$208,PlanningIDEnlaces,$C118,$H$9:$H$208,Lists!$A$16) -> 0 | CB118: 0 | CD118: =SUMIFS(AP$9:AP$208,PlanningIDEnlaces,$C118,$H$9:$H$208,Lists!$A$16) -> 0 | CE118: 0 | CG118: =IFERROR(INDEX(Lists!$F$5:$F$49,MATCH(Planning!C118,Lists!$G$5:$G$49,0),1),"") ->  | CI118: =IF(C118=0,""," ["&INDEX(Lists!$H$5:$H$49,MATCH(C118,Lists!$G$5:$G$49,0),1)&"]") -> 
A119: I111 | AS119: 0 | AT119: 0.00 | AW119: =SUMIFS(I$9:I$208,PlanningIDEnlaces,$C119,$H$9:$H$208,Lists!$A$16) -> 0 | AX119: 0 | AZ119: =SUMIFS(L$9:L$208,PlanningIDEnlaces,$C119,$H$9:$H$208,Lists!$A$16) -> 0 | BA119: 0 | BC119: =SUMIFS(O$9:O$208,PlanningIDEnlaces,$C119,$H$9:$H$208,Lists!$A$16) -> 0 | BD119: 0 | BF119: =SUMIFS(R$9:R$208,PlanningIDEnlaces,$C119,$H$9:$H$208,Lists!$A$16) -> 0 | BG119: 0 | BI119: =SUMIFS(U$9:U$208,PlanningIDEnlaces,$C119,$H$9:$H$208,Lists!$A$16) -> 0 | BJ119: 0 | BL119: =SUMIFS(X$9:X$208,PlanningIDEnlaces,$C119,$H$9:$H$208,Lists!$A$16) -> 0 | BM119: 0 | BO119: =SUMIFS(AA$9:AA$208,PlanningIDEnlaces,$C119,$H$9:$H$208,Lists!$A$16) -> 0 | BP119: 0 | BR119: =SUMIFS(AD$9:AD$208,PlanningIDEnlaces,$C119,$H$9:$H$208,Lists!$A$16) -> 0 | BS119: 0 | BU119: =SUMIFS(AG$9:AG$208,PlanningIDEnlaces,$C119,$H$9:$H$208,Lists!$A$16) -> 0 | BV119: 0 | BX119: =SUMIFS(AJ$9:AJ$208,PlanningIDEnlaces,$C119,$H$9:$H$208,Lists!$A$16) -> 0 | BY119: 0 | CA119: =SUMIFS(AM$9:AM$208,PlanningIDEnlaces,$C119,$H$9:$H$208,Lists!$A$16) -> 0 | CB119: 0 | CD119: =SUMIFS(AP$9:AP$208,PlanningIDEnlaces,$C119,$H$9:$H$208,Lists!$A$16) -> 0 | CE119: 0 | CG119: =IFERROR(INDEX(Lists!$F$5:$F$49,MATCH(Planning!C119,Lists!$G$5:$G$49,0),1),"") ->  | CI119: =IF(C119=0,""," ["&INDEX(Lists!$H$5:$H$49,MATCH(C119,Lists!$G$5:$G$49,0),1)&"]") -> 
A120: I112 | AS120: 0 | AT120: 0.00 | AW120: =SUMIFS(I$9:I$208,PlanningIDEnlaces,$C120,$H$9:$H$208,Lists!$A$16) -> 0 | AX120: 0 | AZ120: =SUMIFS(L$9:L$208,PlanningIDEnlaces,$C120,$H$9:$H$208,Lists!$A$16) -> 0 | BA120: 0 | BC120: =SUMIFS(O$9:O$208,PlanningIDEnlaces,$C120,$H$9:$H$208,Lists!$A$16) -> 0 | BD120: 0 | BF120: =SUMIFS(R$9:R$208,PlanningIDEnlaces,$C120,$H$9:$H$208,Lists!$A$16) -> 0 | BG120: 0 | BI120: =SUMIFS(U$9:U$208,PlanningIDEnlaces,$C120,$H$9:$H$208,Lists!$A$16) -> 0 | BJ120: 0 | BL120: =SUMIFS(X$9:X$208,PlanningIDEnlaces,$C120,$H$9:$H$208,Lists!$A$16) -> 0 | BM120: 0 | BO120: =SUMIFS(AA$9:AA$208,PlanningIDEnlaces,$C120,$H$9:$H$208,Lists!$A$16) -> 0 | BP120: 0 | BR120: =SUMIFS(AD$9:AD$208,PlanningIDEnlaces,$C120,$H$9:$H$208,Lists!$A$16) -> 0 | BS120: 0 | BU120: =SUMIFS(AG$9:AG$208,PlanningIDEnlaces,$C120,$H$9:$H$208,Lists!$A$16) -> 0 | BV120: 0 | BX120: =SUMIFS(AJ$9:AJ$208,PlanningIDEnlaces,$C120,$H$9:$H$208,Lists!$A$16) -> 0 | BY120: 0 | CA120: =SUMIFS(AM$9:AM$208,PlanningIDEnlaces,$C120,$H$9:$H$208,Lists!$A$16) -> 0 | CB120: 0 | CD120: =SUMIFS(AP$9:AP$208,PlanningIDEnlaces,$C120,$H$9:$H$208,Lists!$A$16) -> 0 | CE120: 0 | CG120: =IFERROR(INDEX(Lists!$F$5:$F$49,MATCH(Planning!C120,Lists!$G$5:$G$49,0),1),"") ->  | CI120: =IF(C120=0,""," ["&INDEX(Lists!$H$5:$H$49,MATCH(C120,Lists!$G$5:$G$49,0),1)&"]") -> 
A121: I113 | AS121: 0 | AT121: 0.00 | AW121: =SUMIFS(I$9:I$208,PlanningIDEnlaces,$C121,$H$9:$H$208,Lists!$A$16) -> 0 | AX121: 0 | AZ121: =SUMIFS(L$9:L$208,PlanningIDEnlaces,$C121,$H$9:$H$208,Lists!$A$16) -> 0 | BA121: 0 | BC121: =SUMIFS(O$9:O$208,PlanningIDEnlaces,$C121,$H$9:$H$208,Lists!$A$16) -> 0 | BD121: 0 | BF121: =SUMIFS(R$9:R$208,PlanningIDEnlaces,$C121,$H$9:$H$208,Lists!$A$16) -> 0 | BG121: 0 | BI121: =SUMIFS(U$9:U$208,PlanningIDEnlaces,$C121,$H$9:$H$208,Lists!$A$16) -> 0 | BJ121: 0 | BL121: =SUMIFS(X$9:X$208,PlanningIDEnlaces,$C121,$H$9:$H$208,Lists!$A$16) -> 0 | BM121: 0 | BO121: =SUMIFS(AA$9:AA$208,PlanningIDEnlaces,$C121,$H$9:$H$208,Lists!$A$16) -> 0 | BP121: 0 | BR121: =SUMIFS(AD$9:AD$208,PlanningIDEnlaces,$C121,$H$9:$H$208,Lists!$A$16) -> 0 | BS121: 0 | BU121: =SUMIFS(AG$9:AG$208,PlanningIDEnlaces,$C121,$H$9:$H$208,Lists!$A$16) -> 0 | BV121: 0 | BX121: =SUMIFS(AJ$9:AJ$208,PlanningIDEnlaces,$C121,$H$9:$H$208,Lists!$A$16) -> 0 | BY121: 0 | CA121: =SUMIFS(AM$9:AM$208,PlanningIDEnlaces,$C121,$H$9:$H$208,Lists!$A$16) -> 0 | CB121: 0 | CD121: =SUMIFS(AP$9:AP$208,PlanningIDEnlaces,$C121,$H$9:$H$208,Lists!$A$16) -> 0 | CE121: 0 | CG121: =IFERROR(INDEX(Lists!$F$5:$F$49,MATCH(Planning!C121,Lists!$G$5:$G$49,0),1),"") ->  | CI121: =IF(C121=0,""," ["&INDEX(Lists!$H$5:$H$49,MATCH(C121,Lists!$G$5:$G$49,0),1)&"]") -> 
A122: I114 | AS122: 0 | AT122: 0.00 | AW122: =SUMIFS(I$9:I$208,PlanningIDEnlaces,$C122,$H$9:$H$208,Lists!$A$16) -> 0 | AX122: 0 | AZ122: =SUMIFS(L$9:L$208,PlanningIDEnlaces,$C122,$H$9:$H$208,Lists!$A$16) -> 0 | BA122: 0 | BC122: =SUMIFS(O$9:O$208,PlanningIDEnlaces,$C122,$H$9:$H$208,Lists!$A$16) -> 0 | BD122: 0 | BF122: =SUMIFS(R$9:R$208,PlanningIDEnlaces,$C122,$H$9:$H$208,Lists!$A$16) -> 0 | BG122: 0 | BI122: =SUMIFS(U$9:U$208,PlanningIDEnlaces,$C122,$H$9:$H$208,Lists!$A$16) -> 0 | BJ122: 0 | BL122: =SUMIFS(X$9:X$208,PlanningIDEnlaces,$C122,$H$9:$H$208,Lists!$A$16) -> 0 | BM122: 0 | BO122: =SUMIFS(AA$9:AA$208,PlanningIDEnlaces,$C122,$H$9:$H$208,Lists!$A$16) -> 0 | BP122: 0 | BR122: =SUMIFS(AD$9:AD$208,PlanningIDEnlaces,$C122,$H$9:$H$208,Lists!$A$16) -> 0 | BS122: 0 | BU122: =SUMIFS(AG$9:AG$208,PlanningIDEnlaces,$C122,$H$9:$H$208,Lists!$A$16) -> 0 | BV122: 0 | BX122: =SUMIFS(AJ$9:AJ$208,PlanningIDEnlaces,$C122,$H$9:$H$208,Lists!$A$16) -> 0 | BY122: 0 | CA122: =SUMIFS(AM$9:AM$208,PlanningIDEnlaces,$C122,$H$9:$H$208,Lists!$A$16) -> 0 | CB122: 0 | CD122: =SUMIFS(AP$9:AP$208,PlanningIDEnlaces,$C122,$H$9:$H$208,Lists!$A$16) -> 0 | CE122: 0 | CG122: =IFERROR(INDEX(Lists!$F$5:$F$49,MATCH(Planning!C122,Lists!$G$5:$G$49,0),1),"") ->  | CI122: =IF(C122=0,""," ["&INDEX(Lists!$H$5:$H$49,MATCH(C122,Lists!$G$5:$G$49,0),1)&"]") -> 
A123: I115 | AS123: 0 | AT123: 0.00 | AW123: =SUMIFS(I$9:I$208,PlanningIDEnlaces,$C123,$H$9:$H$208,Lists!$A$16) -> 0 | AX123: 0 | AZ123: =SUMIFS(L$9:L$208,PlanningIDEnlaces,$C123,$H$9:$H$208,Lists!$A$16) -> 0 | BA123: 0 | BC123: =SUMIFS(O$9:O$208,PlanningIDEnlaces,$C123,$H$9:$H$208,Lists!$A$16) -> 0 | BD123: 0 | BF123: =SUMIFS(R$9:R$208,PlanningIDEnlaces,$C123,$H$9:$H$208,Lists!$A$16) -> 0 | BG123: 0 | BI123: =SUMIFS(U$9:U$208,PlanningIDEnlaces,$C123,$H$9:$H$208,Lists!$A$16) -> 0 | BJ123: 0 | BL123: =SUMIFS(X$9:X$208,PlanningIDEnlaces,$C123,$H$9:$H$208,Lists!$A$16) -> 0 | BM123: 0 | BO123: =SUMIFS(AA$9:AA$208,PlanningIDEnlaces,$C123,$H$9:$H$208,Lists!$A$16) -> 0 | BP123: 0 | BR123: =SUMIFS(AD$9:AD$208,PlanningIDEnlaces,$C123,$H$9:$H$208,Lists!$A$16) -> 0 | BS123: 0 | BU123: =SUMIFS(AG$9:AG$208,PlanningIDEnlaces,$C123,$H$9:$H$208,Lists!$A$16) -> 0 | BV123: 0 | BX123: =SUMIFS(AJ$9:AJ$208,PlanningIDEnlaces,$C123,$H$9:$H$208,Lists!$A$16) -> 0 | BY123: 0 | CA123: =SUMIFS(AM$9:AM$208,PlanningIDEnlaces,$C123,$H$9:$H$208,Lists!$A$16) -> 0 | CB123: 0 | CD123: =SUMIFS(AP$9:AP$208,PlanningIDEnlaces,$C123,$H$9:$H$208,Lists!$A$16) -> 0 | CE123: 0 | CG123: =IFERROR(INDEX(Lists!$F$5:$F$49,MATCH(Planning!C123,Lists!$G$5:$G$49,0),1),"") ->  | CI123: =IF(C123=0,""," ["&INDEX(Lists!$H$5:$H$49,MATCH(C123,Lists!$G$5:$G$49,0),1)&"]") -> 
A124: I116 | AS124: 0 | AT124: 0.00 | AW124: =SUMIFS(I$9:I$208,PlanningIDEnlaces,$C124,$H$9:$H$208,Lists!$A$16) -> 0 | AX124: 0 | AZ124: =SUMIFS(L$9:L$208,PlanningIDEnlaces,$C124,$H$9:$H$208,Lists!$A$16) -> 0 | BA124: 0 | BC124: =SUMIFS(O$9:O$208,PlanningIDEnlaces,$C124,$H$9:$H$208,Lists!$A$16) -> 0 | BD124: 0 | BF124: =SUMIFS(R$9:R$208,PlanningIDEnlaces,$C124,$H$9:$H$208,Lists!$A$16) -> 0 | BG124: 0 | BI124: =SUMIFS(U$9:U$208,PlanningIDEnlaces,$C124,$H$9:$H$208,Lists!$A$16) -> 0 | BJ124: 0 | BL124: =SUMIFS(X$9:X$208,PlanningIDEnlaces,$C124,$H$9:$H$208,Lists!$A$16) -> 0 | BM124: 0 | BO124: =SUMIFS(AA$9:AA$208,PlanningIDEnlaces,$C124,$H$9:$H$208,Lists!$A$16) -> 0 | BP124: 0 | BR124: =SUMIFS(AD$9:AD$208,PlanningIDEnlaces,$C124,$H$9:$H$208,Lists!$A$16) -> 0 | BS124: 0 | BU124: =SUMIFS(AG$9:AG$208,PlanningIDEnlaces,$C124,$H$9:$H$208,Lists!$A$16) -> 0 | BV124: 0 | BX124: =SUMIFS(AJ$9:AJ$208,PlanningIDEnlaces,$C124,$H$9:$H$208,Lists!$A$16) -> 0 | BY124: 0 | CA124: =SUMIFS(AM$9:AM$208,PlanningIDEnlaces,$C124,$H$9:$H$208,Lists!$A$16) -> 0 | CB124: 0 | CD124: =SUMIFS(AP$9:AP$208,PlanningIDEnlaces,$C124,$H$9:$H$208,Lists!$A$16) -> 0 | CE124: 0 | CG124: =IFERROR(INDEX(Lists!$F$5:$F$49,MATCH(Planning!C124,Lists!$G$5:$G$49,0),1),"") ->  | CI124: =IF(C124=0,""," ["&INDEX(Lists!$H$5:$H$49,MATCH(C124,Lists!$G$5:$G$49,0),1)&"]") -> 
A125: I117 | AS125: 0 | AT125: 0.00 | AW125: =SUMIFS(I$9:I$208,PlanningIDEnlaces,$C125,$H$9:$H$208,Lists!$A$16) -> 0 | AX125: 0 | AZ125: =SUMIFS(L$9:L$208,PlanningIDEnlaces,$C125,$H$9:$H$208,Lists!$A$16) -> 0 | BA125: 0 | BC125: =SUMIFS(O$9:O$208,PlanningIDEnlaces,$C125,$H$9:$H$208,Lists!$A$16) -> 0 | BD125: 0 | BF125: =SUMIFS(R$9:R$208,PlanningIDEnlaces,$C125,$H$9:$H$208,Lists!$A$16) -> 0 | BG125: 0 | BI125: =SUMIFS(U$9:U$208,PlanningIDEnlaces,$C125,$H$9:$H$208,Lists!$A$16) -> 0 | BJ125: 0 | BL125: =SUMIFS(X$9:X$208,PlanningIDEnlaces,$C125,$H$9:$H$208,Lists!$A$16) -> 0 | BM125: 0 | BO125: =SUMIFS(AA$9:AA$208,PlanningIDEnlaces,$C125,$H$9:$H$208,Lists!$A$16) -> 0 | BP125: 0 | BR125: =SUMIFS(AD$9:AD$208,PlanningIDEnlaces,$C125,$H$9:$H$208,Lists!$A$16) -> 0 | BS125: 0 | BU125: =SUMIFS(AG$9:AG$208,PlanningIDEnlaces,$C125,$H$9:$H$208,Lists!$A$16) -> 0 | BV125: 0 | BX125: =SUMIFS(AJ$9:AJ$208,PlanningIDEnlaces,$C125,$H$9:$H$208,Lists!$A$16) -> 0 | BY125: 0 | CA125: =SUMIFS(AM$9:AM$208,PlanningIDEnlaces,$C125,$H$9:$H$208,Lists!$A$16) -> 0 | CB125: 0 | CD125: =SUMIFS(AP$9:AP$208,PlanningIDEnlaces,$C125,$H$9:$H$208,Lists!$A$16) -> 0 | CE125: 0 | CG125: =IFERROR(INDEX(Lists!$F$5:$F$49,MATCH(Planning!C125,Lists!$G$5:$G$49,0),1),"") ->  | CI125: =IF(C125=0,""," ["&INDEX(Lists!$H$5:$H$49,MATCH(C125,Lists!$G$5:$G$49,0),1)&"]") -> 
A126: I118 | AS126: 0 | AT126: 0.00 | AW126: =SUMIFS(I$9:I$208,PlanningIDEnlaces,$C126,$H$9:$H$208,Lists!$A$16) -> 0 | AX126: 0 | AZ126: =SUMIFS(L$9:L$208,PlanningIDEnlaces,$C126,$H$9:$H$208,Lists!$A$16) -> 0 | BA126: 0 | BC126: =SUMIFS(O$9:O$208,PlanningIDEnlaces,$C126,$H$9:$H$208,Lists!$A$16) -> 0 | BD126: 0 | BF126: =SUMIFS(R$9:R$208,PlanningIDEnlaces,$C126,$H$9:$H$208,Lists!$A$16) -> 0 | BG126: 0 | BI126: =SUMIFS(U$9:U$208,PlanningIDEnlaces,$C126,$H$9:$H$208,Lists!$A$16) -> 0 | BJ126: 0 | BL126: =SUMIFS(X$9:X$208,PlanningIDEnlaces,$C126,$H$9:$H$208,Lists!$A$16) -> 0 | BM126: 0 | BO126: =SUMIFS(AA$9:AA$208,PlanningIDEnlaces,$C126,$H$9:$H$208,Lists!$A$16) -> 0 | BP126: 0 | BR126: =SUMIFS(AD$9:AD$208,PlanningIDEnlaces,$C126,$H$9:$H$208,Lists!$A$16) -> 0 | BS126: 0 | BU126: =SUMIFS(AG$9:AG$208,PlanningIDEnlaces,$C126,$H$9:$H$208,Lists!$A$16) -> 0 | BV126: 0 | BX126: =SUMIFS(AJ$9:AJ$208,PlanningIDEnlaces,$C126,$H$9:$H$208,Lists!$A$16) -> 0 | BY126: 0 | CA126: =SUMIFS(AM$9:AM$208,PlanningIDEnlaces,$C126,$H$9:$H$208,Lists!$A$16) -> 0 | CB126: 0 | CD126: =SUMIFS(AP$9:AP$208,PlanningIDEnlaces,$C126,$H$9:$H$208,Lists!$A$16) -> 0 | CE126: 0 | CG126: =IFERROR(INDEX(Lists!$F$5:$F$49,MATCH(Planning!C126,Lists!$G$5:$G$49,0),1),"") ->  | CI126: =IF(C126=0,""," ["&INDEX(Lists!$H$5:$H$49,MATCH(C126,Lists!$G$5:$G$49,0),1)&"]") -> 
A127: I119 | AS127: 0 | AT127: 0.00 | AW127: =SUMIFS(I$9:I$208,PlanningIDEnlaces,$C127,$H$9:$H$208,Lists!$A$16) -> 0 | AX127: 0 | AZ127: =SUMIFS(L$9:L$208,PlanningIDEnlaces,$C127,$H$9:$H$208,Lists!$A$16) -> 0 | BA127: 0 | BC127: =SUMIFS(O$9:O$208,PlanningIDEnlaces,$C127,$H$9:$H$208,Lists!$A$16) -> 0 | BD127: 0 | BF127: =SUMIFS(R$9:R$208,PlanningIDEnlaces,$C127,$H$9:$H$208,Lists!$A$16) -> 0 | BG127: 0 | BI127: =SUMIFS(U$9:U$208,PlanningIDEnlaces,$C127,$H$9:$H$208,Lists!$A$16) -> 0 | BJ127: 0 | BL127: =SUMIFS(X$9:X$208,PlanningIDEnlaces,$C127,$H$9:$H$208,Lists!$A$16) -> 0 | BM127: 0 | BO127: =SUMIFS(AA$9:AA$208,PlanningIDEnlaces,$C127,$H$9:$H$208,Lists!$A$16) -> 0 | BP127: 0 | BR127: =SUMIFS(AD$9:AD$208,PlanningIDEnlaces,$C127,$H$9:$H$208,Lists!$A$16) -> 0 | BS127: 0 | BU127: =SUMIFS(AG$9:AG$208,PlanningIDEnlaces,$C127,$H$9:$H$208,Lists!$A$16) -> 0 | BV127: 0 | BX127: =SUMIFS(AJ$9:AJ$208,PlanningIDEnlaces,$C127,$H$9:$H$208,Lists!$A$16) -> 0 | BY127: 0 | CA127: =SUMIFS(AM$9:AM$208,PlanningIDEnlaces,$C127,$H$9:$H$208,Lists!$A$16) -> 0 | CB127: 0 | CD127: =SUMIFS(AP$9:AP$208,PlanningIDEnlaces,$C127,$H$9:$H$208,Lists!$A$16) -> 0 | CE127: 0 | CG127: =IFERROR(INDEX(Lists!$F$5:$F$49,MATCH(Planning!C127,Lists!$G$5:$G$49,0),1),"") ->  | CI127: =IF(C127=0,""," ["&INDEX(Lists!$H$5:$H$49,MATCH(C127,Lists!$G$5:$G$49,0),1)&"]") -> 
A128: I120 | AS128: 0 | AT128: 0.00 | AW128: =SUMIFS(I$9:I$208,PlanningIDEnlaces,$C128,$H$9:$H$208,Lists!$A$16) -> 0 | AX128: 0 | AZ128: =SUMIFS(L$9:L$208,PlanningIDEnlaces,$C128,$H$9:$H$208,Lists!$A$16) -> 0 | BA128: 0 | BC128: =SUMIFS(O$9:O$208,PlanningIDEnlaces,$C128,$H$9:$H$208,Lists!$A$16) -> 0 | BD128: 0 | BF128: =SUMIFS(R$9:R$208,PlanningIDEnlaces,$C128,$H$9:$H$208,Lists!$A$16) -> 0 | BG128: 0 | BI128: =SUMIFS(U$9:U$208,PlanningIDEnlaces,$C128,$H$9:$H$208,Lists!$A$16) -> 0 | BJ128: 0 | BL128: =SUMIFS(X$9:X$208,PlanningIDEnlaces,$C128,$H$9:$H$208,Lists!$A$16) -> 0 | BM128: 0 | BO128: =SUMIFS(AA$9:AA$208,PlanningIDEnlaces,$C128,$H$9:$H$208,Lists!$A$16) -> 0 | BP128: 0 | BR128: =SUMIFS(AD$9:AD$208,PlanningIDEnlaces,$C128,$H$9:$H$208,Lists!$A$16) -> 0 | BS128: 0 | BU128: =SUMIFS(AG$9:AG$208,PlanningIDEnlaces,$C128,$H$9:$H$208,Lists!$A$16) -> 0 | BV128: 0 | BX128: =SUMIFS(AJ$9:AJ$208,PlanningIDEnlaces,$C128,$H$9:$H$208,Lists!$A$16) -> 0 | BY128: 0 | CA128: =SUMIFS(AM$9:AM$208,PlanningIDEnlaces,$C128,$H$9:$H$208,Lists!$A$16) -> 0 | CB128: 0 | CD128: =SUMIFS(AP$9:AP$208,PlanningIDEnlaces,$C128,$H$9:$H$208,Lists!$A$16) -> 0 | CE128: 0 | CG128: =IFERROR(INDEX(Lists!$F$5:$F$49,MATCH(Planning!C128,Lists!$G$5:$G$49,0),1),"") ->  | CI128: =IF(C128=0,""," ["&INDEX(Lists!$H$5:$H$49,MATCH(C128,Lists!$G$5:$G$49,0),1)&"]") -> 
A129: I121 | AS129: 0 | AT129: 0.00 | AW129: =SUMIFS(I$9:I$208,PlanningIDEnlaces,$C129,$H$9:$H$208,Lists!$A$16) -> 0 | AX129: 0 | AZ129: =SUMIFS(L$9:L$208,PlanningIDEnlaces,$C129,$H$9:$H$208,Lists!$A$16) -> 0 | BA129: 0 | BC129: =SUMIFS(O$9:O$208,PlanningIDEnlaces,$C129,$H$9:$H$208,Lists!$A$16) -> 0 | BD129: 0 | BF129: =SUMIFS(R$9:R$208,PlanningIDEnlaces,$C129,$H$9:$H$208,Lists!$A$16) -> 0 | BG129: 0 | BI129: =SUMIFS(U$9:U$208,PlanningIDEnlaces,$C129,$H$9:$H$208,Lists!$A$16) -> 0 | BJ129: 0 | BL129: =SUMIFS(X$9:X$208,PlanningIDEnlaces,$C129,$H$9:$H$208,Lists!$A$16) -> 0 | BM129: 0 | BO129: =SUMIFS(AA$9:AA$208,PlanningIDEnlaces,$C129,$H$9:$H$208,Lists!$A$16) -> 0 | BP129: 0 | BR129: =SUMIFS(AD$9:AD$208,PlanningIDEnlaces,$C129,$H$9:$H$208,Lists!$A$16) -> 0 | BS129: 0 | BU129: =SUMIFS(AG$9:AG$208,PlanningIDEnlaces,$C129,$H$9:$H$208,Lists!$A$16) -> 0 | BV129: 0 | BX129: =SUMIFS(AJ$9:AJ$208,PlanningIDEnlaces,$C129,$H$9:$H$208,Lists!$A$16) -> 0 | BY129: 0 | CA129: =SUMIFS(AM$9:AM$208,PlanningIDEnlaces,$C129,$H$9:$H$208,Lists!$A$16) -> 0 | CB129: 0 | CD129: =SUMIFS(AP$9:AP$208,PlanningIDEnlaces,$C129,$H$9:$H$208,Lists!$A$16) -> 0 | CE129: 0 | CG129: =IFERROR(INDEX(Lists!$F$5:$F$49,MATCH(Planning!C129,Lists!$G$5:$G$49,0),1),"") ->  | CI129: =IF(C129=0,""," ["&INDEX(Lists!$H$5:$H$49,MATCH(C129,Lists!$G$5:$G$49,0),1)&"]") -> 
A130: I122 | AS130: 0 | AT130: 0.00 | AW130: =SUMIFS(I$9:I$208,PlanningIDEnlaces,$C130,$H$9:$H$208,Lists!$A$16) -> 0 | AX130: 0 | AZ130: =SUMIFS(L$9:L$208,PlanningIDEnlaces,$C130,$H$9:$H$208,Lists!$A$16) -> 0 | BA130: 0 | BC130: =SUMIFS(O$9:O$208,PlanningIDEnlaces,$C130,$H$9:$H$208,Lists!$A$16) -> 0 | BD130: 0 | BF130: =SUMIFS(R$9:R$208,PlanningIDEnlaces,$C130,$H$9:$H$208,Lists!$A$16) -> 0 | BG130: 0 | BI130: =SUMIFS(U$9:U$208,PlanningIDEnlaces,$C130,$H$9:$H$208,Lists!$A$16) -> 0 | BJ130: 0 | BL130: =SUMIFS(X$9:X$208,PlanningIDEnlaces,$C130,$H$9:$H$208,Lists!$A$16) -> 0 | BM130: 0 | BO130: =SUMIFS(AA$9:AA$208,PlanningIDEnlaces,$C130,$H$9:$H$208,Lists!$A$16) -> 0 | BP130: 0 | BR130: =SUMIFS(AD$9:AD$208,PlanningIDEnlaces,$C130,$H$9:$H$208,Lists!$A$16) -> 0 | BS130: 0 | BU130: =SUMIFS(AG$9:AG$208,PlanningIDEnlaces,$C130,$H$9:$H$208,Lists!$A$16) -> 0 | BV130: 0 | BX130: =SUMIFS(AJ$9:AJ$208,PlanningIDEnlaces,$C130,$H$9:$H$208,Lists!$A$16) -> 0 | BY130: 0 | CA130: =SUMIFS(AM$9:AM$208,PlanningIDEnlaces,$C130,$H$9:$H$208,Lists!$A$16) -> 0 | CB130: 0 | CD130: =SUMIFS(AP$9:AP$208,PlanningIDEnlaces,$C130,$H$9:$H$208,Lists!$A$16) -> 0 | CE130: 0 | CG130: =IFERROR(INDEX(Lists!$F$5:$F$49,MATCH(Planning!C130,Lists!$G$5:$G$49,0),1),"") ->  | CI130: =IF(C130=0,""," ["&INDEX(Lists!$H$5:$H$49,MATCH(C130,Lists!$G$5:$G$49,0),1)&"]") -> 
A131: I123 | AS131: 0 | AT131: 0.00 | AW131: =SUMIFS(I$9:I$208,PlanningIDEnlaces,$C131,$H$9:$H$208,Lists!$A$16) -> 0 | AX131: 0 | AZ131: =SUMIFS(L$9:L$208,PlanningIDEnlaces,$C131,$H$9:$H$208,Lists!$A$16) -> 0 | BA131: 0 | BC131: =SUMIFS(O$9:O$208,PlanningIDEnlaces,$C131,$H$9:$H$208,Lists!$A$16) -> 0 | BD131: 0 | BF131: =SUMIFS(R$9:R$208,PlanningIDEnlaces,$C131,$H$9:$H$208,Lists!$A$16) -> 0 | BG131: 0 | BI131: =SUMIFS(U$9:U$208,PlanningIDEnlaces,$C131,$H$9:$H$208,Lists!$A$16) -> 0 | BJ131: 0 | BL131: =SUMIFS(X$9:X$208,PlanningIDEnlaces,$C131,$H$9:$H$208,Lists!$A$16) -> 0 | BM131: 0 | BO131: =SUMIFS(AA$9:AA$208,PlanningIDEnlaces,$C131,$H$9:$H$208,Lists!$A$16) -> 0 | BP131: 0 | BR131: =SUMIFS(AD$9:AD$208,PlanningIDEnlaces,$C131,$H$9:$H$208,Lists!$A$16) -> 0 | BS131: 0 | BU131: =SUMIFS(AG$9:AG$208,PlanningIDEnlaces,$C131,$H$9:$H$208,Lists!$A$16) -> 0 | BV131: 0 | BX131: =SUMIFS(AJ$9:AJ$208,PlanningIDEnlaces,$C131,$H$9:$H$208,Lists!$A$16) -> 0 | BY131: 0 | CA131: =SUMIFS(AM$9:AM$208,PlanningIDEnlaces,$C131,$H$9:$H$208,Lists!$A$16) -> 0 | CB131: 0 | CD131: =SUMIFS(AP$9:AP$208,PlanningIDEnlaces,$C131,$H$9:$H$208,Lists!$A$16) -> 0 | CE131: 0 | CG131: =IFERROR(INDEX(Lists!$F$5:$F$49,MATCH(Planning!C131,Lists!$G$5:$G$49,0),1),"") ->  | CI131: =IF(C131=0,""," ["&INDEX(Lists!$H$5:$H$49,MATCH(C131,Lists!$G$5:$G$49,0),1)&"]") -> 
A132: I124 | AS132: 0 | AT132: 0.00 | AW132: =SUMIFS(I$9:I$208,PlanningIDEnlaces,$C132,$H$9:$H$208,Lists!$A$16) -> 0 | AX132: 0 | AZ132: =SUMIFS(L$9:L$208,PlanningIDEnlaces,$C132,$H$9:$H$208,Lists!$A$16) -> 0 | BA132: 0 | BC132: =SUMIFS(O$9:O$208,PlanningIDEnlaces,$C132,$H$9:$H$208,Lists!$A$16) -> 0 | BD132: 0 | BF132: =SUMIFS(R$9:R$208,PlanningIDEnlaces,$C132,$H$9:$H$208,Lists!$A$16) -> 0 | BG132: 0 | BI132: =SUMIFS(U$9:U$208,PlanningIDEnlaces,$C132,$H$9:$H$208,Lists!$A$16) -> 0 | BJ132: 0 | BL132: =SUMIFS(X$9:X$208,PlanningIDEnlaces,$C132,$H$9:$H$208,Lists!$A$16) -> 0 | BM132: 0 | BO132: =SUMIFS(AA$9:AA$208,PlanningIDEnlaces,$C132,$H$9:$H$208,Lists!$A$16) -> 0 | BP132: 0 | BR132: =SUMIFS(AD$9:AD$208,PlanningIDEnlaces,$C132,$H$9:$H$208,Lists!$A$16) -> 0 | BS132: 0 | BU132: =SUMIFS(AG$9:AG$208,PlanningIDEnlaces,$C132,$H$9:$H$208,Lists!$A$16) -> 0 | BV132: 0 | BX132: =SUMIFS(AJ$9:AJ$208,PlanningIDEnlaces,$C132,$H$9:$H$208,Lists!$A$16) -> 0 | BY132: 0 | CA132: =SUMIFS(AM$9:AM$208,PlanningIDEnlaces,$C132,$H$9:$H$208,Lists!$A$16) -> 0 | CB132: 0 | CD132: =SUMIFS(AP$9:AP$208,PlanningIDEnlaces,$C132,$H$9:$H$208,Lists!$A$16) -> 0 | CE132: 0 | CG132: =IFERROR(INDEX(Lists!$F$5:$F$49,MATCH(Planning!C132,Lists!$G$5:$G$49,0),1),"") ->  | CI132: =IF(C132=0,""," ["&INDEX(Lists!$H$5:$H$49,MATCH(C132,Lists!$G$5:$G$49,0),1)&"]") -> 
A133: I125 | AS133: 0 | AT133: 0.00 | AW133: =SUMIFS(I$9:I$208,PlanningIDEnlaces,$C133,$H$9:$H$208,Lists!$A$16) -> 0 | AX133: 0 | AZ133: =SUMIFS(L$9:L$208,PlanningIDEnlaces,$C133,$H$9:$H$208,Lists!$A$16) -> 0 | BA133: 0 | BC133: =SUMIFS(O$9:O$208,PlanningIDEnlaces,$C133,$H$9:$H$208,Lists!$A$16) -> 0 | BD133: 0 | BF133: =SUMIFS(R$9:R$208,PlanningIDEnlaces,$C133,$H$9:$H$208,Lists!$A$16) -> 0 | BG133: 0 | BI133: =SUMIFS(U$9:U$208,PlanningIDEnlaces,$C133,$H$9:$H$208,Lists!$A$16) -> 0 | BJ133: 0 | BL133: =SUMIFS(X$9:X$208,PlanningIDEnlaces,$C133,$H$9:$H$208,Lists!$A$16) -> 0 | BM133: 0 | BO133: =SUMIFS(AA$9:AA$208,PlanningIDEnlaces,$C133,$H$9:$H$208,Lists!$A$16) -> 0 | BP133: 0 | BR133: =SUMIFS(AD$9:AD$208,PlanningIDEnlaces,$C133,$H$9:$H$208,Lists!$A$16) -> 0 | BS133: 0 | BU133: =SUMIFS(AG$9:AG$208,PlanningIDEnlaces,$C133,$H$9:$H$208,Lists!$A$16) -> 0 | BV133: 0 | BX133: =SUMIFS(AJ$9:AJ$208,PlanningIDEnlaces,$C133,$H$9:$H$208,Lists!$A$16) -> 0 | BY133: 0 | CA133: =SUMIFS(AM$9:AM$208,PlanningIDEnlaces,$C133,$H$9:$H$208,Lists!$A$16) -> 0 | CB133: 0 | CD133: =SUMIFS(AP$9:AP$208,PlanningIDEnlaces,$C133,$H$9:$H$208,Lists!$A$16) -> 0 | CE133: 0 | CG133: =IFERROR(INDEX(Lists!$F$5:$F$49,MATCH(Planning!C133,Lists!$G$5:$G$49,0),1),"") ->  | CI133: =IF(C133=0,""," ["&INDEX(Lists!$H$5:$H$49,MATCH(C133,Lists!$G$5:$G$49,0),1)&"]") -> 
A134: I126 | AS134: 0 | AT134: 0.00 | AW134: =SUMIFS(I$9:I$208,PlanningIDEnlaces,$C134,$H$9:$H$208,Lists!$A$16) -> 0 | AX134: 0 | AZ134: =SUMIFS(L$9:L$208,PlanningIDEnlaces,$C134,$H$9:$H$208,Lists!$A$16) -> 0 | BA134: 0 | BC134: =SUMIFS(O$9:O$208,PlanningIDEnlaces,$C134,$H$9:$H$208,Lists!$A$16) -> 0 | BD134: 0 | BF134: =SUMIFS(R$9:R$208,PlanningIDEnlaces,$C134,$H$9:$H$208,Lists!$A$16) -> 0 | BG134: 0 | BI134: =SUMIFS(U$9:U$208,PlanningIDEnlaces,$C134,$H$9:$H$208,Lists!$A$16) -> 0 | BJ134: 0 | BL134: =SUMIFS(X$9:X$208,PlanningIDEnlaces,$C134,$H$9:$H$208,Lists!$A$16) -> 0 | BM134: 0 | BO134: =SUMIFS(AA$9:AA$208,PlanningIDEnlaces,$C134,$H$9:$H$208,Lists!$A$16) -> 0 | BP134: 0 | BR134: =SUMIFS(AD$9:AD$208,PlanningIDEnlaces,$C134,$H$9:$H$208,Lists!$A$16) -> 0 | BS134: 0 | BU134: =SUMIFS(AG$9:AG$208,PlanningIDEnlaces,$C134,$H$9:$H$208,Lists!$A$16) -> 0 | BV134: 0 | BX134: =SUMIFS(AJ$9:AJ$208,PlanningIDEnlaces,$C134,$H$9:$H$208,Lists!$A$16) -> 0 | BY134: 0 | CA134: =SUMIFS(AM$9:AM$208,PlanningIDEnlaces,$C134,$H$9:$H$208,Lists!$A$16) -> 0 | CB134: 0 | CD134: =SUMIFS(AP$9:AP$208,PlanningIDEnlaces,$C134,$H$9:$H$208,Lists!$A$16) -> 0 | CE134: 0 | CG134: =IFERROR(INDEX(Lists!$F$5:$F$49,MATCH(Planning!C134,Lists!$G$5:$G$49,0),1),"") ->  | CI134: =IF(C134=0,""," ["&INDEX(Lists!$H$5:$H$49,MATCH(C134,Lists!$G$5:$G$49,0),1)&"]") -> 
A135: I127 | AS135: 0 | AT135: 0.00 | AW135: =SUMIFS(I$9:I$208,PlanningIDEnlaces,$C135,$H$9:$H$208,Lists!$A$16) -> 0 | AX135: 0 | AZ135: =SUMIFS(L$9:L$208,PlanningIDEnlaces,$C135,$H$9:$H$208,Lists!$A$16) -> 0 | BA135: 0 | BC135: =SUMIFS(O$9:O$208,PlanningIDEnlaces,$C135,$H$9:$H$208,Lists!$A$16) -> 0 | BD135: 0 | BF135: =SUMIFS(R$9:R$208,PlanningIDEnlaces,$C135,$H$9:$H$208,Lists!$A$16) -> 0 | BG135: 0 | BI135: =SUMIFS(U$9:U$208,PlanningIDEnlaces,$C135,$H$9:$H$208,Lists!$A$16) -> 0 | BJ135: 0 | BL135: =SUMIFS(X$9:X$208,PlanningIDEnlaces,$C135,$H$9:$H$208,Lists!$A$16) -> 0 | BM135: 0 | BO135: =SUMIFS(AA$9:AA$208,PlanningIDEnlaces,$C135,$H$9:$H$208,Lists!$A$16) -> 0 | BP135: 0 | BR135: =SUMIFS(AD$9:AD$208,PlanningIDEnlaces,$C135,$H$9:$H$208,Lists!$A$16) -> 0 | BS135: 0 | BU135: =SUMIFS(AG$9:AG$208,PlanningIDEnlaces,$C135,$H$9:$H$208,Lists!$A$16) -> 0 | BV135: 0 | BX135: =SUMIFS(AJ$9:AJ$208,PlanningIDEnlaces,$C135,$H$9:$H$208,Lists!$A$16) -> 0 | BY135: 0 | CA135: =SUMIFS(AM$9:AM$208,PlanningIDEnlaces,$C135,$H$9:$H$208,Lists!$A$16) -> 0 | CB135: 0 | CD135: =SUMIFS(AP$9:AP$208,PlanningIDEnlaces,$C135,$H$9:$H$208,Lists!$A$16) -> 0 | CE135: 0 | CG135: =IFERROR(INDEX(Lists!$F$5:$F$49,MATCH(Planning!C135,Lists!$G$5:$G$49,0),1),"") ->  | CI135: =IF(C135=0,""," ["&INDEX(Lists!$H$5:$H$49,MATCH(C135,Lists!$G$5:$G$49,0),1)&"]") -> 
A136: I128 | AS136: 0 | AT136: 0.00 | AW136: =SUMIFS(I$9:I$208,PlanningIDEnlaces,$C136,$H$9:$H$208,Lists!$A$16) -> 0 | AX136: 0 | AZ136: =SUMIFS(L$9:L$208,PlanningIDEnlaces,$C136,$H$9:$H$208,Lists!$A$16) -> 0 | BA136: 0 | BC136: =SUMIFS(O$9:O$208,PlanningIDEnlaces,$C136,$H$9:$H$208,Lists!$A$16) -> 0 | BD136: 0 | BF136: =SUMIFS(R$9:R$208,PlanningIDEnlaces,$C136,$H$9:$H$208,Lists!$A$16) -> 0 | BG136: 0 | BI136: =SUMIFS(U$9:U$208,PlanningIDEnlaces,$C136,$H$9:$H$208,Lists!$A$16) -> 0 | BJ136: 0 | BL136: =SUMIFS(X$9:X$208,PlanningIDEnlaces,$C136,$H$9:$H$208,Lists!$A$16) -> 0 | BM136: 0 | BO136: =SUMIFS(AA$9:AA$208,PlanningIDEnlaces,$C136,$H$9:$H$208,Lists!$A$16) -> 0 | BP136: 0 | BR136: =SUMIFS(AD$9:AD$208,PlanningIDEnlaces,$C136,$H$9:$H$208,Lists!$A$16) -> 0 | BS136: 0 | BU136: =SUMIFS(AG$9:AG$208,PlanningIDEnlaces,$C136,$H$9:$H$208,Lists!$A$16) -> 0 | BV136: 0 | BX136: =SUMIFS(AJ$9:AJ$208,PlanningIDEnlaces,$C136,$H$9:$H$208,Lists!$A$16) -> 0 | BY136: 0 | CA136: =SUMIFS(AM$9:AM$208,PlanningIDEnlaces,$C136,$H$9:$H$208,Lists!$A$16) -> 0 | CB136: 0 | CD136: =SUMIFS(AP$9:AP$208,PlanningIDEnlaces,$C136,$H$9:$H$208,Lists!$A$16) -> 0 | CE136: 0 | CG136: =IFERROR(INDEX(Lists!$F$5:$F$49,MATCH(Planning!C136,Lists!$G$5:$G$49,0),1),"") ->  | CI136: =IF(C136=0,""," ["&INDEX(Lists!$H$5:$H$49,MATCH(C136,Lists!$G$5:$G$49,0),1)&"]") -> 
A137: I129 | AS137: =I137+L137+O137+R137+U137+X137+AA137+AD137+AG137+AJ137+AM137+AP137 -> 0 | AT137: =J137+M137+P137+S137+V137+Y137+AB137+AE137+AH137+AK137+AN137+AQ137 -> 0.00 | AW137: =SUMIFS(I$9:I$208,PlanningIDEnlaces,$C137,$H$9:$H$208,Lists!$A$16) -> 0 | AX137: =SUMIFS(J$9:J$208,PlanningIDEnlaces,$C137,$H$9:$H$208,"<>") -> 0 | AZ137: =SUMIFS(L$9:L$208,PlanningIDEnlaces,$C137,$H$9:$H$208,Lists!$A$16) -> 0 | BA137: =SUMIFS(M$9:M$208,PlanningIDEnlaces,$C137,$H$9:$H$208,"<>") -> 0 | BC137: =SUMIFS(O$9:O$208,PlanningIDEnlaces,$C137,$H$9:$H$208,Lists!$A$16) -> 0 | BD137: =SUMIFS(P$9:P$208,PlanningIDEnlaces,$C137,$H$9:$H$208,"<>") -> 0 | BF137: =SUMIFS(R$9:R$208,PlanningIDEnlaces,$C137,$H$9:$H$208,Lists!$A$16) -> 0 | BG137: =SUMIFS(S$9:S$208,PlanningIDEnlaces,$C137,$H$9:$H$208,"<>") -> 0 | BI137: =SUMIFS(U$9:U$208,PlanningIDEnlaces,$C137,$H$9:$H$208,Lists!$A$16) -> 0 | BJ137: =SUMIFS(V$9:V$208,PlanningIDEnlaces,$C137,$H$9:$H$208,"<>") -> 0 | BL137: =SUMIFS(X$9:X$208,PlanningIDEnlaces,$C137,$H$9:$H$208,Lists!$A$16) -> 0 | BM137: =SUMIFS(Y$9:Y$208,PlanningIDEnlaces,$C137,$H$9:$H$208,"<>") -> 0 | BO137: =SUMIFS(AA$9:AA$208,PlanningIDEnlaces,$C137,$H$9:$H$208,Lists!$A$16) -> 0 | BP137: =SUMIFS(AB$9:AB$208,PlanningIDEnlaces,$C137,$H$9:$H$208,"<>") -> 0 | BR137: =SUMIFS(AD$9:AD$208,PlanningIDEnlaces,$C137,$H$9:$H$208,Lists!$A$16) -> 0 | BS137: =SUMIFS(AE$9:AE$208,PlanningIDEnlaces,$C137,$H$9:$H$208,"<>") -> 0 | BU137: =SUMIFS(AG$9:AG$208,PlanningIDEnlaces,$C137,$H$9:$H$208,Lists!$A$16) -> 0 | BV137: =SUMIFS(AH$9:AH$208,PlanningIDEnlaces,$C137,$H$9:$H$208,"<>") -> 0 | BX137: =SUMIFS(AJ$9:AJ$208,PlanningIDEnlaces,$C137,$H$9:$H$208,Lists!$A$16) -> 0 | BY137: =SUMIFS(AK$9:AK$208,PlanningIDEnlaces,$C137,$H$9:$H$208,"<>") -> 0 | CA137: =SUMIFS(AM$9:AM$208,PlanningIDEnlaces,$C137,$H$9:$H$208,Lists!$A$16) -> 0 | CB137: =SUMIFS(AN$9:AN$208,PlanningIDEnlaces,$C137,$H$9:$H$208,"<>") -> 0 | CD137: =SUMIFS(AP$9:AP$208,PlanningIDEnlaces,$C137,$H$9:$H$208,Lists!$A$16) -> 0 | CE137: =SUMIFS(AQ$9:AQ$208,PlanningIDEnlaces,$C137,$H$9:$H$208,"<>") -> 0 | CG137: =IFERROR(INDEX(Lists!$F$5:$F$49,MATCH(Planning!C137,Lists!$G$5:$G$49,0),1),"") ->  | CI137: =IF(C137=0,""," ["&INDEX(Lists!$H$5:$H$49,MATCH(C137,Lists!$G$5:$G$49,0),1)&"]") -> 
A138: I130 | AS138: 0 | AT138: 0.00 | AW138: =SUMIFS(I$9:I$208,PlanningIDEnlaces,$C138,$H$9:$H$208,Lists!$A$16) -> 0 | AX138: 0 | AZ138: =SUMIFS(L$9:L$208,PlanningIDEnlaces,$C138,$H$9:$H$208,Lists!$A$16) -> 0 | BA138: 0 | BC138: =SUMIFS(O$9:O$208,PlanningIDEnlaces,$C138,$H$9:$H$208,Lists!$A$16) -> 0 | BD138: 0 | BF138: =SUMIFS(R$9:R$208,PlanningIDEnlaces,$C138,$H$9:$H$208,Lists!$A$16) -> 0 | BG138: 0 | BI138: =SUMIFS(U$9:U$208,PlanningIDEnlaces,$C138,$H$9:$H$208,Lists!$A$16) -> 0 | BJ138: 0 | BL138: =SUMIFS(X$9:X$208,PlanningIDEnlaces,$C138,$H$9:$H$208,Lists!$A$16) -> 0 | BM138: 0 | BO138: =SUMIFS(AA$9:AA$208,PlanningIDEnlaces,$C138,$H$9:$H$208,Lists!$A$16) -> 0 | BP138: 0 | BR138: =SUMIFS(AD$9:AD$208,PlanningIDEnlaces,$C138,$H$9:$H$208,Lists!$A$16) -> 0 | BS138: 0 | BU138: =SUMIFS(AG$9:AG$208,PlanningIDEnlaces,$C138,$H$9:$H$208,Lists!$A$16) -> 0 | BV138: 0 | BX138: =SUMIFS(AJ$9:AJ$208,PlanningIDEnlaces,$C138,$H$9:$H$208,Lists!$A$16) -> 0 | BY138: 0 | CA138: =SUMIFS(AM$9:AM$208,PlanningIDEnlaces,$C138,$H$9:$H$208,Lists!$A$16) -> 0 | CB138: 0 | CD138: =SUMIFS(AP$9:AP$208,PlanningIDEnlaces,$C138,$H$9:$H$208,Lists!$A$16) -> 0 | CE138: 0 | CG138: =IFERROR(INDEX(Lists!$F$5:$F$49,MATCH(Planning!C138,Lists!$G$5:$G$49,0),1),"") ->  | CI138: =IF(C138=0,""," ["&INDEX(Lists!$H$5:$H$49,MATCH(C138,Lists!$G$5:$G$49,0),1)&"]") -> 
A139: I131 | AS139: 0 | AT139: 0.00 | AW139: =SUMIFS(I$9:I$208,PlanningIDEnlaces,$C139,$H$9:$H$208,Lists!$A$16) -> 0 | AX139: 0 | AZ139: =SUMIFS(L$9:L$208,PlanningIDEnlaces,$C139,$H$9:$H$208,Lists!$A$16) -> 0 | BA139: 0 | BC139: =SUMIFS(O$9:O$208,PlanningIDEnlaces,$C139,$H$9:$H$208,Lists!$A$16) -> 0 | BD139: 0 | BF139: =SUMIFS(R$9:R$208,PlanningIDEnlaces,$C139,$H$9:$H$208,Lists!$A$16) -> 0 | BG139: 0 | BI139: =SUMIFS(U$9:U$208,PlanningIDEnlaces,$C139,$H$9:$H$208,Lists!$A$16) -> 0 | BJ139: 0 | BL139: =SUMIFS(X$9:X$208,PlanningIDEnlaces,$C139,$H$9:$H$208,Lists!$A$16) -> 0 | BM139: 0 | BO139: =SUMIFS(AA$9:AA$208,PlanningIDEnlaces,$C139,$H$9:$H$208,Lists!$A$16) -> 0 | BP139: 0 | BR139: =SUMIFS(AD$9:AD$208,PlanningIDEnlaces,$C139,$H$9:$H$208,Lists!$A$16) -> 0 | BS139: 0 | BU139: =SUMIFS(AG$9:AG$208,PlanningIDEnlaces,$C139,$H$9:$H$208,Lists!$A$16) -> 0 | BV139: 0 | BX139: =SUMIFS(AJ$9:AJ$208,PlanningIDEnlaces,$C139,$H$9:$H$208,Lists!$A$16) -> 0 | BY139: 0 | CA139: =SUMIFS(AM$9:AM$208,PlanningIDEnlaces,$C139,$H$9:$H$208,Lists!$A$16) -> 0 | CB139: 0 | CD139: =SUMIFS(AP$9:AP$208,PlanningIDEnlaces,$C139,$H$9:$H$208,Lists!$A$16) -> 0 | CE139: 0 | CG139: =IFERROR(INDEX(Lists!$F$5:$F$49,MATCH(Planning!C139,Lists!$G$5:$G$49,0),1),"") ->  | CI139: =IF(C139=0,""," ["&INDEX(Lists!$H$5:$H$49,MATCH(C139,Lists!$G$5:$G$49,0),1)&"]") -> 
A140: I132 | AS140: 0 | AT140: 0.00 | AW140: =SUMIFS(I$9:I$208,PlanningIDEnlaces,$C140,$H$9:$H$208,Lists!$A$16) -> 0 | AX140: 0 | AZ140: =SUMIFS(L$9:L$208,PlanningIDEnlaces,$C140,$H$9:$H$208,Lists!$A$16) -> 0 | BA140: 0 | BC140: =SUMIFS(O$9:O$208,PlanningIDEnlaces,$C140,$H$9:$H$208,Lists!$A$16) -> 0 | BD140: 0 | BF140: =SUMIFS(R$9:R$208,PlanningIDEnlaces,$C140,$H$9:$H$208,Lists!$A$16) -> 0 | BG140: 0 | BI140: =SUMIFS(U$9:U$208,PlanningIDEnlaces,$C140,$H$9:$H$208,Lists!$A$16) -> 0 | BJ140: 0 | BL140: =SUMIFS(X$9:X$208,PlanningIDEnlaces,$C140,$H$9:$H$208,Lists!$A$16) -> 0 | BM140: 0 | BO140: =SUMIFS(AA$9:AA$208,PlanningIDEnlaces,$C140,$H$9:$H$208,Lists!$A$16) -> 0 | BP140: 0 | BR140: =SUMIFS(AD$9:AD$208,PlanningIDEnlaces,$C140,$H$9:$H$208,Lists!$A$16) -> 0 | BS140: 0 | BU140: =SUMIFS(AG$9:AG$208,PlanningIDEnlaces,$C140,$H$9:$H$208,Lists!$A$16) -> 0 | BV140: 0 | BX140: =SUMIFS(AJ$9:AJ$208,PlanningIDEnlaces,$C140,$H$9:$H$208,Lists!$A$16) -> 0 | BY140: 0 | CA140: =SUMIFS(AM$9:AM$208,PlanningIDEnlaces,$C140,$H$9:$H$208,Lists!$A$16) -> 0 | CB140: 0 | CD140: =SUMIFS(AP$9:AP$208,PlanningIDEnlaces,$C140,$H$9:$H$208,Lists!$A$16) -> 0 | CE140: 0 | CG140: =IFERROR(INDEX(Lists!$F$5:$F$49,MATCH(Planning!C140,Lists!$G$5:$G$49,0),1),"") ->  | CI140: =IF(C140=0,""," ["&INDEX(Lists!$H$5:$H$49,MATCH(C140,Lists!$G$5:$G$49,0),1)&"]") -> 
A141: I133 | AS141: 0 | AT141: 0.00 | AW141: =SUMIFS(I$9:I$208,PlanningIDEnlaces,$C141,$H$9:$H$208,Lists!$A$16) -> 0 | AX141: 0 | AZ141: =SUMIFS(L$9:L$208,PlanningIDEnlaces,$C141,$H$9:$H$208,Lists!$A$16) -> 0 | BA141: 0 | BC141: =SUMIFS(O$9:O$208,PlanningIDEnlaces,$C141,$H$9:$H$208,Lists!$A$16) -> 0 | BD141: 0 | BF141: =SUMIFS(R$9:R$208,PlanningIDEnlaces,$C141,$H$9:$H$208,Lists!$A$16) -> 0 | BG141: 0 | BI141: =SUMIFS(U$9:U$208,PlanningIDEnlaces,$C141,$H$9:$H$208,Lists!$A$16) -> 0 | BJ141: 0 | BL141: =SUMIFS(X$9:X$208,PlanningIDEnlaces,$C141,$H$9:$H$208,Lists!$A$16) -> 0 | BM141: 0 | BO141: =SUMIFS(AA$9:AA$208,PlanningIDEnlaces,$C141,$H$9:$H$208,Lists!$A$16) -> 0 | BP141: 0 | BR141: =SUMIFS(AD$9:AD$208,PlanningIDEnlaces,$C141,$H$9:$H$208,Lists!$A$16) -> 0 | BS141: 0 | BU141: =SUMIFS(AG$9:AG$208,PlanningIDEnlaces,$C141,$H$9:$H$208,Lists!$A$16) -> 0 | BV141: 0 | BX141: =SUMIFS(AJ$9:AJ$208,PlanningIDEnlaces,$C141,$H$9:$H$208,Lists!$A$16) -> 0 | BY141: 0 | CA141: =SUMIFS(AM$9:AM$208,PlanningIDEnlaces,$C141,$H$9:$H$208,Lists!$A$16) -> 0 | CB141: 0 | CD141: =SUMIFS(AP$9:AP$208,PlanningIDEnlaces,$C141,$H$9:$H$208,Lists!$A$16) -> 0 | CE141: 0 | CG141: =IFERROR(INDEX(Lists!$F$5:$F$49,MATCH(Planning!C141,Lists!$G$5:$G$49,0),1),"") ->  | CI141: =IF(C141=0,""," ["&INDEX(Lists!$H$5:$H$49,MATCH(C141,Lists!$G$5:$G$49,0),1)&"]") -> 
A142: I134 | AS142: 0 | AT142: 0.00 | AW142: =SUMIFS(I$9:I$208,PlanningIDEnlaces,$C142,$H$9:$H$208,Lists!$A$16) -> 0 | AX142: 0 | AZ142: =SUMIFS(L$9:L$208,PlanningIDEnlaces,$C142,$H$9:$H$208,Lists!$A$16) -> 0 | BA142: 0 | BC142: =SUMIFS(O$9:O$208,PlanningIDEnlaces,$C142,$H$9:$H$208,Lists!$A$16) -> 0 | BD142: 0 | BF142: =SUMIFS(R$9:R$208,PlanningIDEnlaces,$C142,$H$9:$H$208,Lists!$A$16) -> 0 | BG142: 0 | BI142: =SUMIFS(U$9:U$208,PlanningIDEnlaces,$C142,$H$9:$H$208,Lists!$A$16) -> 0 | BJ142: 0 | BL142: =SUMIFS(X$9:X$208,PlanningIDEnlaces,$C142,$H$9:$H$208,Lists!$A$16) -> 0 | BM142: 0 | BO142: =SUMIFS(AA$9:AA$208,PlanningIDEnlaces,$C142,$H$9:$H$208,Lists!$A$16) -> 0 | BP142: 0 | BR142: =SUMIFS(AD$9:AD$208,PlanningIDEnlaces,$C142,$H$9:$H$208,Lists!$A$16) -> 0 | BS142: 0 | BU142: =SUMIFS(AG$9:AG$208,PlanningIDEnlaces,$C142,$H$9:$H$208,Lists!$A$16) -> 0 | BV142: 0 | BX142: =SUMIFS(AJ$9:AJ$208,PlanningIDEnlaces,$C142,$H$9:$H$208,Lists!$A$16) -> 0 | BY142: 0 | CA142: =SUMIFS(AM$9:AM$208,PlanningIDEnlaces,$C142,$H$9:$H$208,Lists!$A$16) -> 0 | CB142: 0 | CD142: =SUMIFS(AP$9:AP$208,PlanningIDEnlaces,$C142,$H$9:$H$208,Lists!$A$16) -> 0 | CE142: 0 | CG142: =IFERROR(INDEX(Lists!$F$5:$F$49,MATCH(Planning!C142,Lists!$G$5:$G$49,0),1),"") ->  | CI142: =IF(C142=0,""," ["&INDEX(Lists!$H$5:$H$49,MATCH(C142,Lists!$G$5:$G$49,0),1)&"]") -> 
A143: I135 | AS143: 0 | AT143: 0.00 | AW143: =SUMIFS(I$9:I$208,PlanningIDEnlaces,$C143,$H$9:$H$208,Lists!$A$16) -> 0 | AX143: 0 | AZ143: =SUMIFS(L$9:L$208,PlanningIDEnlaces,$C143,$H$9:$H$208,Lists!$A$16) -> 0 | BA143: 0 | BC143: =SUMIFS(O$9:O$208,PlanningIDEnlaces,$C143,$H$9:$H$208,Lists!$A$16) -> 0 | BD143: 0 | BF143: =SUMIFS(R$9:R$208,PlanningIDEnlaces,$C143,$H$9:$H$208,Lists!$A$16) -> 0 | BG143: 0 | BI143: =SUMIFS(U$9:U$208,PlanningIDEnlaces,$C143,$H$9:$H$208,Lists!$A$16) -> 0 | BJ143: 0 | BL143: =SUMIFS(X$9:X$208,PlanningIDEnlaces,$C143,$H$9:$H$208,Lists!$A$16) -> 0 | BM143: 0 | BO143: =SUMIFS(AA$9:AA$208,PlanningIDEnlaces,$C143,$H$9:$H$208,Lists!$A$16) -> 0 | BP143: 0 | BR143: =SUMIFS(AD$9:AD$208,PlanningIDEnlaces,$C143,$H$9:$H$208,Lists!$A$16) -> 0 | BS143: 0 | BU143: =SUMIFS(AG$9:AG$208,PlanningIDEnlaces,$C143,$H$9:$H$208,Lists!$A$16) -> 0 | BV143: 0 | BX143: =SUMIFS(AJ$9:AJ$208,PlanningIDEnlaces,$C143,$H$9:$H$208,Lists!$A$16) -> 0 | BY143: 0 | CA143: =SUMIFS(AM$9:AM$208,PlanningIDEnlaces,$C143,$H$9:$H$208,Lists!$A$16) -> 0 | CB143: 0 | CD143: =SUMIFS(AP$9:AP$208,PlanningIDEnlaces,$C143,$H$9:$H$208,Lists!$A$16) -> 0 | CE143: 0 | CG143: =IFERROR(INDEX(Lists!$F$5:$F$49,MATCH(Planning!C143,Lists!$G$5:$G$49,0),1),"") ->  | CI143: =IF(C143=0,""," ["&INDEX(Lists!$H$5:$H$49,MATCH(C143,Lists!$G$5:$G$49,0),1)&"]") -> 
A144: I136 | AS144: 0 | AT144: 0.00 | AW144: =SUMIFS(I$9:I$208,PlanningIDEnlaces,$C144,$H$9:$H$208,Lists!$A$16) -> 0 | AX144: 0 | AZ144: =SUMIFS(L$9:L$208,PlanningIDEnlaces,$C144,$H$9:$H$208,Lists!$A$16) -> 0 | BA144: 0 | BC144: =SUMIFS(O$9:O$208,PlanningIDEnlaces,$C144,$H$9:$H$208,Lists!$A$16) -> 0 | BD144: 0 | BF144: =SUMIFS(R$9:R$208,PlanningIDEnlaces,$C144,$H$9:$H$208,Lists!$A$16) -> 0 | BG144: 0 | BI144: =SUMIFS(U$9:U$208,PlanningIDEnlaces,$C144,$H$9:$H$208,Lists!$A$16) -> 0 | BJ144: 0 | BL144: =SUMIFS(X$9:X$208,PlanningIDEnlaces,$C144,$H$9:$H$208,Lists!$A$16) -> 0 | BM144: 0 | BO144: =SUMIFS(AA$9:AA$208,PlanningIDEnlaces,$C144,$H$9:$H$208,Lists!$A$16) -> 0 | BP144: 0 | BR144: =SUMIFS(AD$9:AD$208,PlanningIDEnlaces,$C144,$H$9:$H$208,Lists!$A$16) -> 0 | BS144: 0 | BU144: =SUMIFS(AG$9:AG$208,PlanningIDEnlaces,$C144,$H$9:$H$208,Lists!$A$16) -> 0 | BV144: 0 | BX144: =SUMIFS(AJ$9:AJ$208,PlanningIDEnlaces,$C144,$H$9:$H$208,Lists!$A$16) -> 0 | BY144: 0 | CA144: =SUMIFS(AM$9:AM$208,PlanningIDEnlaces,$C144,$H$9:$H$208,Lists!$A$16) -> 0 | CB144: 0 | CD144: =SUMIFS(AP$9:AP$208,PlanningIDEnlaces,$C144,$H$9:$H$208,Lists!$A$16) -> 0 | CE144: 0 | CG144: =IFERROR(INDEX(Lists!$F$5:$F$49,MATCH(Planning!C144,Lists!$G$5:$G$49,0),1),"") ->  | CI144: =IF(C144=0,""," ["&INDEX(Lists!$H$5:$H$49,MATCH(C144,Lists!$G$5:$G$49,0),1)&"]") -> 
A145: I137 | AS145: 0 | AT145: 0.00 | AW145: =SUMIFS(I$9:I$208,PlanningIDEnlaces,$C145,$H$9:$H$208,Lists!$A$16) -> 0 | AX145: 0 | AZ145: =SUMIFS(L$9:L$208,PlanningIDEnlaces,$C145,$H$9:$H$208,Lists!$A$16) -> 0 | BA145: 0 | BC145: =SUMIFS(O$9:O$208,PlanningIDEnlaces,$C145,$H$9:$H$208,Lists!$A$16) -> 0 | BD145: 0 | BF145: =SUMIFS(R$9:R$208,PlanningIDEnlaces,$C145,$H$9:$H$208,Lists!$A$16) -> 0 | BG145: 0 | BI145: =SUMIFS(U$9:U$208,PlanningIDEnlaces,$C145,$H$9:$H$208,Lists!$A$16) -> 0 | BJ145: 0 | BL145: =SUMIFS(X$9:X$208,PlanningIDEnlaces,$C145,$H$9:$H$208,Lists!$A$16) -> 0 | BM145: 0 | BO145: =SUMIFS(AA$9:AA$208,PlanningIDEnlaces,$C145,$H$9:$H$208,Lists!$A$16) -> 0 | BP145: 0 | BR145: =SUMIFS(AD$9:AD$208,PlanningIDEnlaces,$C145,$H$9:$H$208,Lists!$A$16) -> 0 | BS145: 0 | BU145: =SUMIFS(AG$9:AG$208,PlanningIDEnlaces,$C145,$H$9:$H$208,Lists!$A$16) -> 0 | BV145: 0 | BX145: =SUMIFS(AJ$9:AJ$208,PlanningIDEnlaces,$C145,$H$9:$H$208,Lists!$A$16) -> 0 | BY145: 0 | CA145: =SUMIFS(AM$9:AM$208,PlanningIDEnlaces,$C145,$H$9:$H$208,Lists!$A$16) -> 0 | CB145: 0 | CD145: =SUMIFS(AP$9:AP$208,PlanningIDEnlaces,$C145,$H$9:$H$208,Lists!$A$16) -> 0 | CE145: 0 | CG145: =IFERROR(INDEX(Lists!$F$5:$F$49,MATCH(Planning!C145,Lists!$G$5:$G$49,0),1),"") ->  | CI145: =IF(C145=0,""," ["&INDEX(Lists!$H$5:$H$49,MATCH(C145,Lists!$G$5:$G$49,0),1)&"]") -> 
A146: I138 | AS146: 0 | AT146: 0.00 | AW146: =SUMIFS(I$9:I$208,PlanningIDEnlaces,$C146,$H$9:$H$208,Lists!$A$16) -> 0 | AX146: 0 | AZ146: =SUMIFS(L$9:L$208,PlanningIDEnlaces,$C146,$H$9:$H$208,Lists!$A$16) -> 0 | BA146: 0 | BC146: =SUMIFS(O$9:O$208,PlanningIDEnlaces,$C146,$H$9:$H$208,Lists!$A$16) -> 0 | BD146: 0 | BF146: =SUMIFS(R$9:R$208,PlanningIDEnlaces,$C146,$H$9:$H$208,Lists!$A$16) -> 0 | BG146: 0 | BI146: =SUMIFS(U$9:U$208,PlanningIDEnlaces,$C146,$H$9:$H$208,Lists!$A$16) -> 0 | BJ146: 0 | BL146: =SUMIFS(X$9:X$208,PlanningIDEnlaces,$C146,$H$9:$H$208,Lists!$A$16) -> 0 | BM146: 0 | BO146: =SUMIFS(AA$9:AA$208,PlanningIDEnlaces,$C146,$H$9:$H$208,Lists!$A$16) -> 0 | BP146: 0 | BR146: =SUMIFS(AD$9:AD$208,PlanningIDEnlaces,$C146,$H$9:$H$208,Lists!$A$16) -> 0 | BS146: 0 | BU146: =SUMIFS(AG$9:AG$208,PlanningIDEnlaces,$C146,$H$9:$H$208,Lists!$A$16) -> 0 | BV146: 0 | BX146: =SUMIFS(AJ$9:AJ$208,PlanningIDEnlaces,$C146,$H$9:$H$208,Lists!$A$16) -> 0 | BY146: 0 | CA146: =SUMIFS(AM$9:AM$208,PlanningIDEnlaces,$C146,$H$9:$H$208,Lists!$A$16) -> 0 | CB146: 0 | CD146: =SUMIFS(AP$9:AP$208,PlanningIDEnlaces,$C146,$H$9:$H$208,Lists!$A$16) -> 0 | CE146: 0 | CG146: =IFERROR(INDEX(Lists!$F$5:$F$49,MATCH(Planning!C146,Lists!$G$5:$G$49,0),1),"") ->  | CI146: =IF(C146=0,""," ["&INDEX(Lists!$H$5:$H$49,MATCH(C146,Lists!$G$5:$G$49,0),1)&"]") -> 
A147: I139 | AS147: 0 | AT147: 0.00 | AW147: =SUMIFS(I$9:I$208,PlanningIDEnlaces,$C147,$H$9:$H$208,Lists!$A$16) -> 0 | AX147: 0 | AZ147: =SUMIFS(L$9:L$208,PlanningIDEnlaces,$C147,$H$9:$H$208,Lists!$A$16) -> 0 | BA147: 0 | BC147: =SUMIFS(O$9:O$208,PlanningIDEnlaces,$C147,$H$9:$H$208,Lists!$A$16) -> 0 | BD147: 0 | BF147: =SUMIFS(R$9:R$208,PlanningIDEnlaces,$C147,$H$9:$H$208,Lists!$A$16) -> 0 | BG147: 0 | BI147: =SUMIFS(U$9:U$208,PlanningIDEnlaces,$C147,$H$9:$H$208,Lists!$A$16) -> 0 | BJ147: 0 | BL147: =SUMIFS(X$9:X$208,PlanningIDEnlaces,$C147,$H$9:$H$208,Lists!$A$16) -> 0 | BM147: 0 | BO147: =SUMIFS(AA$9:AA$208,PlanningIDEnlaces,$C147,$H$9:$H$208,Lists!$A$16) -> 0 | BP147: 0 | BR147: =SUMIFS(AD$9:AD$208,PlanningIDEnlaces,$C147,$H$9:$H$208,Lists!$A$16) -> 0 | BS147: 0 | BU147: =SUMIFS(AG$9:AG$208,PlanningIDEnlaces,$C147,$H$9:$H$208,Lists!$A$16) -> 0 | BV147: 0 | BX147: =SUMIFS(AJ$9:AJ$208,PlanningIDEnlaces,$C147,$H$9:$H$208,Lists!$A$16) -> 0 | BY147: 0 | CA147: =SUMIFS(AM$9:AM$208,PlanningIDEnlaces,$C147,$H$9:$H$208,Lists!$A$16) -> 0 | CB147: 0 | CD147: =SUMIFS(AP$9:AP$208,PlanningIDEnlaces,$C147,$H$9:$H$208,Lists!$A$16) -> 0 | CE147: 0 | CG147: =IFERROR(INDEX(Lists!$F$5:$F$49,MATCH(Planning!C147,Lists!$G$5:$G$49,0),1),"") ->  | CI147: =IF(C147=0,""," ["&INDEX(Lists!$H$5:$H$49,MATCH(C147,Lists!$G$5:$G$49,0),1)&"]") -> 
A148: I140 | AS148: 0 | AT148: 0.00 | AW148: =SUMIFS(I$9:I$208,PlanningIDEnlaces,$C148,$H$9:$H$208,Lists!$A$16) -> 0 | AX148: 0 | AZ148: =SUMIFS(L$9:L$208,PlanningIDEnlaces,$C148,$H$9:$H$208,Lists!$A$16) -> 0 | BA148: 0 | BC148: =SUMIFS(O$9:O$208,PlanningIDEnlaces,$C148,$H$9:$H$208,Lists!$A$16) -> 0 | BD148: 0 | BF148: =SUMIFS(R$9:R$208,PlanningIDEnlaces,$C148,$H$9:$H$208,Lists!$A$16) -> 0 | BG148: 0 | BI148: =SUMIFS(U$9:U$208,PlanningIDEnlaces,$C148,$H$9:$H$208,Lists!$A$16) -> 0 | BJ148: 0 | BL148: =SUMIFS(X$9:X$208,PlanningIDEnlaces,$C148,$H$9:$H$208,Lists!$A$16) -> 0 | BM148: 0 | BO148: =SUMIFS(AA$9:AA$208,PlanningIDEnlaces,$C148,$H$9:$H$208,Lists!$A$16) -> 0 | BP148: 0 | BR148: =SUMIFS(AD$9:AD$208,PlanningIDEnlaces,$C148,$H$9:$H$208,Lists!$A$16) -> 0 | BS148: 0 | BU148: =SUMIFS(AG$9:AG$208,PlanningIDEnlaces,$C148,$H$9:$H$208,Lists!$A$16) -> 0 | BV148: 0 | BX148: =SUMIFS(AJ$9:AJ$208,PlanningIDEnlaces,$C148,$H$9:$H$208,Lists!$A$16) -> 0 | BY148: 0 | CA148: =SUMIFS(AM$9:AM$208,PlanningIDEnlaces,$C148,$H$9:$H$208,Lists!$A$16) -> 0 | CB148: 0 | CD148: =SUMIFS(AP$9:AP$208,PlanningIDEnlaces,$C148,$H$9:$H$208,Lists!$A$16) -> 0 | CE148: 0 | CG148: =IFERROR(INDEX(Lists!$F$5:$F$49,MATCH(Planning!C148,Lists!$G$5:$G$49,0),1),"") ->  | CI148: =IF(C148=0,""," ["&INDEX(Lists!$H$5:$H$49,MATCH(C148,Lists!$G$5:$G$49,0),1)&"]") -> 
A149: I141 | AS149: 0 | AT149: 0.00 | AW149: =SUMIFS(I$9:I$208,PlanningIDEnlaces,$C149,$H$9:$H$208,Lists!$A$16) -> 0 | AX149: 0 | AZ149: =SUMIFS(L$9:L$208,PlanningIDEnlaces,$C149,$H$9:$H$208,Lists!$A$16) -> 0 | BA149: 0 | BC149: =SUMIFS(O$9:O$208,PlanningIDEnlaces,$C149,$H$9:$H$208,Lists!$A$16) -> 0 | BD149: 0 | BF149: =SUMIFS(R$9:R$208,PlanningIDEnlaces,$C149,$H$9:$H$208,Lists!$A$16) -> 0 | BG149: 0 | BI149: =SUMIFS(U$9:U$208,PlanningIDEnlaces,$C149,$H$9:$H$208,Lists!$A$16) -> 0 | BJ149: 0 | BL149: =SUMIFS(X$9:X$208,PlanningIDEnlaces,$C149,$H$9:$H$208,Lists!$A$16) -> 0 | BM149: 0 | BO149: =SUMIFS(AA$9:AA$208,PlanningIDEnlaces,$C149,$H$9:$H$208,Lists!$A$16) -> 0 | BP149: 0 | BR149: =SUMIFS(AD$9:AD$208,PlanningIDEnlaces,$C149,$H$9:$H$208,Lists!$A$16) -> 0 | BS149: 0 | BU149: =SUMIFS(AG$9:AG$208,PlanningIDEnlaces,$C149,$H$9:$H$208,Lists!$A$16) -> 0 | BV149: 0 | BX149: =SUMIFS(AJ$9:AJ$208,PlanningIDEnlaces,$C149,$H$9:$H$208,Lists!$A$16) -> 0 | BY149: 0 | CA149: =SUMIFS(AM$9:AM$208,PlanningIDEnlaces,$C149,$H$9:$H$208,Lists!$A$16) -> 0 | CB149: 0 | CD149: =SUMIFS(AP$9:AP$208,PlanningIDEnlaces,$C149,$H$9:$H$208,Lists!$A$16) -> 0 | CE149: 0 | CG149: =IFERROR(INDEX(Lists!$F$5:$F$49,MATCH(Planning!C149,Lists!$G$5:$G$49,0),1),"") ->  | CI149: =IF(C149=0,""," ["&INDEX(Lists!$H$5:$H$49,MATCH(C149,Lists!$G$5:$G$49,0),1)&"]") -> 
A150: I142 | AS150: 0 | AT150: 0.00 | AW150: =SUMIFS(I$9:I$208,PlanningIDEnlaces,$C150,$H$9:$H$208,Lists!$A$16) -> 0 | AX150: 0 | AZ150: =SUMIFS(L$9:L$208,PlanningIDEnlaces,$C150,$H$9:$H$208,Lists!$A$16) -> 0 | BA150: 0 | BC150: =SUMIFS(O$9:O$208,PlanningIDEnlaces,$C150,$H$9:$H$208,Lists!$A$16) -> 0 | BD150: 0 | BF150: =SUMIFS(R$9:R$208,PlanningIDEnlaces,$C150,$H$9:$H$208,Lists!$A$16) -> 0 | BG150: 0 | BI150: =SUMIFS(U$9:U$208,PlanningIDEnlaces,$C150,$H$9:$H$208,Lists!$A$16) -> 0 | BJ150: 0 | BL150: =SUMIFS(X$9:X$208,PlanningIDEnlaces,$C150,$H$9:$H$208,Lists!$A$16) -> 0 | BM150: 0 | BO150: =SUMIFS(AA$9:AA$208,PlanningIDEnlaces,$C150,$H$9:$H$208,Lists!$A$16) -> 0 | BP150: 0 | BR150: =SUMIFS(AD$9:AD$208,PlanningIDEnlaces,$C150,$H$9:$H$208,Lists!$A$16) -> 0 | BS150: 0 | BU150: =SUMIFS(AG$9:AG$208,PlanningIDEnlaces,$C150,$H$9:$H$208,Lists!$A$16) -> 0 | BV150: 0 | BX150: =SUMIFS(AJ$9:AJ$208,PlanningIDEnlaces,$C150,$H$9:$H$208,Lists!$A$16) -> 0 | BY150: 0 | CA150: =SUMIFS(AM$9:AM$208,PlanningIDEnlaces,$C150,$H$9:$H$208,Lists!$A$16) -> 0 | CB150: 0 | CD150: =SUMIFS(AP$9:AP$208,PlanningIDEnlaces,$C150,$H$9:$H$208,Lists!$A$16) -> 0 | CE150: 0 | CG150: =IFERROR(INDEX(Lists!$F$5:$F$49,MATCH(Planning!C150,Lists!$G$5:$G$49,0),1),"") ->  | CI150: =IF(C150=0,""," ["&INDEX(Lists!$H$5:$H$49,MATCH(C150,Lists!$G$5:$G$49,0),1)&"]") -> 
A151: I143 | AS151: 0 | AT151: 0.00 | AW151: =SUMIFS(I$9:I$208,PlanningIDEnlaces,$C151,$H$9:$H$208,Lists!$A$16) -> 0 | AX151: 0 | AZ151: =SUMIFS(L$9:L$208,PlanningIDEnlaces,$C151,$H$9:$H$208,Lists!$A$16) -> 0 | BA151: 0 | BC151: =SUMIFS(O$9:O$208,PlanningIDEnlaces,$C151,$H$9:$H$208,Lists!$A$16) -> 0 | BD151: 0 | BF151: =SUMIFS(R$9:R$208,PlanningIDEnlaces,$C151,$H$9:$H$208,Lists!$A$16) -> 0 | BG151: 0 | BI151: =SUMIFS(U$9:U$208,PlanningIDEnlaces,$C151,$H$9:$H$208,Lists!$A$16) -> 0 | BJ151: 0 | BL151: =SUMIFS(X$9:X$208,PlanningIDEnlaces,$C151,$H$9:$H$208,Lists!$A$16) -> 0 | BM151: 0 | BO151: =SUMIFS(AA$9:AA$208,PlanningIDEnlaces,$C151,$H$9:$H$208,Lists!$A$16) -> 0 | BP151: 0 | BR151: =SUMIFS(AD$9:AD$208,PlanningIDEnlaces,$C151,$H$9:$H$208,Lists!$A$16) -> 0 | BS151: 0 | BU151: =SUMIFS(AG$9:AG$208,PlanningIDEnlaces,$C151,$H$9:$H$208,Lists!$A$16) -> 0 | BV151: 0 | BX151: =SUMIFS(AJ$9:AJ$208,PlanningIDEnlaces,$C151,$H$9:$H$208,Lists!$A$16) -> 0 | BY151: 0 | CA151: =SUMIFS(AM$9:AM$208,PlanningIDEnlaces,$C151,$H$9:$H$208,Lists!$A$16) -> 0 | CB151: 0 | CD151: =SUMIFS(AP$9:AP$208,PlanningIDEnlaces,$C151,$H$9:$H$208,Lists!$A$16) -> 0 | CE151: 0 | CG151: =IFERROR(INDEX(Lists!$F$5:$F$49,MATCH(Planning!C151,Lists!$G$5:$G$49,0),1),"") ->  | CI151: =IF(C151=0,""," ["&INDEX(Lists!$H$5:$H$49,MATCH(C151,Lists!$G$5:$G$49,0),1)&"]") -> 
A152: I144 | AS152: 0 | AT152: 0.00 | AW152: =SUMIFS(I$9:I$208,PlanningIDEnlaces,$C152,$H$9:$H$208,Lists!$A$16) -> 0 | AX152: 0 | AZ152: =SUMIFS(L$9:L$208,PlanningIDEnlaces,$C152,$H$9:$H$208,Lists!$A$16) -> 0 | BA152: 0 | BC152: =SUMIFS(O$9:O$208,PlanningIDEnlaces,$C152,$H$9:$H$208,Lists!$A$16) -> 0 | BD152: 0 | BF152: =SUMIFS(R$9:R$208,PlanningIDEnlaces,$C152,$H$9:$H$208,Lists!$A$16) -> 0 | BG152: 0 | BI152: =SUMIFS(U$9:U$208,PlanningIDEnlaces,$C152,$H$9:$H$208,Lists!$A$16) -> 0 | BJ152: 0 | BL152: =SUMIFS(X$9:X$208,PlanningIDEnlaces,$C152,$H$9:$H$208,Lists!$A$16) -> 0 | BM152: 0 | BO152: =SUMIFS(AA$9:AA$208,PlanningIDEnlaces,$C152,$H$9:$H$208,Lists!$A$16) -> 0 | BP152: 0 | BR152: =SUMIFS(AD$9:AD$208,PlanningIDEnlaces,$C152,$H$9:$H$208,Lists!$A$16) -> 0 | BS152: 0 | BU152: =SUMIFS(AG$9:AG$208,PlanningIDEnlaces,$C152,$H$9:$H$208,Lists!$A$16) -> 0 | BV152: 0 | BX152: =SUMIFS(AJ$9:AJ$208,PlanningIDEnlaces,$C152,$H$9:$H$208,Lists!$A$16) -> 0 | BY152: 0 | CA152: =SUMIFS(AM$9:AM$208,PlanningIDEnlaces,$C152,$H$9:$H$208,Lists!$A$16) -> 0 | CB152: 0 | CD152: =SUMIFS(AP$9:AP$208,PlanningIDEnlaces,$C152,$H$9:$H$208,Lists!$A$16) -> 0 | CE152: 0 | CG152: =IFERROR(INDEX(Lists!$F$5:$F$49,MATCH(Planning!C152,Lists!$G$5:$G$49,0),1),"") ->  | CI152: =IF(C152=0,""," ["&INDEX(Lists!$H$5:$H$49,MATCH(C152,Lists!$G$5:$G$49,0),1)&"]") -> 
A153: I145 | AS153: 0 | AT153: 0.00 | AW153: =SUMIFS(I$9:I$208,PlanningIDEnlaces,$C153,$H$9:$H$208,Lists!$A$16) -> 0 | AX153: 0 | AZ153: =SUMIFS(L$9:L$208,PlanningIDEnlaces,$C153,$H$9:$H$208,Lists!$A$16) -> 0 | BA153: 0 | BC153: =SUMIFS(O$9:O$208,PlanningIDEnlaces,$C153,$H$9:$H$208,Lists!$A$16) -> 0 | BD153: 0 | BF153: =SUMIFS(R$9:R$208,PlanningIDEnlaces,$C153,$H$9:$H$208,Lists!$A$16) -> 0 | BG153: 0 | BI153: =SUMIFS(U$9:U$208,PlanningIDEnlaces,$C153,$H$9:$H$208,Lists!$A$16) -> 0 | BJ153: 0 | BL153: =SUMIFS(X$9:X$208,PlanningIDEnlaces,$C153,$H$9:$H$208,Lists!$A$16) -> 0 | BM153: 0 | BO153: =SUMIFS(AA$9:AA$208,PlanningIDEnlaces,$C153,$H$9:$H$208,Lists!$A$16) -> 0 | BP153: 0 | BR153: =SUMIFS(AD$9:AD$208,PlanningIDEnlaces,$C153,$H$9:$H$208,Lists!$A$16) -> 0 | BS153: 0 | BU153: =SUMIFS(AG$9:AG$208,PlanningIDEnlaces,$C153,$H$9:$H$208,Lists!$A$16) -> 0 | BV153: 0 | BX153: =SUMIFS(AJ$9:AJ$208,PlanningIDEnlaces,$C153,$H$9:$H$208,Lists!$A$16) -> 0 | BY153: 0 | CA153: =SUMIFS(AM$9:AM$208,PlanningIDEnlaces,$C153,$H$9:$H$208,Lists!$A$16) -> 0 | CB153: 0 | CD153: =SUMIFS(AP$9:AP$208,PlanningIDEnlaces,$C153,$H$9:$H$208,Lists!$A$16) -> 0 | CE153: 0 | CG153: =IFERROR(INDEX(Lists!$F$5:$F$49,MATCH(Planning!C153,Lists!$G$5:$G$49,0),1),"") ->  | CI153: =IF(C153=0,""," ["&INDEX(Lists!$H$5:$H$49,MATCH(C153,Lists!$G$5:$G$49,0),1)&"]") -> 
A154: I146 | AS154: 0 | AT154: 0.00 | AW154: =SUMIFS(I$9:I$208,PlanningIDEnlaces,$C154,$H$9:$H$208,Lists!$A$16) -> 0 | AX154: 0 | AZ154: =SUMIFS(L$9:L$208,PlanningIDEnlaces,$C154,$H$9:$H$208,Lists!$A$16) -> 0 | BA154: 0 | BC154: =SUMIFS(O$9:O$208,PlanningIDEnlaces,$C154,$H$9:$H$208,Lists!$A$16) -> 0 | BD154: 0 | BF154: =SUMIFS(R$9:R$208,PlanningIDEnlaces,$C154,$H$9:$H$208,Lists!$A$16) -> 0 | BG154: 0 | BI154: =SUMIFS(U$9:U$208,PlanningIDEnlaces,$C154,$H$9:$H$208,Lists!$A$16) -> 0 | BJ154: 0 | BL154: =SUMIFS(X$9:X$208,PlanningIDEnlaces,$C154,$H$9:$H$208,Lists!$A$16) -> 0 | BM154: 0 | BO154: =SUMIFS(AA$9:AA$208,PlanningIDEnlaces,$C154,$H$9:$H$208,Lists!$A$16) -> 0 | BP154: 0 | BR154: =SUMIFS(AD$9:AD$208,PlanningIDEnlaces,$C154,$H$9:$H$208,Lists!$A$16) -> 0 | BS154: 0 | BU154: =SUMIFS(AG$9:AG$208,PlanningIDEnlaces,$C154,$H$9:$H$208,Lists!$A$16) -> 0 | BV154: 0 | BX154: =SUMIFS(AJ$9:AJ$208,PlanningIDEnlaces,$C154,$H$9:$H$208,Lists!$A$16) -> 0 | BY154: 0 | CA154: =SUMIFS(AM$9:AM$208,PlanningIDEnlaces,$C154,$H$9:$H$208,Lists!$A$16) -> 0 | CB154: 0 | CD154: =SUMIFS(AP$9:AP$208,PlanningIDEnlaces,$C154,$H$9:$H$208,Lists!$A$16) -> 0 | CE154: 0 | CG154: =IFERROR(INDEX(Lists!$F$5:$F$49,MATCH(Planning!C154,Lists!$G$5:$G$49,0),1),"") ->  | CI154: =IF(C154=0,""," ["&INDEX(Lists!$H$5:$H$49,MATCH(C154,Lists!$G$5:$G$49,0),1)&"]") -> 
A155: I147 | AS155: 0 | AT155: 0.00 | AW155: =SUMIFS(I$9:I$208,PlanningIDEnlaces,$C155,$H$9:$H$208,Lists!$A$16) -> 0 | AX155: 0 | AZ155: =SUMIFS(L$9:L$208,PlanningIDEnlaces,$C155,$H$9:$H$208,Lists!$A$16) -> 0 | BA155: 0 | BC155: =SUMIFS(O$9:O$208,PlanningIDEnlaces,$C155,$H$9:$H$208,Lists!$A$16) -> 0 | BD155: 0 | BF155: =SUMIFS(R$9:R$208,PlanningIDEnlaces,$C155,$H$9:$H$208,Lists!$A$16) -> 0 | BG155: 0 | BI155: =SUMIFS(U$9:U$208,PlanningIDEnlaces,$C155,$H$9:$H$208,Lists!$A$16) -> 0 | BJ155: 0 | BL155: =SUMIFS(X$9:X$208,PlanningIDEnlaces,$C155,$H$9:$H$208,Lists!$A$16) -> 0 | BM155: 0 | BO155: =SUMIFS(AA$9:AA$208,PlanningIDEnlaces,$C155,$H$9:$H$208,Lists!$A$16) -> 0 | BP155: 0 | BR155: =SUMIFS(AD$9:AD$208,PlanningIDEnlaces,$C155,$H$9:$H$208,Lists!$A$16) -> 0 | BS155: 0 | BU155: =SUMIFS(AG$9:AG$208,PlanningIDEnlaces,$C155,$H$9:$H$208,Lists!$A$16) -> 0 | BV155: 0 | BX155: =SUMIFS(AJ$9:AJ$208,PlanningIDEnlaces,$C155,$H$9:$H$208,Lists!$A$16) -> 0 | BY155: 0 | CA155: =SUMIFS(AM$9:AM$208,PlanningIDEnlaces,$C155,$H$9:$H$208,Lists!$A$16) -> 0 | CB155: 0 | CD155: =SUMIFS(AP$9:AP$208,PlanningIDEnlaces,$C155,$H$9:$H$208,Lists!$A$16) -> 0 | CE155: 0 | CG155: =IFERROR(INDEX(Lists!$F$5:$F$49,MATCH(Planning!C155,Lists!$G$5:$G$49,0),1),"") ->  | CI155: =IF(C155=0,""," ["&INDEX(Lists!$H$5:$H$49,MATCH(C155,Lists!$G$5:$G$49,0),1)&"]") -> 
A156: I148 | AS156: 0 | AT156: 0.00 | AW156: =SUMIFS(I$9:I$208,PlanningIDEnlaces,$C156,$H$9:$H$208,Lists!$A$16) -> 0 | AX156: 0 | AZ156: =SUMIFS(L$9:L$208,PlanningIDEnlaces,$C156,$H$9:$H$208,Lists!$A$16) -> 0 | BA156: 0 | BC156: =SUMIFS(O$9:O$208,PlanningIDEnlaces,$C156,$H$9:$H$208,Lists!$A$16) -> 0 | BD156: 0 | BF156: =SUMIFS(R$9:R$208,PlanningIDEnlaces,$C156,$H$9:$H$208,Lists!$A$16) -> 0 | BG156: 0 | BI156: =SUMIFS(U$9:U$208,PlanningIDEnlaces,$C156,$H$9:$H$208,Lists!$A$16) -> 0 | BJ156: 0 | BL156: =SUMIFS(X$9:X$208,PlanningIDEnlaces,$C156,$H$9:$H$208,Lists!$A$16) -> 0 | BM156: 0 | BO156: =SUMIFS(AA$9:AA$208,PlanningIDEnlaces,$C156,$H$9:$H$208,Lists!$A$16) -> 0 | BP156: 0 | BR156: =SUMIFS(AD$9:AD$208,PlanningIDEnlaces,$C156,$H$9:$H$208,Lists!$A$16) -> 0 | BS156: 0 | BU156: =SUMIFS(AG$9:AG$208,PlanningIDEnlaces,$C156,$H$9:$H$208,Lists!$A$16) -> 0 | BV156: 0 | BX156: =SUMIFS(AJ$9:AJ$208,PlanningIDEnlaces,$C156,$H$9:$H$208,Lists!$A$16) -> 0 | BY156: 0 | CA156: =SUMIFS(AM$9:AM$208,PlanningIDEnlaces,$C156,$H$9:$H$208,Lists!$A$16) -> 0 | CB156: 0 | CD156: =SUMIFS(AP$9:AP$208,PlanningIDEnlaces,$C156,$H$9:$H$208,Lists!$A$16) -> 0 | CE156: 0 | CG156: =IFERROR(INDEX(Lists!$F$5:$F$49,MATCH(Planning!C156,Lists!$G$5:$G$49,0),1),"") ->  | CI156: =IF(C156=0,""," ["&INDEX(Lists!$H$5:$H$49,MATCH(C156,Lists!$G$5:$G$49,0),1)&"]") -> 
A157: I149 | AS157: 0 | AT157: 0.00 | AW157: =SUMIFS(I$9:I$208,PlanningIDEnlaces,$C157,$H$9:$H$208,Lists!$A$16) -> 0 | AX157: 0 | AZ157: =SUMIFS(L$9:L$208,PlanningIDEnlaces,$C157,$H$9:$H$208,Lists!$A$16) -> 0 | BA157: 0 | BC157: =SUMIFS(O$9:O$208,PlanningIDEnlaces,$C157,$H$9:$H$208,Lists!$A$16) -> 0 | BD157: 0 | BF157: =SUMIFS(R$9:R$208,PlanningIDEnlaces,$C157,$H$9:$H$208,Lists!$A$16) -> 0 | BG157: 0 | BI157: =SUMIFS(U$9:U$208,PlanningIDEnlaces,$C157,$H$9:$H$208,Lists!$A$16) -> 0 | BJ157: 0 | BL157: =SUMIFS(X$9:X$208,PlanningIDEnlaces,$C157,$H$9:$H$208,Lists!$A$16) -> 0 | BM157: 0 | BO157: =SUMIFS(AA$9:AA$208,PlanningIDEnlaces,$C157,$H$9:$H$208,Lists!$A$16) -> 0 | BP157: 0 | BR157: =SUMIFS(AD$9:AD$208,PlanningIDEnlaces,$C157,$H$9:$H$208,Lists!$A$16) -> 0 | BS157: 0 | BU157: =SUMIFS(AG$9:AG$208,PlanningIDEnlaces,$C157,$H$9:$H$208,Lists!$A$16) -> 0 | BV157: 0 | BX157: =SUMIFS(AJ$9:AJ$208,PlanningIDEnlaces,$C157,$H$9:$H$208,Lists!$A$16) -> 0 | BY157: 0 | CA157: =SUMIFS(AM$9:AM$208,PlanningIDEnlaces,$C157,$H$9:$H$208,Lists!$A$16) -> 0 | CB157: 0 | CD157: =SUMIFS(AP$9:AP$208,PlanningIDEnlaces,$C157,$H$9:$H$208,Lists!$A$16) -> 0 | CE157: 0 | CG157: =IFERROR(INDEX(Lists!$F$5:$F$49,MATCH(Planning!C157,Lists!$G$5:$G$49,0),1),"") ->  | CI157: =IF(C157=0,""," ["&INDEX(Lists!$H$5:$H$49,MATCH(C157,Lists!$G$5:$G$49,0),1)&"]") -> 
A158: I150 | AS158: 0 | AT158: 0.00 | AW158: =SUMIFS(I$9:I$208,PlanningIDEnlaces,$C158,$H$9:$H$208,Lists!$A$16) -> 0 | AX158: 0 | AZ158: =SUMIFS(L$9:L$208,PlanningIDEnlaces,$C158,$H$9:$H$208,Lists!$A$16) -> 0 | BA158: 0 | BC158: =SUMIFS(O$9:O$208,PlanningIDEnlaces,$C158,$H$9:$H$208,Lists!$A$16) -> 0 | BD158: 0 | BF158: =SUMIFS(R$9:R$208,PlanningIDEnlaces,$C158,$H$9:$H$208,Lists!$A$16) -> 0 | BG158: 0 | BI158: =SUMIFS(U$9:U$208,PlanningIDEnlaces,$C158,$H$9:$H$208,Lists!$A$16) -> 0 | BJ158: 0 | BL158: =SUMIFS(X$9:X$208,PlanningIDEnlaces,$C158,$H$9:$H$208,Lists!$A$16) -> 0 | BM158: 0 | BO158: =SUMIFS(AA$9:AA$208,PlanningIDEnlaces,$C158,$H$9:$H$208,Lists!$A$16) -> 0 | BP158: 0 | BR158: =SUMIFS(AD$9:AD$208,PlanningIDEnlaces,$C158,$H$9:$H$208,Lists!$A$16) -> 0 | BS158: 0 | BU158: =SUMIFS(AG$9:AG$208,PlanningIDEnlaces,$C158,$H$9:$H$208,Lists!$A$16) -> 0 | BV158: 0 | BX158: =SUMIFS(AJ$9:AJ$208,PlanningIDEnlaces,$C158,$H$9:$H$208,Lists!$A$16) -> 0 | BY158: 0 | CA158: =SUMIFS(AM$9:AM$208,PlanningIDEnlaces,$C158,$H$9:$H$208,Lists!$A$16) -> 0 | CB158: 0 | CD158: =SUMIFS(AP$9:AP$208,PlanningIDEnlaces,$C158,$H$9:$H$208,Lists!$A$16) -> 0 | CE158: 0 | CG158: =IFERROR(INDEX(Lists!$F$5:$F$49,MATCH(Planning!C158,Lists!$G$5:$G$49,0),1),"") ->  | CI158: =IF(C158=0,""," ["&INDEX(Lists!$H$5:$H$49,MATCH(C158,Lists!$G$5:$G$49,0),1)&"]") -> 
A159: I151 | AS159: 0 | AT159: 0.00 | AW159: =SUMIFS(I$9:I$208,PlanningIDEnlaces,$C159,$H$9:$H$208,Lists!$A$16) -> 0 | AX159: 0 | AZ159: =SUMIFS(L$9:L$208,PlanningIDEnlaces,$C159,$H$9:$H$208,Lists!$A$16) -> 0 | BA159: 0 | BC159: =SUMIFS(O$9:O$208,PlanningIDEnlaces,$C159,$H$9:$H$208,Lists!$A$16) -> 0 | BD159: 0 | BF159: =SUMIFS(R$9:R$208,PlanningIDEnlaces,$C159,$H$9:$H$208,Lists!$A$16) -> 0 | BG159: 0 | BI159: =SUMIFS(U$9:U$208,PlanningIDEnlaces,$C159,$H$9:$H$208,Lists!$A$16) -> 0 | BJ159: 0 | BL159: =SUMIFS(X$9:X$208,PlanningIDEnlaces,$C159,$H$9:$H$208,Lists!$A$16) -> 0 | BM159: 0 | BO159: =SUMIFS(AA$9:AA$208,PlanningIDEnlaces,$C159,$H$9:$H$208,Lists!$A$16) -> 0 | BP159: 0 | BR159: =SUMIFS(AD$9:AD$208,PlanningIDEnlaces,$C159,$H$9:$H$208,Lists!$A$16) -> 0 | BS159: 0 | BU159: =SUMIFS(AG$9:AG$208,PlanningIDEnlaces,$C159,$H$9:$H$208,Lists!$A$16) -> 0 | BV159: 0 | BX159: =SUMIFS(AJ$9:AJ$208,PlanningIDEnlaces,$C159,$H$9:$H$208,Lists!$A$16) -> 0 | BY159: 0 | CA159: =SUMIFS(AM$9:AM$208,PlanningIDEnlaces,$C159,$H$9:$H$208,Lists!$A$16) -> 0 | CB159: 0 | CD159: =SUMIFS(AP$9:AP$208,PlanningIDEnlaces,$C159,$H$9:$H$208,Lists!$A$16) -> 0 | CE159: 0 | CG159: =IFERROR(INDEX(Lists!$F$5:$F$49,MATCH(Planning!C159,Lists!$G$5:$G$49,0),1),"") ->  | CI159: =IF(C159=0,""," ["&INDEX(Lists!$H$5:$H$49,MATCH(C159,Lists!$G$5:$G$49,0),1)&"]") -> 
A160: I152 | AS160: 0 | AT160: 0.00 | AW160: =SUMIFS(I$9:I$208,PlanningIDEnlaces,$C160,$H$9:$H$208,Lists!$A$16) -> 0 | AX160: 0 | AZ160: =SUMIFS(L$9:L$208,PlanningIDEnlaces,$C160,$H$9:$H$208,Lists!$A$16) -> 0 | BA160: 0 | BC160: =SUMIFS(O$9:O$208,PlanningIDEnlaces,$C160,$H$9:$H$208,Lists!$A$16) -> 0 | BD160: 0 | BF160: =SUMIFS(R$9:R$208,PlanningIDEnlaces,$C160,$H$9:$H$208,Lists!$A$16) -> 0 | BG160: 0 | BI160: =SUMIFS(U$9:U$208,PlanningIDEnlaces,$C160,$H$9:$H$208,Lists!$A$16) -> 0 | BJ160: 0 | BL160: =SUMIFS(X$9:X$208,PlanningIDEnlaces,$C160,$H$9:$H$208,Lists!$A$16) -> 0 | BM160: 0 | BO160: =SUMIFS(AA$9:AA$208,PlanningIDEnlaces,$C160,$H$9:$H$208,Lists!$A$16) -> 0 | BP160: 0 | BR160: =SUMIFS(AD$9:AD$208,PlanningIDEnlaces,$C160,$H$9:$H$208,Lists!$A$16) -> 0 | BS160: 0 | BU160: =SUMIFS(AG$9:AG$208,PlanningIDEnlaces,$C160,$H$9:$H$208,Lists!$A$16) -> 0 | BV160: 0 | BX160: =SUMIFS(AJ$9:AJ$208,PlanningIDEnlaces,$C160,$H$9:$H$208,Lists!$A$16) -> 0 | BY160: 0 | CA160: =SUMIFS(AM$9:AM$208,PlanningIDEnlaces,$C160,$H$9:$H$208,Lists!$A$16) -> 0 | CB160: 0 | CD160: =SUMIFS(AP$9:AP$208,PlanningIDEnlaces,$C160,$H$9:$H$208,Lists!$A$16) -> 0 | CE160: 0 | CG160: =IFERROR(INDEX(Lists!$F$5:$F$49,MATCH(Planning!C160,Lists!$G$5:$G$49,0),1),"") ->  | CI160: =IF(C160=0,""," ["&INDEX(Lists!$H$5:$H$49,MATCH(C160,Lists!$G$5:$G$49,0),1)&"]") -> 
A161: I153 | AS161: 0 | AT161: 0.00 | AW161: =SUMIFS(I$9:I$208,PlanningIDEnlaces,$C161,$H$9:$H$208,Lists!$A$16) -> 0 | AX161: 0 | AZ161: =SUMIFS(L$9:L$208,PlanningIDEnlaces,$C161,$H$9:$H$208,Lists!$A$16) -> 0 | BA161: 0 | BC161: =SUMIFS(O$9:O$208,PlanningIDEnlaces,$C161,$H$9:$H$208,Lists!$A$16) -> 0 | BD161: 0 | BF161: =SUMIFS(R$9:R$208,PlanningIDEnlaces,$C161,$H$9:$H$208,Lists!$A$16) -> 0 | BG161: 0 | BI161: =SUMIFS(U$9:U$208,PlanningIDEnlaces,$C161,$H$9:$H$208,Lists!$A$16) -> 0 | BJ161: 0 | BL161: =SUMIFS(X$9:X$208,PlanningIDEnlaces,$C161,$H$9:$H$208,Lists!$A$16) -> 0 | BM161: 0 | BO161: =SUMIFS(AA$9:AA$208,PlanningIDEnlaces,$C161,$H$9:$H$208,Lists!$A$16) -> 0 | BP161: 0 | BR161: =SUMIFS(AD$9:AD$208,PlanningIDEnlaces,$C161,$H$9:$H$208,Lists!$A$16) -> 0 | BS161: 0 | BU161: =SUMIFS(AG$9:AG$208,PlanningIDEnlaces,$C161,$H$9:$H$208,Lists!$A$16) -> 0 | BV161: 0 | BX161: =SUMIFS(AJ$9:AJ$208,PlanningIDEnlaces,$C161,$H$9:$H$208,Lists!$A$16) -> 0 | BY161: 0 | CA161: =SUMIFS(AM$9:AM$208,PlanningIDEnlaces,$C161,$H$9:$H$208,Lists!$A$16) -> 0 | CB161: 0 | CD161: =SUMIFS(AP$9:AP$208,PlanningIDEnlaces,$C161,$H$9:$H$208,Lists!$A$16) -> 0 | CE161: 0 | CG161: =IFERROR(INDEX(Lists!$F$5:$F$49,MATCH(Planning!C161,Lists!$G$5:$G$49,0),1),"") ->  | CI161: =IF(C161=0,""," ["&INDEX(Lists!$H$5:$H$49,MATCH(C161,Lists!$G$5:$G$49,0),1)&"]") -> 
A162: I154 | AS162: 0 | AT162: 0.00 | AW162: =SUMIFS(I$9:I$208,PlanningIDEnlaces,$C162,$H$9:$H$208,Lists!$A$16) -> 0 | AX162: 0 | AZ162: =SUMIFS(L$9:L$208,PlanningIDEnlaces,$C162,$H$9:$H$208,Lists!$A$16) -> 0 | BA162: 0 | BC162: =SUMIFS(O$9:O$208,PlanningIDEnlaces,$C162,$H$9:$H$208,Lists!$A$16) -> 0 | BD162: 0 | BF162: =SUMIFS(R$9:R$208,PlanningIDEnlaces,$C162,$H$9:$H$208,Lists!$A$16) -> 0 | BG162: 0 | BI162: =SUMIFS(U$9:U$208,PlanningIDEnlaces,$C162,$H$9:$H$208,Lists!$A$16) -> 0 | BJ162: 0 | BL162: =SUMIFS(X$9:X$208,PlanningIDEnlaces,$C162,$H$9:$H$208,Lists!$A$16) -> 0 | BM162: 0 | BO162: =SUMIFS(AA$9:AA$208,PlanningIDEnlaces,$C162,$H$9:$H$208,Lists!$A$16) -> 0 | BP162: 0 | BR162: =SUMIFS(AD$9:AD$208,PlanningIDEnlaces,$C162,$H$9:$H$208,Lists!$A$16) -> 0 | BS162: 0 | BU162: =SUMIFS(AG$9:AG$208,PlanningIDEnlaces,$C162,$H$9:$H$208,Lists!$A$16) -> 0 | BV162: 0 | BX162: =SUMIFS(AJ$9:AJ$208,PlanningIDEnlaces,$C162,$H$9:$H$208,Lists!$A$16) -> 0 | BY162: 0 | CA162: =SUMIFS(AM$9:AM$208,PlanningIDEnlaces,$C162,$H$9:$H$208,Lists!$A$16) -> 0 | CB162: 0 | CD162: =SUMIFS(AP$9:AP$208,PlanningIDEnlaces,$C162,$H$9:$H$208,Lists!$A$16) -> 0 | CE162: 0 | CG162: =IFERROR(INDEX(Lists!$F$5:$F$49,MATCH(Planning!C162,Lists!$G$5:$G$49,0),1),"") ->  | CI162: =IF(C162=0,""," ["&INDEX(Lists!$H$5:$H$49,MATCH(C162,Lists!$G$5:$G$49,0),1)&"]") -> 
A163: I155 | AS163: 0 | AT163: 0.00 | AW163: =SUMIFS(I$9:I$208,PlanningIDEnlaces,$C163,$H$9:$H$208,Lists!$A$16) -> 0 | AX163: 0 | AZ163: =SUMIFS(L$9:L$208,PlanningIDEnlaces,$C163,$H$9:$H$208,Lists!$A$16) -> 0 | BA163: 0 | BC163: =SUMIFS(O$9:O$208,PlanningIDEnlaces,$C163,$H$9:$H$208,Lists!$A$16) -> 0 | BD163: 0 | BF163: =SUMIFS(R$9:R$208,PlanningIDEnlaces,$C163,$H$9:$H$208,Lists!$A$16) -> 0 | BG163: 0 | BI163: =SUMIFS(U$9:U$208,PlanningIDEnlaces,$C163,$H$9:$H$208,Lists!$A$16) -> 0 | BJ163: 0 | BL163: =SUMIFS(X$9:X$208,PlanningIDEnlaces,$C163,$H$9:$H$208,Lists!$A$16) -> 0 | BM163: 0 | BO163: =SUMIFS(AA$9:AA$208,PlanningIDEnlaces,$C163,$H$9:$H$208,Lists!$A$16) -> 0 | BP163: 0 | BR163: =SUMIFS(AD$9:AD$208,PlanningIDEnlaces,$C163,$H$9:$H$208,Lists!$A$16) -> 0 | BS163: 0 | BU163: =SUMIFS(AG$9:AG$208,PlanningIDEnlaces,$C163,$H$9:$H$208,Lists!$A$16) -> 0 | BV163: 0 | BX163: =SUMIFS(AJ$9:AJ$208,PlanningIDEnlaces,$C163,$H$9:$H$208,Lists!$A$16) -> 0 | BY163: 0 | CA163: =SUMIFS(AM$9:AM$208,PlanningIDEnlaces,$C163,$H$9:$H$208,Lists!$A$16) -> 0 | CB163: 0 | CD163: =SUMIFS(AP$9:AP$208,PlanningIDEnlaces,$C163,$H$9:$H$208,Lists!$A$16) -> 0 | CE163: 0 | CG163: =IFERROR(INDEX(Lists!$F$5:$F$49,MATCH(Planning!C163,Lists!$G$5:$G$49,0),1),"") ->  | CI163: =IF(C163=0,""," ["&INDEX(Lists!$H$5:$H$49,MATCH(C163,Lists!$G$5:$G$49,0),1)&"]") -> 
A164: I156 | AS164: 0 | AT164: 0.00 | AW164: =SUMIFS(I$9:I$208,PlanningIDEnlaces,$C164,$H$9:$H$208,Lists!$A$16) -> 0 | AX164: 0 | AZ164: =SUMIFS(L$9:L$208,PlanningIDEnlaces,$C164,$H$9:$H$208,Lists!$A$16) -> 0 | BA164: 0 | BC164: =SUMIFS(O$9:O$208,PlanningIDEnlaces,$C164,$H$9:$H$208,Lists!$A$16) -> 0 | BD164: 0 | BF164: =SUMIFS(R$9:R$208,PlanningIDEnlaces,$C164,$H$9:$H$208,Lists!$A$16) -> 0 | BG164: 0 | BI164: =SUMIFS(U$9:U$208,PlanningIDEnlaces,$C164,$H$9:$H$208,Lists!$A$16) -> 0 | BJ164: 0 | BL164: =SUMIFS(X$9:X$208,PlanningIDEnlaces,$C164,$H$9:$H$208,Lists!$A$16) -> 0 | BM164: 0 | BO164: =SUMIFS(AA$9:AA$208,PlanningIDEnlaces,$C164,$H$9:$H$208,Lists!$A$16) -> 0 | BP164: 0 | BR164: =SUMIFS(AD$9:AD$208,PlanningIDEnlaces,$C164,$H$9:$H$208,Lists!$A$16) -> 0 | BS164: 0 | BU164: =SUMIFS(AG$9:AG$208,PlanningIDEnlaces,$C164,$H$9:$H$208,Lists!$A$16) -> 0 | BV164: 0 | BX164: =SUMIFS(AJ$9:AJ$208,PlanningIDEnlaces,$C164,$H$9:$H$208,Lists!$A$16) -> 0 | BY164: 0 | CA164: =SUMIFS(AM$9:AM$208,PlanningIDEnlaces,$C164,$H$9:$H$208,Lists!$A$16) -> 0 | CB164: 0 | CD164: =SUMIFS(AP$9:AP$208,PlanningIDEnlaces,$C164,$H$9:$H$208,Lists!$A$16) -> 0 | CE164: 0 | CG164: =IFERROR(INDEX(Lists!$F$5:$F$49,MATCH(Planning!C164,Lists!$G$5:$G$49,0),1),"") ->  | CI164: =IF(C164=0,""," ["&INDEX(Lists!$H$5:$H$49,MATCH(C164,Lists!$G$5:$G$49,0),1)&"]") -> 
A165: I157 | AS165: 0 | AT165: 0.00 | AW165: =SUMIFS(I$9:I$208,PlanningIDEnlaces,$C165,$H$9:$H$208,Lists!$A$16) -> 0 | AX165: 0 | AZ165: =SUMIFS(L$9:L$208,PlanningIDEnlaces,$C165,$H$9:$H$208,Lists!$A$16) -> 0 | BA165: 0 | BC165: =SUMIFS(O$9:O$208,PlanningIDEnlaces,$C165,$H$9:$H$208,Lists!$A$16) -> 0 | BD165: 0 | BF165: =SUMIFS(R$9:R$208,PlanningIDEnlaces,$C165,$H$9:$H$208,Lists!$A$16) -> 0 | BG165: 0 | BI165: =SUMIFS(U$9:U$208,PlanningIDEnlaces,$C165,$H$9:$H$208,Lists!$A$16) -> 0 | BJ165: 0 | BL165: =SUMIFS(X$9:X$208,PlanningIDEnlaces,$C165,$H$9:$H$208,Lists!$A$16) -> 0 | BM165: 0 | BO165: =SUMIFS(AA$9:AA$208,PlanningIDEnlaces,$C165,$H$9:$H$208,Lists!$A$16) -> 0 | BP165: 0 | BR165: =SUMIFS(AD$9:AD$208,PlanningIDEnlaces,$C165,$H$9:$H$208,Lists!$A$16) -> 0 | BS165: 0 | BU165: =SUMIFS(AG$9:AG$208,PlanningIDEnlaces,$C165,$H$9:$H$208,Lists!$A$16) -> 0 | BV165: 0 | BX165: =SUMIFS(AJ$9:AJ$208,PlanningIDEnlaces,$C165,$H$9:$H$208,Lists!$A$16) -> 0 | BY165: 0 | CA165: =SUMIFS(AM$9:AM$208,PlanningIDEnlaces,$C165,$H$9:$H$208,Lists!$A$16) -> 0 | CB165: 0 | CD165: =SUMIFS(AP$9:AP$208,PlanningIDEnlaces,$C165,$H$9:$H$208,Lists!$A$16) -> 0 | CE165: 0 | CG165: =IFERROR(INDEX(Lists!$F$5:$F$49,MATCH(Planning!C165,Lists!$G$5:$G$49,0),1),"") ->  | CI165: =IF(C165=0,""," ["&INDEX(Lists!$H$5:$H$49,MATCH(C165,Lists!$G$5:$G$49,0),1)&"]") -> 
A166: I158 | AS166: 0 | AT166: 0.00 | AW166: =SUMIFS(I$9:I$208,PlanningIDEnlaces,$C166,$H$9:$H$208,Lists!$A$16) -> 0 | AX166: 0 | AZ166: =SUMIFS(L$9:L$208,PlanningIDEnlaces,$C166,$H$9:$H$208,Lists!$A$16) -> 0 | BA166: 0 | BC166: =SUMIFS(O$9:O$208,PlanningIDEnlaces,$C166,$H$9:$H$208,Lists!$A$16) -> 0 | BD166: 0 | BF166: =SUMIFS(R$9:R$208,PlanningIDEnlaces,$C166,$H$9:$H$208,Lists!$A$16) -> 0 | BG166: 0 | BI166: =SUMIFS(U$9:U$208,PlanningIDEnlaces,$C166,$H$9:$H$208,Lists!$A$16) -> 0 | BJ166: 0 | BL166: =SUMIFS(X$9:X$208,PlanningIDEnlaces,$C166,$H$9:$H$208,Lists!$A$16) -> 0 | BM166: 0 | BO166: =SUMIFS(AA$9:AA$208,PlanningIDEnlaces,$C166,$H$9:$H$208,Lists!$A$16) -> 0 | BP166: 0 | BR166: =SUMIFS(AD$9:AD$208,PlanningIDEnlaces,$C166,$H$9:$H$208,Lists!$A$16) -> 0 | BS166: 0 | BU166: =SUMIFS(AG$9:AG$208,PlanningIDEnlaces,$C166,$H$9:$H$208,Lists!$A$16) -> 0 | BV166: 0 | BX166: =SUMIFS(AJ$9:AJ$208,PlanningIDEnlaces,$C166,$H$9:$H$208,Lists!$A$16) -> 0 | BY166: 0 | CA166: =SUMIFS(AM$9:AM$208,PlanningIDEnlaces,$C166,$H$9:$H$208,Lists!$A$16) -> 0 | CB166: 0 | CD166: =SUMIFS(AP$9:AP$208,PlanningIDEnlaces,$C166,$H$9:$H$208,Lists!$A$16) -> 0 | CE166: 0 | CG166: =IFERROR(INDEX(Lists!$F$5:$F$49,MATCH(Planning!C166,Lists!$G$5:$G$49,0),1),"") ->  | CI166: =IF(C166=0,""," ["&INDEX(Lists!$H$5:$H$49,MATCH(C166,Lists!$G$5:$G$49,0),1)&"]") -> 
A167: I159 | AS167: 0 | AT167: 0.00 | AW167: =SUMIFS(I$9:I$208,PlanningIDEnlaces,$C167,$H$9:$H$208,Lists!$A$16) -> 0 | AX167: 0 | AZ167: =SUMIFS(L$9:L$208,PlanningIDEnlaces,$C167,$H$9:$H$208,Lists!$A$16) -> 0 | BA167: 0 | BC167: =SUMIFS(O$9:O$208,PlanningIDEnlaces,$C167,$H$9:$H$208,Lists!$A$16) -> 0 | BD167: 0 | BF167: =SUMIFS(R$9:R$208,PlanningIDEnlaces,$C167,$H$9:$H$208,Lists!$A$16) -> 0 | BG167: 0 | BI167: =SUMIFS(U$9:U$208,PlanningIDEnlaces,$C167,$H$9:$H$208,Lists!$A$16) -> 0 | BJ167: 0 | BL167: =SUMIFS(X$9:X$208,PlanningIDEnlaces,$C167,$H$9:$H$208,Lists!$A$16) -> 0 | BM167: 0 | BO167: =SUMIFS(AA$9:AA$208,PlanningIDEnlaces,$C167,$H$9:$H$208,Lists!$A$16) -> 0 | BP167: 0 | BR167: =SUMIFS(AD$9:AD$208,PlanningIDEnlaces,$C167,$H$9:$H$208,Lists!$A$16) -> 0 | BS167: 0 | BU167: =SUMIFS(AG$9:AG$208,PlanningIDEnlaces,$C167,$H$9:$H$208,Lists!$A$16) -> 0 | BV167: 0 | BX167: =SUMIFS(AJ$9:AJ$208,PlanningIDEnlaces,$C167,$H$9:$H$208,Lists!$A$16) -> 0 | BY167: 0 | CA167: =SUMIFS(AM$9:AM$208,PlanningIDEnlaces,$C167,$H$9:$H$208,Lists!$A$16) -> 0 | CB167: 0 | CD167: =SUMIFS(AP$9:AP$208,PlanningIDEnlaces,$C167,$H$9:$H$208,Lists!$A$16) -> 0 | CE167: 0 | CG167: =IFERROR(INDEX(Lists!$F$5:$F$49,MATCH(Planning!C167,Lists!$G$5:$G$49,0),1),"") ->  | CI167: =IF(C167=0,""," ["&INDEX(Lists!$H$5:$H$49,MATCH(C167,Lists!$G$5:$G$49,0),1)&"]") -> 
A168: I160 | AS168: 0 | AT168: 0.00 | AW168: =SUMIFS(I$9:I$208,PlanningIDEnlaces,$C168,$H$9:$H$208,Lists!$A$16) -> 0 | AX168: 0 | AZ168: =SUMIFS(L$9:L$208,PlanningIDEnlaces,$C168,$H$9:$H$208,Lists!$A$16) -> 0 | BA168: 0 | BC168: =SUMIFS(O$9:O$208,PlanningIDEnlaces,$C168,$H$9:$H$208,Lists!$A$16) -> 0 | BD168: 0 | BF168: =SUMIFS(R$9:R$208,PlanningIDEnlaces,$C168,$H$9:$H$208,Lists!$A$16) -> 0 | BG168: 0 | BI168: =SUMIFS(U$9:U$208,PlanningIDEnlaces,$C168,$H$9:$H$208,Lists!$A$16) -> 0 | BJ168: 0 | BL168: =SUMIFS(X$9:X$208,PlanningIDEnlaces,$C168,$H$9:$H$208,Lists!$A$16) -> 0 | BM168: 0 | BO168: =SUMIFS(AA$9:AA$208,PlanningIDEnlaces,$C168,$H$9:$H$208,Lists!$A$16) -> 0 | BP168: 0 | BR168: =SUMIFS(AD$9:AD$208,PlanningIDEnlaces,$C168,$H$9:$H$208,Lists!$A$16) -> 0 | BS168: 0 | BU168: =SUMIFS(AG$9:AG$208,PlanningIDEnlaces,$C168,$H$9:$H$208,Lists!$A$16) -> 0 | BV168: 0 | BX168: =SUMIFS(AJ$9:AJ$208,PlanningIDEnlaces,$C168,$H$9:$H$208,Lists!$A$16) -> 0 | BY168: 0 | CA168: =SUMIFS(AM$9:AM$208,PlanningIDEnlaces,$C168,$H$9:$H$208,Lists!$A$16) -> 0 | CB168: 0 | CD168: =SUMIFS(AP$9:AP$208,PlanningIDEnlaces,$C168,$H$9:$H$208,Lists!$A$16) -> 0 | CE168: 0 | CG168: =IFERROR(INDEX(Lists!$F$5:$F$49,MATCH(Planning!C168,Lists!$G$5:$G$49,0),1),"") ->  | CI168: =IF(C168=0,""," ["&INDEX(Lists!$H$5:$H$49,MATCH(C168,Lists!$G$5:$G$49,0),1)&"]") -> 
A169: I161 | AS169: =I169+L169+O169+R169+U169+X169+AA169+AD169+AG169+AJ169+AM169+AP169 -> 0 | AT169: =J169+M169+P169+S169+V169+Y169+AB169+AE169+AH169+AK169+AN169+AQ169 -> 0.00 | AW169: =SUMIFS(I$9:I$208,PlanningIDEnlaces,$C169,$H$9:$H$208,Lists!$A$16) -> 0 | AX169: =SUMIFS(J$9:J$208,PlanningIDEnlaces,$C169,$H$9:$H$208,"<>") -> 0 | AZ169: =SUMIFS(L$9:L$208,PlanningIDEnlaces,$C169,$H$9:$H$208,Lists!$A$16) -> 0 | BA169: =SUMIFS(M$9:M$208,PlanningIDEnlaces,$C169,$H$9:$H$208,"<>") -> 0 | BC169: =SUMIFS(O$9:O$208,PlanningIDEnlaces,$C169,$H$9:$H$208,Lists!$A$16) -> 0 | BD169: =SUMIFS(P$9:P$208,PlanningIDEnlaces,$C169,$H$9:$H$208,"<>") -> 0 | BF169: =SUMIFS(R$9:R$208,PlanningIDEnlaces,$C169,$H$9:$H$208,Lists!$A$16) -> 0 | BG169: =SUMIFS(S$9:S$208,PlanningIDEnlaces,$C169,$H$9:$H$208,"<>") -> 0 | BI169: =SUMIFS(U$9:U$208,PlanningIDEnlaces,$C169,$H$9:$H$208,Lists!$A$16) -> 0 | BJ169: =SUMIFS(V$9:V$208,PlanningIDEnlaces,$C169,$H$9:$H$208,"<>") -> 0 | BL169: =SUMIFS(X$9:X$208,PlanningIDEnlaces,$C169,$H$9:$H$208,Lists!$A$16) -> 0 | BM169: =SUMIFS(Y$9:Y$208,PlanningIDEnlaces,$C169,$H$9:$H$208,"<>") -> 0 | BO169: =SUMIFS(AA$9:AA$208,PlanningIDEnlaces,$C169,$H$9:$H$208,Lists!$A$16) -> 0 | BP169: =SUMIFS(AB$9:AB$208,PlanningIDEnlaces,$C169,$H$9:$H$208,"<>") -> 0 | BR169: =SUMIFS(AD$9:AD$208,PlanningIDEnlaces,$C169,$H$9:$H$208,Lists!$A$16) -> 0 | BS169: =SUMIFS(AE$9:AE$208,PlanningIDEnlaces,$C169,$H$9:$H$208,"<>") -> 0 | BU169: =SUMIFS(AG$9:AG$208,PlanningIDEnlaces,$C169,$H$9:$H$208,Lists!$A$16) -> 0 | BV169: =SUMIFS(AH$9:AH$208,PlanningIDEnlaces,$C169,$H$9:$H$208,"<>") -> 0 | BX169: =SUMIFS(AJ$9:AJ$208,PlanningIDEnlaces,$C169,$H$9:$H$208,Lists!$A$16) -> 0 | BY169: =SUMIFS(AK$9:AK$208,PlanningIDEnlaces,$C169,$H$9:$H$208,"<>") -> 0 | CA169: =SUMIFS(AM$9:AM$208,PlanningIDEnlaces,$C169,$H$9:$H$208,Lists!$A$16) -> 0 | CB169: =SUMIFS(AN$9:AN$208,PlanningIDEnlaces,$C169,$H$9:$H$208,"<>") -> 0 | CD169: =SUMIFS(AP$9:AP$208,PlanningIDEnlaces,$C169,$H$9:$H$208,Lists!$A$16) -> 0 | CE169: =SUMIFS(AQ$9:AQ$208,PlanningIDEnlaces,$C169,$H$9:$H$208,"<>") -> 0 | CG169: =IFERROR(INDEX(Lists!$F$5:$F$49,MATCH(Planning!C169,Lists!$G$5:$G$49,0),1),"") ->  | CI169: =IF(C169=0,""," ["&INDEX(Lists!$H$5:$H$49,MATCH(C169,Lists!$G$5:$G$49,0),1)&"]") -> 
A170: I162 | AS170: 0 | AT170: 0.00 | AW170: =SUMIFS(I$9:I$208,PlanningIDEnlaces,$C170,$H$9:$H$208,Lists!$A$16) -> 0 | AX170: 0 | AZ170: =SUMIFS(L$9:L$208,PlanningIDEnlaces,$C170,$H$9:$H$208,Lists!$A$16) -> 0 | BA170: 0 | BC170: =SUMIFS(O$9:O$208,PlanningIDEnlaces,$C170,$H$9:$H$208,Lists!$A$16) -> 0 | BD170: 0 | BF170: =SUMIFS(R$9:R$208,PlanningIDEnlaces,$C170,$H$9:$H$208,Lists!$A$16) -> 0 | BG170: 0 | BI170: =SUMIFS(U$9:U$208,PlanningIDEnlaces,$C170,$H$9:$H$208,Lists!$A$16) -> 0 | BJ170: 0 | BL170: =SUMIFS(X$9:X$208,PlanningIDEnlaces,$C170,$H$9:$H$208,Lists!$A$16) -> 0 | BM170: 0 | BO170: =SUMIFS(AA$9:AA$208,PlanningIDEnlaces,$C170,$H$9:$H$208,Lists!$A$16) -> 0 | BP170: 0 | BR170: =SUMIFS(AD$9:AD$208,PlanningIDEnlaces,$C170,$H$9:$H$208,Lists!$A$16) -> 0 | BS170: 0 | BU170: =SUMIFS(AG$9:AG$208,PlanningIDEnlaces,$C170,$H$9:$H$208,Lists!$A$16) -> 0 | BV170: 0 | BX170: =SUMIFS(AJ$9:AJ$208,PlanningIDEnlaces,$C170,$H$9:$H$208,Lists!$A$16) -> 0 | BY170: 0 | CA170: =SUMIFS(AM$9:AM$208,PlanningIDEnlaces,$C170,$H$9:$H$208,Lists!$A$16) -> 0 | CB170: 0 | CD170: =SUMIFS(AP$9:AP$208,PlanningIDEnlaces,$C170,$H$9:$H$208,Lists!$A$16) -> 0 | CE170: 0 | CG170: =IFERROR(INDEX(Lists!$F$5:$F$49,MATCH(Planning!C170,Lists!$G$5:$G$49,0),1),"") ->  | CI170: =IF(C170=0,""," ["&INDEX(Lists!$H$5:$H$49,MATCH(C170,Lists!$G$5:$G$49,0),1)&"]") -> 
A171: I163 | AS171: 0 | AT171: 0.00 | AW171: =SUMIFS(I$9:I$208,PlanningIDEnlaces,$C171,$H$9:$H$208,Lists!$A$16) -> 0 | AX171: 0 | AZ171: =SUMIFS(L$9:L$208,PlanningIDEnlaces,$C171,$H$9:$H$208,Lists!$A$16) -> 0 | BA171: 0 | BC171: =SUMIFS(O$9:O$208,PlanningIDEnlaces,$C171,$H$9:$H$208,Lists!$A$16) -> 0 | BD171: 0 | BF171: =SUMIFS(R$9:R$208,PlanningIDEnlaces,$C171,$H$9:$H$208,Lists!$A$16) -> 0 | BG171: 0 | BI171: =SUMIFS(U$9:U$208,PlanningIDEnlaces,$C171,$H$9:$H$208,Lists!$A$16) -> 0 | BJ171: 0 | BL171: =SUMIFS(X$9:X$208,PlanningIDEnlaces,$C171,$H$9:$H$208,Lists!$A$16) -> 0 | BM171: 0 | BO171: =SUMIFS(AA$9:AA$208,PlanningIDEnlaces,$C171,$H$9:$H$208,Lists!$A$16) -> 0 | BP171: 0 | BR171: =SUMIFS(AD$9:AD$208,PlanningIDEnlaces,$C171,$H$9:$H$208,Lists!$A$16) -> 0 | BS171: 0 | BU171: =SUMIFS(AG$9:AG$208,PlanningIDEnlaces,$C171,$H$9:$H$208,Lists!$A$16) -> 0 | BV171: 0 | BX171: =SUMIFS(AJ$9:AJ$208,PlanningIDEnlaces,$C171,$H$9:$H$208,Lists!$A$16) -> 0 | BY171: 0 | CA171: =SUMIFS(AM$9:AM$208,PlanningIDEnlaces,$C171,$H$9:$H$208,Lists!$A$16) -> 0 | CB171: 0 | CD171: =SUMIFS(AP$9:AP$208,PlanningIDEnlaces,$C171,$H$9:$H$208,Lists!$A$16) -> 0 | CE171: 0 | CG171: =IFERROR(INDEX(Lists!$F$5:$F$49,MATCH(Planning!C171,Lists!$G$5:$G$49,0),1),"") ->  | CI171: =IF(C171=0,""," ["&INDEX(Lists!$H$5:$H$49,MATCH(C171,Lists!$G$5:$G$49,0),1)&"]") -> 
A172: I164 | AS172: 0 | AT172: 0.00 | AW172: =SUMIFS(I$9:I$208,PlanningIDEnlaces,$C172,$H$9:$H$208,Lists!$A$16) -> 0 | AX172: 0 | AZ172: =SUMIFS(L$9:L$208,PlanningIDEnlaces,$C172,$H$9:$H$208,Lists!$A$16) -> 0 | BA172: 0 | BC172: =SUMIFS(O$9:O$208,PlanningIDEnlaces,$C172,$H$9:$H$208,Lists!$A$16) -> 0 | BD172: 0 | BF172: =SUMIFS(R$9:R$208,PlanningIDEnlaces,$C172,$H$9:$H$208,Lists!$A$16) -> 0 | BG172: 0 | BI172: =SUMIFS(U$9:U$208,PlanningIDEnlaces,$C172,$H$9:$H$208,Lists!$A$16) -> 0 | BJ172: 0 | BL172: =SUMIFS(X$9:X$208,PlanningIDEnlaces,$C172,$H$9:$H$208,Lists!$A$16) -> 0 | BM172: 0 | BO172: =SUMIFS(AA$9:AA$208,PlanningIDEnlaces,$C172,$H$9:$H$208,Lists!$A$16) -> 0 | BP172: 0 | BR172: =SUMIFS(AD$9:AD$208,PlanningIDEnlaces,$C172,$H$9:$H$208,Lists!$A$16) -> 0 | BS172: 0 | BU172: =SUMIFS(AG$9:AG$208,PlanningIDEnlaces,$C172,$H$9:$H$208,Lists!$A$16) -> 0 | BV172: 0 | BX172: =SUMIFS(AJ$9:AJ$208,PlanningIDEnlaces,$C172,$H$9:$H$208,Lists!$A$16) -> 0 | BY172: 0 | CA172: =SUMIFS(AM$9:AM$208,PlanningIDEnlaces,$C172,$H$9:$H$208,Lists!$A$16) -> 0 | CB172: 0 | CD172: =SUMIFS(AP$9:AP$208,PlanningIDEnlaces,$C172,$H$9:$H$208,Lists!$A$16) -> 0 | CE172: 0 | CG172: =IFERROR(INDEX(Lists!$F$5:$F$49,MATCH(Planning!C172,Lists!$G$5:$G$49,0),1),"") ->  | CI172: =IF(C172=0,""," ["&INDEX(Lists!$H$5:$H$49,MATCH(C172,Lists!$G$5:$G$49,0),1)&"]") -> 
A173: I165 | AS173: 0 | AT173: 0.00 | AW173: =SUMIFS(I$9:I$208,PlanningIDEnlaces,$C173,$H$9:$H$208,Lists!$A$16) -> 0 | AX173: 0 | AZ173: =SUMIFS(L$9:L$208,PlanningIDEnlaces,$C173,$H$9:$H$208,Lists!$A$16) -> 0 | BA173: 0 | BC173: =SUMIFS(O$9:O$208,PlanningIDEnlaces,$C173,$H$9:$H$208,Lists!$A$16) -> 0 | BD173: 0 | BF173: =SUMIFS(R$9:R$208,PlanningIDEnlaces,$C173,$H$9:$H$208,Lists!$A$16) -> 0 | BG173: 0 | BI173: =SUMIFS(U$9:U$208,PlanningIDEnlaces,$C173,$H$9:$H$208,Lists!$A$16) -> 0 | BJ173: 0 | BL173: =SUMIFS(X$9:X$208,PlanningIDEnlaces,$C173,$H$9:$H$208,Lists!$A$16) -> 0 | BM173: 0 | BO173: =SUMIFS(AA$9:AA$208,PlanningIDEnlaces,$C173,$H$9:$H$208,Lists!$A$16) -> 0 | BP173: 0 | BR173: =SUMIFS(AD$9:AD$208,PlanningIDEnlaces,$C173,$H$9:$H$208,Lists!$A$16) -> 0 | BS173: 0 | BU173: =SUMIFS(AG$9:AG$208,PlanningIDEnlaces,$C173,$H$9:$H$208,Lists!$A$16) -> 0 | BV173: 0 | BX173: =SUMIFS(AJ$9:AJ$208,PlanningIDEnlaces,$C173,$H$9:$H$208,Lists!$A$16) -> 0 | BY173: 0 | CA173: =SUMIFS(AM$9:AM$208,PlanningIDEnlaces,$C173,$H$9:$H$208,Lists!$A$16) -> 0 | CB173: 0 | CD173: =SUMIFS(AP$9:AP$208,PlanningIDEnlaces,$C173,$H$9:$H$208,Lists!$A$16) -> 0 | CE173: 0 | CG173: =IFERROR(INDEX(Lists!$F$5:$F$49,MATCH(Planning!C173,Lists!$G$5:$G$49,0),1),"") ->  | CI173: =IF(C173=0,""," ["&INDEX(Lists!$H$5:$H$49,MATCH(C173,Lists!$G$5:$G$49,0),1)&"]") -> 
A174: I166 | AS174: 0 | AT174: 0.00 | AW174: =SUMIFS(I$9:I$208,PlanningIDEnlaces,$C174,$H$9:$H$208,Lists!$A$16) -> 0 | AX174: 0 | AZ174: =SUMIFS(L$9:L$208,PlanningIDEnlaces,$C174,$H$9:$H$208,Lists!$A$16) -> 0 | BA174: 0 | BC174: =SUMIFS(O$9:O$208,PlanningIDEnlaces,$C174,$H$9:$H$208,Lists!$A$16) -> 0 | BD174: 0 | BF174: =SUMIFS(R$9:R$208,PlanningIDEnlaces,$C174,$H$9:$H$208,Lists!$A$16) -> 0 | BG174: 0 | BI174: =SUMIFS(U$9:U$208,PlanningIDEnlaces,$C174,$H$9:$H$208,Lists!$A$16) -> 0 | BJ174: 0 | BL174: =SUMIFS(X$9:X$208,PlanningIDEnlaces,$C174,$H$9:$H$208,Lists!$A$16) -> 0 | BM174: 0 | BO174: =SUMIFS(AA$9:AA$208,PlanningIDEnlaces,$C174,$H$9:$H$208,Lists!$A$16) -> 0 | BP174: 0 | BR174: =SUMIFS(AD$9:AD$208,PlanningIDEnlaces,$C174,$H$9:$H$208,Lists!$A$16) -> 0 | BS174: 0 | BU174: =SUMIFS(AG$9:AG$208,PlanningIDEnlaces,$C174,$H$9:$H$208,Lists!$A$16) -> 0 | BV174: 0 | BX174: =SUMIFS(AJ$9:AJ$208,PlanningIDEnlaces,$C174,$H$9:$H$208,Lists!$A$16) -> 0 | BY174: 0 | CA174: =SUMIFS(AM$9:AM$208,PlanningIDEnlaces,$C174,$H$9:$H$208,Lists!$A$16) -> 0 | CB174: 0 | CD174: =SUMIFS(AP$9:AP$208,PlanningIDEnlaces,$C174,$H$9:$H$208,Lists!$A$16) -> 0 | CE174: 0 | CG174: =IFERROR(INDEX(Lists!$F$5:$F$49,MATCH(Planning!C174,Lists!$G$5:$G$49,0),1),"") ->  | CI174: =IF(C174=0,""," ["&INDEX(Lists!$H$5:$H$49,MATCH(C174,Lists!$G$5:$G$49,0),1)&"]") -> 
A175: I167 | AS175: 0 | AT175: 0.00 | AW175: =SUMIFS(I$9:I$208,PlanningIDEnlaces,$C175,$H$9:$H$208,Lists!$A$16) -> 0 | AX175: 0 | AZ175: =SUMIFS(L$9:L$208,PlanningIDEnlaces,$C175,$H$9:$H$208,Lists!$A$16) -> 0 | BA175: 0 | BC175: =SUMIFS(O$9:O$208,PlanningIDEnlaces,$C175,$H$9:$H$208,Lists!$A$16) -> 0 | BD175: 0 | BF175: =SUMIFS(R$9:R$208,PlanningIDEnlaces,$C175,$H$9:$H$208,Lists!$A$16) -> 0 | BG175: 0 | BI175: =SUMIFS(U$9:U$208,PlanningIDEnlaces,$C175,$H$9:$H$208,Lists!$A$16) -> 0 | BJ175: 0 | BL175: =SUMIFS(X$9:X$208,PlanningIDEnlaces,$C175,$H$9:$H$208,Lists!$A$16) -> 0 | BM175: 0 | BO175: =SUMIFS(AA$9:AA$208,PlanningIDEnlaces,$C175,$H$9:$H$208,Lists!$A$16) -> 0 | BP175: 0 | BR175: =SUMIFS(AD$9:AD$208,PlanningIDEnlaces,$C175,$H$9:$H$208,Lists!$A$16) -> 0 | BS175: 0 | BU175: =SUMIFS(AG$9:AG$208,PlanningIDEnlaces,$C175,$H$9:$H$208,Lists!$A$16) -> 0 | BV175: 0 | BX175: =SUMIFS(AJ$9:AJ$208,PlanningIDEnlaces,$C175,$H$9:$H$208,Lists!$A$16) -> 0 | BY175: 0 | CA175: =SUMIFS(AM$9:AM$208,PlanningIDEnlaces,$C175,$H$9:$H$208,Lists!$A$16) -> 0 | CB175: 0 | CD175: =SUMIFS(AP$9:AP$208,PlanningIDEnlaces,$C175,$H$9:$H$208,Lists!$A$16) -> 0 | CE175: 0 | CG175: =IFERROR(INDEX(Lists!$F$5:$F$49,MATCH(Planning!C175,Lists!$G$5:$G$49,0),1),"") ->  | CI175: =IF(C175=0,""," ["&INDEX(Lists!$H$5:$H$49,MATCH(C175,Lists!$G$5:$G$49,0),1)&"]") -> 
A176: I168 | AS176: 0 | AT176: 0.00 | AW176: =SUMIFS(I$9:I$208,PlanningIDEnlaces,$C176,$H$9:$H$208,Lists!$A$16) -> 0 | AX176: 0 | AZ176: =SUMIFS(L$9:L$208,PlanningIDEnlaces,$C176,$H$9:$H$208,Lists!$A$16) -> 0 | BA176: 0 | BC176: =SUMIFS(O$9:O$208,PlanningIDEnlaces,$C176,$H$9:$H$208,Lists!$A$16) -> 0 | BD176: 0 | BF176: =SUMIFS(R$9:R$208,PlanningIDEnlaces,$C176,$H$9:$H$208,Lists!$A$16) -> 0 | BG176: 0 | BI176: =SUMIFS(U$9:U$208,PlanningIDEnlaces,$C176,$H$9:$H$208,Lists!$A$16) -> 0 | BJ176: 0 | BL176: =SUMIFS(X$9:X$208,PlanningIDEnlaces,$C176,$H$9:$H$208,Lists!$A$16) -> 0 | BM176: 0 | BO176: =SUMIFS(AA$9:AA$208,PlanningIDEnlaces,$C176,$H$9:$H$208,Lists!$A$16) -> 0 | BP176: 0 | BR176: =SUMIFS(AD$9:AD$208,PlanningIDEnlaces,$C176,$H$9:$H$208,Lists!$A$16) -> 0 | BS176: 0 | BU176: =SUMIFS(AG$9:AG$208,PlanningIDEnlaces,$C176,$H$9:$H$208,Lists!$A$16) -> 0 | BV176: 0 | BX176: =SUMIFS(AJ$9:AJ$208,PlanningIDEnlaces,$C176,$H$9:$H$208,Lists!$A$16) -> 0 | BY176: 0 | CA176: =SUMIFS(AM$9:AM$208,PlanningIDEnlaces,$C176,$H$9:$H$208,Lists!$A$16) -> 0 | CB176: 0 | CD176: =SUMIFS(AP$9:AP$208,PlanningIDEnlaces,$C176,$H$9:$H$208,Lists!$A$16) -> 0 | CE176: 0 | CG176: =IFERROR(INDEX(Lists!$F$5:$F$49,MATCH(Planning!C176,Lists!$G$5:$G$49,0),1),"") ->  | CI176: =IF(C176=0,""," ["&INDEX(Lists!$H$5:$H$49,MATCH(C176,Lists!$G$5:$G$49,0),1)&"]") -> 
A177: I169 | AS177: 0 | AT177: 0.00 | AW177: =SUMIFS(I$9:I$208,PlanningIDEnlaces,$C177,$H$9:$H$208,Lists!$A$16) -> 0 | AX177: 0 | AZ177: =SUMIFS(L$9:L$208,PlanningIDEnlaces,$C177,$H$9:$H$208,Lists!$A$16) -> 0 | BA177: 0 | BC177: =SUMIFS(O$9:O$208,PlanningIDEnlaces,$C177,$H$9:$H$208,Lists!$A$16) -> 0 | BD177: 0 | BF177: =SUMIFS(R$9:R$208,PlanningIDEnlaces,$C177,$H$9:$H$208,Lists!$A$16) -> 0 | BG177: 0 | BI177: =SUMIFS(U$9:U$208,PlanningIDEnlaces,$C177,$H$9:$H$208,Lists!$A$16) -> 0 | BJ177: 0 | BL177: =SUMIFS(X$9:X$208,PlanningIDEnlaces,$C177,$H$9:$H$208,Lists!$A$16) -> 0 | BM177: 0 | BO177: =SUMIFS(AA$9:AA$208,PlanningIDEnlaces,$C177,$H$9:$H$208,Lists!$A$16) -> 0 | BP177: 0 | BR177: =SUMIFS(AD$9:AD$208,PlanningIDEnlaces,$C177,$H$9:$H$208,Lists!$A$16) -> 0 | BS177: 0 | BU177: =SUMIFS(AG$9:AG$208,PlanningIDEnlaces,$C177,$H$9:$H$208,Lists!$A$16) -> 0 | BV177: 0 | BX177: =SUMIFS(AJ$9:AJ$208,PlanningIDEnlaces,$C177,$H$9:$H$208,Lists!$A$16) -> 0 | BY177: 0 | CA177: =SUMIFS(AM$9:AM$208,PlanningIDEnlaces,$C177,$H$9:$H$208,Lists!$A$16) -> 0 | CB177: 0 | CD177: =SUMIFS(AP$9:AP$208,PlanningIDEnlaces,$C177,$H$9:$H$208,Lists!$A$16) -> 0 | CE177: 0 | CG177: =IFERROR(INDEX(Lists!$F$5:$F$49,MATCH(Planning!C177,Lists!$G$5:$G$49,0),1),"") ->  | CI177: =IF(C177=0,""," ["&INDEX(Lists!$H$5:$H$49,MATCH(C177,Lists!$G$5:$G$49,0),1)&"]") -> 
A178: I170 | AS178: 0 | AT178: 0.00 | AW178: =SUMIFS(I$9:I$208,PlanningIDEnlaces,$C178,$H$9:$H$208,Lists!$A$16) -> 0 | AX178: 0 | AZ178: =SUMIFS(L$9:L$208,PlanningIDEnlaces,$C178,$H$9:$H$208,Lists!$A$16) -> 0 | BA178: 0 | BC178: =SUMIFS(O$9:O$208,PlanningIDEnlaces,$C178,$H$9:$H$208,Lists!$A$16) -> 0 | BD178: 0 | BF178: =SUMIFS(R$9:R$208,PlanningIDEnlaces,$C178,$H$9:$H$208,Lists!$A$16) -> 0 | BG178: 0 | BI178: =SUMIFS(U$9:U$208,PlanningIDEnlaces,$C178,$H$9:$H$208,Lists!$A$16) -> 0 | BJ178: 0 | BL178: =SUMIFS(X$9:X$208,PlanningIDEnlaces,$C178,$H$9:$H$208,Lists!$A$16) -> 0 | BM178: 0 | BO178: =SUMIFS(AA$9:AA$208,PlanningIDEnlaces,$C178,$H$9:$H$208,Lists!$A$16) -> 0 | BP178: 0 | BR178: =SUMIFS(AD$9:AD$208,PlanningIDEnlaces,$C178,$H$9:$H$208,Lists!$A$16) -> 0 | BS178: 0 | BU178: =SUMIFS(AG$9:AG$208,PlanningIDEnlaces,$C178,$H$9:$H$208,Lists!$A$16) -> 0 | BV178: 0 | BX178: =SUMIFS(AJ$9:AJ$208,PlanningIDEnlaces,$C178,$H$9:$H$208,Lists!$A$16) -> 0 | BY178: 0 | CA178: =SUMIFS(AM$9:AM$208,PlanningIDEnlaces,$C178,$H$9:$H$208,Lists!$A$16) -> 0 | CB178: 0 | CD178: =SUMIFS(AP$9:AP$208,PlanningIDEnlaces,$C178,$H$9:$H$208,Lists!$A$16) -> 0 | CE178: 0 | CG178: =IFERROR(INDEX(Lists!$F$5:$F$49,MATCH(Planning!C178,Lists!$G$5:$G$49,0),1),"") ->  | CI178: =IF(C178=0,""," ["&INDEX(Lists!$H$5:$H$49,MATCH(C178,Lists!$G$5:$G$49,0),1)&"]") -> 
A179: I171 | AS179: 0 | AT179: 0.00 | AW179: =SUMIFS(I$9:I$208,PlanningIDEnlaces,$C179,$H$9:$H$208,Lists!$A$16) -> 0 | AX179: 0 | AZ179: =SUMIFS(L$9:L$208,PlanningIDEnlaces,$C179,$H$9:$H$208,Lists!$A$16) -> 0 | BA179: 0 | BC179: =SUMIFS(O$9:O$208,PlanningIDEnlaces,$C179,$H$9:$H$208,Lists!$A$16) -> 0 | BD179: 0 | BF179: =SUMIFS(R$9:R$208,PlanningIDEnlaces,$C179,$H$9:$H$208,Lists!$A$16) -> 0 | BG179: 0 | BI179: =SUMIFS(U$9:U$208,PlanningIDEnlaces,$C179,$H$9:$H$208,Lists!$A$16) -> 0 | BJ179: 0 | BL179: =SUMIFS(X$9:X$208,PlanningIDEnlaces,$C179,$H$9:$H$208,Lists!$A$16) -> 0 | BM179: 0 | BO179: =SUMIFS(AA$9:AA$208,PlanningIDEnlaces,$C179,$H$9:$H$208,Lists!$A$16) -> 0 | BP179: 0 | BR179: =SUMIFS(AD$9:AD$208,PlanningIDEnlaces,$C179,$H$9:$H$208,Lists!$A$16) -> 0 | BS179: 0 | BU179: =SUMIFS(AG$9:AG$208,PlanningIDEnlaces,$C179,$H$9:$H$208,Lists!$A$16) -> 0 | BV179: 0 | BX179: =SUMIFS(AJ$9:AJ$208,PlanningIDEnlaces,$C179,$H$9:$H$208,Lists!$A$16) -> 0 | BY179: 0 | CA179: =SUMIFS(AM$9:AM$208,PlanningIDEnlaces,$C179,$H$9:$H$208,Lists!$A$16) -> 0 | CB179: 0 | CD179: =SUMIFS(AP$9:AP$208,PlanningIDEnlaces,$C179,$H$9:$H$208,Lists!$A$16) -> 0 | CE179: 0 | CG179: =IFERROR(INDEX(Lists!$F$5:$F$49,MATCH(Planning!C179,Lists!$G$5:$G$49,0),1),"") ->  | CI179: =IF(C179=0,""," ["&INDEX(Lists!$H$5:$H$49,MATCH(C179,Lists!$G$5:$G$49,0),1)&"]") -> 
A180: I172 | AS180: 0 | AT180: 0.00 | AW180: =SUMIFS(I$9:I$208,PlanningIDEnlaces,$C180,$H$9:$H$208,Lists!$A$16) -> 0 | AX180: 0 | AZ180: =SUMIFS(L$9:L$208,PlanningIDEnlaces,$C180,$H$9:$H$208,Lists!$A$16) -> 0 | BA180: 0 | BC180: =SUMIFS(O$9:O$208,PlanningIDEnlaces,$C180,$H$9:$H$208,Lists!$A$16) -> 0 | BD180: 0 | BF180: =SUMIFS(R$9:R$208,PlanningIDEnlaces,$C180,$H$9:$H$208,Lists!$A$16) -> 0 | BG180: 0 | BI180: =SUMIFS(U$9:U$208,PlanningIDEnlaces,$C180,$H$9:$H$208,Lists!$A$16) -> 0 | BJ180: 0 | BL180: =SUMIFS(X$9:X$208,PlanningIDEnlaces,$C180,$H$9:$H$208,Lists!$A$16) -> 0 | BM180: 0 | BO180: =SUMIFS(AA$9:AA$208,PlanningIDEnlaces,$C180,$H$9:$H$208,Lists!$A$16) -> 0 | BP180: 0 | BR180: =SUMIFS(AD$9:AD$208,PlanningIDEnlaces,$C180,$H$9:$H$208,Lists!$A$16) -> 0 | BS180: 0 | BU180: =SUMIFS(AG$9:AG$208,PlanningIDEnlaces,$C180,$H$9:$H$208,Lists!$A$16) -> 0 | BV180: 0 | BX180: =SUMIFS(AJ$9:AJ$208,PlanningIDEnlaces,$C180,$H$9:$H$208,Lists!$A$16) -> 0 | BY180: 0 | CA180: =SUMIFS(AM$9:AM$208,PlanningIDEnlaces,$C180,$H$9:$H$208,Lists!$A$16) -> 0 | CB180: 0 | CD180: =SUMIFS(AP$9:AP$208,PlanningIDEnlaces,$C180,$H$9:$H$208,Lists!$A$16) -> 0 | CE180: 0 | CG180: =IFERROR(INDEX(Lists!$F$5:$F$49,MATCH(Planning!C180,Lists!$G$5:$G$49,0),1),"") ->  | CI180: =IF(C180=0,""," ["&INDEX(Lists!$H$5:$H$49,MATCH(C180,Lists!$G$5:$G$49,0),1)&"]") -> 
A181: I173 | AS181: 0 | AT181: 0.00 | AW181: =SUMIFS(I$9:I$208,PlanningIDEnlaces,$C181,$H$9:$H$208,Lists!$A$16) -> 0 | AX181: 0 | AZ181: =SUMIFS(L$9:L$208,PlanningIDEnlaces,$C181,$H$9:$H$208,Lists!$A$16) -> 0 | BA181: 0 | BC181: =SUMIFS(O$9:O$208,PlanningIDEnlaces,$C181,$H$9:$H$208,Lists!$A$16) -> 0 | BD181: 0 | BF181: =SUMIFS(R$9:R$208,PlanningIDEnlaces,$C181,$H$9:$H$208,Lists!$A$16) -> 0 | BG181: 0 | BI181: =SUMIFS(U$9:U$208,PlanningIDEnlaces,$C181,$H$9:$H$208,Lists!$A$16) -> 0 | BJ181: 0 | BL181: =SUMIFS(X$9:X$208,PlanningIDEnlaces,$C181,$H$9:$H$208,Lists!$A$16) -> 0 | BM181: 0 | BO181: =SUMIFS(AA$9:AA$208,PlanningIDEnlaces,$C181,$H$9:$H$208,Lists!$A$16) -> 0 | BP181: 0 | BR181: =SUMIFS(AD$9:AD$208,PlanningIDEnlaces,$C181,$H$9:$H$208,Lists!$A$16) -> 0 | BS181: 0 | BU181: =SUMIFS(AG$9:AG$208,PlanningIDEnlaces,$C181,$H$9:$H$208,Lists!$A$16) -> 0 | BV181: 0 | BX181: =SUMIFS(AJ$9:AJ$208,PlanningIDEnlaces,$C181,$H$9:$H$208,Lists!$A$16) -> 0 | BY181: 0 | CA181: =SUMIFS(AM$9:AM$208,PlanningIDEnlaces,$C181,$H$9:$H$208,Lists!$A$16) -> 0 | CB181: 0 | CD181: =SUMIFS(AP$9:AP$208,PlanningIDEnlaces,$C181,$H$9:$H$208,Lists!$A$16) -> 0 | CE181: 0 | CG181: =IFERROR(INDEX(Lists!$F$5:$F$49,MATCH(Planning!C181,Lists!$G$5:$G$49,0),1),"") ->  | CI181: =IF(C181=0,""," ["&INDEX(Lists!$H$5:$H$49,MATCH(C181,Lists!$G$5:$G$49,0),1)&"]") -> 
A182: I174 | AS182: 0 | AT182: 0.00 | AW182: =SUMIFS(I$9:I$208,PlanningIDEnlaces,$C182,$H$9:$H$208,Lists!$A$16) -> 0 | AX182: 0 | AZ182: =SUMIFS(L$9:L$208,PlanningIDEnlaces,$C182,$H$9:$H$208,Lists!$A$16) -> 0 | BA182: 0 | BC182: =SUMIFS(O$9:O$208,PlanningIDEnlaces,$C182,$H$9:$H$208,Lists!$A$16) -> 0 | BD182: 0 | BF182: =SUMIFS(R$9:R$208,PlanningIDEnlaces,$C182,$H$9:$H$208,Lists!$A$16) -> 0 | BG182: 0 | BI182: =SUMIFS(U$9:U$208,PlanningIDEnlaces,$C182,$H$9:$H$208,Lists!$A$16) -> 0 | BJ182: 0 | BL182: =SUMIFS(X$9:X$208,PlanningIDEnlaces,$C182,$H$9:$H$208,Lists!$A$16) -> 0 | BM182: 0 | BO182: =SUMIFS(AA$9:AA$208,PlanningIDEnlaces,$C182,$H$9:$H$208,Lists!$A$16) -> 0 | BP182: 0 | BR182: =SUMIFS(AD$9:AD$208,PlanningIDEnlaces,$C182,$H$9:$H$208,Lists!$A$16) -> 0 | BS182: 0 | BU182: =SUMIFS(AG$9:AG$208,PlanningIDEnlaces,$C182,$H$9:$H$208,Lists!$A$16) -> 0 | BV182: 0 | BX182: =SUMIFS(AJ$9:AJ$208,PlanningIDEnlaces,$C182,$H$9:$H$208,Lists!$A$16) -> 0 | BY182: 0 | CA182: =SUMIFS(AM$9:AM$208,PlanningIDEnlaces,$C182,$H$9:$H$208,Lists!$A$16) -> 0 | CB182: 0 | CD182: =SUMIFS(AP$9:AP$208,PlanningIDEnlaces,$C182,$H$9:$H$208,Lists!$A$16) -> 0 | CE182: 0 | CG182: =IFERROR(INDEX(Lists!$F$5:$F$49,MATCH(Planning!C182,Lists!$G$5:$G$49,0),1),"") ->  | CI182: =IF(C182=0,""," ["&INDEX(Lists!$H$5:$H$49,MATCH(C182,Lists!$G$5:$G$49,0),1)&"]") -> 
A183: I175 | AS183: 0 | AT183: 0.00 | AW183: =SUMIFS(I$9:I$208,PlanningIDEnlaces,$C183,$H$9:$H$208,Lists!$A$16) -> 0 | AX183: 0 | AZ183: =SUMIFS(L$9:L$208,PlanningIDEnlaces,$C183,$H$9:$H$208,Lists!$A$16) -> 0 | BA183: 0 | BC183: =SUMIFS(O$9:O$208,PlanningIDEnlaces,$C183,$H$9:$H$208,Lists!$A$16) -> 0 | BD183: 0 | BF183: =SUMIFS(R$9:R$208,PlanningIDEnlaces,$C183,$H$9:$H$208,Lists!$A$16) -> 0 | BG183: 0 | BI183: =SUMIFS(U$9:U$208,PlanningIDEnlaces,$C183,$H$9:$H$208,Lists!$A$16) -> 0 | BJ183: 0 | BL183: =SUMIFS(X$9:X$208,PlanningIDEnlaces,$C183,$H$9:$H$208,Lists!$A$16) -> 0 | BM183: 0 | BO183: =SUMIFS(AA$9:AA$208,PlanningIDEnlaces,$C183,$H$9:$H$208,Lists!$A$16) -> 0 | BP183: 0 | BR183: =SUMIFS(AD$9:AD$208,PlanningIDEnlaces,$C183,$H$9:$H$208,Lists!$A$16) -> 0 | BS183: 0 | BU183: =SUMIFS(AG$9:AG$208,PlanningIDEnlaces,$C183,$H$9:$H$208,Lists!$A$16) -> 0 | BV183: 0 | BX183: =SUMIFS(AJ$9:AJ$208,PlanningIDEnlaces,$C183,$H$9:$H$208,Lists!$A$16) -> 0 | BY183: 0 | CA183: =SUMIFS(AM$9:AM$208,PlanningIDEnlaces,$C183,$H$9:$H$208,Lists!$A$16) -> 0 | CB183: 0 | CD183: =SUMIFS(AP$9:AP$208,PlanningIDEnlaces,$C183,$H$9:$H$208,Lists!$A$16) -> 0 | CE183: 0 | CG183: =IFERROR(INDEX(Lists!$F$5:$F$49,MATCH(Planning!C183,Lists!$G$5:$G$49,0),1),"") ->  | CI183: =IF(C183=0,""," ["&INDEX(Lists!$H$5:$H$49,MATCH(C183,Lists!$G$5:$G$49,0),1)&"]") -> 
